Workbook

Sheet MIVClose
C1: Symbol | D1: Chart | E1: Sessions
C2: EP | D2: ADC | E2: PrimaryOnly
O3: Symbol | P3: Last | Q3: NC | R3: %NC | S3: Open | T3: High | U3: Low | V3: MIVClose
A4: =MIVData!M9 -> 4686.5 | O4: EP | P4: =RTD("cqg.rtd", ,"ContractData", O4, "LastTrade",, "T") -> 4351.75 | Q4: =RTD("cqg.rtd", ,"ContractData", O4, "NetLastTradeToday",, "T") -> 10.25 | R4: =RTD("cqg.rtd", ,"ContractData", O4, "PerCentNetLastTrade",, "T")/100 -> 0.002360935161 | S4: =RTD("cqg.rtd", ,"ContractData", O4, "Open",, "T") -> 4315 | T4: =RTD("cqg.rtd", ,"ContractData", O4, "High",, "T") -> 4352 | U4: =RTD("cqg.rtd", ,"ContractData", O4, "Low",, "T") -> 4299.5 | V4: =RTD("cqg.rtd",,"StudyData",$O4, "ImpVol",, "MIVClose","D") -> 15.26
A5: =MIVData!M10 -> 3661.25 | O5: ENQ | P5: =RTD("cqg.rtd", ,"ContractData", O5, "LastTrade",, "T") -> 15128.75 | Q5: =RTD("cqg.rtd", ,"ContractData", O5, "NetLastTradeToday",, "T") -> 16.5 | R5: =RTD("cqg.rtd", ,"ContractData", O5, "PerCentNetLastTrade",, "T")/100 -> 0.001091847538 | S5: =RTD("cqg.rtd", ,"ContractData", O5, "Open",, "T") -> 15040.25 | T5: =RTD("cqg.rtd", ,"ContractData", O5, "High",, "T") -> 15131.25 | U5: =RTD("cqg.rtd", ,"ContractData", O5, "Low",, "T") -> 14949.5 | V5: =RTD("cqg.rtd",,"StudyData",$O5, "ImpVol",, "MIVClose","D") -> 20.055
O6: YM | P6: =RTD("cqg.rtd", ,"ContractData", O6, "LastTrade",, "T") -> 33678 | Q6: =RTD("cqg.rtd", ,"ContractData", O6, "NetLastTradeToday",, "T") -> 78 | R6: =RTD("cqg.rtd", ,"ContractData", O6, "PerCentNetLastTrade",, "T")/100 -> 0.002321428571 | S6: =RTD("cqg.rtd", ,"ContractData", O6, "Open",, "T") -> 33477 | T6: =RTD("cqg.rtd", ,"ContractData", O6, "High",, "T") -> 33679 | U6: =RTD("cqg.rtd", ,"ContractData", O6, "Low",, "T") -> 33298 | V6: =RTD("cqg.rtd",,"StudyData",$O6, "ImpVol",, "MIVClose","D") -> 12.695
O7: GCE | P7: =RTD("cqg.rtd", ,"ContractData", O7, "LastTrade",, "T") -> 1866.3 | Q7: =RTD("cqg.rtd", ,"ContractData", O7, "NetLastTradeToday",, "T") -> 21.1 | R7: =RTD("cqg.rtd", ,"ContractData", O7, "PerCentNetLastTrade",, "T")/100 -> 0.01143507479 | S7: =RTD("cqg.rtd", ,"ContractData", O7, "Open",, "T") -> 1861 | T7: =RTD("cqg.rtd", ,"ContractData", O7, "High",, "T") -> 1869.5 | U7: =RTD("cqg.rtd", ,"ContractData", O7, "Low",, "T") -> 1857.5 | V7: =RTD("cqg.rtd",,"StudyData",$O7, "ImpVol",, "MIVClose","D") -> 12.395
O8: SIE | P8: =RTD("cqg.rtd", ,"ContractData", O8, "LastTrade",, "T") -> 21.955 | Q8: =RTD("cqg.rtd", ,"ContractData", O8, "NetLastTradeToday",, "T") -> 0.232 | R8: =RTD("cqg.rtd", ,"ContractData", O8, "PerCentNetLastTrade",, "T")/100 -> 0.0106799245 | S8: =RTD("cqg.rtd", ,"ContractData", O8, "Open",, "T") -> 21.94 | T8: =RTD("cqg.rtd", ,"ContractData", O8, "High",, "T") -> 22.18 | U8: =RTD("cqg.rtd", ,"ContractData", O8, "Low",, "T") -> 21.705 | V8: =RTD("cqg.rtd",,"StudyData",$O8, "ImpVol",, "MIVClose","D") -> 26.69
O9: CLE | P9: =RTD("cqg.rtd", ,"ContractData", O9, "LastTrade",, "T") -> 86.28 | Q9: =RTD("cqg.rtd", ,"ContractData", O9, "NetLastTradeToday",, "T") -> 3.49 | R9: =RTD("cqg.rtd", ,"ContractData", O9, "PerCentNetLastTrade",, "T")/100 -> 0.04215484962 | S9: =RTD("cqg.rtd", ,"ContractData", O9, "Open",, "T") -> 85.25 | T9: =RTD("cqg.rtd", ,"ContractData", O9, "High",, "T") -> 87.24 | U9: =RTD("cqg.rtd", ,"ContractData", O9, "Low",, "T") -> 84.67 | V9: =RTD("cqg.rtd",,"StudyData",$O9, "ImpVol",, "MIVClose","D") -> 36.815
O10: HOE | P10: =RTD("cqg.rtd", ,"ContractData", O10, "LastTrade",, "T") -> 2.96 | Q10: =RTD("cqg.rtd", ,"ContractData", O10, "NetLastTradeToday",, "T") -> 0.0592 | R10: =RTD("cqg.rtd", ,"ContractData", O10, "PerCentNetLastTrade",, "T")/100 -> 0.02040816327 | S10: =RTD("cqg.rtd", ,"ContractData", O10, "Open",, "T") -> 2.9498 | T10: =RTD("cqg.rtd", ,"ContractData", O10, "High",, "T") -> 3.0258 | U10: =RTD("cqg.rtd", ,"ContractData", O10, "Low",, "T") -> 2.9236 | V10: =RTD("cqg.rtd",,"StudyData",$O10, "ImpVol",, "MIVClose","D") -> 36.885
O11: RBE | P11: =RTD("cqg.rtd", ,"ContractData", O11, "LastTrade",, "T") -> 2.2334 | Q11: =RTD("cqg.rtd", ,"ContractData", O11, "NetLastTradeToday",, "T") -> 0.0412 | R11: =RTD("cqg.rtd", ,"ContractData", O11, "PerCentNetLastTrade",, "T")/100 -> 0.01879390567 | S11: =RTD("cqg.rtd", ,"ContractData", O11, "Open",, "T") -> 2.24 | T11: =RTD("cqg.rtd", ,"ContractData", O11, "High",, "T") -> 2.2788 | U11: =RTD("cqg.rtd", ,"ContractData", O11, "Low",, "T") -> 2.22 | V11: =RTD("cqg.rtd",,"StudyData",$O11, "ImpVol",, "MIVClose","D") -> 34.88
O12: ZSE | P12: =RTD("cqg.rtd", ,"ContractData", O12, "LastTrade",, "T") -> 1264.5 | Q12: =RTD("cqg.rtd", ,"ContractData", O12, "NetLastTradeToday",, "T") -> -1.5 | R12: =RTD("cqg.rtd", ,"ContractData", O12, "PerCentNetLastTrade",, "T")/100 -> -0.001184834123 | S12: =RTD("cqg.rtd", ,"ContractData", O12, "Open",, "T") -> 1267 | T12: =RTD("cqg.rtd", ,"ContractData", O12, "High",, "T") -> 1277.5 | U12: =RTD("cqg.rtd", ,"ContractData", O12, "Low",, "T") -> 1258.25 | V12: =RTD("cqg.rtd",,"StudyData",$O12, "ImpVol",, "MIVClose","D") -> 17.145
O13: ZCE | P13: =RTD("cqg.rtd", ,"ContractData", O13, "LastTrade",, "T") -> 490.5 | Q13: =RTD("cqg.rtd", ,"ContractData", O13, "NetLastTradeToday",, "T") -> -1.5 | R13: =RTD("cqg.rtd", ,"ContractData", O13, "PerCentNetLastTrade",, "T")/100 -> -0.003048780488 | S13: =RTD("cqg.rtd", ,"ContractData", O13, "Open",, "T") -> 492 | T13: =RTD("cqg.rtd", ,"ContractData", O13, "High",, "T") -> 497 | U13: =RTD("cqg.rtd", ,"ContractData", O13, "Low",, "T") -> 487.25 | V13: =RTD("cqg.rtd",,"StudyData",$O13, "ImpVol",, "MIVClose","D") -> 19.865
O14: ZWA | P14: =RTD("cqg.rtd", ,"ContractData", O14, "LastTrade",, "T") -> 574.25 | Q14: =RTD("cqg.rtd", ,"ContractData", O14, "NetLastTradeToday",, "T") -> 6 | R14: =RTD("cqg.rtd", ,"ContractData", O14, "PerCentNetLastTrade",, "T")/100 -> 0.01055873295 | S14: =RTD("cqg.rtd", ,"ContractData", O14, "Open",, "T") -> 573.25 | T14: =RTD("cqg.rtd", ,"ContractData", O14, "High",, "T") -> 581.5 | U14: =RTD("cqg.rtd", ,"ContractData", O14, "Low",, "T") -> 570 | V14: =RTD("cqg.rtd",,"StudyData",$O14, "ImpVol",, "MIVClose","D") -> 30.82
O20: Frequency Distributio Implied Volatility
A23: =MIVData!M1 -> 28 | O23: =MIVData!M12 -> 25
A24: =MIVData!M2 -> 9 | O24: =MIVData!M13 -> 0

Sheet MIVData
B1: DATE | C1: Open | D1: High | E1: Low | F1: Close | G1: MIVClose | K1: Max (Round up) | L1: =MAX(G2:G302) -> 27.86 | M1: =ROUNDUP(L1,0) -> 28 | O1: Symbol (use CAPS)
A2: 0 | B2: =RTD("cqg.rtd",,"StudyData", $O$2, "BAR", "", "Time", $O$4,-$A2,$O$6,$O$10, "","False","T") -> 2023-10-09 | C2: =RTD("cqg.rtd",,"StudyData", $O$2, "BAR", "", "Open", $O$4, -$A2, $O$6,$O$10,,$O$8,$O$12) -> 4315 | D2: =RTD("cqg.rtd",,"StudyData", $O$2, "BAR", "", "High", $O$4, -$A2, $O$6,$O$10,,$O$8,$O$12) -> 4352 | E2: =RTD("cqg.rtd",,"StudyData", $O$2, "BAR", "", "Low", $O$4, -$A2, $O$6,$O$10,,$O$8,$O$12) -> 4299.5 | F2: =RTD("cqg.rtd",,"StudyData", $O$2, "BAR", "", "Close", $O$4, -$A2, $O$6,$O$10,,$O$8,$O$12) -> 4351.75 | G2: =RTD("cqg.rtd",,"StudyData",$O$2, "ImpVol",, "MIVClose",$O$4,-A2,$O$6,$O$10,,$O$8,$O$12) -> 15.26 | H2: =FREQUENCY($G$2:$G$302,$I$2:$I$43) -> 3 | I2: =M1 -> 28 | J2: =IF(AND($G$2>I3,OR($G$2=I2,$G$2<I2)),H2,NA()) ->  | K2: Min (Round Dn) | L2: =MIN(G2:G302) -> 9.36 | M2: =ROUNDDOWN(L2,0) -> 9 | O2: =MIVClose!C2 -> EP
A3: =A2+1 -> 1 | B3: =RTD("cqg.rtd",,"StudyData", $O$2, "BAR", "", "Time", $O$4,-$A3,$O$6,$O$10, "","False","T") -> 2023-10-06 | C3: =RTD("cqg.rtd",,"StudyData", $O$2, "BAR", "", "Open", $O$4, -$A3, $O$6,$O$10,,$O$8,$O$12) -> 4287.5 | D3: =RTD("cqg.rtd",,"StudyData", $O$2, "BAR", "", "High", $O$4, -$A3, $O$6,$O$10,,$O$8,$O$12) -> 4358.5 | E3: =RTD("cqg.rtd",,"StudyData", $O$2, "BAR", "", "Low", $O$4, -$A3, $O$6,$O$10,,$O$8,$O$12) -> 4242.25 | F3: =RTD("cqg.rtd",,"StudyData", $O$2, "BAR", "", "Close", $O$4, -$A3, $O$6,$O$10,,$O$8,$O$12) -> 4341.5 | G3: =RTD("cqg.rtd",,"StudyData",$O$2, "ImpVol",, "MIVClose",$O$4,-A3,$O$6,$O$10,,$O$8,$O$12) -> 15.065 | H3: 2 | I3: =I2-$M$4 -> 27.53 | J3: =IF(AND($G$2>I4,OR($G$2=I3,$G$2<I3)),H3,NA()) ->  | L3: Difference | M3: =M1-M2 -> 19 | O3: Chart
A4: =A3+1 -> 2 | B4: =RTD("cqg.rtd",,"StudyData", $O$2, "BAR", "", "Time", $O$4,-$A4,$O$6,$O$10, "","False","T") -> 2023-10-05 | C4: =RTD("cqg.rtd",,"StudyData", $O$2, "BAR", "", "Open", $O$4, -$A4, $O$6,$O$10,,$O$8,$O$12) -> 4291.5 | D4: =RTD("cqg.rtd",,"StudyData", $O$2, "BAR", "", "High", $O$4, -$A4, $O$6,$O$10,,$O$8,$O$12) -> 4302 | E4: =RTD("cqg.rtd",,"StudyData", $O$2, "BAR", "", "Low", $O$4, -$A4, $O$6,$O$10,,$O$8,$O$12) -> 4258 | F4: =RTD("cqg.rtd",,"StudyData", $O$2, "BAR", "", "Close", $O$4, -$A4, $O$6,$O$10,,$O$8,$O$12) -> 4290.75 | G4: =RTD("cqg.rtd",,"StudyData",$O$2, "ImpVol",, "MIVClose",$O$4,-A4,$O$6,$O$10,,$O$8,$O$12) -> 15.695 | H4: 7 | I4: =I3-$M$4 -> 27.06 | L4: Diff/20 | M4: =ROUNDDOWN(M3/40,2) -> 0.47 | O4: =MIVClose!D2 -> ADC
A5: 3 | B5: =RTD("cqg.rtd",,"StudyData", $O$2, "BAR", "", "Time", $O$4,-$A5,$O$6,$O$10, "","False","T") -> 2023-10-04 | C5: =RTD("cqg.rtd",,"StudyData", $O$2, "BAR", "", "Open", $O$4, -$A5, $O$6,$O$10,,$O$8,$O$12) -> 4262.75 | D5: =RTD("cqg.rtd",,"StudyData", $O$2, "BAR", "", "High", $O$4, -$A5, $O$6,$O$10,,$O$8,$O$12) -> 4304 | E5: =RTD("cqg.rtd",,"StudyData", $O$2, "BAR", "", "Low", $O$4, -$A5, $O$6,$O$10,,$O$8,$O$12) -> 4235.5 | F5: =RTD("cqg.rtd",,"StudyData", $O$2, "BAR", "", "Close", $O$4, -$A5, $O$6,$O$10,,$O$8,$O$12) -> 4297.75 | G5: =RTD("cqg.rtd",,"StudyData",$O$2, "ImpVol",, "MIVClose",$O$4,-A5,$O$6,$O$10,,$O$8,$O$12) -> 15.75 | H5: 4 | I5: 26.59 | O5: Type All or PrimaryOnly
A6: 4 | B6: =RTD("cqg.rtd",,"StudyData", $O$2, "BAR", "", "Time", $O$4,-$A6,$O$6,$O$10, "","False","T") -> 2023-10-03 | C6: =RTD("cqg.rtd",,"StudyData", $O$2, "BAR", "", "Open", $O$4, -$A6, $O$6,$O$10,,$O$8,$O$12) -> 4326 | D6: =RTD("cqg.rtd",,"StudyData", $O$2, "BAR", "", "High", $O$4, -$A6, $O$6,$O$10,,$O$8,$O$12) -> 4335.75 | E6: =RTD("cqg.rtd",,"StudyData", $O$2, "BAR", "", "Low", $O$4, -$A6, $O$6,$O$10,,$O$8,$O$12) -> 4251.25 | F6: =RTD("cqg.rtd",,"StudyData", $O$2, "BAR", "", "Close", $O$4, -$A6, $O$6,$O$10,,$O$8,$O$12) -> 4264.75 | G6: =RTD("cqg.rtd",,"StudyData",$O$2, "ImpVol",, "MIVClose",$O$4,-A6,$O$6,$O$10,,$O$8,$O$12) -> 16.52 | H6: 3 | I6: 26.12 | L6: Median | M6: =MEDIAN(G2:G302) -> 17.32 | O6: =MIVClose!E2 -> PrimaryOnly
A7: 5 | B7: =RTD("cqg.rtd",,"StudyData", $O$2, "BAR", "", "Time", $O$4,-$A7,$O$6,$O$10, "","False","T") -> 2023-10-02 | C7: =RTD("cqg.rtd",,"StudyData", $O$2, "BAR", "", "Open", $O$4, -$A7, $O$6,$O$10,,$O$8,$O$12) -> 4349 | D7: =RTD("cqg.rtd",,"StudyData", $O$2, "BAR", "", "High", $O$4, -$A7, $O$6,$O$10,,$O$8,$O$12) -> 4355.5 | E7: =RTD("cqg.rtd",,"StudyData", $O$2, "BAR", "", "Low", $O$4, -$A7, $O$6,$O$10,,$O$8,$O$12) -> 4295.5 | F7: =RTD("cqg.rtd",,"StudyData", $O$2, "BAR", "", "Close", $O$4, -$A7, $O$6,$O$10,,$O$8,$O$12) -> 4324.25 | G7: =RTD("cqg.rtd",,"StudyData",$O$2, "ImpVol",, "MIVClose",$O$4,-A7,$O$6,$O$10,,$O$8,$O$12) -> 14.925 | H7: 3 | I7: 25.65 | L7: ="MIVClose = "&TEXT(G2,"#.000")&", Median = "&TEXT(M6,"#.000") -> MIVClose = 15.260, Median = 17.320 | O7: Continuation
A8: 6 | B8: =RTD("cqg.rtd",,"StudyData", $O$2, "BAR", "", "Time", $O$4,-$A8,$O$6,$O$10, "","False","T") -> 2023-09-29 | C8: =RTD("cqg.rtd",,"StudyData", $O$2, "BAR", "", "Open", $O$4, -$A8, $O$6,$O$10,,$O$8,$O$12) -> 4342 | D8: =RTD("cqg.rtd",,"StudyData", $O$2, "BAR", "", "High", $O$4, -$A8, $O$6,$O$10,,$O$8,$O$12) -> 4371.25 | E8: =RTD("cqg.rtd",,"StudyData", $O$2, "BAR", "", "Low", $O$4, -$A8, $O$6,$O$10,,$O$8,$O$12) -> 4311 | F8: =RTD("cqg.rtd",,"StudyData", $O$2, "BAR", "", "Close", $O$4, -$A8, $O$6,$O$10,,$O$8,$O$12) -> 4325.5 | G8: =RTD("cqg.rtd",,"StudyData",$O$2, "ImpVol",, "MIVClose",$O$4,-A8,$O$6,$O$10,,$O$8,$O$12) -> 14.915 | H8: 3 | I8: 25.18 | O8: TRUE
A9: 7 | B9: =RTD("cqg.rtd",,"StudyData", $O$2, "BAR", "", "Time", $O$4,-$A9,$O$6,$O$10, "","False","T") -> 2023-09-28 | C9: =RTD("cqg.rtd",,"StudyData", $O$2, "BAR", "", "Open", $O$4, -$A9, $O$6,$O$10,,$O$8,$O$12) -> 4323.25 | D9: =RTD("cqg.rtd",,"StudyData", $O$2, "BAR", "", "High", $O$4, -$A9, $O$6,$O$10,,$O$8,$O$12) -> 4355.75 | E9: =RTD("cqg.rtd",,"StudyData", $O$2, "BAR", "", "Low", $O$4, -$A9, $O$6,$O$10,,$O$8,$O$12) -> 4301 | F9: =RTD("cqg.rtd",,"StudyData", $O$2, "BAR", "", "Close", $O$4, -$A9, $O$6,$O$10,,$O$8,$O$12) -> 4337.5 | G9: =RTD("cqg.rtd",,"StudyData",$O$2, "ImpVol",, "MIVClose",$O$4,-A9,$O$6,$O$10,,$O$8,$O$12) -> 14.775 | H9: 6 | I9: 24.71 | L9: Bar Chart Max | M9: =MAX(D2:D302)+10*RTD("cqg.rtd", ,"ContractData",O2, "Ticksize",, "T") -> 4686.5 | O9: CustomSessionName eg 700to800
A10: 8 | B10: =RTD("cqg.rtd",,"StudyData", $O$2, "BAR", "", "Time", $O$4,-$A10,$O$6,$O$10, "","False","T") -> 2023-09-27 | C10: =RTD("cqg.rtd",,"StudyData", $O$2, "BAR", "", "Open", $O$4, -$A10, $O$6,$O$10,,$O$8,$O$12) -> 4320.25 | D10: =RTD("cqg.rtd",,"StudyData", $O$2, "BAR", "", "High", $O$4, -$A10, $O$6,$O$10,,$O$8,$O$12) -> 4336.5 | E10: =RTD("cqg.rtd",,"StudyData", $O$2, "BAR", "", "Low", $O$4, -$A10, $O$6,$O$10,,$O$8,$O$12) -> 4277 | F10: =RTD("cqg.rtd",,"StudyData", $O$2, "BAR", "", "Close", $O$4, -$A10, $O$6,$O$10,,$O$8,$O$12) -> 4313.5 | G10: =RTD("cqg.rtd",,"StudyData",$O$2, "ImpVol",, "MIVClose",$O$4,-A10,$O$6,$O$10,,$O$8,$O$12) -> 15.31 | H10: 5 | I10: 24.24 | L10: Bar Chart Min | M10: =MIN(E2:E302)-10*RTD("cqg.rtd", ,"ContractData",O2, "Ticksize",, "T") -> 3661.25
A11: 9 | B11: =RTD("cqg.rtd",,"StudyData", $O$2, "BAR", "", "Time", $O$4,-$A11,$O$6,$O$10, "","False","T") -> 2023-09-26 | C11: =RTD("cqg.rtd",,"StudyData", $O$2, "BAR", "", "Open", $O$4, -$A11, $O$6,$O$10,,$O$8,$O$12) -> 4382 | D11: =RTD("cqg.rtd",,"StudyData", $O$2, "BAR", "", "High", $O$4, -$A11, $O$6,$O$10,,$O$8,$O$12) -> 4382 | E11: =RTD("cqg.rtd",,"StudyData", $O$2, "BAR", "", "Low", $O$4, -$A11, $O$6,$O$10,,$O$8,$O$12) -> 4305.5 | F11: =RTD("cqg.rtd",,"StudyData", $O$2, "BAR", "", "Close", $O$4, -$A11, $O$6,$O$10,,$O$8,$O$12) -> 4314.75 | G11: =RTD("cqg.rtd",,"StudyData",$O$2, "ImpVol",, "MIVClose",$O$4,-A11,$O$6,$O$10,,$O$8,$O$12) -> 15.68 | H11: 5 | I11: 23.77 | O11: Decimal=T, Tick=D
A12: 10 | B12: =RTD("cqg.rtd",,"StudyData", $O$2, "BAR", "", "Time", $O$4,-$A12,$O$6,$O$10, "","False","T") -> 2023-09-25 | C12: =RTD("cqg.rtd",,"StudyData", $O$2, "BAR", "", "Open", $O$4, -$A12, $O$6,$O$10,,$O$8,$O$12) -> 4365 | D12: =RTD("cqg.rtd",,"StudyData", $O$2, "BAR", "", "High", $O$4, -$A12, $O$6,$O$10,,$O$8,$O$12) -> 4383.5 | E12: =RTD("cqg.rtd",,"StudyData", $O$2, "BAR", "", "Low", $O$4, -$A12, $O$6,$O$10,,$O$8,$O$12) -> 4338.25 | F12: =RTD("cqg.rtd",,"StudyData", $O$2, "BAR", "", "Close", $O$4, -$A12, $O$6,$O$10,,$O$8,$O$12) -> 4378.75 | G12: =RTD("cqg.rtd",,"StudyData",$O$2, "ImpVol",, "MIVClose",$O$4,-A12,$O$6,$O$10,,$O$8,$O$12) -> 14.245 | H12: 2 | I12: 23.3 | L12: Frequency Max | M12: =MAX(H2:H43)+2 -> 25 | O12: T
A13: 11 | B13: =RTD("cqg.rtd",,"StudyData", $O$2, "BAR", "", "Time", $O$4,-$A13,$O$6,$O$10, "","False","T") -> 2023-09-22 | C13: =RTD("cqg.rtd",,"StudyData", $O$2, "BAR", "", "Open", $O$4, -$A13, $O$6,$O$10,,$O$8,$O$12) -> 4370.25 | D13: =RTD("cqg.rtd",,"StudyData", $O$2, "BAR", "", "High", $O$4, -$A13, $O$6,$O$10,,$O$8,$O$12) -> 4399 | E13: =RTD("cqg.rtd",,"StudyData", $O$2, "BAR", "", "Low", $O$4, -$A13, $O$6,$O$10,,$O$8,$O$12) -> 4357.25 | F13: =RTD("cqg.rtd",,"StudyData", $O$2, "BAR", "", "Close", $O$4, -$A13, $O$6,$O$10,,$O$8,$O$12) -> 4361 | G13: =RTD("cqg.rtd",,"StudyData",$O$2, "ImpVol",, "MIVClose",$O$4,-A13,$O$6,$O$10,,$O$8,$O$12) -> 14.425 | H13: 5 | I13: 22.83 | L13: Frequency Min | M13: 0
A14: 12 | B14: =RTD("cqg.rtd",,"StudyData", $O$2, "BAR", "", "Time", $O$4,-$A14,$O$6,$O$10, "","False","T") -> 2023-09-21 | C14: =RTD("cqg.rtd",,"StudyData", $O$2, "BAR", "", "Open", $O$4, -$A14, $O$6,$O$10,,$O$8,$O$12) -> 4445 | D14: =RTD("cqg.rtd",,"StudyData", $O$2, "BAR", "", "High", $O$4, -$A14, $O$6,$O$10,,$O$8,$O$12) -> 4447 | E14: =RTD("cqg.rtd",,"StudyData", $O$2, "BAR", "", "Low", $O$4, -$A14, $O$6,$O$10,,$O$8,$O$12) -> 4366.5 | F14: =RTD("cqg.rtd",,"StudyData", $O$2, "BAR", "", "Close", $O$4, -$A14, $O$6,$O$10,,$O$8,$O$12) -> 4372 | G14: =RTD("cqg.rtd",,"StudyData",$O$2, "ImpVol",, "MIVClose",$O$4,-A14,$O$6,$O$10,,$O$8,$O$12) -> 14.335 | H14: 6 | I14: 22.36
A15: 13 | B15: =RTD("cqg.rtd",,"StudyData", $O$2, "BAR", "", "Time", $O$4,-$A15,$O$6,$O$10, "","False","T") -> 2023-09-20 | C15: =RTD("cqg.rtd",,"StudyData", $O$2, "BAR", "", "Open", $O$4, -$A15, $O$6,$O$10,,$O$8,$O$12) -> 4491.25 | D15: =RTD("cqg.rtd",,"StudyData", $O$2, "BAR", "", "High", $O$4, -$A15, $O$6,$O$10,,$O$8,$O$12) -> 4508 | E15: =RTD("cqg.rtd",,"StudyData", $O$2, "BAR", "", "Low", $O$4, -$A15, $O$6,$O$10,,$O$8,$O$12) -> 4443.25 | F15: =RTD("cqg.rtd",,"StudyData", $O$2, "BAR", "", "Close", $O$4, -$A15, $O$6,$O$10,,$O$8,$O$12) -> 4447 | G15: =RTD("cqg.rtd",,"StudyData",$O$2, "ImpVol",, "MIVClose",$O$4,-A15,$O$6,$O$10,,$O$8,$O$12) -> 13.115 | H15: 21 | I15: 21.89
A16: 14 | B16: =RTD("cqg.rtd",,"StudyData", $O$2, "BAR", "", "Time", $O$4,-$A16,$O$6,$O$10, "","False","T") -> 2023-09-19 | C16: =RTD("cqg.rtd",,"StudyData", $O$2, "BAR", "", "Open", $O$4, -$A16, $O$6,$O$10,,$O$8,$O$12) -> 4503.25 | D16: =RTD("cqg.rtd",,"StudyData", $O$2, "BAR", "", "High", $O$4, -$A16, $O$6,$O$10,,$O$8,$O$12) -> 4509.5 | E16: =RTD("cqg.rtd",,"StudyData", $O$2, "BAR", "", "Low", $O$4, -$A16, $O$6,$O$10,,$O$8,$O$12) -> 4462.25 | F16: =RTD("cqg.rtd",,"StudyData", $O$2, "BAR", "", "Close", $O$4, -$A16, $O$6,$O$10,,$O$8,$O$12) -> 4490 | G16: =RTD("cqg.rtd",,"StudyData",$O$2, "ImpVol",, "MIVClose",$O$4,-A16,$O$6,$O$10,,$O$8,$O$12) -> 12.395 | H16: 5 | I16: 21.42
A17: 15 | B17: =RTD("cqg.rtd",,"StudyData", $O$2, "BAR", "", "Time", $O$4,-$A17,$O$6,$O$10, "","False","T") -> 2023-09-18 | C17: =RTD("cqg.rtd",,"StudyData", $O$2, "BAR", "", "Open", $O$4, -$A17, $O$6,$O$10,,$O$8,$O$12) -> 4499.5 | D17: =RTD("cqg.rtd",,"StudyData", $O$2, "BAR", "", "High", $O$4, -$A17, $O$6,$O$10,,$O$8,$O$12) -> 4514.5 | E17: =RTD("cqg.rtd",,"StudyData", $O$2, "BAR", "", "Low", $O$4, -$A17, $O$6,$O$10,,$O$8,$O$12) -> 4487 | F17: =RTD("cqg.rtd",,"StudyData", $O$2, "BAR", "", "Close", $O$4, -$A17, $O$6,$O$10,,$O$8,$O$12) -> 4501.5 | G17: =RTD("cqg.rtd",,"StudyData",$O$2, "ImpVol",, "MIVClose",$O$4,-A17,$O$6,$O$10,,$O$8,$O$12) -> 12.33 | H17: 9 | I17: 20.95
A18: 16 | B18: =RTD("cqg.rtd",,"StudyData", $O$2, "BAR", "", "Time", $O$4,-$A18,$O$6,$O$10, "","False","T") -> 2023-09-15 | C18: =RTD("cqg.rtd",,"StudyData", $O$2, "BAR", "", "Open", $O$4, -$A18, $O$6,$O$10,,$O$8,$O$12) -> 4556.5 | D18: =RTD("cqg.rtd",,"StudyData", $O$2, "BAR", "", "High", $O$4, -$A18, $O$6,$O$10,,$O$8,$O$12) -> 4566 | E18: =RTD("cqg.rtd",,"StudyData", $O$2, "BAR", "", "Low", $O$4, -$A18, $O$6,$O$10,,$O$8,$O$12) -> 4494 | F18: =RTD("cqg.rtd",,"StudyData", $O$2, "BAR", "", "Close", $O$4, -$A18, $O$6,$O$10,,$O$8,$O$12) -> 4498 | G18: =RTD("cqg.rtd",,"StudyData",$O$2, "ImpVol",, "MIVClose",$O$4,-A18,$O$6,$O$10,,$O$8,$O$12) -> 12.43 | H18: 8 | I18: 20.48
A19: 17 | B19: =RTD("cqg.rtd",,"StudyData", $O$2, "BAR", "", "Time", $O$4,-$A19,$O$6,$O$10, "","False","T") -> 2023-09-14 | C19: =RTD("cqg.rtd",,"StudyData", $O$2, "BAR", "", "Open", $O$4, -$A19, $O$6,$O$10,,$O$8,$O$12) -> 4521.25 | D19: =RTD("cqg.rtd",,"StudyData", $O$2, "BAR", "", "High", $O$4, -$A19, $O$6,$O$10,,$O$8,$O$12) -> 4562 | E19: =RTD("cqg.rtd",,"StudyData", $O$2, "BAR", "", "Low", $O$4, -$A19, $O$6,$O$10,,$O$8,$O$12) -> 4519 | F19: =RTD("cqg.rtd",,"StudyData", $O$2, "BAR", "", "Close", $O$4, -$A19, $O$6,$O$10,,$O$8,$O$12) -> 4555 | G19: =RTD("cqg.rtd",,"StudyData",$O$2, "ImpVol",, "MIVClose",$O$4,-A19,$O$6,$O$10,,$O$8,$O$12) -> 11.715 | H19: 8 | I19: 20.01
A20: 18 | B20: =RTD("cqg.rtd",,"StudyData", $O$2, "BAR", "", "Time", $O$4,-$A20,$O$6,$O$10, "","False","T") -> 2023-09-13 | C20: =RTD("cqg.rtd",,"StudyData", $O$2, "BAR", "", "Open", $O$4, -$A20, $O$6,$O$10,,$O$8,$O$12) -> 4513 | D20: =RTD("cqg.rtd",,"StudyData", $O$2, "BAR", "", "High", $O$4, -$A20, $O$6,$O$10,,$O$8,$O$12) -> 4530.25 | E20: =RTD("cqg.rtd",,"StudyData", $O$2, "BAR", "", "Low", $O$4, -$A20, $O$6,$O$10,,$O$8,$O$12) -> 4495 | F20: =RTD("cqg.rtd",,"StudyData", $O$2, "BAR", "", "Close", $O$4, -$A20, $O$6,$O$10,,$O$8,$O$12) -> 4517.5 | G20: =RTD("cqg.rtd",,"StudyData",$O$2, "ImpVol",, "MIVClose",$O$4,-A20,$O$6,$O$10,,$O$8,$O$12) -> 12.295 | H20: 9 | I20: 19.54
A21: 19 | B21: =RTD("cqg.rtd",,"StudyData", $O$2, "BAR", "", "Time", $O$4,-$A21,$O$6,$O$10, "","False","T") -> 2023-09-12 | C21: =RTD("cqg.rtd",,"StudyData", $O$2, "BAR", "", "Open", $O$4, -$A21, $O$6,$O$10,,$O$8,$O$12) -> 4536.5 | D21: =RTD("cqg.rtd",,"StudyData", $O$2, "BAR", "", "High", $O$4, -$A21, $O$6,$O$10,,$O$8,$O$12) -> 4539 | E21: =RTD("cqg.rtd",,"StudyData", $O$2, "BAR", "", "Low", $O$4, -$A21, $O$6,$O$10,,$O$8,$O$12) -> 4507.25 | F21: =RTD("cqg.rtd",,"StudyData", $O$2, "BAR", "", "Close", $O$4, -$A21, $O$6,$O$10,,$O$8,$O$12) -> 4513.75 | G21: =RTD("cqg.rtd",,"StudyData",$O$2, "ImpVol",, "MIVClose",$O$4,-A21,$O$6,$O$10,,$O$8,$O$12) -> 12.585 | H21: 5 | I21: 19.07
A22: 20 | B22: =RTD("cqg.rtd",,"StudyData", $O$2, "BAR", "", "Time", $O$4,-$A22,$O$6,$O$10, "","False","T") -> 2023-09-11 | C22: =RTD("cqg.rtd",,"StudyData", $O$2, "BAR", "", "Open", $O$4, -$A22, $O$6,$O$10,,$O$8,$O$12) -> 4514 | D22: =RTD("cqg.rtd",,"StudyData", $O$2, "BAR", "", "High", $O$4, -$A22, $O$6,$O$10,,$O$8,$O$12) -> 4543.5 | E22: =RTD("cqg.rtd",,"StudyData", $O$2, "BAR", "", "Low", $O$4, -$A22, $O$6,$O$10,,$O$8,$O$12) -> 4508.75 | F22: =RTD("cqg.rtd",,"StudyData", $O$2, "BAR", "", "Close", $O$4, -$A22, $O$6,$O$10,,$O$8,$O$12) -> 4539.5 | G22: =RTD("cqg.rtd",,"StudyData",$O$2, "ImpVol",, "MIVClose",$O$4,-A22,$O$6,$O$10,,$O$8,$O$12) -> 12.34 | H22: 11 | I22: 18.6
A23: 21 | B23: =RTD("cqg.rtd",,"StudyData", $O$2, "BAR", "", "Time", $O$4,-$A23,$O$6,$O$10, "","False","T") -> 2023-09-08 | C23: =RTD("cqg.rtd",,"StudyData", $O$2, "BAR", "", "Open", $O$4, -$A23, $O$6,$O$10,,$O$8,$O$12) -> 4507.75 | D23: =RTD("cqg.rtd",,"StudyData", $O$2, "BAR", "", "High", $O$4, -$A23, $O$6,$O$10,,$O$8,$O$12) -> 4527 | E23: =RTD("cqg.rtd",,"StudyData", $O$2, "BAR", "", "Low", $O$4, -$A23, $O$6,$O$10,,$O$8,$O$12) -> 4492.5 | F23: =RTD("cqg.rtd",,"StudyData", $O$2, "BAR", "", "Close", $O$4, -$A23, $O$6,$O$10,,$O$8,$O$12) -> 4511.25 | G23: =RTD("cqg.rtd",,"StudyData",$O$2, "ImpVol",, "MIVClose",$O$4,-A23,$O$6,$O$10,,$O$8,$O$12) -> 12.72 | H23: 10 | I23: 18.13
A24: 22 | B24: =RTD("cqg.rtd",,"StudyData", $O$2, "BAR", "", "Time", $O$4,-$A24,$O$6,$O$10, "","False","T") -> 2023-09-07 | C24: =RTD("cqg.rtd",,"StudyData", $O$2, "BAR", "", "Open", $O$4, -$A24, $O$6,$O$10,,$O$8,$O$12) -> 4519 | D24: =RTD("cqg.rtd",,"StudyData", $O$2, "BAR", "", "High", $O$4, -$A24, $O$6,$O$10,,$O$8,$O$12) -> 4521.25 | E24: =RTD("cqg.rtd",,"StudyData", $O$2, "BAR", "", "Low", $O$4, -$A24, $O$6,$O$10,,$O$8,$O$12) -> 4483.75 | F24: =RTD("cqg.rtd",,"StudyData", $O$2, "BAR", "", "Close", $O$4, -$A24, $O$6,$O$10,,$O$8,$O$12) -> 4505.75 | G24: =RTD("cqg.rtd",,"StudyData",$O$2, "ImpVol",, "MIVClose",$O$4,-A24,$O$6,$O$10,,$O$8,$O$12) -> 13.135 | H24: 14 | I24: 17.66
A25: 23 | B25: =RTD("cqg.rtd",,"StudyData", $O$2, "BAR", "", "Time", $O$4,-$A25,$O$6,$O$10, "","False","T") -> 2023-09-06 | C25: =RTD("cqg.rtd",,"StudyData", $O$2, "BAR", "", "Open", $O$4, -$A25, $O$6,$O$10,,$O$8,$O$12) -> 4549.5 | D25: =RTD("cqg.rtd",,"StudyData", $O$2, "BAR", "", "High", $O$4, -$A25, $O$6,$O$10,,$O$8,$O$12) -> 4553.25 | E25: =RTD("cqg.rtd",,"StudyData", $O$2, "BAR", "", "Low", $O$4, -$A25, $O$6,$O$10,,$O$8,$O$12) -> 4496.5 | F25: =RTD("cqg.rtd",,"StudyData", $O$2, "BAR", "", "Close", $O$4, -$A25, $O$6,$O$10,,$O$8,$O$12) -> 4521 | G25: =RTD("cqg.rtd",,"StudyData",$O$2, "ImpVol",, "MIVClose",$O$4,-A25,$O$6,$O$10,,$O$8,$O$12) -> 12.965 | H25: 12 | I25: 17.19
A26: 24 | B26: =RTD("cqg.rtd",,"StudyData", $O$2, "BAR", "", "Time", $O$4,-$A26,$O$6,$O$10, "","False","T") -> 2023-09-05 | C26: =RTD("cqg.rtd",,"StudyData", $O$2, "BAR", "", "Open", $O$4, -$A26, $O$6,$O$10,,$O$8,$O$12) -> 4570.75 | D26: =RTD("cqg.rtd",,"StudyData", $O$2, "BAR", "", "High", $O$4, -$A26, $O$6,$O$10,,$O$8,$O$12) -> 4580.75 | E26: =RTD("cqg.rtd",,"StudyData", $O$2, "BAR", "", "Low", $O$4, -$A26, $O$6,$O$10,,$O$8,$O$12) -> 4548.75 | F26: =RTD("cqg.rtd",,"StudyData", $O$2, "BAR", "", "Close", $O$4, -$A26, $O$6,$O$10,,$O$8,$O$12) -> 4552 | G26: =RTD("cqg.rtd",,"StudyData",$O$2, "ImpVol",, "MIVClose",$O$4,-A26,$O$6,$O$10,,$O$8,$O$12) -> 12.675 | H26: 11 | I26: 16.72
A27: 25 | B27: =RTD("cqg.rtd",,"StudyData", $O$2, "BAR", "", "Time", $O$4,-$A27,$O$6,$O$10, "","False","T") -> 2023-09-01 | C27: =RTD("cqg.rtd",,"StudyData", $O$2, "BAR", "", "Open", $O$4, -$A27, $O$6,$O$10,,$O$8,$O$12) -> 4566.25 | D27: =RTD("cqg.rtd",,"StudyData", $O$2, "BAR", "", "High", $O$4, -$A27, $O$6,$O$10,,$O$8,$O$12) -> 4597.25 | E27: =RTD("cqg.rtd",,"StudyData", $O$2, "BAR", "", "Low", $O$4, -$A27, $O$6,$O$10,,$O$8,$O$12) -> 4556.75 | F27: =RTD("cqg.rtd",,"StudyData", $O$2, "BAR", "", "Close", $O$4, -$A27, $O$6,$O$10,,$O$8,$O$12) -> 4571 | G27: =RTD("cqg.rtd",,"StudyData",$O$2, "ImpVol",, "MIVClose",$O$4,-A27,$O$6,$O$10,,$O$8,$O$12) -> 9.36 | H27: 4 | I27: 16.25
A28: 26 | B28: =RTD("cqg.rtd",,"StudyData", $O$2, "BAR", "", "Time", $O$4,-$A28,$O$6,$O$10, "","False","T") -> 2023-08-31 | C28: =RTD("cqg.rtd",,"StudyData", $O$2, "BAR", "", "Open", $O$4, -$A28, $O$6,$O$10,,$O$8,$O$12) -> 4576.5 | D28: =RTD("cqg.rtd",,"StudyData", $O$2, "BAR", "", "High", $O$4, -$A28, $O$6,$O$10,,$O$8,$O$12) -> 4590.75 | E28: =RTD("cqg.rtd",,"StudyData", $O$2, "BAR", "", "Low", $O$4, -$A28, $O$6,$O$10,,$O$8,$O$12) -> 4562.25 | F28: =RTD("cqg.rtd",,"StudyData", $O$2, "BAR", "", "Close", $O$4, -$A28, $O$6,$O$10,,$O$8,$O$12) -> 4565.5 | G28: =RTD("cqg.rtd",,"StudyData",$O$2, "ImpVol",, "MIVClose",$O$4,-A28,$O$6,$O$10,,$O$8,$O$12) -> 9.995 | H28: 8 | I28: 15.78
A29: 27 | B29: =RTD("cqg.rtd",,"StudyData", $O$2, "BAR", "", "Time", $O$4,-$A29,$O$6,$O$10, "","False","T") -> 2023-08-30 | C29: =RTD("cqg.rtd",,"StudyData", $O$2, "BAR", "", "Open", $O$4, -$A29, $O$6,$O$10,,$O$8,$O$12) -> 4558.25 | D29: =RTD("cqg.rtd",,"StudyData", $O$2, "BAR", "", "High", $O$4, -$A29, $O$6,$O$10,,$O$8,$O$12) -> 4580.25 | E29: =RTD("cqg.rtd",,"StudyData", $O$2, "BAR", "", "Low", $O$4, -$A29, $O$6,$O$10,,$O$8,$O$12) -> 4545.75 | F29: =RTD("cqg.rtd",,"StudyData", $O$2, "BAR", "", "Close", $O$4, -$A29, $O$6,$O$10,,$O$8,$O$12) -> 4573.75 | G29: =RTD("cqg.rtd",,"StudyData",$O$2, "ImpVol",, "MIVClose",$O$4,-A29,$O$6,$O$10,,$O$8,$O$12) -> 10.16 | H29: 8 | I29: 15.31 | J29: 8
A30: 28 | B30: =RTD("cqg.rtd",,"StudyData", $O$2, "BAR", "", "Time", $O$4,-$A30,$O$6,$O$10, "","False","T") -> 2023-08-29 | C30: =RTD("cqg.rtd",,"StudyData", $O$2, "BAR", "", "Open", $O$4, -$A30, $O$6,$O$10,,$O$8,$O$12) -> 4493.5 | D30: =RTD("cqg.rtd",,"StudyData", $O$2, "BAR", "", "High", $O$4, -$A30, $O$6,$O$10,,$O$8,$O$12) -> 4559 | E30: =RTD("cqg.rtd",,"StudyData", $O$2, "BAR", "", "Low", $O$4, -$A30, $O$6,$O$10,,$O$8,$O$12) -> 4483 | F30: =RTD("cqg.rtd",,"StudyData", $O$2, "BAR", "", "Close", $O$4, -$A30, $O$6,$O$10,,$O$8,$O$12) -> 4556.25 | G30: =RTD("cqg.rtd",,"StudyData",$O$2, "ImpVol",, "MIVClose",$O$4,-A30,$O$6,$O$10,,$O$8,$O$12) -> 10.775 | H30: 8 | I30: 14.84
A31: 29 | B31: =RTD("cqg.rtd",,"StudyData", $O$2, "BAR", "", "Time", $O$4,-$A31,$O$6,$O$10, "","False","T") -> 2023-08-28 | C31: =RTD("cqg.rtd",,"StudyData", $O$2, "BAR", "", "Open", $O$4, -$A31, $O$6,$O$10,,$O$8,$O$12) -> 4467.5 | D31: =RTD("cqg.rtd",,"StudyData", $O$2, "BAR", "", "High", $O$4, -$A31, $O$6,$O$10,,$O$8,$O$12) -> 4499 | E31: =RTD("cqg.rtd",,"StudyData", $O$2, "BAR", "", "Low", $O$4, -$A31, $O$6,$O$10,,$O$8,$O$12) -> 4464 | F31: =RTD("cqg.rtd",,"StudyData", $O$2, "BAR", "", "Close", $O$4, -$A31, $O$6,$O$10,,$O$8,$O$12) -> 4491.75 | G31: =RTD("cqg.rtd",,"StudyData",$O$2, "ImpVol",, "MIVClose",$O$4,-A31,$O$6,$O$10,,$O$8,$O$12) -> 11.47 | H31: 14 | I31: 14.37
A32: 30 | B32: =RTD("cqg.rtd",,"StudyData", $O$2, "BAR", "", "Time", $O$4,-$A32,$O$6,$O$10, "","False","T") -> 2023-08-25 | C32: =RTD("cqg.rtd",,"StudyData", $O$2, "BAR", "", "Open", $O$4, -$A32, $O$6,$O$10,,$O$8,$O$12) -> 4434 | D32: =RTD("cqg.rtd",,"StudyData", $O$2, "BAR", "", "High", $O$4, -$A32, $O$6,$O$10,,$O$8,$O$12) -> 4478.5 | E32: =RTD("cqg.rtd",,"StudyData", $O$2, "BAR", "", "Low", $O$4, -$A32, $O$6,$O$10,,$O$8,$O$12) -> 4414.75 | F32: =RTD("cqg.rtd",,"StudyData", $O$2, "BAR", "", "Close", $O$4, -$A32, $O$6,$O$10,,$O$8,$O$12) -> 4463.75 | G32: =RTD("cqg.rtd",,"StudyData",$O$2, "ImpVol",, "MIVClose",$O$4,-A32,$O$6,$O$10,,$O$8,$O$12) -> 12.37 | H32: 5 | I32: 13.9
A33: 31 | B33: =RTD("cqg.rtd",,"StudyData", $O$2, "BAR", "", "Time", $O$4,-$A33,$O$6,$O$10, "","False","T") -> 2023-08-24 | C33: =RTD("cqg.rtd",,"StudyData", $O$2, "BAR", "", "Open", $O$4, -$A33, $O$6,$O$10,,$O$8,$O$12) -> 4520 | D33: =RTD("cqg.rtd",,"StudyData", $O$2, "BAR", "", "High", $O$4, -$A33, $O$6,$O$10,,$O$8,$O$12) -> 4535 | E33: =RTD("cqg.rtd",,"StudyData", $O$2, "BAR", "", "Low", $O$4, -$A33, $O$6,$O$10,,$O$8,$O$12) -> 4428 | F33: =RTD("cqg.rtd",,"StudyData", $O$2, "BAR", "", "Close", $O$4, -$A33, $O$6,$O$10,,$O$8,$O$12) -> 4435.5 | G33: =RTD("cqg.rtd",,"StudyData",$O$2, "ImpVol",, "MIVClose",$O$4,-A33,$O$6,$O$10,,$O$8,$O$12) -> 13.715 | H33: 12 | I33: 13.43
A34: 32 | B34: =RTD("cqg.rtd",,"StudyData", $O$2, "BAR", "", "Time", $O$4,-$A34,$O$6,$O$10, "","False","T") -> 2023-08-23 | C34: =RTD("cqg.rtd",,"StudyData", $O$2, "BAR", "", "Open", $O$4, -$A34, $O$6,$O$10,,$O$8,$O$12) -> 4449.5 | D34: =RTD("cqg.rtd",,"StudyData", $O$2, "BAR", "", "High", $O$4, -$A34, $O$6,$O$10,,$O$8,$O$12) -> 4525.75 | E34: =RTD("cqg.rtd",,"StudyData", $O$2, "BAR", "", "Low", $O$4, -$A34, $O$6,$O$10,,$O$8,$O$12) -> 4449 | F34: =RTD("cqg.rtd",,"StudyData", $O$2, "BAR", "", "Close", $O$4, -$A34, $O$6,$O$10,,$O$8,$O$12) -> 4496.5 | G34: =RTD("cqg.rtd",,"StudyData",$O$2, "ImpVol",, "MIVClose",$O$4,-A34,$O$6,$O$10,,$O$8,$O$12) -> 12.54 | H34: 12 | I34: 12.96
A35: 33 | B35: =RTD("cqg.rtd",,"StudyData", $O$2, "BAR", "", "Time", $O$4,-$A35,$O$6,$O$10, "","False","T") -> 2023-08-22 | C35: =RTD("cqg.rtd",,"StudyData", $O$2, "BAR", "", "Open", $O$4, -$A35, $O$6,$O$10,,$O$8,$O$12) -> 4459.75 | D35: =RTD("cqg.rtd",,"StudyData", $O$2, "BAR", "", "High", $O$4, -$A35, $O$6,$O$10,,$O$8,$O$12) -> 4489.5 | E35: =RTD("cqg.rtd",,"StudyData", $O$2, "BAR", "", "Low", $O$4, -$A35, $O$6,$O$10,,$O$8,$O$12) -> 4443.75 | F35: =RTD("cqg.rtd",,"StudyData", $O$2, "BAR", "", "Close", $O$4, -$A35, $O$6,$O$10,,$O$8,$O$12) -> 4448.75 | G35: =RTD("cqg.rtd",,"StudyData",$O$2, "ImpVol",, "MIVClose",$O$4,-A35,$O$6,$O$10,,$O$8,$O$12) -> 13.44 | H35: 23 | I35: 12.49
A36: 34 | B36: =RTD("cqg.rtd",,"StudyData", $O$2, "BAR", "", "Time", $O$4,-$A36,$O$6,$O$10, "","False","T") -> 2023-08-21 | C36: =RTD("cqg.rtd",,"StudyData", $O$2, "BAR", "", "Open", $O$4, -$A36, $O$6,$O$10,,$O$8,$O$12) -> 4432 | D36: =RTD("cqg.rtd",,"StudyData", $O$2, "BAR", "", "High", $O$4, -$A36, $O$6,$O$10,,$O$8,$O$12) -> 4470.5 | E36: =RTD("cqg.rtd",,"StudyData", $O$2, "BAR", "", "Low", $O$4, -$A36, $O$6,$O$10,,$O$8,$O$12) -> 4421.75 | F36: =RTD("cqg.rtd",,"StudyData", $O$2, "BAR", "", "Close", $O$4, -$A36, $O$6,$O$10,,$O$8,$O$12) -> 4462 | G36: =RTD("cqg.rtd",,"StudyData",$O$2, "ImpVol",, "MIVClose",$O$4,-A36,$O$6,$O$10,,$O$8,$O$12) -> 13.33 | H36: 5 | I36: 12.02
A37: 35 | B37: =RTD("cqg.rtd",,"StudyData", $O$2, "BAR", "", "Time", $O$4,-$A37,$O$6,$O$10, "","False","T") -> 2023-08-18 | C37: =RTD("cqg.rtd",,"StudyData", $O$2, "BAR", "", "Open", $O$4, -$A37, $O$6,$O$10,,$O$8,$O$12) -> 4428.75 | D37: =RTD("cqg.rtd",,"StudyData", $O$2, "BAR", "", "High", $O$4, -$A37, $O$6,$O$10,,$O$8,$O$12) -> 4445.5 | E37: =RTD("cqg.rtd",,"StudyData", $O$2, "BAR", "", "Low", $O$4, -$A37, $O$6,$O$10,,$O$8,$O$12) -> 4399.5 | F37: =RTD("cqg.rtd",,"StudyData", $O$2, "BAR", "", "Close", $O$4, -$A37, $O$6,$O$10,,$O$8,$O$12) -> 4432.25 | G37: =RTD("cqg.rtd",,"StudyData",$O$2, "ImpVol",, "MIVClose",$O$4,-A37,$O$6,$O$10,,$O$8,$O$12) -> 14.155 | H37: 16 | I37: 11.55
A38: 36 | B38: =RTD("cqg.rtd",,"StudyData", $O$2, "BAR", "", "Time", $O$4,-$A38,$O$6,$O$10, "","False","T") -> 2023-08-17 | C38: =RTD("cqg.rtd",,"StudyData", $O$2, "BAR", "", "Open", $O$4, -$A38, $O$6,$O$10,,$O$8,$O$12) -> 4470 | D38: =RTD("cqg.rtd",,"StudyData", $O$2, "BAR", "", "High", $O$4, -$A38, $O$6,$O$10,,$O$8,$O$12) -> 4486.25 | E38: =RTD("cqg.rtd",,"StudyData", $O$2, "BAR", "", "Low", $O$4, -$A38, $O$6,$O$10,,$O$8,$O$12) -> 4427.25 | F38: =RTD("cqg.rtd",,"StudyData", $O$2, "BAR", "", "Close", $O$4, -$A38, $O$6,$O$10,,$O$8,$O$12) -> 4434 | G38: =RTD("cqg.rtd",,"StudyData",$O$2, "ImpVol",, "MIVClose",$O$4,-A38,$O$6,$O$10,,$O$8,$O$12) -> 14.69 | H38: 6 | I38: 11.08
A39: 37 | B39: =RTD("cqg.rtd",,"StudyData", $O$2, "BAR", "", "Time", $O$4,-$A39,$O$6,$O$10, "","False","T") -> 2023-08-16 | C39: =RTD("cqg.rtd",,"StudyData", $O$2, "BAR", "", "Open", $O$4, -$A39, $O$6,$O$10,,$O$8,$O$12) -> 4502.75 | D39: =RTD("cqg.rtd",,"StudyData", $O$2, "BAR", "", "High", $O$4, -$A39, $O$6,$O$10,,$O$8,$O$12) -> 4516.75 | E39: =RTD("cqg.rtd",,"StudyData", $O$2, "BAR", "", "Low", $O$4, -$A39, $O$6,$O$10,,$O$8,$O$12) -> 4466.5 | F39: =RTD("cqg.rtd",,"StudyData", $O$2, "BAR", "", "Close", $O$4, -$A39, $O$6,$O$10,,$O$8,$O$12) -> 4469.5 | G39: =RTD("cqg.rtd",,"StudyData",$O$2, "ImpVol",, "MIVClose",$O$4,-A39,$O$6,$O$10,,$O$8,$O$12) -> 13.75 | H39: 1 | I39: 10.61
A40: 38 | B40: =RTD("cqg.rtd",,"StudyData", $O$2, "BAR", "", "Time", $O$4,-$A40,$O$6,$O$10, "","False","T") -> 2023-08-15 | C40: =RTD("cqg.rtd",,"StudyData", $O$2, "BAR", "", "Open", $O$4, -$A40, $O$6,$O$10,,$O$8,$O$12) -> 4555.25 | D40: =RTD("cqg.rtd",,"StudyData", $O$2, "BAR", "", "High", $O$4, -$A40, $O$6,$O$10,,$O$8,$O$12) -> 4567.25 | E40: =RTD("cqg.rtd",,"StudyData", $O$2, "BAR", "", "Low", $O$4, -$A40, $O$6,$O$10,,$O$8,$O$12) -> 4496.5 | F40: =RTD("cqg.rtd",,"StudyData", $O$2, "BAR", "", "Close", $O$4, -$A40, $O$6,$O$10,,$O$8,$O$12) -> 4503.5 | G40: =RTD("cqg.rtd",,"StudyData",$O$2, "ImpVol",, "MIVClose",$O$4,-A40,$O$6,$O$10,,$O$8,$O$12) -> 13.185 | H40: 1 | I40: 10.14
A41: 39 | B41: =RTD("cqg.rtd",,"StudyData", $O$2, "BAR", "", "Time", $O$4,-$A41,$O$6,$O$10, "","False","T") -> 2023-08-14 | C41: =RTD("cqg.rtd",,"StudyData", $O$2, "BAR", "", "Open", $O$4, -$A41, $O$6,$O$10,,$O$8,$O$12) -> 4534.5 | D41: =RTD("cqg.rtd",,"StudyData", $O$2, "BAR", "", "High", $O$4, -$A41, $O$6,$O$10,,$O$8,$O$12) -> 4557.25 | E41: =RTD("cqg.rtd",,"StudyData", $O$2, "BAR", "", "Low", $O$4, -$A41, $O$6,$O$10,,$O$8,$O$12) -> 4514.5 | F41: =RTD("cqg.rtd",,"StudyData", $O$2, "BAR", "", "Close", $O$4, -$A41, $O$6,$O$10,,$O$8,$O$12) -> 4555.5 | G41: =RTD("cqg.rtd",,"StudyData",$O$2, "ImpVol",, "MIVClose",$O$4,-A41,$O$6,$O$10,,$O$8,$O$12) -> 11.785 | H41: 1 | I41: 9.67
A42: 40 | B42: =RTD("cqg.rtd",,"StudyData", $O$2, "BAR", "", "Time", $O$4,-$A42,$O$6,$O$10, "","False","T") -> 2023-08-11 | C42: =RTD("cqg.rtd",,"StudyData", $O$2, "BAR", "", "Open", $O$4, -$A42, $O$6,$O$10,,$O$8,$O$12) -> 4537.25 | D42: =RTD("cqg.rtd",,"StudyData", $O$2, "BAR", "", "High", $O$4, -$A42, $O$6,$O$10,,$O$8,$O$12) -> 4545.75 | E42: =RTD("cqg.rtd",,"StudyData", $O$2, "BAR", "", "Low", $O$4, -$A42, $O$6,$O$10,,$O$8,$O$12) -> 4508.5 | F42: =RTD("cqg.rtd",,"StudyData", $O$2, "BAR", "", "Close", $O$4, -$A42, $O$6,$O$10,,$O$8,$O$12) -> 4530.25 | G42: =RTD("cqg.rtd",,"StudyData",$O$2, "ImpVol",, "MIVClose",$O$4,-A42,$O$6,$O$10,,$O$8,$O$12) -> 12.405 | H42: 0 | I42: 9.2
A43: 41 | B43: =RTD("cqg.rtd",,"StudyData", $O$2, "BAR", "", "Time", $O$4,-$A43,$O$6,$O$10, "","False","T") -> 2023-08-10 | C43: =RTD("cqg.rtd",,"StudyData", $O$2, "BAR", "", "Open", $O$4, -$A43, $O$6,$O$10,,$O$8,$O$12) -> 4542.75 | D43: =RTD("cqg.rtd",,"StudyData", $O$2, "BAR", "", "High", $O$4, -$A43, $O$6,$O$10,,$O$8,$O$12) -> 4594.25 | E43: =RTD("cqg.rtd",,"StudyData", $O$2, "BAR", "", "Low", $O$4, -$A43, $O$6,$O$10,,$O$8,$O$12) -> 4523 | F43: =RTD("cqg.rtd",,"StudyData", $O$2, "BAR", "", "Close", $O$4, -$A43, $O$6,$O$10,,$O$8,$O$12) -> 4535.25 | G43: =RTD("cqg.rtd",,"StudyData",$O$2, "ImpVol",, "MIVClose",$O$4,-A43,$O$6,$O$10,,$O$8,$O$12) -> 12.985 | H43: 0 | I43: 8.73
A44: 42 | B44: =RTD("cqg.rtd",,"StudyData", $O$2, "BAR", "", "Time", $O$4,-$A44,$O$6,$O$10, "","False","T") -> 2023-08-09 | C44: =RTD("cqg.rtd",,"StudyData", $O$2, "BAR", "", "Open", $O$4, -$A44, $O$6,$O$10,,$O$8,$O$12) -> 4566 | D44: =RTD("cqg.rtd",,"StudyData", $O$2, "BAR", "", "High", $O$4, -$A44, $O$6,$O$10,,$O$8,$O$12) -> 4585.75 | E44: =RTD("cqg.rtd",,"StudyData", $O$2, "BAR", "", "Low", $O$4, -$A44, $O$6,$O$10,,$O$8,$O$12) -> 4527.75 | F44: =RTD("cqg.rtd",,"StudyData", $O$2, "BAR", "", "Close", $O$4, -$A44, $O$6,$O$10,,$O$8,$O$12) -> 4535.25 | G44: =RTD("cqg.rtd",,"StudyData",$O$2, "ImpVol",, "MIVClose",$O$4,-A44,$O$6,$O$10,,$O$8,$O$12) -> 12.9
A45: 43 | B45: =RTD("cqg.rtd",,"StudyData", $O$2, "BAR", "", "Time", $O$4,-$A45,$O$6,$O$10, "","False","T") -> 2023-08-08 | C45: =RTD("cqg.rtd",,"StudyData", $O$2, "BAR", "", "Open", $O$4, -$A45, $O$6,$O$10,,$O$8,$O$12) -> 4589 | D45: =RTD("cqg.rtd",,"StudyData", $O$2, "BAR", "", "High", $O$4, -$A45, $O$6,$O$10,,$O$8,$O$12) -> 4590.5 | E45: =RTD("cqg.rtd",,"StudyData", $O$2, "BAR", "", "Low", $O$4, -$A45, $O$6,$O$10,,$O$8,$O$12) -> 4531.5 | F45: =RTD("cqg.rtd",,"StudyData", $O$2, "BAR", "", "Close", $O$4, -$A45, $O$6,$O$10,,$O$8,$O$12) -> 4568 | G45: =RTD("cqg.rtd",,"StudyData",$O$2, "ImpVol",, "MIVClose",$O$4,-A45,$O$6,$O$10,,$O$8,$O$12) -> 12.59
A46: 44 | B46: =RTD("cqg.rtd",,"StudyData", $O$2, "BAR", "", "Time", $O$4,-$A46,$O$6,$O$10, "","False","T") -> 2023-08-07 | C46: =RTD("cqg.rtd",,"StudyData", $O$2, "BAR", "", "Open", $O$4, -$A46, $O$6,$O$10,,$O$8,$O$12) -> 4550 | D46: =RTD("cqg.rtd",,"StudyData", $O$2, "BAR", "", "High", $O$4, -$A46, $O$6,$O$10,,$O$8,$O$12) -> 4591.25 | E46: =RTD("cqg.rtd",,"StudyData", $O$2, "BAR", "", "Low", $O$4, -$A46, $O$6,$O$10,,$O$8,$O$12) -> 4550 | F46: =RTD("cqg.rtd",,"StudyData", $O$2, "BAR", "", "Close", $O$4, -$A46, $O$6,$O$10,,$O$8,$O$12) -> 4587.25 | G46: =RTD("cqg.rtd",,"StudyData",$O$2, "ImpVol",, "MIVClose",$O$4,-A46,$O$6,$O$10,,$O$8,$O$12) -> 12.11
A47: 45 | B47: =RTD("cqg.rtd",,"StudyData", $O$2, "BAR", "", "Time", $O$4,-$A47,$O$6,$O$10, "","False","T") -> 2023-08-04 | C47: =RTD("cqg.rtd",,"StudyData", $O$2, "BAR", "", "Open", $O$4, -$A47, $O$6,$O$10,,$O$8,$O$12) -> 4573 | D47: =RTD("cqg.rtd",,"StudyData", $O$2, "BAR", "", "High", $O$4, -$A47, $O$6,$O$10,,$O$8,$O$12) -> 4610.25 | E47: =RTD("cqg.rtd",,"StudyData", $O$2, "BAR", "", "Low", $O$4, -$A47, $O$6,$O$10,,$O$8,$O$12) -> 4543.25 | F47: =RTD("cqg.rtd",,"StudyData", $O$2, "BAR", "", "Close", $O$4, -$A47, $O$6,$O$10,,$O$8,$O$12) -> 4547.5 | G47: =RTD("cqg.rtd",,"StudyData",$O$2, "ImpVol",, "MIVClose",$O$4,-A47,$O$6,$O$10,,$O$8,$O$12) -> 13.3
A48: 46 | B48: =RTD("cqg.rtd",,"StudyData", $O$2, "BAR", "", "Time", $O$4,-$A48,$O$6,$O$10, "","False","T") -> 2023-08-03 | C48: =RTD("cqg.rtd",,"StudyData", $O$2, "BAR", "", "Open", $O$4, -$A48, $O$6,$O$10,,$O$8,$O$12) -> 4583.75 | D48: =RTD("cqg.rtd",,"StudyData", $O$2, "BAR", "", "High", $O$4, -$A48, $O$6,$O$10,,$O$8,$O$12) -> 4597 | E48: =RTD("cqg.rtd",,"StudyData", $O$2, "BAR", "", "Low", $O$4, -$A48, $O$6,$O$10,,$O$8,$O$12) -> 4555.25 | F48: =RTD("cqg.rtd",,"StudyData", $O$2, "BAR", "", "Close", $O$4, -$A48, $O$6,$O$10,,$O$8,$O$12) -> 4571.25 | G48: =RTD("cqg.rtd",,"StudyData",$O$2, "ImpVol",, "MIVClose",$O$4,-A48,$O$6,$O$10,,$O$8,$O$12) -> 12.67
A49: 47 | B49: =RTD("cqg.rtd",,"StudyData", $O$2, "BAR", "", "Time", $O$4,-$A49,$O$6,$O$10, "","False","T") -> 2023-08-02 | C49: =RTD("cqg.rtd",,"StudyData", $O$2, "BAR", "", "Open", $O$4, -$A49, $O$6,$O$10,,$O$8,$O$12) -> 4629.5 | D49: =RTD("cqg.rtd",,"StudyData", $O$2, "BAR", "", "High", $O$4, -$A49, $O$6,$O$10,,$O$8,$O$12) -> 4643 | E49: =RTD("cqg.rtd",,"StudyData", $O$2, "BAR", "", "Low", $O$4, -$A49, $O$6,$O$10,,$O$8,$O$12) -> 4577.25 | F49: =RTD("cqg.rtd",,"StudyData", $O$2, "BAR", "", "Close", $O$4, -$A49, $O$6,$O$10,,$O$8,$O$12) -> 4586.75 | G49: =RTD("cqg.rtd",,"StudyData",$O$2, "ImpVol",, "MIVClose",$O$4,-A49,$O$6,$O$10,,$O$8,$O$12) -> 12.675
A50: 48 | B50: =RTD("cqg.rtd",,"StudyData", $O$2, "BAR", "", "Time", $O$4,-$A50,$O$6,$O$10, "","False","T") -> 2023-08-01 | C50: =RTD("cqg.rtd",,"StudyData", $O$2, "BAR", "", "Open", $O$4, -$A50, $O$6,$O$10,,$O$8,$O$12) -> 4667.25 | D50: =RTD("cqg.rtd",,"StudyData", $O$2, "BAR", "", "High", $O$4, -$A50, $O$6,$O$10,,$O$8,$O$12) -> 4671.25 | E50: =RTD("cqg.rtd",,"StudyData", $O$2, "BAR", "", "Low", $O$4, -$A50, $O$6,$O$10,,$O$8,$O$12) -> 4640.5 | F50: =RTD("cqg.rtd",,"StudyData", $O$2, "BAR", "", "Close", $O$4, -$A50, $O$6,$O$10,,$O$8,$O$12) -> 4650.75 | G50: =RTD("cqg.rtd",,"StudyData",$O$2, "ImpVol",, "MIVClose",$O$4,-A50,$O$6,$O$10,,$O$8,$O$12) -> 11.145
A51: 49 | B51: =RTD("cqg.rtd",,"StudyData", $O$2, "BAR", "", "Time", $O$4,-$A51,$O$6,$O$10, "","False","T") -> 2023-07-31 | C51: =RTD("cqg.rtd",,"StudyData", $O$2, "BAR", "", "Open", $O$4, -$A51, $O$6,$O$10,,$O$8,$O$12) -> 4658.25 | D51: =RTD("cqg.rtd",,"StudyData", $O$2, "BAR", "", "High", $O$4, -$A51, $O$6,$O$10,,$O$8,$O$12) -> 4668.75 | E51: =RTD("cqg.rtd",,"StudyData", $O$2, "BAR", "", "Low", $O$4, -$A51, $O$6,$O$10,,$O$8,$O$12) -> 4644.75 | F51: =RTD("cqg.rtd",,"StudyData", $O$2, "BAR", "", "Close", $O$4, -$A51, $O$6,$O$10,,$O$8,$O$12) -> 4664 | G51: =RTD("cqg.rtd",,"StudyData",$O$2, "ImpVol",, "MIVClose",$O$4,-A51,$O$6,$O$10,,$O$8,$O$12) -> 10.8
A52: 50 | B52: =RTD("cqg.rtd",,"StudyData", $O$2, "BAR", "", "Time", $O$4,-$A52,$O$6,$O$10, "","False","T") -> 2023-07-28 | C52: =RTD("cqg.rtd",,"StudyData", $O$2, "BAR", "", "Open", $O$4, -$A52, $O$6,$O$10,,$O$8,$O$12) -> 4615.5 | D52: =RTD("cqg.rtd",,"StudyData", $O$2, "BAR", "", "High", $O$4, -$A52, $O$6,$O$10,,$O$8,$O$12) -> 4666 | E52: =RTD("cqg.rtd",,"StudyData", $O$2, "BAR", "", "Low", $O$4, -$A52, $O$6,$O$10,,$O$8,$O$12) -> 4607.5 | F52: =RTD("cqg.rtd",,"StudyData", $O$2, "BAR", "", "Close", $O$4, -$A52, $O$6,$O$10,,$O$8,$O$12) -> 4656 | G52: =RTD("cqg.rtd",,"StudyData",$O$2, "ImpVol",, "MIVClose",$O$4,-A52,$O$6,$O$10,,$O$8,$O$12) -> 10.835
A53: 51 | B53: =RTD("cqg.rtd",,"StudyData", $O$2, "BAR", "", "Time", $O$4,-$A53,$O$6,$O$10, "","False","T") -> 2023-07-27 | C53: =RTD("cqg.rtd",,"StudyData", $O$2, "BAR", "", "Open", $O$4, -$A53, $O$6,$O$10,,$O$8,$O$12) -> 4644.25 | D53: =RTD("cqg.rtd",,"StudyData", $O$2, "BAR", "", "High", $O$4, -$A53, $O$6,$O$10,,$O$8,$O$12) -> 4684 | E53: =RTD("cqg.rtd",,"StudyData", $O$2, "BAR", "", "Low", $O$4, -$A53, $O$6,$O$10,,$O$8,$O$12) -> 4603.25 | F53: =RTD("cqg.rtd",,"StudyData", $O$2, "BAR", "", "Close", $O$4, -$A53, $O$6,$O$10,,$O$8,$O$12) -> 4613.75 | G53: =RTD("cqg.rtd",,"StudyData",$O$2, "ImpVol",, "MIVClose",$O$4,-A53,$O$6,$O$10,,$O$8,$O$12) -> 11.355
A54: 52 | B54: =RTD("cqg.rtd",,"StudyData", $O$2, "BAR", "", "Time", $O$4,-$A54,$O$6,$O$10, "","False","T") -> 2023-07-26 | C54: =RTD("cqg.rtd",,"StudyData", $O$2, "BAR", "", "Open", $O$4, -$A54, $O$6,$O$10,,$O$8,$O$12) -> 4654.25 | D54: =RTD("cqg.rtd",,"StudyData", $O$2, "BAR", "", "High", $O$4, -$A54, $O$6,$O$10,,$O$8,$O$12) -> 4660.25 | E54: =RTD("cqg.rtd",,"StudyData", $O$2, "BAR", "", "Low", $O$4, -$A54, $O$6,$O$10,,$O$8,$O$12) -> 4623.25 | F54: =RTD("cqg.rtd",,"StudyData", $O$2, "BAR", "", "Close", $O$4, -$A54, $O$6,$O$10,,$O$8,$O$12) -> 4644.75 | G54: =RTD("cqg.rtd",,"StudyData",$O$2, "ImpVol",, "MIVClose",$O$4,-A54,$O$6,$O$10,,$O$8,$O$12) -> 10.63
A55: 53 | B55: =RTD("cqg.rtd",,"StudyData", $O$2, "BAR", "", "Time", $O$4,-$A55,$O$6,$O$10, "","False","T") -> 2023-07-25 | C55: =RTD("cqg.rtd",,"StudyData", $O$2, "BAR", "", "Open", $O$4, -$A55, $O$6,$O$10,,$O$8,$O$12) -> 4634 | D55: =RTD("cqg.rtd",,"StudyData", $O$2, "BAR", "", "High", $O$4, -$A55, $O$6,$O$10,,$O$8,$O$12) -> 4658.25 | E55: =RTD("cqg.rtd",,"StudyData", $O$2, "BAR", "", "Low", $O$4, -$A55, $O$6,$O$10,,$O$8,$O$12) -> 4628.75 | F55: =RTD("cqg.rtd",,"StudyData", $O$2, "BAR", "", "Close", $O$4, -$A55, $O$6,$O$10,,$O$8,$O$12) -> 4645.5 | G55: =RTD("cqg.rtd",,"StudyData",$O$2, "ImpVol",, "MIVClose",$O$4,-A55,$O$6,$O$10,,$O$8,$O$12) -> 11.055
A56: 54 | B56: =RTD("cqg.rtd",,"StudyData", $O$2, "BAR", "", "Time", $O$4,-$A56,$O$6,$O$10, "","False","T") -> 2023-07-24 | C56: =RTD("cqg.rtd",,"StudyData", $O$2, "BAR", "", "Open", $O$4, -$A56, $O$6,$O$10,,$O$8,$O$12) -> 4613.75 | D56: =RTD("cqg.rtd",,"StudyData", $O$2, "BAR", "", "High", $O$4, -$A56, $O$6,$O$10,,$O$8,$O$12) -> 4642 | E56: =RTD("cqg.rtd",,"StudyData", $O$2, "BAR", "", "Low", $O$4, -$A56, $O$6,$O$10,,$O$8,$O$12) -> 4609.5 | F56: =RTD("cqg.rtd",,"StudyData", $O$2, "BAR", "", "Close", $O$4, -$A56, $O$6,$O$10,,$O$8,$O$12) -> 4633 | G56: =RTD("cqg.rtd",,"StudyData",$O$2, "ImpVol",, "MIVClose",$O$4,-A56,$O$6,$O$10,,$O$8,$O$12) -> 10.98
A57: 55 | B57: =RTD("cqg.rtd",,"StudyData", $O$2, "BAR", "", "Time", $O$4,-$A57,$O$6,$O$10, "","False","T") -> 2023-07-21 | C57: =RTD("cqg.rtd",,"StudyData", $O$2, "BAR", "", "Open", $O$4, -$A57, $O$6,$O$10,,$O$8,$O$12) -> 4615.75 | D57: =RTD("cqg.rtd",,"StudyData", $O$2, "BAR", "", "High", $O$4, -$A57, $O$6,$O$10,,$O$8,$O$12) -> 4639.5 | E57: =RTD("cqg.rtd",,"StudyData", $O$2, "BAR", "", "Low", $O$4, -$A57, $O$6,$O$10,,$O$8,$O$12) -> 4611.25 | F57: =RTD("cqg.rtd",,"StudyData", $O$2, "BAR", "", "Close", $O$4, -$A57, $O$6,$O$10,,$O$8,$O$12) -> 4614.25 | G57: =RTD("cqg.rtd",,"StudyData",$O$2, "ImpVol",, "MIVClose",$O$4,-A57,$O$6,$O$10,,$O$8,$O$12) -> 11.24
A58: 56 | B58: =RTD("cqg.rtd",,"StudyData", $O$2, "BAR", "", "Time", $O$4,-$A58,$O$6,$O$10, "","False","T") -> 2023-07-20 | C58: =RTD("cqg.rtd",,"StudyData", $O$2, "BAR", "", "Open", $O$4, -$A58, $O$6,$O$10,,$O$8,$O$12) -> 4642.75 | D58: =RTD("cqg.rtd",,"StudyData", $O$2, "BAR", "", "High", $O$4, -$A58, $O$6,$O$10,,$O$8,$O$12) -> 4643.75 | E58: =RTD("cqg.rtd",,"StudyData", $O$2, "BAR", "", "Low", $O$4, -$A58, $O$6,$O$10,,$O$8,$O$12) -> 4606.75 | F58: =RTD("cqg.rtd",,"StudyData", $O$2, "BAR", "", "Close", $O$4, -$A58, $O$6,$O$10,,$O$8,$O$12) -> 4615 | G58: =RTD("cqg.rtd",,"StudyData",$O$2, "ImpVol",, "MIVClose",$O$4,-A58,$O$6,$O$10,,$O$8,$O$12) -> 11.47
A59: 57 | B59: =RTD("cqg.rtd",,"StudyData", $O$2, "BAR", "", "Time", $O$4,-$A59,$O$6,$O$10, "","False","T") -> 2023-07-19 | C59: =RTD("cqg.rtd",,"StudyData", $O$2, "BAR", "", "Open", $O$4, -$A59, $O$6,$O$10,,$O$8,$O$12) -> 4632.25 | D59: =RTD("cqg.rtd",,"StudyData", $O$2, "BAR", "", "High", $O$4, -$A59, $O$6,$O$10,,$O$8,$O$12) -> 4658.75 | E59: =RTD("cqg.rtd",,"StudyData", $O$2, "BAR", "", "Low", $O$4, -$A59, $O$6,$O$10,,$O$8,$O$12) -> 4631.75 | F59: =RTD("cqg.rtd",,"StudyData", $O$2, "BAR", "", "Close", $O$4, -$A59, $O$6,$O$10,,$O$8,$O$12) -> 4646.5 | G59: =RTD("cqg.rtd",,"StudyData",$O$2, "ImpVol",, "MIVClose",$O$4,-A59,$O$6,$O$10,,$O$8,$O$12) -> 11.45
A60: 58 | B60: =RTD("cqg.rtd",,"StudyData", $O$2, "BAR", "", "Time", $O$4,-$A60,$O$6,$O$10, "","False","T") -> 2023-07-18 | C60: =RTD("cqg.rtd",,"StudyData", $O$2, "BAR", "", "Open", $O$4, -$A60, $O$6,$O$10,,$O$8,$O$12) -> 4599.75 | D60: =RTD("cqg.rtd",,"StudyData", $O$2, "BAR", "", "High", $O$4, -$A60, $O$6,$O$10,,$O$8,$O$12) -> 4644 | E60: =RTD("cqg.rtd",,"StudyData", $O$2, "BAR", "", "Low", $O$4, -$A60, $O$6,$O$10,,$O$8,$O$12) -> 4594.25 | F60: =RTD("cqg.rtd",,"StudyData", $O$2, "BAR", "", "Close", $O$4, -$A60, $O$6,$O$10,,$O$8,$O$12) -> 4637.25 | G60: =RTD("cqg.rtd",,"StudyData",$O$2, "ImpVol",, "MIVClose",$O$4,-A60,$O$6,$O$10,,$O$8,$O$12) -> 11.125
A61: 59 | B61: =RTD("cqg.rtd",,"StudyData", $O$2, "BAR", "", "Time", $O$4,-$A61,$O$6,$O$10, "","False","T") -> 2023-07-17 | C61: =RTD("cqg.rtd",,"StudyData", $O$2, "BAR", "", "Open", $O$4, -$A61, $O$6,$O$10,,$O$8,$O$12) -> 4585.5 | D61: =RTD("cqg.rtd",,"StudyData", $O$2, "BAR", "", "High", $O$4, -$A61, $O$6,$O$10,,$O$8,$O$12) -> 4615.25 | E61: =RTD("cqg.rtd",,"StudyData", $O$2, "BAR", "", "Low", $O$4, -$A61, $O$6,$O$10,,$O$8,$O$12) -> 4577.5 | F61: =RTD("cqg.rtd",,"StudyData", $O$2, "BAR", "", "Close", $O$4, -$A61, $O$6,$O$10,,$O$8,$O$12) -> 4603.25 | G61: =RTD("cqg.rtd",,"StudyData",$O$2, "ImpVol",, "MIVClose",$O$4,-A61,$O$6,$O$10,,$O$8,$O$12) -> 11.245
A62: 60 | B62: =RTD("cqg.rtd",,"StudyData", $O$2, "BAR", "", "Time", $O$4,-$A62,$O$6,$O$10, "","False","T") -> 2023-07-14 | C62: =RTD("cqg.rtd",,"StudyData", $O$2, "BAR", "", "Open", $O$4, -$A62, $O$6,$O$10,,$O$8,$O$12) -> 4589 | D62: =RTD("cqg.rtd",,"StudyData", $O$2, "BAR", "", "High", $O$4, -$A62, $O$6,$O$10,,$O$8,$O$12) -> 4610 | E62: =RTD("cqg.rtd",,"StudyData", $O$2, "BAR", "", "Low", $O$4, -$A62, $O$6,$O$10,,$O$8,$O$12) -> 4580.5 | F62: =RTD("cqg.rtd",,"StudyData", $O$2, "BAR", "", "Close", $O$4, -$A62, $O$6,$O$10,,$O$8,$O$12) -> 4586.25 | G62: =RTD("cqg.rtd",,"StudyData",$O$2, "ImpVol",, "MIVClose",$O$4,-A62,$O$6,$O$10,,$O$8,$O$12) -> 11.13
A63: 61 | B63: =RTD("cqg.rtd",,"StudyData", $O$2, "BAR", "", "Time", $O$4,-$A63,$O$6,$O$10, "","False","T") -> 2023-07-13 | C63: =RTD("cqg.rtd",,"StudyData", $O$2, "BAR", "", "Open", $O$4, -$A63, $O$6,$O$10,,$O$8,$O$12) -> 4560 | D63: =RTD("cqg.rtd",,"StudyData", $O$2, "BAR", "", "High", $O$4, -$A63, $O$6,$O$10,,$O$8,$O$12) -> 4601 | E63: =RTD("cqg.rtd",,"StudyData", $O$2, "BAR", "", "Low", $O$4, -$A63, $O$6,$O$10,,$O$8,$O$12) -> 4558.75 | F63: =RTD("cqg.rtd",,"StudyData", $O$2, "BAR", "", "Close", $O$4, -$A63, $O$6,$O$10,,$O$8,$O$12) -> 4593 | G63: =RTD("cqg.rtd",,"StudyData",$O$2, "ImpVol",, "MIVClose",$O$4,-A63,$O$6,$O$10,,$O$8,$O$12) -> 11.175
A64: 62 | B64: =RTD("cqg.rtd",,"StudyData", $O$2, "BAR", "", "Time", $O$4,-$A64,$O$6,$O$10, "","False","T") -> 2023-07-12 | C64: =RTD("cqg.rtd",,"StudyData", $O$2, "BAR", "", "Open", $O$4, -$A64, $O$6,$O$10,,$O$8,$O$12) -> 4520.5 | D64: =RTD("cqg.rtd",,"StudyData", $O$2, "BAR", "", "High", $O$4, -$A64, $O$6,$O$10,,$O$8,$O$12) -> 4573.25 | E64: =RTD("cqg.rtd",,"StudyData", $O$2, "BAR", "", "Low", $O$4, -$A64, $O$6,$O$10,,$O$8,$O$12) -> 4519.5 | F64: =RTD("cqg.rtd",,"StudyData", $O$2, "BAR", "", "Close", $O$4, -$A64, $O$6,$O$10,,$O$8,$O$12) -> 4557 | G64: =RTD("cqg.rtd",,"StudyData",$O$2, "ImpVol",, "MIVClose",$O$4,-A64,$O$6,$O$10,,$O$8,$O$12) -> 11.14
A65: 63 | B65: =RTD("cqg.rtd",,"StudyData", $O$2, "BAR", "", "Time", $O$4,-$A65,$O$6,$O$10, "","False","T") -> 2023-07-11 | C65: =RTD("cqg.rtd",,"StudyData", $O$2, "BAR", "", "Open", $O$4, -$A65, $O$6,$O$10,,$O$8,$O$12) -> 4495.25 | D65: =RTD("cqg.rtd",,"StudyData", $O$2, "BAR", "", "High", $O$4, -$A65, $O$6,$O$10,,$O$8,$O$12) -> 4528 | E65: =RTD("cqg.rtd",,"StudyData", $O$2, "BAR", "", "Low", $O$4, -$A65, $O$6,$O$10,,$O$8,$O$12) -> 4488.5 | F65: =RTD("cqg.rtd",,"StudyData", $O$2, "BAR", "", "Close", $O$4, -$A65, $O$6,$O$10,,$O$8,$O$12) -> 4523 | G65: =RTD("cqg.rtd",,"StudyData",$O$2, "ImpVol",, "MIVClose",$O$4,-A65,$O$6,$O$10,,$O$8,$O$12) -> 12.03
A66: 64 | B66: =RTD("cqg.rtd",,"StudyData", $O$2, "BAR", "", "Time", $O$4,-$A66,$O$6,$O$10, "","False","T") -> 2023-07-10 | C66: =RTD("cqg.rtd",,"StudyData", $O$2, "BAR", "", "Open", $O$4, -$A66, $O$6,$O$10,,$O$8,$O$12) -> 4487 | D66: =RTD("cqg.rtd",,"StudyData", $O$2, "BAR", "", "High", $O$4, -$A66, $O$6,$O$10,,$O$8,$O$12) -> 4497.75 | E66: =RTD("cqg.rtd",,"StudyData", $O$2, "BAR", "", "Low", $O$4, -$A66, $O$6,$O$10,,$O$8,$O$12) -> 4460.75 | F66: =RTD("cqg.rtd",,"StudyData", $O$2, "BAR", "", "Close", $O$4, -$A66, $O$6,$O$10,,$O$8,$O$12) -> 4493.75 | G66: =RTD("cqg.rtd",,"StudyData",$O$2, "ImpVol",, "MIVClose",$O$4,-A66,$O$6,$O$10,,$O$8,$O$12) -> 12.24
A67: 65 | B67: =RTD("cqg.rtd",,"StudyData", $O$2, "BAR", "", "Time", $O$4,-$A67,$O$6,$O$10, "","False","T") -> 2023-07-07 | C67: =RTD("cqg.rtd",,"StudyData", $O$2, "BAR", "", "Open", $O$4, -$A67, $O$6,$O$10,,$O$8,$O$12) -> 4490.75 | D67: =RTD("cqg.rtd",,"StudyData", $O$2, "BAR", "", "High", $O$4, -$A67, $O$6,$O$10,,$O$8,$O$12) -> 4525.5 | E67: =RTD("cqg.rtd",,"StudyData", $O$2, "BAR", "", "Low", $O$4, -$A67, $O$6,$O$10,,$O$8,$O$12) -> 4481 | F67: =RTD("cqg.rtd",,"StudyData", $O$2, "BAR", "", "Close", $O$4, -$A67, $O$6,$O$10,,$O$8,$O$12) -> 4483.5 | G67: =RTD("cqg.rtd",,"StudyData",$O$2, "ImpVol",, "MIVClose",$O$4,-A67,$O$6,$O$10,,$O$8,$O$12) -> 12.35
A68: =A67+1 -> 66 | B68: =RTD("cqg.rtd",,"StudyData", $O$2, "BAR", "", "Time", $O$4,-$A68,$O$6,$O$10, "","False","T") -> 2023-07-06 | C68: =RTD("cqg.rtd",,"StudyData", $O$2, "BAR", "", "Open", $O$4, -$A68, $O$6,$O$10,,$O$8,$O$12) -> 4531.25 | D68: =RTD("cqg.rtd",,"StudyData", $O$2, "BAR", "", "High", $O$4, -$A68, $O$6,$O$10,,$O$8,$O$12) -> 4533 | E68: =RTD("cqg.rtd",,"StudyData", $O$2, "BAR", "", "Low", $O$4, -$A68, $O$6,$O$10,,$O$8,$O$12) -> 4469 | F68: =RTD("cqg.rtd",,"StudyData", $O$2, "BAR", "", "Close", $O$4, -$A68, $O$6,$O$10,,$O$8,$O$12) -> 4496.5 | G68: =RTD("cqg.rtd",,"StudyData",$O$2, "ImpVol",, "MIVClose",$O$4,-A68,$O$6,$O$10,,$O$8,$O$12) -> 12.485
A69: 67 | B69: =RTD("cqg.rtd",,"StudyData", $O$2, "BAR", "", "Time", $O$4,-$A69,$O$6,$O$10, "","False","T") -> 2023-07-05 | C69: =RTD("cqg.rtd",,"StudyData", $O$2, "BAR", "", "Open", $O$4, -$A69, $O$6,$O$10,,$O$8,$O$12) -> 4541.5 | D69: =RTD("cqg.rtd",,"StudyData", $O$2, "BAR", "", "High", $O$4, -$A69, $O$6,$O$10,,$O$8,$O$12) -> 4543.25 | E69: =RTD("cqg.rtd",,"StudyData", $O$2, "BAR", "", "Low", $O$4, -$A69, $O$6,$O$10,,$O$8,$O$12) -> 4515.75 | F69: =RTD("cqg.rtd",,"StudyData", $O$2, "BAR", "", "Close", $O$4, -$A69, $O$6,$O$10,,$O$8,$O$12) -> 4533.25 | G69: =RTD("cqg.rtd",,"StudyData",$O$2, "ImpVol",, "MIVClose",$O$4,-A69,$O$6,$O$10,,$O$8,$O$12) -> 11.82
A70: 68 | B70: =RTD("cqg.rtd",,"StudyData", $O$2, "BAR", "", "Time", $O$4,-$A70,$O$6,$O$10, "","False","T") -> 2023-07-03 | C70: =RTD("cqg.rtd",,"StudyData", $O$2, "BAR", "", "Open", $O$4, -$A70, $O$6,$O$10,,$O$8,$O$12) -> 4535 | D70: =RTD("cqg.rtd",,"StudyData", $O$2, "BAR", "", "High", $O$4, -$A70, $O$6,$O$10,,$O$8,$O$12) -> 4543.5 | E70: =RTD("cqg.rtd",,"StudyData", $O$2, "BAR", "", "Low", $O$4, -$A70, $O$6,$O$10,,$O$8,$O$12) -> 4529 | F70: =RTD("cqg.rtd",,"StudyData", $O$2, "BAR", "", "Close", $O$4, -$A70, $O$6,$O$10,,$O$8,$O$12) -> 4541.75 | G70: =RTD("cqg.rtd",,"StudyData",$O$2, "ImpVol",, "MIVClose",$O$4,-A70,$O$6,$O$10,,$O$8,$O$12) -> 11.335
A71: 69 | B71: =RTD("cqg.rtd",,"StudyData", $O$2, "BAR", "", "Time", $O$4,-$A71,$O$6,$O$10, "","False","T") -> 2023-06-30 | C71: =RTD("cqg.rtd",,"StudyData", $O$2, "BAR", "", "Open", $O$4, -$A71, $O$6,$O$10,,$O$8,$O$12) -> 4484.75 | D71: =RTD("cqg.rtd",,"StudyData", $O$2, "BAR", "", "High", $O$4, -$A71, $O$6,$O$10,,$O$8,$O$12) -> 4547.5 | E71: =RTD("cqg.rtd",,"StudyData", $O$2, "BAR", "", "Low", $O$4, -$A71, $O$6,$O$10,,$O$8,$O$12) -> 4482.5 | F71: =RTD("cqg.rtd",,"StudyData", $O$2, "BAR", "", "Close", $O$4, -$A71, $O$6,$O$10,,$O$8,$O$12) -> 4537.75 | G71: =RTD("cqg.rtd",,"StudyData",$O$2, "ImpVol",, "MIVClose",$O$4,-A71,$O$6,$O$10,,$O$8,$O$12) -> 11.29
A72: 70 | B72: =RTD("cqg.rtd",,"StudyData", $O$2, "BAR", "", "Time", $O$4,-$A72,$O$6,$O$10, "","False","T") -> 2023-06-29 | C72: =RTD("cqg.rtd",,"StudyData", $O$2, "BAR", "", "Open", $O$4, -$A72, $O$6,$O$10,,$O$8,$O$12) -> 4473.25 | D72: =RTD("cqg.rtd",,"StudyData", $O$2, "BAR", "", "High", $O$4, -$A72, $O$6,$O$10,,$O$8,$O$12) -> 4487.5 | E72: =RTD("cqg.rtd",,"StudyData", $O$2, "BAR", "", "Low", $O$4, -$A72, $O$6,$O$10,,$O$8,$O$12) -> 4459.25 | F72: =RTD("cqg.rtd",,"StudyData", $O$2, "BAR", "", "Close", $O$4, -$A72, $O$6,$O$10,,$O$8,$O$12) -> 4485.25 | G72: =RTD("cqg.rtd",,"StudyData",$O$2, "ImpVol",, "MIVClose",$O$4,-A72,$O$6,$O$10,,$O$8,$O$12) -> 11.515
A73: 71 | B73: =RTD("cqg.rtd",,"StudyData", $O$2, "BAR", "", "Time", $O$4,-$A73,$O$6,$O$10, "","False","T") -> 2023-06-28 | C73: =RTD("cqg.rtd",,"StudyData", $O$2, "BAR", "", "Open", $O$4, -$A73, $O$6,$O$10,,$O$8,$O$12) -> 4463.5 | D73: =RTD("cqg.rtd",,"StudyData", $O$2, "BAR", "", "High", $O$4, -$A73, $O$6,$O$10,,$O$8,$O$12) -> 4479.75 | E73: =RTD("cqg.rtd",,"StudyData", $O$2, "BAR", "", "Low", $O$4, -$A73, $O$6,$O$10,,$O$8,$O$12) -> 4448.75 | F73: =RTD("cqg.rtd",,"StudyData", $O$2, "BAR", "", "Close", $O$4, -$A73, $O$6,$O$10,,$O$8,$O$12) -> 4467 | G73: =RTD("cqg.rtd",,"StudyData",$O$2, "ImpVol",, "MIVClose",$O$4,-A73,$O$6,$O$10,,$O$8,$O$12) -> 11.29
A74: 72 | B74: =RTD("cqg.rtd",,"StudyData", $O$2, "BAR", "", "Time", $O$4,-$A74,$O$6,$O$10, "","False","T") -> 2023-06-27 | C74: =RTD("cqg.rtd",,"StudyData", $O$2, "BAR", "", "Open", $O$4, -$A74, $O$6,$O$10,,$O$8,$O$12) -> 4425.25 | D74: =RTD("cqg.rtd",,"StudyData", $O$2, "BAR", "", "High", $O$4, -$A74, $O$6,$O$10,,$O$8,$O$12) -> 4474.25 | E74: =RTD("cqg.rtd",,"StudyData", $O$2, "BAR", "", "Low", $O$4, -$A74, $O$6,$O$10,,$O$8,$O$12) -> 4421 | F74: =RTD("cqg.rtd",,"StudyData", $O$2, "BAR", "", "Close", $O$4, -$A74, $O$6,$O$10,,$O$8,$O$12) -> 4468.25 | G74: =RTD("cqg.rtd",,"StudyData",$O$2, "ImpVol",, "MIVClose",$O$4,-A74,$O$6,$O$10,,$O$8,$O$12) -> 11.75
A75: 73 | B75: =RTD("cqg.rtd",,"StudyData", $O$2, "BAR", "", "Time", $O$4,-$A75,$O$6,$O$10, "","False","T") -> 2023-06-26 | C75: =RTD("cqg.rtd",,"StudyData", $O$2, "BAR", "", "Open", $O$4, -$A75, $O$6,$O$10,,$O$8,$O$12) -> 4439.5 | D75: =RTD("cqg.rtd",,"StudyData", $O$2, "BAR", "", "High", $O$4, -$A75, $O$6,$O$10,,$O$8,$O$12) -> 4452.5 | E75: =RTD("cqg.rtd",,"StudyData", $O$2, "BAR", "", "Low", $O$4, -$A75, $O$6,$O$10,,$O$8,$O$12) -> 4418 | F75: =RTD("cqg.rtd",,"StudyData", $O$2, "BAR", "", "Close", $O$4, -$A75, $O$6,$O$10,,$O$8,$O$12) -> 4419.75 | G75: =RTD("cqg.rtd",,"StudyData",$O$2, "ImpVol",, "MIVClose",$O$4,-A75,$O$6,$O$10,,$O$8,$O$12) -> 12.1
A76: 74 | B76: =RTD("cqg.rtd",,"StudyData", $O$2, "BAR", "", "Time", $O$4,-$A76,$O$6,$O$10, "","False","T") -> 2023-06-23 | C76: =RTD("cqg.rtd",,"StudyData", $O$2, "BAR", "", "Open", $O$4, -$A76, $O$6,$O$10,,$O$8,$O$12) -> 4475.25 | D76: =RTD("cqg.rtd",,"StudyData", $O$2, "BAR", "", "High", $O$4, -$A76, $O$6,$O$10,,$O$8,$O$12) -> 4475.75 | E76: =RTD("cqg.rtd",,"StudyData", $O$2, "BAR", "", "Low", $O$4, -$A76, $O$6,$O$10,,$O$8,$O$12) -> 4431 | F76: =RTD("cqg.rtd",,"StudyData", $O$2, "BAR", "", "Close", $O$4, -$A76, $O$6,$O$10,,$O$8,$O$12) -> 4438.5 | G76: =RTD("cqg.rtd",,"StudyData",$O$2, "ImpVol",, "MIVClose",$O$4,-A76,$O$6,$O$10,,$O$8,$O$12) -> 12.205
A77: 75 | B77: =RTD("cqg.rtd",,"StudyData", $O$2, "BAR", "", "Time", $O$4,-$A77,$O$6,$O$10, "","False","T") -> 2023-06-22 | C77: =RTD("cqg.rtd",,"StudyData", $O$2, "BAR", "", "Open", $O$4, -$A77, $O$6,$O$10,,$O$8,$O$12) -> 4459.5 | D77: =RTD("cqg.rtd",,"StudyData", $O$2, "BAR", "", "High", $O$4, -$A77, $O$6,$O$10,,$O$8,$O$12) -> 4476.5 | E77: =RTD("cqg.rtd",,"StudyData", $O$2, "BAR", "", "Low", $O$4, -$A77, $O$6,$O$10,,$O$8,$O$12) -> 4442.5 | F77: =RTD("cqg.rtd",,"StudyData", $O$2, "BAR", "", "Close", $O$4, -$A77, $O$6,$O$10,,$O$8,$O$12) -> 4473.25 | G77: =RTD("cqg.rtd",,"StudyData",$O$2, "ImpVol",, "MIVClose",$O$4,-A77,$O$6,$O$10,,$O$8,$O$12) -> 12.03
A78: 76 | B78: =RTD("cqg.rtd",,"StudyData", $O$2, "BAR", "", "Time", $O$4,-$A78,$O$6,$O$10, "","False","T") -> 2023-06-21 | C78: =RTD("cqg.rtd",,"StudyData", $O$2, "BAR", "", "Open", $O$4, -$A78, $O$6,$O$10,,$O$8,$O$12) -> 4479.75 | D78: =RTD("cqg.rtd",,"StudyData", $O$2, "BAR", "", "High", $O$4, -$A78, $O$6,$O$10,,$O$8,$O$12) -> 4488 | E78: =RTD("cqg.rtd",,"StudyData", $O$2, "BAR", "", "Low", $O$4, -$A78, $O$6,$O$10,,$O$8,$O$12) -> 4453 | F78: =RTD("cqg.rtd",,"StudyData", $O$2, "BAR", "", "Close", $O$4, -$A78, $O$6,$O$10,,$O$8,$O$12) -> 4458.75 | G78: =RTD("cqg.rtd",,"StudyData",$O$2, "ImpVol",, "MIVClose",$O$4,-A78,$O$6,$O$10,,$O$8,$O$12) -> 12.275
A79: 77 | B79: =RTD("cqg.rtd",,"StudyData", $O$2, "BAR", "", "Time", $O$4,-$A79,$O$6,$O$10, "","False","T") -> 2023-06-20 | C79: =RTD("cqg.rtd",,"StudyData", $O$2, "BAR", "", "Open", $O$4, -$A79, $O$6,$O$10,,$O$8,$O$12) -> 4507.5 | D79: =RTD("cqg.rtd",,"StudyData", $O$2, "BAR", "", "High", $O$4, -$A79, $O$6,$O$10,,$O$8,$O$12) -> 4511.5 | E79: =RTD("cqg.rtd",,"StudyData", $O$2, "BAR", "", "Low", $O$4, -$A79, $O$6,$O$10,,$O$8,$O$12) -> 4460 | F79: =RTD("cqg.rtd",,"StudyData", $O$2, "BAR", "", "Close", $O$4, -$A79, $O$6,$O$10,,$O$8,$O$12) -> 4484.25 | G79: =RTD("cqg.rtd",,"StudyData",$O$2, "ImpVol",, "MIVClose",$O$4,-A79,$O$6,$O$10,,$O$8,$O$12) -> 12.61
A80: 78 | B80: =RTD("cqg.rtd",,"StudyData", $O$2, "BAR", "", "Time", $O$4,-$A80,$O$6,$O$10, "","False","T") -> 2023-06-16 | C80: =RTD("cqg.rtd",,"StudyData", $O$2, "BAR", "", "Open", $O$4, -$A80, $O$6,$O$10,,$O$8,$O$12) -> 4518.5 | D80: =RTD("cqg.rtd",,"StudyData", $O$2, "BAR", "", "High", $O$4, -$A80, $O$6,$O$10,,$O$8,$O$12) -> 4543.25 | E80: =RTD("cqg.rtd",,"StudyData", $O$2, "BAR", "", "Low", $O$4, -$A80, $O$6,$O$10,,$O$8,$O$12) -> 4500.5 | F80: =RTD("cqg.rtd",,"StudyData", $O$2, "BAR", "", "Close", $O$4, -$A80, $O$6,$O$10,,$O$8,$O$12) -> 4503.25 | G80: =RTD("cqg.rtd",,"StudyData",$O$2, "ImpVol",, "MIVClose",$O$4,-A80,$O$6,$O$10,,$O$8,$O$12) -> 12.29
A81: 79 | B81: =RTD("cqg.rtd",,"StudyData", $O$2, "BAR", "", "Time", $O$4,-$A81,$O$6,$O$10, "","False","T") -> 2023-06-15 | C81: =RTD("cqg.rtd",,"StudyData", $O$2, "BAR", "", "Open", $O$4, -$A81, $O$6,$O$10,,$O$8,$O$12) -> 4472.25 | D81: =RTD("cqg.rtd",,"StudyData", $O$2, "BAR", "", "High", $O$4, -$A81, $O$6,$O$10,,$O$8,$O$12) -> 4535 | E81: =RTD("cqg.rtd",,"StudyData", $O$2, "BAR", "", "Low", $O$4, -$A81, $O$6,$O$10,,$O$8,$O$12) -> 4443.25 | F81: =RTD("cqg.rtd",,"StudyData", $O$2, "BAR", "", "Close", $O$4, -$A81, $O$6,$O$10,,$O$8,$O$12) -> 4520.75 | G81: =RTD("cqg.rtd",,"StudyData",$O$2, "ImpVol",, "MIVClose",$O$4,-A81,$O$6,$O$10,,$O$8,$O$12) -> 12.48
A82: 80 | B82: =RTD("cqg.rtd",,"StudyData", $O$2, "BAR", "", "Time", $O$4,-$A82,$O$6,$O$10, "","False","T") -> 2023-06-14 | C82: =RTD("cqg.rtd",,"StudyData", $O$2, "BAR", "", "Open", $O$4, -$A82, $O$6,$O$10,,$O$8,$O$12) -> 4466.75 | D82: =RTD("cqg.rtd",,"StudyData", $O$2, "BAR", "", "High", $O$4, -$A82, $O$6,$O$10,,$O$8,$O$12) -> 4489 | E82: =RTD("cqg.rtd",,"StudyData", $O$2, "BAR", "", "Low", $O$4, -$A82, $O$6,$O$10,,$O$8,$O$12) -> 4433 | F82: =RTD("cqg.rtd",,"StudyData", $O$2, "BAR", "", "Close", $O$4, -$A82, $O$6,$O$10,,$O$8,$O$12) -> 4468 | G82: =RTD("cqg.rtd",,"StudyData",$O$2, "ImpVol",, "MIVClose",$O$4,-A82,$O$6,$O$10,,$O$8,$O$12) -> 12.21
A83: 81 | B83: =RTD("cqg.rtd",,"StudyData", $O$2, "BAR", "", "Time", $O$4,-$A83,$O$6,$O$10, "","False","T") -> 2023-06-13 | C83: =RTD("cqg.rtd",,"StudyData", $O$2, "BAR", "", "Open", $O$4, -$A83, $O$6,$O$10,,$O$8,$O$12) -> 4439.25 | D83: =RTD("cqg.rtd",,"StudyData", $O$2, "BAR", "", "High", $O$4, -$A83, $O$6,$O$10,,$O$8,$O$12) -> 4472.75 | E83: =RTD("cqg.rtd",,"StudyData", $O$2, "BAR", "", "Low", $O$4, -$A83, $O$6,$O$10,,$O$8,$O$12) -> 4431.25 | F83: =RTD("cqg.rtd",,"StudyData", $O$2, "BAR", "", "Close", $O$4, -$A83, $O$6,$O$10,,$O$8,$O$12) -> 4466.25 | G83: =RTD("cqg.rtd",,"StudyData",$O$2, "ImpVol",, "MIVClose",$O$4,-A83,$O$6,$O$10,,$O$8,$O$12) -> 12.38
A84: 82 | B84: =RTD("cqg.rtd",,"StudyData", $O$2, "BAR", "", "Time", $O$4,-$A84,$O$6,$O$10, "","False","T") -> 2023-06-12 | C84: =RTD("cqg.rtd",,"StudyData", $O$2, "BAR", "", "Open", $O$4, -$A84, $O$6,$O$10,,$O$8,$O$12) -> 4399.25 | D84: =RTD("cqg.rtd",,"StudyData", $O$2, "BAR", "", "High", $O$4, -$A84, $O$6,$O$10,,$O$8,$O$12) -> 4440.75 | E84: =RTD("cqg.rtd",,"StudyData", $O$2, "BAR", "", "Low", $O$4, -$A84, $O$6,$O$10,,$O$8,$O$12) -> 4398.25 | F84: =RTD("cqg.rtd",,"StudyData", $O$2, "BAR", "", "Close", $O$4, -$A84, $O$6,$O$10,,$O$8,$O$12) -> 4437.5 | G84: =RTD("cqg.rtd",,"StudyData",$O$2, "ImpVol",, "MIVClose",$O$4,-A84,$O$6,$O$10,,$O$8,$O$12) -> 12.415
A85: 83 | B85: =RTD("cqg.rtd",,"StudyData", $O$2, "BAR", "", "Time", $O$4,-$A85,$O$6,$O$10, "","False","T") -> 2023-06-09 | C85: =RTD("cqg.rtd",,"StudyData", $O$2, "BAR", "", "Open", $O$4, -$A85, $O$6,$O$10,,$O$8,$O$12) -> 4391.25 | D85: =RTD("cqg.rtd",,"StudyData", $O$2, "BAR", "", "High", $O$4, -$A85, $O$6,$O$10,,$O$8,$O$12) -> 4419 | E85: =RTD("cqg.rtd",,"StudyData", $O$2, "BAR", "", "Low", $O$4, -$A85, $O$6,$O$10,,$O$8,$O$12) -> 4377.5 | F85: =RTD("cqg.rtd",,"StudyData", $O$2, "BAR", "", "Close", $O$4, -$A85, $O$6,$O$10,,$O$8,$O$12) -> 4398.25 | G85: =RTD("cqg.rtd",,"StudyData",$O$2, "ImpVol",, "MIVClose",$O$4,-A85,$O$6,$O$10,,$O$8,$O$12) -> 12.27
A86: 84 | B86: =RTD("cqg.rtd",,"StudyData", $O$2, "BAR", "", "Time", $O$4,-$A86,$O$6,$O$10, "","False","T") -> 2023-06-08 | C86: =RTD("cqg.rtd",,"StudyData", $O$2, "BAR", "", "Open", $O$4, -$A86, $O$6,$O$10,,$O$8,$O$12) -> 4366.75 | D86: =RTD("cqg.rtd",,"StudyData", $O$2, "BAR", "", "High", $O$4, -$A86, $O$6,$O$10,,$O$8,$O$12) -> 4396 | E86: =RTD("cqg.rtd",,"StudyData", $O$2, "BAR", "", "Low", $O$4, -$A86, $O$6,$O$10,,$O$8,$O$12) -> 4356.25 | F86: =RTD("cqg.rtd",,"StudyData", $O$2, "BAR", "", "Close", $O$4, -$A86, $O$6,$O$10,,$O$8,$O$12) -> 4391.75 | G86: =RTD("cqg.rtd",,"StudyData",$O$2, "ImpVol",, "MIVClose",$O$4,-A86,$O$6,$O$10,,$O$8,$O$12) -> 12.325
A87: 85 | B87: =RTD("cqg.rtd",,"StudyData", $O$2, "BAR", "", "Time", $O$4,-$A87,$O$6,$O$10, "","False","T") -> 2023-06-07 | C87: =RTD("cqg.rtd",,"StudyData", $O$2, "BAR", "", "Open", $O$4, -$A87, $O$6,$O$10,,$O$8,$O$12) -> 4385.75 | D87: =RTD("cqg.rtd",,"StudyData", $O$2, "BAR", "", "High", $O$4, -$A87, $O$6,$O$10,,$O$8,$O$12) -> 4398.25 | E87: =RTD("cqg.rtd",,"StudyData", $O$2, "BAR", "", "Low", $O$4, -$A87, $O$6,$O$10,,$O$8,$O$12) -> 4362.75 | F87: =RTD("cqg.rtd",,"StudyData", $O$2, "BAR", "", "Close", $O$4, -$A87, $O$6,$O$10,,$O$8,$O$12) -> 4367.75 | G87: =RTD("cqg.rtd",,"StudyData",$O$2, "ImpVol",, "MIVClose",$O$4,-A87,$O$6,$O$10,,$O$8,$O$12) -> 12.54
A88: 86 | B88: =RTD("cqg.rtd",,"StudyData", $O$2, "BAR", "", "Time", $O$4,-$A88,$O$6,$O$10, "","False","T") -> 2023-06-06 | C88: =RTD("cqg.rtd",,"StudyData", $O$2, "BAR", "", "Open", $O$4, -$A88, $O$6,$O$10,,$O$8,$O$12) -> 4373.25 | D88: =RTD("cqg.rtd",,"StudyData", $O$2, "BAR", "", "High", $O$4, -$A88, $O$6,$O$10,,$O$8,$O$12) -> 4388.25 | E88: =RTD("cqg.rtd",,"StudyData", $O$2, "BAR", "", "Low", $O$4, -$A88, $O$6,$O$10,,$O$8,$O$12) -> 4362 | F88: =RTD("cqg.rtd",,"StudyData", $O$2, "BAR", "", "Close", $O$4, -$A88, $O$6,$O$10,,$O$8,$O$12) -> 4383.25 | G88: =RTD("cqg.rtd",,"StudyData",$O$2, "ImpVol",, "MIVClose",$O$4,-A88,$O$6,$O$10,,$O$8,$O$12) -> 12.58
A89: 87 | B89: =RTD("cqg.rtd",,"StudyData", $O$2, "BAR", "", "Time", $O$4,-$A89,$O$6,$O$10, "","False","T") -> 2023-06-05 | C89: =RTD("cqg.rtd",,"StudyData", $O$2, "BAR", "", "Open", $O$4, -$A89, $O$6,$O$10,,$O$8,$O$12) -> 4381.5 | D89: =RTD("cqg.rtd",,"StudyData", $O$2, "BAR", "", "High", $O$4, -$A89, $O$6,$O$10,,$O$8,$O$12) -> 4399.25 | E89: =RTD("cqg.rtd",,"StudyData", $O$2, "BAR", "", "Low", $O$4, -$A89, $O$6,$O$10,,$O$8,$O$12) -> 4366.5 | F89: =RTD("cqg.rtd",,"StudyData", $O$2, "BAR", "", "Close", $O$4, -$A89, $O$6,$O$10,,$O$8,$O$12) -> 4374.5 | G89: =RTD("cqg.rtd",,"StudyData",$O$2, "ImpVol",, "MIVClose",$O$4,-A89,$O$6,$O$10,,$O$8,$O$12) -> 13.19
A90: 88 | B90: =RTD("cqg.rtd",,"StudyData", $O$2, "BAR", "", "Time", $O$4,-$A90,$O$6,$O$10, "","False","T") -> 2023-06-02 | C90: =RTD("cqg.rtd",,"StudyData", $O$2, "BAR", "", "Open", $O$4, -$A90, $O$6,$O$10,,$O$8,$O$12) -> 4325.25 | D90: =RTD("cqg.rtd",,"StudyData", $O$2, "BAR", "", "High", $O$4, -$A90, $O$6,$O$10,,$O$8,$O$12) -> 4391.25 | E90: =RTD("cqg.rtd",,"StudyData", $O$2, "BAR", "", "Low", $O$4, -$A90, $O$6,$O$10,,$O$8,$O$12) -> 4322.5 | F90: =RTD("cqg.rtd",,"StudyData", $O$2, "BAR", "", "Close", $O$4, -$A90, $O$6,$O$10,,$O$8,$O$12) -> 4381.5 | G90: =RTD("cqg.rtd",,"StudyData",$O$2, "ImpVol",, "MIVClose",$O$4,-A90,$O$6,$O$10,,$O$8,$O$12) -> 11.375
A91: 89 | B91: =RTD("cqg.rtd",,"StudyData", $O$2, "BAR", "", "Time", $O$4,-$A91,$O$6,$O$10, "","False","T") -> 2023-06-01 | C91: =RTD("cqg.rtd",,"StudyData", $O$2, "BAR", "", "Open", $O$4, -$A91, $O$6,$O$10,,$O$8,$O$12) -> 4282 | D91: =RTD("cqg.rtd",,"StudyData", $O$2, "BAR", "", "High", $O$4, -$A91, $O$6,$O$10,,$O$8,$O$12) -> 4333.25 | E91: =RTD("cqg.rtd",,"StudyData", $O$2, "BAR", "", "Low", $O$4, -$A91, $O$6,$O$10,,$O$8,$O$12) -> 4271.5 | F91: =RTD("cqg.rtd",,"StudyData", $O$2, "BAR", "", "Close", $O$4, -$A91, $O$6,$O$10,,$O$8,$O$12) -> 4321.5 | G91: =RTD("cqg.rtd",,"StudyData",$O$2, "ImpVol",, "MIVClose",$O$4,-A91,$O$6,$O$10,,$O$8,$O$12) -> 11.93
A92: 90 | B92: =RTD("cqg.rtd",,"StudyData", $O$2, "BAR", "", "Time", $O$4,-$A92,$O$6,$O$10, "","False","T") -> 2023-05-31 | C92: =RTD("cqg.rtd",,"StudyData", $O$2, "BAR", "", "Open", $O$4, -$A92, $O$6,$O$10,,$O$8,$O$12) -> 4306.5 | D92: =RTD("cqg.rtd",,"StudyData", $O$2, "BAR", "", "High", $O$4, -$A92, $O$6,$O$10,,$O$8,$O$12) -> 4311.25 | E92: =RTD("cqg.rtd",,"StudyData", $O$2, "BAR", "", "Low", $O$4, -$A92, $O$6,$O$10,,$O$8,$O$12) -> 4267.5 | F92: =RTD("cqg.rtd",,"StudyData", $O$2, "BAR", "", "Close", $O$4, -$A92, $O$6,$O$10,,$O$8,$O$12) -> 4284 | G92: =RTD("cqg.rtd",,"StudyData",$O$2, "ImpVol",, "MIVClose",$O$4,-A92,$O$6,$O$10,,$O$8,$O$12) -> 14.155
A93: 91 | B93: =RTD("cqg.rtd",,"StudyData", $O$2, "BAR", "", "Time", $O$4,-$A93,$O$6,$O$10, "","False","T") -> 2023-05-30 | C93: =RTD("cqg.rtd",,"StudyData", $O$2, "BAR", "", "Open", $O$4, -$A93, $O$6,$O$10,,$O$8,$O$12) -> 4333.25 | D93: =RTD("cqg.rtd",,"StudyData", $O$2, "BAR", "", "High", $O$4, -$A93, $O$6,$O$10,,$O$8,$O$12) -> 4336.75 | E93: =RTD("cqg.rtd",,"StudyData", $O$2, "BAR", "", "Low", $O$4, -$A93, $O$6,$O$10,,$O$8,$O$12) -> 4293.5 | F93: =RTD("cqg.rtd",,"StudyData", $O$2, "BAR", "", "Close", $O$4, -$A93, $O$6,$O$10,,$O$8,$O$12) -> 4308.5 | G93: =RTD("cqg.rtd",,"StudyData",$O$2, "ImpVol",, "MIVClose",$O$4,-A93,$O$6,$O$10,,$O$8,$O$12) -> 14.08
A94: 92 | B94: =RTD("cqg.rtd",,"StudyData", $O$2, "BAR", "", "Time", $O$4,-$A94,$O$6,$O$10, "","False","T") -> 2023-05-26 | C94: =RTD("cqg.rtd",,"StudyData", $O$2, "BAR", "", "Open", $O$4, -$A94, $O$6,$O$10,,$O$8,$O$12) -> 4250.5 | D94: =RTD("cqg.rtd",,"StudyData", $O$2, "BAR", "", "High", $O$4, -$A94, $O$6,$O$10,,$O$8,$O$12) -> 4314.75 | E94: =RTD("cqg.rtd",,"StudyData", $O$2, "BAR", "", "Low", $O$4, -$A94, $O$6,$O$10,,$O$8,$O$12) -> 4239.5 | F94: =RTD("cqg.rtd",,"StudyData", $O$2, "BAR", "", "Close", $O$4, -$A94, $O$6,$O$10,,$O$8,$O$12) -> 4306.75 | G94: =RTD("cqg.rtd",,"StudyData",$O$2, "ImpVol",, "MIVClose",$O$4,-A94,$O$6,$O$10,,$O$8,$O$12) -> 14.315
A95: 93 | B95: =RTD("cqg.rtd",,"StudyData", $O$2, "BAR", "", "Time", $O$4,-$A95,$O$6,$O$10, "","False","T") -> 2023-05-25 | C95: =RTD("cqg.rtd",,"StudyData", $O$2, "BAR", "", "Open", $O$4, -$A95, $O$6,$O$10,,$O$8,$O$12) -> 4250.5 | D95: =RTD("cqg.rtd",,"StudyData", $O$2, "BAR", "", "High", $O$4, -$A95, $O$6,$O$10,,$O$8,$O$12) -> 4269 | E95: =RTD("cqg.rtd",,"StudyData", $O$2, "BAR", "", "Low", $O$4, -$A95, $O$6,$O$10,,$O$8,$O$12) -> 4225 | F95: =RTD("cqg.rtd",,"StudyData", $O$2, "BAR", "", "Close", $O$4, -$A95, $O$6,$O$10,,$O$8,$O$12) -> 4253.25 | G95: =RTD("cqg.rtd",,"StudyData",$O$2, "ImpVol",, "MIVClose",$O$4,-A95,$O$6,$O$10,,$O$8,$O$12) -> 15.32
A96: 94 | B96: =RTD("cqg.rtd",,"StudyData", $O$2, "BAR", "", "Time", $O$4,-$A96,$O$6,$O$10, "","False","T") -> 2023-05-24 | C96: =RTD("cqg.rtd",,"StudyData", $O$2, "BAR", "", "Open", $O$4, -$A96, $O$6,$O$10,,$O$8,$O$12) -> 4251.5 | D96: =RTD("cqg.rtd",,"StudyData", $O$2, "BAR", "", "High", $O$4, -$A96, $O$6,$O$10,,$O$8,$O$12) -> 4259.75 | E96: =RTD("cqg.rtd",,"StudyData", $O$2, "BAR", "", "Low", $O$4, -$A96, $O$6,$O$10,,$O$8,$O$12) -> 4207.5 | F96: =RTD("cqg.rtd",,"StudyData", $O$2, "BAR", "", "Close", $O$4, -$A96, $O$6,$O$10,,$O$8,$O$12) -> 4219.5 | G96: =RTD("cqg.rtd",,"StudyData",$O$2, "ImpVol",, "MIVClose",$O$4,-A96,$O$6,$O$10,,$O$8,$O$12) -> 16.19
A97: 95 | B97: =RTD("cqg.rtd",,"StudyData", $O$2, "BAR", "", "Time", $O$4,-$A97,$O$6,$O$10, "","False","T") -> 2023-05-23 | C97: =RTD("cqg.rtd",,"StudyData", $O$2, "BAR", "", "Open", $O$4, -$A97, $O$6,$O$10,,$O$8,$O$12) -> 4301 | D97: =RTD("cqg.rtd",,"StudyData", $O$2, "BAR", "", "High", $O$4, -$A97, $O$6,$O$10,,$O$8,$O$12) -> 4316.25 | E97: =RTD("cqg.rtd",,"StudyData", $O$2, "BAR", "", "Low", $O$4, -$A97, $O$6,$O$10,,$O$8,$O$12) -> 4246.5 | F97: =RTD("cqg.rtd",,"StudyData", $O$2, "BAR", "", "Close", $O$4, -$A97, $O$6,$O$10,,$O$8,$O$12) -> 4252.25 | G97: =RTD("cqg.rtd",,"StudyData",$O$2, "ImpVol",, "MIVClose",$O$4,-A97,$O$6,$O$10,,$O$8,$O$12) -> 15.58
A98: 96 | B98: =RTD("cqg.rtd",,"StudyData", $O$2, "BAR", "", "Time", $O$4,-$A98,$O$6,$O$10, "","False","T") -> 2023-05-22 | C98: =RTD("cqg.rtd",,"StudyData", $O$2, "BAR", "", "Open", $O$4, -$A98, $O$6,$O$10,,$O$8,$O$12) -> 4282.5 | D98: =RTD("cqg.rtd",,"StudyData", $O$2, "BAR", "", "High", $O$4, -$A98, $O$6,$O$10,,$O$8,$O$12) -> 4315.25 | E98: =RTD("cqg.rtd",,"StudyData", $O$2, "BAR", "", "Low", $O$4, -$A98, $O$6,$O$10,,$O$8,$O$12) -> 4280 | F98: =RTD("cqg.rtd",,"StudyData", $O$2, "BAR", "", "Close", $O$4, -$A98, $O$6,$O$10,,$O$8,$O$12) -> 4298.5 | G98: =RTD("cqg.rtd",,"StudyData",$O$2, "ImpVol",, "MIVClose",$O$4,-A98,$O$6,$O$10,,$O$8,$O$12) -> 13.105
A99: 97 | B99: =RTD("cqg.rtd",,"StudyData", $O$2, "BAR", "", "Time", $O$4,-$A99,$O$6,$O$10, "","False","T") -> 2023-05-19 | C99: =RTD("cqg.rtd",,"StudyData", $O$2, "BAR", "", "Open", $O$4, -$A99, $O$6,$O$10,,$O$8,$O$12) -> 4309 | D99: =RTD("cqg.rtd",,"StudyData", $O$2, "BAR", "", "High", $O$4, -$A99, $O$6,$O$10,,$O$8,$O$12) -> 4320.75 | E99: =RTD("cqg.rtd",,"StudyData", $O$2, "BAR", "", "Low", $O$4, -$A99, $O$6,$O$10,,$O$8,$O$12) -> 4285 | F99: =RTD("cqg.rtd",,"StudyData", $O$2, "BAR", "", "Close", $O$4, -$A99, $O$6,$O$10,,$O$8,$O$12) -> 4298.25 | G99: =RTD("cqg.rtd",,"StudyData",$O$2, "ImpVol",, "MIVClose",$O$4,-A99,$O$6,$O$10,,$O$8,$O$12) -> 13.18
A100: 98 | B100: =RTD("cqg.rtd",,"StudyData", $O$2, "BAR", "", "Time", $O$4,-$A100,$O$6,$O$10, "","False","T") -> 2023-05-18 | C100: =RTD("cqg.rtd",,"StudyData", $O$2, "BAR", "", "Open", $O$4, -$A100, $O$6,$O$10,,$O$8,$O$12) -> 4264.75 | D100: =RTD("cqg.rtd",,"StudyData", $O$2, "BAR", "", "High", $O$4, -$A100, $O$6,$O$10,,$O$8,$O$12) -> 4309.25 | E100: =RTD("cqg.rtd",,"StudyData", $O$2, "BAR", "", "Low", $O$4, -$A100, $O$6,$O$10,,$O$8,$O$12) -> 4254.75 | F100: =RTD("cqg.rtd",,"StudyData", $O$2, "BAR", "", "Close", $O$4, -$A100, $O$6,$O$10,,$O$8,$O$12) -> 4305.5 | G100: =RTD("cqg.rtd",,"StudyData",$O$2, "ImpVol",, "MIVClose",$O$4,-A100,$O$6,$O$10,,$O$8,$O$12) -> 12.635
A101: 99 | B101: =RTD("cqg.rtd",,"StudyData", $O$2, "BAR", "", "Time", $O$4,-$A101,$O$6,$O$10, "","False","T") -> 2023-05-17 | C101: =RTD("cqg.rtd",,"StudyData", $O$2, "BAR", "", "Open", $O$4, -$A101, $O$6,$O$10,,$O$8,$O$12) -> 4219.5 | D101: =RTD("cqg.rtd",,"StudyData", $O$2, "BAR", "", "High", $O$4, -$A101, $O$6,$O$10,,$O$8,$O$12) -> 4272.5 | E101: =RTD("cqg.rtd",,"StudyData", $O$2, "BAR", "", "Low", $O$4, -$A101, $O$6,$O$10,,$O$8,$O$12) -> 4215.5 | F101: =RTD("cqg.rtd",,"StudyData", $O$2, "BAR", "", "Close", $O$4, -$A101, $O$6,$O$10,,$O$8,$O$12) -> 4265 | G101: =RTD("cqg.rtd",,"StudyData",$O$2, "ImpVol",, "MIVClose",$O$4,-A101,$O$6,$O$10,,$O$8,$O$12) -> 13.18
A102: 100 | B102: =RTD("cqg.rtd",,"StudyData", $O$2, "BAR", "", "Time", $O$4,-$A102,$O$6,$O$10, "","False","T") -> 2023-05-16 | C102: =RTD("cqg.rtd",,"StudyData", $O$2, "BAR", "", "Open", $O$4, -$A102, $O$6,$O$10,,$O$8,$O$12) -> 4241.75 | D102: =RTD("cqg.rtd",,"StudyData", $O$2, "BAR", "", "High", $O$4, -$A102, $O$6,$O$10,,$O$8,$O$12) -> 4245 | E102: =RTD("cqg.rtd",,"StudyData", $O$2, "BAR", "", "Low", $O$4, -$A102, $O$6,$O$10,,$O$8,$O$12) -> 4213.5 | F102: =RTD("cqg.rtd",,"StudyData", $O$2, "BAR", "", "Close", $O$4, -$A102, $O$6,$O$10,,$O$8,$O$12) -> 4216.5 | G102: =RTD("cqg.rtd",,"StudyData",$O$2, "ImpVol",, "MIVClose",$O$4,-A102,$O$6,$O$10,,$O$8,$O$12) -> 14.25
A103: 101 | B103: =RTD("cqg.rtd",,"StudyData", $O$2, "BAR", "", "Time", $O$4,-$A103,$O$6,$O$10, "","False","T") -> 2023-05-15 | C103: =RTD("cqg.rtd",,"StudyData", $O$2, "BAR", "", "Open", $O$4, -$A103, $O$6,$O$10,,$O$8,$O$12) -> 4225.75 | D103: =RTD("cqg.rtd",,"StudyData", $O$2, "BAR", "", "High", $O$4, -$A103, $O$6,$O$10,,$O$8,$O$12) -> 4249.75 | E103: =RTD("cqg.rtd",,"StudyData", $O$2, "BAR", "", "Low", $O$4, -$A103, $O$6,$O$10,,$O$8,$O$12) -> 4216.5 | F103: =RTD("cqg.rtd",,"StudyData", $O$2, "BAR", "", "Close", $O$4, -$A103, $O$6,$O$10,,$O$8,$O$12) -> 4243.5 | G103: =RTD("cqg.rtd",,"StudyData",$O$2, "ImpVol",, "MIVClose",$O$4,-A103,$O$6,$O$10,,$O$8,$O$12) -> 13.345
A104: 102 | B104: =RTD("cqg.rtd",,"StudyData", $O$2, "BAR", "", "Time", $O$4,-$A104,$O$6,$O$10, "","False","T") -> 2023-05-12 | C104: =RTD("cqg.rtd",,"StudyData", $O$2, "BAR", "", "Open", $O$4, -$A104, $O$6,$O$10,,$O$8,$O$12) -> 4238 | D104: =RTD("cqg.rtd",,"StudyData", $O$2, "BAR", "", "High", $O$4, -$A104, $O$6,$O$10,,$O$8,$O$12) -> 4258 | E104: =RTD("cqg.rtd",,"StudyData", $O$2, "BAR", "", "Low", $O$4, -$A104, $O$6,$O$10,,$O$8,$O$12) -> 4205.25 | F104: =RTD("cqg.rtd",,"StudyData", $O$2, "BAR", "", "Close", $O$4, -$A104, $O$6,$O$10,,$O$8,$O$12) -> 4231.5 | G104: =RTD("cqg.rtd",,"StudyData",$O$2, "ImpVol",, "MIVClose",$O$4,-A104,$O$6,$O$10,,$O$8,$O$12) -> 14.105
A105: 103 | B105: =RTD("cqg.rtd",,"StudyData", $O$2, "BAR", "", "Time", $O$4,-$A105,$O$6,$O$10, "","False","T") -> 2023-05-11 | C105: =RTD("cqg.rtd",,"StudyData", $O$2, "BAR", "", "Open", $O$4, -$A105, $O$6,$O$10,,$O$8,$O$12) -> 4246.25 | D105: =RTD("cqg.rtd",,"StudyData", $O$2, "BAR", "", "High", $O$4, -$A105, $O$6,$O$10,,$O$8,$O$12) -> 4262 | E105: =RTD("cqg.rtd",,"StudyData", $O$2, "BAR", "", "Low", $O$4, -$A105, $O$6,$O$10,,$O$8,$O$12) -> 4215 | F105: =RTD("cqg.rtd",,"StudyData", $O$2, "BAR", "", "Close", $O$4, -$A105, $O$6,$O$10,,$O$8,$O$12) -> 4237.25 | G105: =RTD("cqg.rtd",,"StudyData",$O$2, "ImpVol",, "MIVClose",$O$4,-A105,$O$6,$O$10,,$O$8,$O$12) -> 14.05
A106: 104 | B106: =RTD("cqg.rtd",,"StudyData", $O$2, "BAR", "", "Time", $O$4,-$A106,$O$6,$O$10, "","False","T") -> 2023-05-10 | C106: =RTD("cqg.rtd",,"StudyData", $O$2, "BAR", "", "Open", $O$4, -$A106, $O$6,$O$10,,$O$8,$O$12) -> 4226.5 | D106: =RTD("cqg.rtd",,"StudyData", $O$2, "BAR", "", "High", $O$4, -$A106, $O$6,$O$10,,$O$8,$O$12) -> 4266.75 | E106: =RTD("cqg.rtd",,"StudyData", $O$2, "BAR", "", "Low", $O$4, -$A106, $O$6,$O$10,,$O$8,$O$12) -> 4205.75 | F106: =RTD("cqg.rtd",,"StudyData", $O$2, "BAR", "", "Close", $O$4, -$A106, $O$6,$O$10,,$O$8,$O$12) -> 4245.5 | G106: =RTD("cqg.rtd",,"StudyData",$O$2, "ImpVol",, "MIVClose",$O$4,-A106,$O$6,$O$10,,$O$8,$O$12) -> 14.11
A107: 105 | B107: =RTD("cqg.rtd",,"StudyData", $O$2, "BAR", "", "Time", $O$4,-$A107,$O$6,$O$10, "","False","T") -> 2023-05-09 | C107: =RTD("cqg.rtd",,"StudyData", $O$2, "BAR", "", "Open", $O$4, -$A107, $O$6,$O$10,,$O$8,$O$12) -> 4244 | D107: =RTD("cqg.rtd",,"StudyData", $O$2, "BAR", "", "High", $O$4, -$A107, $O$6,$O$10,,$O$8,$O$12) -> 4246.5 | E107: =RTD("cqg.rtd",,"StudyData", $O$2, "BAR", "", "Low", $O$4, -$A107, $O$6,$O$10,,$O$8,$O$12) -> 4224.5 | F107: =RTD("cqg.rtd",,"StudyData", $O$2, "BAR", "", "Close", $O$4, -$A107, $O$6,$O$10,,$O$8,$O$12) -> 4227.5 | G107: =RTD("cqg.rtd",,"StudyData",$O$2, "ImpVol",, "MIVClose",$O$4,-A107,$O$6,$O$10,,$O$8,$O$12) -> 14.915
A108: 106 | B108: =RTD("cqg.rtd",,"StudyData", $O$2, "BAR", "", "Time", $O$4,-$A108,$O$6,$O$10, "","False","T") -> 2023-05-08 | C108: =RTD("cqg.rtd",,"StudyData", $O$2, "BAR", "", "Open", $O$4, -$A108, $O$6,$O$10,,$O$8,$O$12) -> 4244.5 | D108: =RTD("cqg.rtd",,"StudyData", $O$2, "BAR", "", "High", $O$4, -$A108, $O$6,$O$10,,$O$8,$O$12) -> 4254.5 | E108: =RTD("cqg.rtd",,"StudyData", $O$2, "BAR", "", "Low", $O$4, -$A108, $O$6,$O$10,,$O$8,$O$12) -> 4231 | F108: =RTD("cqg.rtd",,"StudyData", $O$2, "BAR", "", "Close", $O$4, -$A108, $O$6,$O$10,,$O$8,$O$12) -> 4246.25 | G108: =RTD("cqg.rtd",,"StudyData",$O$2, "ImpVol",, "MIVClose",$O$4,-A108,$O$6,$O$10,,$O$8,$O$12) -> 14.32
A109: 107 | B109: =RTD("cqg.rtd",,"StudyData", $O$2, "BAR", "", "Time", $O$4,-$A109,$O$6,$O$10, "","False","T") -> 2023-05-05 | C109: =RTD("cqg.rtd",,"StudyData", $O$2, "BAR", "", "Open", $O$4, -$A109, $O$6,$O$10,,$O$8,$O$12) -> 4170.75 | D109: =RTD("cqg.rtd",,"StudyData", $O$2, "BAR", "", "High", $O$4, -$A109, $O$6,$O$10,,$O$8,$O$12) -> 4256.75 | E109: =RTD("cqg.rtd",,"StudyData", $O$2, "BAR", "", "Low", $O$4, -$A109, $O$6,$O$10,,$O$8,$O$12) -> 4170.25 | F109: =RTD("cqg.rtd",,"StudyData", $O$2, "BAR", "", "Close", $O$4, -$A109, $O$6,$O$10,,$O$8,$O$12) -> 4243.75 | G109: =RTD("cqg.rtd",,"StudyData",$O$2, "ImpVol",, "MIVClose",$O$4,-A109,$O$6,$O$10,,$O$8,$O$12) -> 14.805
A110: 108 | B110: =RTD("cqg.rtd",,"StudyData", $O$2, "BAR", "", "Time", $O$4,-$A110,$O$6,$O$10, "","False","T") -> 2023-05-04 | C110: =RTD("cqg.rtd",,"StudyData", $O$2, "BAR", "", "Open", $O$4, -$A110, $O$6,$O$10,,$O$8,$O$12) -> 4180.5 | D110: =RTD("cqg.rtd",,"StudyData", $O$2, "BAR", "", "High", $O$4, -$A110, $O$6,$O$10,,$O$8,$O$12) -> 4211.5 | E110: =RTD("cqg.rtd",,"StudyData", $O$2, "BAR", "", "Low", $O$4, -$A110, $O$6,$O$10,,$O$8,$O$12) -> 4155.75 | F110: =RTD("cqg.rtd",,"StudyData", $O$2, "BAR", "", "Close", $O$4, -$A110, $O$6,$O$10,,$O$8,$O$12) -> 4169.25 | G110: =RTD("cqg.rtd",,"StudyData",$O$2, "ImpVol",, "MIVClose",$O$4,-A110,$O$6,$O$10,,$O$8,$O$12) -> 17.285
A111: 109 | B111: =RTD("cqg.rtd",,"StudyData", $O$2, "BAR", "", "Time", $O$4,-$A111,$O$6,$O$10, "","False","T") -> 2023-05-03 | C111: =RTD("cqg.rtd",,"StudyData", $O$2, "BAR", "", "Open", $O$4, -$A111, $O$6,$O$10,,$O$8,$O$12) -> 4226.75 | D111: =RTD("cqg.rtd",,"StudyData", $O$2, "BAR", "", "High", $O$4, -$A111, $O$6,$O$10,,$O$8,$O$12) -> 4260.5 | E111: =RTD("cqg.rtd",,"StudyData", $O$2, "BAR", "", "Low", $O$4, -$A111, $O$6,$O$10,,$O$8,$O$12) -> 4188.5 | F111: =RTD("cqg.rtd",,"StudyData", $O$2, "BAR", "", "Close", $O$4, -$A111, $O$6,$O$10,,$O$8,$O$12) -> 4201 | G111: =RTD("cqg.rtd",,"StudyData",$O$2, "ImpVol",, "MIVClose",$O$4,-A111,$O$6,$O$10,,$O$8,$O$12) -> 15.78
A112: 110 | B112: =RTD("cqg.rtd",,"StudyData", $O$2, "BAR", "", "Time", $O$4,-$A112,$O$6,$O$10, "","False","T") -> 2023-05-02 | C112: =RTD("cqg.rtd",,"StudyData", $O$2, "BAR", "", "Open", $O$4, -$A112, $O$6,$O$10,,$O$8,$O$12) -> 4273 | D112: =RTD("cqg.rtd",,"StudyData", $O$2, "BAR", "", "High", $O$4, -$A112, $O$6,$O$10,,$O$8,$O$12) -> 4285 | E112: =RTD("cqg.rtd",,"StudyData", $O$2, "BAR", "", "Low", $O$4, -$A112, $O$6,$O$10,,$O$8,$O$12) -> 4199 | F112: =RTD("cqg.rtd",,"StudyData", $O$2, "BAR", "", "Close", $O$4, -$A112, $O$6,$O$10,,$O$8,$O$12) -> 4230.25 | G112: =RTD("cqg.rtd",,"StudyData",$O$2, "ImpVol",, "MIVClose",$O$4,-A112,$O$6,$O$10,,$O$8,$O$12) -> 15.07
A113: 111 | B113: =RTD("cqg.rtd",,"StudyData", $O$2, "BAR", "", "Time", $O$4,-$A113,$O$6,$O$10, "","False","T") -> 2023-05-01 | C113: =RTD("cqg.rtd",,"StudyData", $O$2, "BAR", "", "Open", $O$4, -$A113, $O$6,$O$10,,$O$8,$O$12) -> 4283.5 | D113: =RTD("cqg.rtd",,"StudyData", $O$2, "BAR", "", "High", $O$4, -$A113, $O$6,$O$10,,$O$8,$O$12) -> 4299.75 | E113: =RTD("cqg.rtd",,"StudyData", $O$2, "BAR", "", "Low", $O$4, -$A113, $O$6,$O$10,,$O$8,$O$12) -> 4272 | F113: =RTD("cqg.rtd",,"StudyData", $O$2, "BAR", "", "Close", $O$4, -$A113, $O$6,$O$10,,$O$8,$O$12) -> 4279.25 | G113: =RTD("cqg.rtd",,"StudyData",$O$2, "ImpVol",, "MIVClose",$O$4,-A113,$O$6,$O$10,,$O$8,$O$12) -> 13.49
A114: 112 | B114: =RTD("cqg.rtd",,"StudyData", $O$2, "BAR", "", "Time", $O$4,-$A114,$O$6,$O$10, "","False","T") -> 2023-04-28 | C114: =RTD("cqg.rtd",,"StudyData", $O$2, "BAR", "", "Open", $O$4, -$A114, $O$6,$O$10,,$O$8,$O$12) -> 4244.5 | D114: =RTD("cqg.rtd",,"StudyData", $O$2, "BAR", "", "High", $O$4, -$A114, $O$6,$O$10,,$O$8,$O$12) -> 4287.25 | E114: =RTD("cqg.rtd",,"StudyData", $O$2, "BAR", "", "Low", $O$4, -$A114, $O$6,$O$10,,$O$8,$O$12) -> 4225 | F114: =RTD("cqg.rtd",,"StudyData", $O$2, "BAR", "", "Close", $O$4, -$A114, $O$6,$O$10,,$O$8,$O$12) -> 4282 | G114: =RTD("cqg.rtd",,"StudyData",$O$2, "ImpVol",, "MIVClose",$O$4,-A114,$O$6,$O$10,,$O$8,$O$12) -> 13.56
A115: 113 | B115: =RTD("cqg.rtd",,"StudyData", $O$2, "BAR", "", "Time", $O$4,-$A115,$O$6,$O$10, "","False","T") -> 2023-04-27 | C115: =RTD("cqg.rtd",,"StudyData", $O$2, "BAR", "", "Open", $O$4, -$A115, $O$6,$O$10,,$O$8,$O$12) -> 4179 | D115: =RTD("cqg.rtd",,"StudyData", $O$2, "BAR", "", "High", $O$4, -$A115, $O$6,$O$10,,$O$8,$O$12) -> 4260 | E115: =RTD("cqg.rtd",,"StudyData", $O$2, "BAR", "", "Low", $O$4, -$A115, $O$6,$O$10,,$O$8,$O$12) -> 4174.25 | F115: =RTD("cqg.rtd",,"StudyData", $O$2, "BAR", "", "Close", $O$4, -$A115, $O$6,$O$10,,$O$8,$O$12) -> 4247.25 | G115: =RTD("cqg.rtd",,"StudyData",$O$2, "ImpVol",, "MIVClose",$O$4,-A115,$O$6,$O$10,,$O$8,$O$12) -> 14.44
A116: 114 | B116: =RTD("cqg.rtd",,"StudyData", $O$2, "BAR", "", "Time", $O$4,-$A116,$O$6,$O$10, "","False","T") -> 2023-04-26 | C116: =RTD("cqg.rtd",,"StudyData", $O$2, "BAR", "", "Open", $O$4, -$A116, $O$6,$O$10,,$O$8,$O$12) -> 4203.75 | D116: =RTD("cqg.rtd",,"StudyData", $O$2, "BAR", "", "High", $O$4, -$A116, $O$6,$O$10,,$O$8,$O$12) -> 4209.75 | E116: =RTD("cqg.rtd",,"StudyData", $O$2, "BAR", "", "Low", $O$4, -$A116, $O$6,$O$10,,$O$8,$O$12) -> 4162.25 | F116: =RTD("cqg.rtd",,"StudyData", $O$2, "BAR", "", "Close", $O$4, -$A116, $O$6,$O$10,,$O$8,$O$12) -> 4169.5 | G116: =RTD("cqg.rtd",,"StudyData",$O$2, "ImpVol",, "MIVClose",$O$4,-A116,$O$6,$O$10,,$O$8,$O$12) -> 16.34
A117: 115 | B117: =RTD("cqg.rtd",,"StudyData", $O$2, "BAR", "", "Time", $O$4,-$A117,$O$6,$O$10, "","False","T") -> 2023-04-25 | C117: =RTD("cqg.rtd",,"StudyData", $O$2, "BAR", "", "Open", $O$4, -$A117, $O$6,$O$10,,$O$8,$O$12) -> 4250.75 | D117: =RTD("cqg.rtd",,"StudyData", $O$2, "BAR", "", "High", $O$4, -$A117, $O$6,$O$10,,$O$8,$O$12) -> 4252 | E117: =RTD("cqg.rtd",,"StudyData", $O$2, "BAR", "", "Low", $O$4, -$A117, $O$6,$O$10,,$O$8,$O$12) -> 4185 | F117: =RTD("cqg.rtd",,"StudyData", $O$2, "BAR", "", "Close", $O$4, -$A117, $O$6,$O$10,,$O$8,$O$12) -> 4186.75 | G117: =RTD("cqg.rtd",,"StudyData",$O$2, "ImpVol",, "MIVClose",$O$4,-A117,$O$6,$O$10,,$O$8,$O$12) -> 16.2
A118: 116 | B118: =RTD("cqg.rtd",,"StudyData", $O$2, "BAR", "", "Time", $O$4,-$A118,$O$6,$O$10, "","False","T") -> 2023-04-24 | C118: =RTD("cqg.rtd",,"StudyData", $O$2, "BAR", "", "Open", $O$4, -$A118, $O$6,$O$10,,$O$8,$O$12) -> 4243.5 | D118: =RTD("cqg.rtd",,"StudyData", $O$2, "BAR", "", "High", $O$4, -$A118, $O$6,$O$10,,$O$8,$O$12) -> 4257.75 | E118: =RTD("cqg.rtd",,"StudyData", $O$2, "BAR", "", "Low", $O$4, -$A118, $O$6,$O$10,,$O$8,$O$12) -> 4227 | F118: =RTD("cqg.rtd",,"StudyData", $O$2, "BAR", "", "Close", $O$4, -$A118, $O$6,$O$10,,$O$8,$O$12) -> 4253 | G118: =RTD("cqg.rtd",,"StudyData",$O$2, "ImpVol",, "MIVClose",$O$4,-A118,$O$6,$O$10,,$O$8,$O$12) -> 14.295
A119: 117 | B119: =RTD("cqg.rtd",,"StudyData", $O$2, "BAR", "", "Time", $O$4,-$A119,$O$6,$O$10, "","False","T") -> 2023-04-21 | C119: =RTD("cqg.rtd",,"StudyData", $O$2, "BAR", "", "Open", $O$4, -$A119, $O$6,$O$10,,$O$8,$O$12) -> 4247.25 | D119: =RTD("cqg.rtd",,"StudyData", $O$2, "BAR", "", "High", $O$4, -$A119, $O$6,$O$10,,$O$8,$O$12) -> 4254.5 | E119: =RTD("cqg.rtd",,"StudyData", $O$2, "BAR", "", "Low", $O$4, -$A119, $O$6,$O$10,,$O$8,$O$12) -> 4228.75 | F119: =RTD("cqg.rtd",,"StudyData", $O$2, "BAR", "", "Close", $O$4, -$A119, $O$6,$O$10,,$O$8,$O$12) -> 4250.25 | G119: =RTD("cqg.rtd",,"StudyData",$O$2, "ImpVol",, "MIVClose",$O$4,-A119,$O$6,$O$10,,$O$8,$O$12) -> 14.54
A120: 118 | B120: =RTD("cqg.rtd",,"StudyData", $O$2, "BAR", "", "Time", $O$4,-$A120,$O$6,$O$10, "","False","T") -> 2023-04-20 | C120: =RTD("cqg.rtd",,"StudyData", $O$2, "BAR", "", "Open", $O$4, -$A120, $O$6,$O$10,,$O$8,$O$12) -> 4265.75 | D120: =RTD("cqg.rtd",,"StudyData", $O$2, "BAR", "", "High", $O$4, -$A120, $O$6,$O$10,,$O$8,$O$12) -> 4267 | E120: =RTD("cqg.rtd",,"StudyData", $O$2, "BAR", "", "Low", $O$4, -$A120, $O$6,$O$10,,$O$8,$O$12) -> 4230.5 | F120: =RTD("cqg.rtd",,"StudyData", $O$2, "BAR", "", "Close", $O$4, -$A120, $O$6,$O$10,,$O$8,$O$12) -> 4246 | G120: =RTD("cqg.rtd",,"StudyData",$O$2, "ImpVol",, "MIVClose",$O$4,-A120,$O$6,$O$10,,$O$8,$O$12) -> 14.72
A121: 119 | B121: =RTD("cqg.rtd",,"StudyData", $O$2, "BAR", "", "Time", $O$4,-$A121,$O$6,$O$10, "","False","T") -> 2023-04-19 | C121: =RTD("cqg.rtd",,"StudyData", $O$2, "BAR", "", "Open", $O$4, -$A121, $O$6,$O$10,,$O$8,$O$12) -> 4269.5 | D121: =RTD("cqg.rtd",,"StudyData", $O$2, "BAR", "", "High", $O$4, -$A121, $O$6,$O$10,,$O$8,$O$12) -> 4281 | E121: =RTD("cqg.rtd",,"StudyData", $O$2, "BAR", "", "Low", $O$4, -$A121, $O$6,$O$10,,$O$8,$O$12) -> 4244 | F121: =RTD("cqg.rtd",,"StudyData", $O$2, "BAR", "", "Close", $O$4, -$A121, $O$6,$O$10,,$O$8,$O$12) -> 4272 | G121: =RTD("cqg.rtd",,"StudyData",$O$2, "ImpVol",, "MIVClose",$O$4,-A121,$O$6,$O$10,,$O$8,$O$12) -> 14.265
A122: 120 | B122: =RTD("cqg.rtd",,"StudyData", $O$2, "BAR", "", "Time", $O$4,-$A122,$O$6,$O$10, "","False","T") -> 2023-04-18 | C122: =RTD("cqg.rtd",,"StudyData", $O$2, "BAR", "", "Open", $O$4, -$A122, $O$6,$O$10,,$O$8,$O$12) -> 4270.5 | D122: =RTD("cqg.rtd",,"StudyData", $O$2, "BAR", "", "High", $O$4, -$A122, $O$6,$O$10,,$O$8,$O$12) -> 4291.75 | E122: =RTD("cqg.rtd",,"StudyData", $O$2, "BAR", "", "Low", $O$4, -$A122, $O$6,$O$10,,$O$8,$O$12) -> 4258 | F122: =RTD("cqg.rtd",,"StudyData", $O$2, "BAR", "", "Close", $O$4, -$A122, $O$6,$O$10,,$O$8,$O$12) -> 4273.5 | G122: =RTD("cqg.rtd",,"StudyData",$O$2, "ImpVol",, "MIVClose",$O$4,-A122,$O$6,$O$10,,$O$8,$O$12) -> 14.305
A123: 121 | B123: =RTD("cqg.rtd",,"StudyData", $O$2, "BAR", "", "Time", $O$4,-$A123,$O$6,$O$10, "","False","T") -> 2023-04-17 | C123: =RTD("cqg.rtd",,"StudyData", $O$2, "BAR", "", "Open", $O$4, -$A123, $O$6,$O$10,,$O$8,$O$12) -> 4267.75 | D123: =RTD("cqg.rtd",,"StudyData", $O$2, "BAR", "", "High", $O$4, -$A123, $O$6,$O$10,,$O$8,$O$12) -> 4274 | E123: =RTD("cqg.rtd",,"StudyData", $O$2, "BAR", "", "Low", $O$4, -$A123, $O$6,$O$10,,$O$8,$O$12) -> 4241.5 | F123: =RTD("cqg.rtd",,"StudyData", $O$2, "BAR", "", "Close", $O$4, -$A123, $O$6,$O$10,,$O$8,$O$12) -> 4270.25 | G123: =RTD("cqg.rtd",,"StudyData",$O$2, "ImpVol",, "MIVClose",$O$4,-A123,$O$6,$O$10,,$O$8,$O$12) -> 14.51
A124: 122 | B124: =RTD("cqg.rtd",,"StudyData", $O$2, "BAR", "", "Time", $O$4,-$A124,$O$6,$O$10, "","False","T") -> 2023-04-14 | C124: =RTD("cqg.rtd",,"StudyData", $O$2, "BAR", "", "Open", $O$4, -$A124, $O$6,$O$10,,$O$8,$O$12) -> 4262.25 | D124: =RTD("cqg.rtd",,"StudyData", $O$2, "BAR", "", "High", $O$4, -$A124, $O$6,$O$10,,$O$8,$O$12) -> 4282.5 | E124: =RTD("cqg.rtd",,"StudyData", $O$2, "BAR", "", "Low", $O$4, -$A124, $O$6,$O$10,,$O$8,$O$12) -> 4231.5 | F124: =RTD("cqg.rtd",,"StudyData", $O$2, "BAR", "", "Close", $O$4, -$A124, $O$6,$O$10,,$O$8,$O$12) -> 4257.25 | G124: =RTD("cqg.rtd",,"StudyData",$O$2, "ImpVol",, "MIVClose",$O$4,-A124,$O$6,$O$10,,$O$8,$O$12) -> 15.155
A125: 123 | B125: =RTD("cqg.rtd",,"StudyData", $O$2, "BAR", "", "Time", $O$4,-$A125,$O$6,$O$10, "","False","T") -> 2023-04-13 | C125: =RTD("cqg.rtd",,"StudyData", $O$2, "BAR", "", "Open", $O$4, -$A125, $O$6,$O$10,,$O$8,$O$12) -> 4211 | D125: =RTD("cqg.rtd",,"StudyData", $O$2, "BAR", "", "High", $O$4, -$A125, $O$6,$O$10,,$O$8,$O$12) -> 4270.5 | E125: =RTD("cqg.rtd",,"StudyData", $O$2, "BAR", "", "Low", $O$4, -$A125, $O$6,$O$10,,$O$8,$O$12) -> 4203.75 | F125: =RTD("cqg.rtd",,"StudyData", $O$2, "BAR", "", "Close", $O$4, -$A125, $O$6,$O$10,,$O$8,$O$12) -> 4266.25 | G125: =RTD("cqg.rtd",,"StudyData",$O$2, "ImpVol",, "MIVClose",$O$4,-A125,$O$6,$O$10,,$O$8,$O$12) -> 15.7
A126: 124 | B126: =RTD("cqg.rtd",,"StudyData", $O$2, "BAR", "", "Time", $O$4,-$A126,$O$6,$O$10, "","False","T") -> 2023-04-12 | C126: =RTD("cqg.rtd",,"StudyData", $O$2, "BAR", "", "Open", $O$4, -$A126, $O$6,$O$10,,$O$8,$O$12) -> 4231 | D126: =RTD("cqg.rtd",,"StudyData", $O$2, "BAR", "", "High", $O$4, -$A126, $O$6,$O$10,,$O$8,$O$12) -> 4271.25 | E126: =RTD("cqg.rtd",,"StudyData", $O$2, "BAR", "", "Low", $O$4, -$A126, $O$6,$O$10,,$O$8,$O$12) -> 4207 | F126: =RTD("cqg.rtd",,"StudyData", $O$2, "BAR", "", "Close", $O$4, -$A126, $O$6,$O$10,,$O$8,$O$12) -> 4212.5 | G126: =RTD("cqg.rtd",,"StudyData",$O$2, "ImpVol",, "MIVClose",$O$4,-A126,$O$6,$O$10,,$O$8,$O$12) -> 16.57
A127: 125 | B127: =RTD("cqg.rtd",,"StudyData", $O$2, "BAR", "", "Time", $O$4,-$A127,$O$6,$O$10, "","False","T") -> 2023-04-11 | C127: =RTD("cqg.rtd",,"StudyData", $O$2, "BAR", "", "Open", $O$4, -$A127, $O$6,$O$10,,$O$8,$O$12) -> 4232 | D127: =RTD("cqg.rtd",,"StudyData", $O$2, "BAR", "", "High", $O$4, -$A127, $O$6,$O$10,,$O$8,$O$12) -> 4245.25 | E127: =RTD("cqg.rtd",,"StudyData", $O$2, "BAR", "", "Low", $O$4, -$A127, $O$6,$O$10,,$O$8,$O$12) -> 4222.25 | F127: =RTD("cqg.rtd",,"StudyData", $O$2, "BAR", "", "Close", $O$4, -$A127, $O$6,$O$10,,$O$8,$O$12) -> 4230 | G127: =RTD("cqg.rtd",,"StudyData",$O$2, "ImpVol",, "MIVClose",$O$4,-A127,$O$6,$O$10,,$O$8,$O$12) -> 16.565
A128: 126 | B128: =RTD("cqg.rtd",,"StudyData", $O$2, "BAR", "", "Time", $O$4,-$A128,$O$6,$O$10, "","False","T") -> 2023-04-10 | C128: =RTD("cqg.rtd",,"StudyData", $O$2, "BAR", "", "Open", $O$4, -$A128, $O$6,$O$10,,$O$8,$O$12) -> 4232.5 | D128: =RTD("cqg.rtd",,"StudyData", $O$2, "BAR", "", "High", $O$4, -$A128, $O$6,$O$10,,$O$8,$O$12) -> 4236.5 | E128: =RTD("cqg.rtd",,"StudyData", $O$2, "BAR", "", "Low", $O$4, -$A128, $O$6,$O$10,,$O$8,$O$12) -> 4192.25 | F128: =RTD("cqg.rtd",,"StudyData", $O$2, "BAR", "", "Close", $O$4, -$A128, $O$6,$O$10,,$O$8,$O$12) -> 4229.75 | G128: =RTD("cqg.rtd",,"StudyData",$O$2, "ImpVol",, "MIVClose",$O$4,-A128,$O$6,$O$10,,$O$8,$O$12) -> 16.515
A129: 127 | B129: =RTD("cqg.rtd",,"StudyData", $O$2, "BAR", "", "Time", $O$4,-$A129,$O$6,$O$10, "","False","T") -> 2023-04-07 | C129: =RTD("cqg.rtd",,"StudyData", $O$2, "BAR", "", "Open", $O$4, -$A129, $O$6,$O$10,,$O$8,$O$12) -> 4222.5 | D129: =RTD("cqg.rtd",,"StudyData", $O$2, "BAR", "", "High", $O$4, -$A129, $O$6,$O$10,,$O$8,$O$12) -> 4240.25 | E129: =RTD("cqg.rtd",,"StudyData", $O$2, "BAR", "", "Low", $O$4, -$A129, $O$6,$O$10,,$O$8,$O$12) -> 4214.5 | F129: =RTD("cqg.rtd",,"StudyData", $O$2, "BAR", "", "Close", $O$4, -$A129, $O$6,$O$10,,$O$8,$O$12) -> 4225.5 | G129: =RTD("cqg.rtd",,"StudyData",$O$2, "ImpVol",, "MIVClose",$O$4,-A129,$O$6,$O$10,,$O$8,$O$12) -> 16.895
A130: 128 | B130: =RTD("cqg.rtd",,"StudyData", $O$2, "BAR", "", "Time", $O$4,-$A130,$O$6,$O$10, "","False","T") -> 2023-04-06 | C130: =RTD("cqg.rtd",,"StudyData", $O$2, "BAR", "", "Open", $O$4, -$A130, $O$6,$O$10,,$O$8,$O$12) -> 4207.25 | D130: =RTD("cqg.rtd",,"StudyData", $O$2, "BAR", "", "High", $O$4, -$A130, $O$6,$O$10,,$O$8,$O$12) -> 4228.75 | E130: =RTD("cqg.rtd",,"StudyData", $O$2, "BAR", "", "Low", $O$4, -$A130, $O$6,$O$10,,$O$8,$O$12) -> 4190 | F130: =RTD("cqg.rtd",,"StudyData", $O$2, "BAR", "", "Close", $O$4, -$A130, $O$6,$O$10,,$O$8,$O$12) -> 4225.5 | G130: =RTD("cqg.rtd",,"StudyData",$O$2, "ImpVol",, "MIVClose",$O$4,-A130,$O$6,$O$10,,$O$8,$O$12) -> 16.895
A131: 129 | B131: =RTD("cqg.rtd",,"StudyData", $O$2, "BAR", "", "Time", $O$4,-$A131,$O$6,$O$10, "","False","T") -> 2023-04-05 | C131: =RTD("cqg.rtd",,"StudyData", $O$2, "BAR", "", "Open", $O$4, -$A131, $O$6,$O$10,,$O$8,$O$12) -> 4227.5 | D131: =RTD("cqg.rtd",,"StudyData", $O$2, "BAR", "", "High", $O$4, -$A131, $O$6,$O$10,,$O$8,$O$12) -> 4229 | E131: =RTD("cqg.rtd",,"StudyData", $O$2, "BAR", "", "Low", $O$4, -$A131, $O$6,$O$10,,$O$8,$O$12) -> 4192.5 | F131: =RTD("cqg.rtd",,"StudyData", $O$2, "BAR", "", "Close", $O$4, -$A131, $O$6,$O$10,,$O$8,$O$12) -> 4210.75 | G131: =RTD("cqg.rtd",,"StudyData",$O$2, "ImpVol",, "MIVClose",$O$4,-A131,$O$6,$O$10,,$O$8,$O$12) -> 17.045
A132: =A131+1 -> 130 | B132: =RTD("cqg.rtd",,"StudyData", $O$2, "BAR", "", "Time", $O$4,-$A132,$O$6,$O$10, "","False","T") -> 2023-04-04 | C132: =RTD("cqg.rtd",,"StudyData", $O$2, "BAR", "", "Open", $O$4, -$A132, $O$6,$O$10,,$O$8,$O$12) -> 4246 | D132: =RTD("cqg.rtd",,"StudyData", $O$2, "BAR", "", "High", $O$4, -$A132, $O$6,$O$10,,$O$8,$O$12) -> 4265.25 | E132: =RTD("cqg.rtd",,"StudyData", $O$2, "BAR", "", "Low", $O$4, -$A132, $O$6,$O$10,,$O$8,$O$12) -> 4208.75 | F132: =RTD("cqg.rtd",,"StudyData", $O$2, "BAR", "", "Close", $O$4, -$A132, $O$6,$O$10,,$O$8,$O$12) -> 4222.5 | G132: =RTD("cqg.rtd",,"StudyData",$O$2, "ImpVol",, "MIVClose",$O$4,-A132,$O$6,$O$10,,$O$8,$O$12) -> 16.82
A133: 131 | B133: =RTD("cqg.rtd",,"StudyData", $O$2, "BAR", "", "Time", $O$4,-$A133,$O$6,$O$10, "","False","T") -> 2023-04-03 | C133: =RTD("cqg.rtd",,"StudyData", $O$2, "BAR", "", "Open", $O$4, -$A133, $O$6,$O$10,,$O$8,$O$12) -> 4220.5 | D133: =RTD("cqg.rtd",,"StudyData", $O$2, "BAR", "", "High", $O$4, -$A133, $O$6,$O$10,,$O$8,$O$12) -> 4251.25 | E133: =RTD("cqg.rtd",,"StudyData", $O$2, "BAR", "", "Low", $O$4, -$A133, $O$6,$O$10,,$O$8,$O$12) -> 4216.25 | F133: =RTD("cqg.rtd",,"StudyData", $O$2, "BAR", "", "Close", $O$4, -$A133, $O$6,$O$10,,$O$8,$O$12) -> 4247.25 | G133: =RTD("cqg.rtd",,"StudyData",$O$2, "ImpVol",, "MIVClose",$O$4,-A133,$O$6,$O$10,,$O$8,$O$12) -> 16.42
A134: 132 | B134: =RTD("cqg.rtd",,"StudyData", $O$2, "BAR", "", "Time", $O$4,-$A134,$O$6,$O$10, "","False","T") -> 2023-03-31 | C134: =RTD("cqg.rtd",,"StudyData", $O$2, "BAR", "", "Open", $O$4, -$A134, $O$6,$O$10,,$O$8,$O$12) -> 4174.5 | D134: =RTD("cqg.rtd",,"StudyData", $O$2, "BAR", "", "High", $O$4, -$A134, $O$6,$O$10,,$O$8,$O$12) -> 4236 | E134: =RTD("cqg.rtd",,"StudyData", $O$2, "BAR", "", "Low", $O$4, -$A134, $O$6,$O$10,,$O$8,$O$12) -> 4171.5 | F134: =RTD("cqg.rtd",,"StudyData", $O$2, "BAR", "", "Close", $O$4, -$A134, $O$6,$O$10,,$O$8,$O$12) -> 4231.25 | G134: =RTD("cqg.rtd",,"StudyData",$O$2, "ImpVol",, "MIVClose",$O$4,-A134,$O$6,$O$10,,$O$8,$O$12) -> 17.105
A135: 133 | B135: =RTD("cqg.rtd",,"StudyData", $O$2, "BAR", "", "Time", $O$4,-$A135,$O$6,$O$10, "","False","T") -> 2023-03-30 | C135: =RTD("cqg.rtd",,"StudyData", $O$2, "BAR", "", "Open", $O$4, -$A135, $O$6,$O$10,,$O$8,$O$12) -> 4151.5 | D135: =RTD("cqg.rtd",,"StudyData", $O$2, "BAR", "", "High", $O$4, -$A135, $O$6,$O$10,,$O$8,$O$12) -> 4181.25 | E135: =RTD("cqg.rtd",,"StudyData", $O$2, "BAR", "", "Low", $O$4, -$A135, $O$6,$O$10,,$O$8,$O$12) -> 4146 | F135: =RTD("cqg.rtd",,"StudyData", $O$2, "BAR", "", "Close", $O$4, -$A135, $O$6,$O$10,,$O$8,$O$12) -> 4173.5 | G135: =RTD("cqg.rtd",,"StudyData",$O$2, "ImpVol",, "MIVClose",$O$4,-A135,$O$6,$O$10,,$O$8,$O$12) -> 17.415
A136: 134 | B136: =RTD("cqg.rtd",,"StudyData", $O$2, "BAR", "", "Time", $O$4,-$A136,$O$6,$O$10, "","False","T") -> 2023-03-29 | C136: =RTD("cqg.rtd",,"StudyData", $O$2, "BAR", "", "Open", $O$4, -$A136, $O$6,$O$10,,$O$8,$O$12) -> 4100 | D136: =RTD("cqg.rtd",,"StudyData", $O$2, "BAR", "", "High", $O$4, -$A136, $O$6,$O$10,,$O$8,$O$12) -> 4154.75 | E136: =RTD("cqg.rtd",,"StudyData", $O$2, "BAR", "", "Low", $O$4, -$A136, $O$6,$O$10,,$O$8,$O$12) -> 4099.5 | F136: =RTD("cqg.rtd",,"StudyData", $O$2, "BAR", "", "Close", $O$4, -$A136, $O$6,$O$10,,$O$8,$O$12) -> 4151 | G136: =RTD("cqg.rtd",,"StudyData",$O$2, "ImpVol",, "MIVClose",$O$4,-A136,$O$6,$O$10,,$O$8,$O$12) -> 17.62
A137: 135 | B137: =RTD("cqg.rtd",,"StudyData", $O$2, "BAR", "", "Time", $O$4,-$A137,$O$6,$O$10, "","False","T") -> 2023-03-28 | C137: =RTD("cqg.rtd",,"StudyData", $O$2, "BAR", "", "Open", $O$4, -$A137, $O$6,$O$10,,$O$8,$O$12) -> 4107 | D137: =RTD("cqg.rtd",,"StudyData", $O$2, "BAR", "", "High", $O$4, -$A137, $O$6,$O$10,,$O$8,$O$12) -> 4117.25 | E137: =RTD("cqg.rtd",,"StudyData", $O$2, "BAR", "", "Low", $O$4, -$A137, $O$6,$O$10,,$O$8,$O$12) -> 4074.25 | F137: =RTD("cqg.rtd",,"StudyData", $O$2, "BAR", "", "Close", $O$4, -$A137, $O$6,$O$10,,$O$8,$O$12) -> 4095 | G137: =RTD("cqg.rtd",,"StudyData",$O$2, "ImpVol",, "MIVClose",$O$4,-A137,$O$6,$O$10,,$O$8,$O$12) -> 18.255
A138: 136 | B138: =RTD("cqg.rtd",,"StudyData", $O$2, "BAR", "", "Time", $O$4,-$A138,$O$6,$O$10, "","False","T") -> 2023-03-27 | C138: =RTD("cqg.rtd",,"StudyData", $O$2, "BAR", "", "Open", $O$4, -$A138, $O$6,$O$10,,$O$8,$O$12) -> 4101.5 | D138: =RTD("cqg.rtd",,"StudyData", $O$2, "BAR", "", "High", $O$4, -$A138, $O$6,$O$10,,$O$8,$O$12) -> 4127.75 | E138: =RTD("cqg.rtd",,"StudyData", $O$2, "BAR", "", "Low", $O$4, -$A138, $O$6,$O$10,,$O$8,$O$12) -> 4091 | F138: =RTD("cqg.rtd",,"StudyData", $O$2, "BAR", "", "Close", $O$4, -$A138, $O$6,$O$10,,$O$8,$O$12) -> 4100.75 | G138: =RTD("cqg.rtd",,"StudyData",$O$2, "ImpVol",, "MIVClose",$O$4,-A138,$O$6,$O$10,,$O$8,$O$12) -> 18.585
A139: 137 | B139: =RTD("cqg.rtd",,"StudyData", $O$2, "BAR", "", "Time", $O$4,-$A139,$O$6,$O$10, "","False","T") -> 2023-03-24 | C139: =RTD("cqg.rtd",,"StudyData", $O$2, "BAR", "", "Open", $O$4, -$A139, $O$6,$O$10,,$O$8,$O$12) -> 4082.25 | D139: =RTD("cqg.rtd",,"StudyData", $O$2, "BAR", "", "High", $O$4, -$A139, $O$6,$O$10,,$O$8,$O$12) -> 4104.25 | E139: =RTD("cqg.rtd",,"StudyData", $O$2, "BAR", "", "Low", $O$4, -$A139, $O$6,$O$10,,$O$8,$O$12) -> 4030.5 | F139: =RTD("cqg.rtd",,"StudyData", $O$2, "BAR", "", "Close", $O$4, -$A139, $O$6,$O$10,,$O$8,$O$12) -> 4094.75 | G139: =RTD("cqg.rtd",,"StudyData",$O$2, "ImpVol",, "MIVClose",$O$4,-A139,$O$6,$O$10,,$O$8,$O$12) -> 19.415
A140: 138 | B140: =RTD("cqg.rtd",,"StudyData", $O$2, "BAR", "", "Time", $O$4,-$A140,$O$6,$O$10, "","False","T") -> 2023-03-23 | C140: =RTD("cqg.rtd",,"StudyData", $O$2, "BAR", "", "Open", $O$4, -$A140, $O$6,$O$10,,$O$8,$O$12) -> 4066.25 | D140: =RTD("cqg.rtd",,"StudyData", $O$2, "BAR", "", "High", $O$4, -$A140, $O$6,$O$10,,$O$8,$O$12) -> 4133 | E140: =RTD("cqg.rtd",,"StudyData", $O$2, "BAR", "", "Low", $O$4, -$A140, $O$6,$O$10,,$O$8,$O$12) -> 4042 | F140: =RTD("cqg.rtd",,"StudyData", $O$2, "BAR", "", "Close", $O$4, -$A140, $O$6,$O$10,,$O$8,$O$12) -> 4071.5 | G140: =RTD("cqg.rtd",,"StudyData",$O$2, "ImpVol",, "MIVClose",$O$4,-A140,$O$6,$O$10,,$O$8,$O$12) -> 20.07
A141: 139 | B141: =RTD("cqg.rtd",,"StudyData", $O$2, "BAR", "", "Time", $O$4,-$A141,$O$6,$O$10, "","False","T") -> 2023-03-22 | C141: =RTD("cqg.rtd",,"StudyData", $O$2, "BAR", "", "Open", $O$4, -$A141, $O$6,$O$10,,$O$8,$O$12) -> 4132.25 | D141: =RTD("cqg.rtd",,"StudyData", $O$2, "BAR", "", "High", $O$4, -$A141, $O$6,$O$10,,$O$8,$O$12) -> 4167.25 | E141: =RTD("cqg.rtd",,"StudyData", $O$2, "BAR", "", "Low", $O$4, -$A141, $O$6,$O$10,,$O$8,$O$12) -> 4059.75 | F141: =RTD("cqg.rtd",,"StudyData", $O$2, "BAR", "", "Close", $O$4, -$A141, $O$6,$O$10,,$O$8,$O$12) -> 4064 | G141: =RTD("cqg.rtd",,"StudyData",$O$2, "ImpVol",, "MIVClose",$O$4,-A141,$O$6,$O$10,,$O$8,$O$12) -> 19.785
A142: 140 | B142: =RTD("cqg.rtd",,"StudyData", $O$2, "BAR", "", "Time", $O$4,-$A142,$O$6,$O$10, "","False","T") -> 2023-03-21 | C142: =RTD("cqg.rtd",,"StudyData", $O$2, "BAR", "", "Open", $O$4, -$A142, $O$6,$O$10,,$O$8,$O$12) -> 4080 | D142: =RTD("cqg.rtd",,"StudyData", $O$2, "BAR", "", "High", $O$4, -$A142, $O$6,$O$10,,$O$8,$O$12) -> 4136.75 | E142: =RTD("cqg.rtd",,"StudyData", $O$2, "BAR", "", "Low", $O$4, -$A142, $O$6,$O$10,,$O$8,$O$12) -> 4075.25 | F142: =RTD("cqg.rtd",,"StudyData", $O$2, "BAR", "", "Close", $O$4, -$A142, $O$6,$O$10,,$O$8,$O$12) -> 4129.25 | G142: =RTD("cqg.rtd",,"StudyData",$O$2, "ImpVol",, "MIVClose",$O$4,-A142,$O$6,$O$10,,$O$8,$O$12) -> 18.77
A143: 141 | B143: =RTD("cqg.rtd",,"StudyData", $O$2, "BAR", "", "Time", $O$4,-$A143,$O$6,$O$10, "","False","T") -> 2023-03-20 | C143: =RTD("cqg.rtd",,"StudyData", $O$2, "BAR", "", "Open", $O$4, -$A143, $O$6,$O$10,,$O$8,$O$12) -> 4057.25 | D143: =RTD("cqg.rtd",,"StudyData", $O$2, "BAR", "", "High", $O$4, -$A143, $O$6,$O$10,,$O$8,$O$12) -> 4083 | E143: =RTD("cqg.rtd",,"StudyData", $O$2, "BAR", "", "Low", $O$4, -$A143, $O$6,$O$10,,$O$8,$O$12) -> 3990.75 | F143: =RTD("cqg.rtd",,"StudyData", $O$2, "BAR", "", "Close", $O$4, -$A143, $O$6,$O$10,,$O$8,$O$12) -> 4076.5 | G143: =RTD("cqg.rtd",,"StudyData",$O$2, "ImpVol",, "MIVClose",$O$4,-A143,$O$6,$O$10,,$O$8,$O$12) -> 20.13
A144: 142 | B144: =RTD("cqg.rtd",,"StudyData", $O$2, "BAR", "", "Time", $O$4,-$A144,$O$6,$O$10, "","False","T") -> 2023-03-17 | C144: =RTD("cqg.rtd",,"StudyData", $O$2, "BAR", "", "Open", $O$4, -$A144, $O$6,$O$10,,$O$8,$O$12) -> 4088.5 | D144: =RTD("cqg.rtd",,"StudyData", $O$2, "BAR", "", "High", $O$4, -$A144, $O$6,$O$10,,$O$8,$O$12) -> 4102.75 | E144: =RTD("cqg.rtd",,"StudyData", $O$2, "BAR", "", "Low", $O$4, -$A144, $O$6,$O$10,,$O$8,$O$12) -> 4026 | F144: =RTD("cqg.rtd",,"StudyData", $O$2, "BAR", "", "Close", $O$4, -$A144, $O$6,$O$10,,$O$8,$O$12) -> 4040.5 | G144: =RTD("cqg.rtd",,"StudyData",$O$2, "ImpVol",, "MIVClose",$O$4,-A144,$O$6,$O$10,,$O$8,$O$12) -> 21.365
A145: 143 | B145: =RTD("cqg.rtd",,"StudyData", $O$2, "BAR", "", "Time", $O$4,-$A145,$O$6,$O$10, "","False","T") -> 2023-03-16 | C145: =RTD("cqg.rtd",,"StudyData", $O$2, "BAR", "", "Open", $O$4, -$A145, $O$6,$O$10,,$O$8,$O$12) -> 4018.25 | D145: =RTD("cqg.rtd",,"StudyData", $O$2, "BAR", "", "High", $O$4, -$A145, $O$6,$O$10,,$O$8,$O$12) -> 4093.5 | E145: =RTD("cqg.rtd",,"StudyData", $O$2, "BAR", "", "Low", $O$4, -$A145, $O$6,$O$10,,$O$8,$O$12) -> 3988.5 | F145: =RTD("cqg.rtd",,"StudyData", $O$2, "BAR", "", "Close", $O$4, -$A145, $O$6,$O$10,,$O$8,$O$12) -> 4088 | G145: =RTD("cqg.rtd",,"StudyData",$O$2, "ImpVol",, "MIVClose",$O$4,-A145,$O$6,$O$10,,$O$8,$O$12) -> 19.4
A146: 144 | B146: =RTD("cqg.rtd",,"StudyData", $O$2, "BAR", "", "Time", $O$4,-$A146,$O$6,$O$10, "","False","T") -> 2023-03-15 | C146: =RTD("cqg.rtd",,"StudyData", $O$2, "BAR", "", "Open", $O$4, -$A146, $O$6,$O$10,,$O$8,$O$12) -> 4047.25 | D146: =RTD("cqg.rtd",,"StudyData", $O$2, "BAR", "", "High", $O$4, -$A146, $O$6,$O$10,,$O$8,$O$12) -> 4057.5 | E146: =RTD("cqg.rtd",,"StudyData", $O$2, "BAR", "", "Low", $O$4, -$A146, $O$6,$O$10,,$O$8,$O$12) -> 3958.5 | F146: =RTD("cqg.rtd",,"StudyData", $O$2, "BAR", "", "Close", $O$4, -$A146, $O$6,$O$10,,$O$8,$O$12) -> 4018.5 | G146: =RTD("cqg.rtd",,"StudyData",$O$2, "ImpVol",, "MIVClose",$O$4,-A146,$O$6,$O$10,,$O$8,$O$12) -> 21.045
A147: 145 | B147: =RTD("cqg.rtd",,"StudyData", $O$2, "BAR", "", "Time", $O$4,-$A147,$O$6,$O$10, "","False","T") -> 2023-03-14 | C147: =RTD("cqg.rtd",,"StudyData", $O$2, "BAR", "", "Open", $O$4, -$A147, $O$6,$O$10,,$O$8,$O$12) -> 3990.75 | D147: =RTD("cqg.rtd",,"StudyData", $O$2, "BAR", "", "High", $O$4, -$A147, $O$6,$O$10,,$O$8,$O$12) -> 4066 | E147: =RTD("cqg.rtd",,"StudyData", $O$2, "BAR", "", "Low", $O$4, -$A147, $O$6,$O$10,,$O$8,$O$12) -> 3978.5 | F147: =RTD("cqg.rtd",,"StudyData", $O$2, "BAR", "", "Close", $O$4, -$A147, $O$6,$O$10,,$O$8,$O$12) -> 4047.75 | G147: =RTD("cqg.rtd",,"StudyData",$O$2, "ImpVol",, "MIVClose",$O$4,-A147,$O$6,$O$10,,$O$8,$O$12) -> 19.76
A148: 146 | B148: =RTD("cqg.rtd",,"StudyData", $O$2, "BAR", "", "Time", $O$4,-$A148,$O$6,$O$10, "","False","T") -> 2023-03-13 | C148: =RTD("cqg.rtd",,"StudyData", $O$2, "BAR", "", "Open", $O$4, -$A148, $O$6,$O$10,,$O$8,$O$12) -> 4014 | D148: =RTD("cqg.rtd",,"StudyData", $O$2, "BAR", "", "High", $O$4, -$A148, $O$6,$O$10,,$O$8,$O$12) -> 4065 | E148: =RTD("cqg.rtd",,"StudyData", $O$2, "BAR", "", "Low", $O$4, -$A148, $O$6,$O$10,,$O$8,$O$12) -> 3932.75 | F148: =RTD("cqg.rtd",,"StudyData", $O$2, "BAR", "", "Close", $O$4, -$A148, $O$6,$O$10,,$O$8,$O$12) -> 3982.25 | G148: =RTD("cqg.rtd",,"StudyData",$O$2, "ImpVol",, "MIVClose",$O$4,-A148,$O$6,$O$10,,$O$8,$O$12) -> 21.135
A149: 147 | B149: =RTD("cqg.rtd",,"StudyData", $O$2, "BAR", "", "Time", $O$4,-$A149,$O$6,$O$10, "","False","T") -> 2023-03-10 | C149: =RTD("cqg.rtd",,"StudyData", $O$2, "BAR", "", "Open", $O$4, -$A149, $O$6,$O$10,,$O$8,$O$12) -> 4048.5 | D149: =RTD("cqg.rtd",,"StudyData", $O$2, "BAR", "", "High", $O$4, -$A149, $O$6,$O$10,,$O$8,$O$12) -> 4071.75 | E149: =RTD("cqg.rtd",,"StudyData", $O$2, "BAR", "", "Low", $O$4, -$A149, $O$6,$O$10,,$O$8,$O$12) -> 3974.5 | F149: =RTD("cqg.rtd",,"StudyData", $O$2, "BAR", "", "Close", $O$4, -$A149, $O$6,$O$10,,$O$8,$O$12) -> 3991 | G149: =RTD("cqg.rtd",,"StudyData",$O$2, "ImpVol",, "MIVClose",$O$4,-A149,$O$6,$O$10,,$O$8,$O$12) -> 20.435
A150: 148 | B150: =RTD("cqg.rtd",,"StudyData", $O$2, "BAR", "", "Time", $O$4,-$A150,$O$6,$O$10, "","False","T") -> 2023-03-09 | C150: =RTD("cqg.rtd",,"StudyData", $O$2, "BAR", "", "Open", $O$4, -$A150, $O$6,$O$10,,$O$8,$O$12) -> 4126.75 | D150: =RTD("cqg.rtd",,"StudyData", $O$2, "BAR", "", "High", $O$4, -$A150, $O$6,$O$10,,$O$8,$O$12) -> 4149.5 | E150: =RTD("cqg.rtd",,"StudyData", $O$2, "BAR", "", "Low", $O$4, -$A150, $O$6,$O$10,,$O$8,$O$12) -> 4039.25 | F150: =RTD("cqg.rtd",,"StudyData", $O$2, "BAR", "", "Close", $O$4, -$A150, $O$6,$O$10,,$O$8,$O$12) -> 4049.75 | G150: =RTD("cqg.rtd",,"StudyData",$O$2, "ImpVol",, "MIVClose",$O$4,-A150,$O$6,$O$10,,$O$8,$O$12) -> 19.32
A151: 149 | B151: =RTD("cqg.rtd",,"StudyData", $O$2, "BAR", "", "Time", $O$4,-$A151,$O$6,$O$10, "","False","T") -> 2023-03-08 | C151: =RTD("cqg.rtd",,"StudyData", $O$2, "BAR", "", "Open", $O$4, -$A151, $O$6,$O$10,,$O$8,$O$12) -> 4119.75 | D151: =RTD("cqg.rtd",,"StudyData", $O$2, "BAR", "", "High", $O$4, -$A151, $O$6,$O$10,,$O$8,$O$12) -> 4133 | E151: =RTD("cqg.rtd",,"StudyData", $O$2, "BAR", "", "Low", $O$4, -$A151, $O$6,$O$10,,$O$8,$O$12) -> 4101.25 | F151: =RTD("cqg.rtd",,"StudyData", $O$2, "BAR", "", "Close", $O$4, -$A151, $O$6,$O$10,,$O$8,$O$12) -> 4124.75 | G151: =RTD("cqg.rtd",,"StudyData",$O$2, "ImpVol",, "MIVClose",$O$4,-A151,$O$6,$O$10,,$O$8,$O$12) -> 17.36
A152: 150 | B152: =RTD("cqg.rtd",,"StudyData", $O$2, "BAR", "", "Time", $O$4,-$A152,$O$6,$O$10, "","False","T") -> 2023-03-07 | C152: =RTD("cqg.rtd",,"StudyData", $O$2, "BAR", "", "Open", $O$4, -$A152, $O$6,$O$10,,$O$8,$O$12) -> 4183.5 | D152: =RTD("cqg.rtd",,"StudyData", $O$2, "BAR", "", "High", $O$4, -$A152, $O$6,$O$10,,$O$8,$O$12) -> 4194.25 | E152: =RTD("cqg.rtd",,"StudyData", $O$2, "BAR", "", "Low", $O$4, -$A152, $O$6,$O$10,,$O$8,$O$12) -> 4112.25 | F152: =RTD("cqg.rtd",,"StudyData", $O$2, "BAR", "", "Close", $O$4, -$A152, $O$6,$O$10,,$O$8,$O$12) -> 4119.5 | G152: =RTD("cqg.rtd",,"StudyData",$O$2, "ImpVol",, "MIVClose",$O$4,-A152,$O$6,$O$10,,$O$8,$O$12) -> 17.755
A153: 151 | B153: =RTD("cqg.rtd",,"StudyData", $O$2, "BAR", "", "Time", $O$4,-$A153,$O$6,$O$10, "","False","T") -> 2023-03-06 | C153: =RTD("cqg.rtd",,"StudyData", $O$2, "BAR", "", "Open", $O$4, -$A153, $O$6,$O$10,,$O$8,$O$12) -> 4179 | D153: =RTD("cqg.rtd",,"StudyData", $O$2, "BAR", "", "High", $O$4, -$A153, $O$6,$O$10,,$O$8,$O$12) -> 4212.25 | E153: =RTD("cqg.rtd",,"StudyData", $O$2, "BAR", "", "Low", $O$4, -$A153, $O$6,$O$10,,$O$8,$O$12) -> 4171.5 | F153: =RTD("cqg.rtd",,"StudyData", $O$2, "BAR", "", "Close", $O$4, -$A153, $O$6,$O$10,,$O$8,$O$12) -> 4182.25 | G153: =RTD("cqg.rtd",,"StudyData",$O$2, "ImpVol",, "MIVClose",$O$4,-A153,$O$6,$O$10,,$O$8,$O$12) -> 17.125
A154: 152 | B154: =RTD("cqg.rtd",,"StudyData", $O$2, "BAR", "", "Time", $O$4,-$A154,$O$6,$O$10, "","False","T") -> 2023-03-03 | C154: =RTD("cqg.rtd",,"StudyData", $O$2, "BAR", "", "Open", $O$4, -$A154, $O$6,$O$10,,$O$8,$O$12) -> 4112.75 | D154: =RTD("cqg.rtd",,"StudyData", $O$2, "BAR", "", "High", $O$4, -$A154, $O$6,$O$10,,$O$8,$O$12) -> 4182.75 | E154: =RTD("cqg.rtd",,"StudyData", $O$2, "BAR", "", "Low", $O$4, -$A154, $O$6,$O$10,,$O$8,$O$12) -> 4103.75 | F154: =RTD("cqg.rtd",,"StudyData", $O$2, "BAR", "", "Close", $O$4, -$A154, $O$6,$O$10,,$O$8,$O$12) -> 4179.5 | G154: =RTD("cqg.rtd",,"StudyData",$O$2, "ImpVol",, "MIVClose",$O$4,-A154,$O$6,$O$10,,$O$8,$O$12) -> 17.015
A155: 153 | B155: =RTD("cqg.rtd",,"StudyData", $O$2, "BAR", "", "Time", $O$4,-$A155,$O$6,$O$10, "","False","T") -> 2023-03-02 | C155: =RTD("cqg.rtd",,"StudyData", $O$2, "BAR", "", "Open", $O$4, -$A155, $O$6,$O$10,,$O$8,$O$12) -> 4089.5 | D155: =RTD("cqg.rtd",,"StudyData", $O$2, "BAR", "", "High", $O$4, -$A155, $O$6,$O$10,,$O$8,$O$12) -> 4125 | E155: =RTD("cqg.rtd",,"StudyData", $O$2, "BAR", "", "Low", $O$4, -$A155, $O$6,$O$10,,$O$8,$O$12) -> 4054.75 | F155: =RTD("cqg.rtd",,"StudyData", $O$2, "BAR", "", "Close", $O$4, -$A155, $O$6,$O$10,,$O$8,$O$12) -> 4114.5 | G155: =RTD("cqg.rtd",,"StudyData",$O$2, "ImpVol",, "MIVClose",$O$4,-A155,$O$6,$O$10,,$O$8,$O$12) -> 17.995
A156: 154 | B156: =RTD("cqg.rtd",,"StudyData", $O$2, "BAR", "", "Time", $O$4,-$A156,$O$6,$O$10, "","False","T") -> 2023-03-01 | C156: =RTD("cqg.rtd",,"StudyData", $O$2, "BAR", "", "Open", $O$4, -$A156, $O$6,$O$10,,$O$8,$O$12) -> 4098.25 | D156: =RTD("cqg.rtd",,"StudyData", $O$2, "BAR", "", "High", $O$4, -$A156, $O$6,$O$10,,$O$8,$O$12) -> 4120.75 | E156: =RTD("cqg.rtd",,"StudyData", $O$2, "BAR", "", "Low", $O$4, -$A156, $O$6,$O$10,,$O$8,$O$12) -> 4072.75 | F156: =RTD("cqg.rtd",,"StudyData", $O$2, "BAR", "", "Close", $O$4, -$A156, $O$6,$O$10,,$O$8,$O$12) -> 4086.25 | G156: =RTD("cqg.rtd",,"StudyData",$O$2, "ImpVol",, "MIVClose",$O$4,-A156,$O$6,$O$10,,$O$8,$O$12) -> 18.53
A157: 155 | B157: =RTD("cqg.rtd",,"StudyData", $O$2, "BAR", "", "Time", $O$4,-$A157,$O$6,$O$10, "","False","T") -> 2023-02-28 | C157: =RTD("cqg.rtd",,"StudyData", $O$2, "BAR", "", "Open", $O$4, -$A157, $O$6,$O$10,,$O$8,$O$12) -> 4121.25 | D157: =RTD("cqg.rtd",,"StudyData", $O$2, "BAR", "", "High", $O$4, -$A157, $O$6,$O$10,,$O$8,$O$12) -> 4133.5 | E157: =RTD("cqg.rtd",,"StudyData", $O$2, "BAR", "", "Low", $O$4, -$A157, $O$6,$O$10,,$O$8,$O$12) -> 4094.75 | F157: =RTD("cqg.rtd",,"StudyData", $O$2, "BAR", "", "Close", $O$4, -$A157, $O$6,$O$10,,$O$8,$O$12) -> 4105.25 | G157: =RTD("cqg.rtd",,"StudyData",$O$2, "ImpVol",, "MIVClose",$O$4,-A157,$O$6,$O$10,,$O$8,$O$12) -> 18.115
A158: 156 | B158: =RTD("cqg.rtd",,"StudyData", $O$2, "BAR", "", "Time", $O$4,-$A158,$O$6,$O$10, "","False","T") -> 2023-02-27 | C158: =RTD("cqg.rtd",,"StudyData", $O$2, "BAR", "", "Open", $O$4, -$A158, $O$6,$O$10,,$O$8,$O$12) -> 4106.25 | D158: =RTD("cqg.rtd",,"StudyData", $O$2, "BAR", "", "High", $O$4, -$A158, $O$6,$O$10,,$O$8,$O$12) -> 4154.5 | E158: =RTD("cqg.rtd",,"StudyData", $O$2, "BAR", "", "Low", $O$4, -$A158, $O$6,$O$10,,$O$8,$O$12) -> 4102.75 | F158: =RTD("cqg.rtd",,"StudyData", $O$2, "BAR", "", "Close", $O$4, -$A158, $O$6,$O$10,,$O$8,$O$12) -> 4117.75 | G158: =RTD("cqg.rtd",,"StudyData",$O$2, "ImpVol",, "MIVClose",$O$4,-A158,$O$6,$O$10,,$O$8,$O$12) -> 18.08
A159: 157 | B159: =RTD("cqg.rtd",,"StudyData", $O$2, "BAR", "", "Time", $O$4,-$A159,$O$6,$O$10, "","False","T") -> 2023-02-24 | C159: =RTD("cqg.rtd",,"StudyData", $O$2, "BAR", "", "Open", $O$4, -$A159, $O$6,$O$10,,$O$8,$O$12) -> 4145 | D159: =RTD("cqg.rtd",,"StudyData", $O$2, "BAR", "", "High", $O$4, -$A159, $O$6,$O$10,,$O$8,$O$12) -> 4153 | E159: =RTD("cqg.rtd",,"StudyData", $O$2, "BAR", "", "Low", $O$4, -$A159, $O$6,$O$10,,$O$8,$O$12) -> 4077.25 | F159: =RTD("cqg.rtd",,"StudyData", $O$2, "BAR", "", "Close", $O$4, -$A159, $O$6,$O$10,,$O$8,$O$12) -> 4105.5 | G159: =RTD("cqg.rtd",,"StudyData",$O$2, "ImpVol",, "MIVClose",$O$4,-A159,$O$6,$O$10,,$O$8,$O$12) -> 18.85
A160: 158 | B160: =RTD("cqg.rtd",,"StudyData", $O$2, "BAR", "", "Time", $O$4,-$A160,$O$6,$O$10, "","False","T") -> 2023-02-23 | C160: =RTD("cqg.rtd",,"StudyData", $O$2, "BAR", "", "Open", $O$4, -$A160, $O$6,$O$10,,$O$8,$O$12) -> 4139.75 | D160: =RTD("cqg.rtd",,"StudyData", $O$2, "BAR", "", "High", $O$4, -$A160, $O$6,$O$10,,$O$8,$O$12) -> 4164 | E160: =RTD("cqg.rtd",,"StudyData", $O$2, "BAR", "", "Low", $O$4, -$A160, $O$6,$O$10,,$O$8,$O$12) -> 4104 | F160: =RTD("cqg.rtd",,"StudyData", $O$2, "BAR", "", "Close", $O$4, -$A160, $O$6,$O$10,,$O$8,$O$12) -> 4148.5 | G160: =RTD("cqg.rtd",,"StudyData",$O$2, "ImpVol",, "MIVClose",$O$4,-A160,$O$6,$O$10,,$O$8,$O$12) -> 18.105
A161: 159 | B161: =RTD("cqg.rtd",,"StudyData", $O$2, "BAR", "", "Time", $O$4,-$A161,$O$6,$O$10, "","False","T") -> 2023-02-22 | C161: =RTD("cqg.rtd",,"StudyData", $O$2, "BAR", "", "Open", $O$4, -$A161, $O$6,$O$10,,$O$8,$O$12) -> 4137.25 | D161: =RTD("cqg.rtd",,"StudyData", $O$2, "BAR", "", "High", $O$4, -$A161, $O$6,$O$10,,$O$8,$O$12) -> 4154.75 | E161: =RTD("cqg.rtd",,"StudyData", $O$2, "BAR", "", "Low", $O$4, -$A161, $O$6,$O$10,,$O$8,$O$12) -> 4113.5 | F161: =RTD("cqg.rtd",,"StudyData", $O$2, "BAR", "", "Close", $O$4, -$A161, $O$6,$O$10,,$O$8,$O$12) -> 4128.75 | G161: =RTD("cqg.rtd",,"StudyData",$O$2, "ImpVol",, "MIVClose",$O$4,-A161,$O$6,$O$10,,$O$8,$O$12) -> 18.855
A162: 160 | B162: =RTD("cqg.rtd",,"StudyData", $O$2, "BAR", "", "Time", $O$4,-$A162,$O$6,$O$10, "","False","T") -> 2023-02-21 | C162: =RTD("cqg.rtd",,"StudyData", $O$2, "BAR", "", "Open", $O$4, -$A162, $O$6,$O$10,,$O$8,$O$12) -> 4212.75 | D162: =RTD("cqg.rtd",,"StudyData", $O$2, "BAR", "", "High", $O$4, -$A162, $O$6,$O$10,,$O$8,$O$12) -> 4219 | E162: =RTD("cqg.rtd",,"StudyData", $O$2, "BAR", "", "Low", $O$4, -$A162, $O$6,$O$10,,$O$8,$O$12) -> 4131.75 | F162: =RTD("cqg.rtd",,"StudyData", $O$2, "BAR", "", "Close", $O$4, -$A162, $O$6,$O$10,,$O$8,$O$12) -> 4135.5 | G162: =RTD("cqg.rtd",,"StudyData",$O$2, "ImpVol",, "MIVClose",$O$4,-A162,$O$6,$O$10,,$O$8,$O$12) -> 19.285
A163: 161 | B163: =RTD("cqg.rtd",,"StudyData", $O$2, "BAR", "", "Time", $O$4,-$A163,$O$6,$O$10, "","False","T") -> 2023-02-17 | C163: =RTD("cqg.rtd",,"StudyData", $O$2, "BAR", "", "Open", $O$4, -$A163, $O$6,$O$10,,$O$8,$O$12) -> 4225.25 | D163: =RTD("cqg.rtd",,"StudyData", $O$2, "BAR", "", "High", $O$4, -$A163, $O$6,$O$10,,$O$8,$O$12) -> 4225.75 | E163: =RTD("cqg.rtd",,"StudyData", $O$2, "BAR", "", "Low", $O$4, -$A163, $O$6,$O$10,,$O$8,$O$12) -> 4185.5 | F163: =RTD("cqg.rtd",,"StudyData", $O$2, "BAR", "", "Close", $O$4, -$A163, $O$6,$O$10,,$O$8,$O$12) -> 4217.25 | G163: =RTD("cqg.rtd",,"StudyData",$O$2, "ImpVol",, "MIVClose",$O$4,-A163,$O$6,$O$10,,$O$8,$O$12) -> 17.375
A164: 162 | B164: =RTD("cqg.rtd",,"StudyData", $O$2, "BAR", "", "Time", $O$4,-$A164,$O$6,$O$10, "","False","T") -> 2023-02-16 | C164: =RTD("cqg.rtd",,"StudyData", $O$2, "BAR", "", "Open", $O$4, -$A164, $O$6,$O$10,,$O$8,$O$12) -> 4288.75 | D164: =RTD("cqg.rtd",,"StudyData", $O$2, "BAR", "", "High", $O$4, -$A164, $O$6,$O$10,,$O$8,$O$12) -> 4298.25 | E164: =RTD("cqg.rtd",,"StudyData", $O$2, "BAR", "", "Low", $O$4, -$A164, $O$6,$O$10,,$O$8,$O$12) -> 4224.75 | F164: =RTD("cqg.rtd",,"StudyData", $O$2, "BAR", "", "Close", $O$4, -$A164, $O$6,$O$10,,$O$8,$O$12) -> 4229.5 | G164: =RTD("cqg.rtd",,"StudyData",$O$2, "ImpVol",, "MIVClose",$O$4,-A164,$O$6,$O$10,,$O$8,$O$12) -> 17.4
A165: 163 | B165: =RTD("cqg.rtd",,"StudyData", $O$2, "BAR", "", "Time", $O$4,-$A165,$O$6,$O$10, "","False","T") -> 2023-02-15 | C165: =RTD("cqg.rtd",,"StudyData", $O$2, "BAR", "", "Open", $O$4, -$A165, $O$6,$O$10,,$O$8,$O$12) -> 4271 | D165: =RTD("cqg.rtd",,"StudyData", $O$2, "BAR", "", "High", $O$4, -$A165, $O$6,$O$10,,$O$8,$O$12) -> 4291.5 | E165: =RTD("cqg.rtd",,"StudyData", $O$2, "BAR", "", "Low", $O$4, -$A165, $O$6,$O$10,,$O$8,$O$12) -> 4242.75 | F165: =RTD("cqg.rtd",,"StudyData", $O$2, "BAR", "", "Close", $O$4, -$A165, $O$6,$O$10,,$O$8,$O$12) -> 4288 | G165: =RTD("cqg.rtd",,"StudyData",$O$2, "ImpVol",, "MIVClose",$O$4,-A165,$O$6,$O$10,,$O$8,$O$12) -> 15.7
A166: 164 | B166: =RTD("cqg.rtd",,"StudyData", $O$2, "BAR", "", "Time", $O$4,-$A166,$O$6,$O$10, "","False","T") -> 2023-02-14 | C166: =RTD("cqg.rtd",,"StudyData", $O$2, "BAR", "", "Open", $O$4, -$A166, $O$6,$O$10,,$O$8,$O$12) -> 4279.5 | D166: =RTD("cqg.rtd",,"StudyData", $O$2, "BAR", "", "High", $O$4, -$A166, $O$6,$O$10,,$O$8,$O$12) -> 4316.25 | E166: =RTD("cqg.rtd",,"StudyData", $O$2, "BAR", "", "Low", $O$4, -$A166, $O$6,$O$10,,$O$8,$O$12) -> 4233.5 | F166: =RTD("cqg.rtd",,"StudyData", $O$2, "BAR", "", "Close", $O$4, -$A166, $O$6,$O$10,,$O$8,$O$12) -> 4275.25 | G166: =RTD("cqg.rtd",,"StudyData",$O$2, "ImpVol",, "MIVClose",$O$4,-A166,$O$6,$O$10,,$O$8,$O$12) -> 16.605
A167: 165 | B167: =RTD("cqg.rtd",,"StudyData", $O$2, "BAR", "", "Time", $O$4,-$A167,$O$6,$O$10, "","False","T") -> 2023-02-13 | C167: =RTD("cqg.rtd",,"StudyData", $O$2, "BAR", "", "Open", $O$4, -$A167, $O$6,$O$10,,$O$8,$O$12) -> 4234.75 | D167: =RTD("cqg.rtd",,"StudyData", $O$2, "BAR", "", "High", $O$4, -$A167, $O$6,$O$10,,$O$8,$O$12) -> 4280.5 | E167: =RTD("cqg.rtd",,"StudyData", $O$2, "BAR", "", "Low", $O$4, -$A167, $O$6,$O$10,,$O$8,$O$12) -> 4208.5 | F167: =RTD("cqg.rtd",,"StudyData", $O$2, "BAR", "", "Close", $O$4, -$A167, $O$6,$O$10,,$O$8,$O$12) -> 4277 | G167: =RTD("cqg.rtd",,"StudyData",$O$2, "ImpVol",, "MIVClose",$O$4,-A167,$O$6,$O$10,,$O$8,$O$12) -> 17.855
A168: 166 | B168: =RTD("cqg.rtd",,"StudyData", $O$2, "BAR", "", "Time", $O$4,-$A168,$O$6,$O$10, "","False","T") -> 2023-02-10 | C168: =RTD("cqg.rtd",,"StudyData", $O$2, "BAR", "", "Open", $O$4, -$A168, $O$6,$O$10,,$O$8,$O$12) -> 4227.75 | D168: =RTD("cqg.rtd",,"StudyData", $O$2, "BAR", "", "High", $O$4, -$A168, $O$6,$O$10,,$O$8,$O$12) -> 4234 | E168: =RTD("cqg.rtd",,"StudyData", $O$2, "BAR", "", "Low", $O$4, -$A168, $O$6,$O$10,,$O$8,$O$12) -> 4190.5 | F168: =RTD("cqg.rtd",,"StudyData", $O$2, "BAR", "", "Close", $O$4, -$A168, $O$6,$O$10,,$O$8,$O$12) -> 4229.5 | G168: =RTD("cqg.rtd",,"StudyData",$O$2, "ImpVol",, "MIVClose",$O$4,-A168,$O$6,$O$10,,$O$8,$O$12) -> 18.55
A169: 167 | B169: =RTD("cqg.rtd",,"StudyData", $O$2, "BAR", "", "Time", $O$4,-$A169,$O$6,$O$10, "","False","T") -> 2023-02-09 | C169: =RTD("cqg.rtd",,"StudyData", $O$2, "BAR", "", "Open", $O$4, -$A169, $O$6,$O$10,,$O$8,$O$12) -> 4262 | D169: =RTD("cqg.rtd",,"StudyData", $O$2, "BAR", "", "High", $O$4, -$A169, $O$6,$O$10,,$O$8,$O$12) -> 4300 | E169: =RTD("cqg.rtd",,"StudyData", $O$2, "BAR", "", "Low", $O$4, -$A169, $O$6,$O$10,,$O$8,$O$12) -> 4208 | F169: =RTD("cqg.rtd",,"StudyData", $O$2, "BAR", "", "Close", $O$4, -$A169, $O$6,$O$10,,$O$8,$O$12) -> 4221.5 | G169: =RTD("cqg.rtd",,"StudyData",$O$2, "ImpVol",, "MIVClose",$O$4,-A169,$O$6,$O$10,,$O$8,$O$12) -> 18.57
A170: 168 | B170: =RTD("cqg.rtd",,"StudyData", $O$2, "BAR", "", "Time", $O$4,-$A170,$O$6,$O$10, "","False","T") -> 2023-02-08 | C170: =RTD("cqg.rtd",,"StudyData", $O$2, "BAR", "", "Open", $O$4, -$A170, $O$6,$O$10,,$O$8,$O$12) -> 4297 | D170: =RTD("cqg.rtd",,"StudyData", $O$2, "BAR", "", "High", $O$4, -$A170, $O$6,$O$10,,$O$8,$O$12) -> 4309 | E170: =RTD("cqg.rtd",,"StudyData", $O$2, "BAR", "", "Low", $O$4, -$A170, $O$6,$O$10,,$O$8,$O$12) -> 4251 | F170: =RTD("cqg.rtd",,"StudyData", $O$2, "BAR", "", "Close", $O$4, -$A170, $O$6,$O$10,,$O$8,$O$12) -> 4260.25 | G170: =RTD("cqg.rtd",,"StudyData",$O$2, "ImpVol",, "MIVClose",$O$4,-A170,$O$6,$O$10,,$O$8,$O$12) -> 17.33
A171: 169 | B171: =RTD("cqg.rtd",,"StudyData", $O$2, "BAR", "", "Time", $O$4,-$A171,$O$6,$O$10, "","False","T") -> 2023-02-07 | C171: =RTD("cqg.rtd",,"StudyData", $O$2, "BAR", "", "Open", $O$4, -$A171, $O$6,$O$10,,$O$8,$O$12) -> 4253.25 | D171: =RTD("cqg.rtd",,"StudyData", $O$2, "BAR", "", "High", $O$4, -$A171, $O$6,$O$10,,$O$8,$O$12) -> 4318 | E171: =RTD("cqg.rtd",,"StudyData", $O$2, "BAR", "", "Low", $O$4, -$A171, $O$6,$O$10,,$O$8,$O$12) -> 4228 | F171: =RTD("cqg.rtd",,"StudyData", $O$2, "BAR", "", "Close", $O$4, -$A171, $O$6,$O$10,,$O$8,$O$12) -> 4305.5 | G171: =RTD("cqg.rtd",,"StudyData",$O$2, "ImpVol",, "MIVClose",$O$4,-A171,$O$6,$O$10,,$O$8,$O$12) -> 16.375
A172: 170 | B172: =RTD("cqg.rtd",,"StudyData", $O$2, "BAR", "", "Time", $O$4,-$A172,$O$6,$O$10, "","False","T") -> 2023-02-06 | C172: =RTD("cqg.rtd",,"StudyData", $O$2, "BAR", "", "Open", $O$4, -$A172, $O$6,$O$10,,$O$8,$O$12) -> 4264 | D172: =RTD("cqg.rtd",,"StudyData", $O$2, "BAR", "", "High", $O$4, -$A172, $O$6,$O$10,,$O$8,$O$12) -> 4272.75 | E172: =RTD("cqg.rtd",,"StudyData", $O$2, "BAR", "", "Low", $O$4, -$A172, $O$6,$O$10,,$O$8,$O$12) -> 4233.75 | F172: =RTD("cqg.rtd",,"StudyData", $O$2, "BAR", "", "Close", $O$4, -$A172, $O$6,$O$10,,$O$8,$O$12) -> 4253.25 | G172: =RTD("cqg.rtd",,"StudyData",$O$2, "ImpVol",, "MIVClose",$O$4,-A172,$O$6,$O$10,,$O$8,$O$12) -> 16.835
A173: 171 | B173: =RTD("cqg.rtd",,"StudyData", $O$2, "BAR", "", "Time", $O$4,-$A173,$O$6,$O$10, "","False","T") -> 2023-02-03 | C173: =RTD("cqg.rtd",,"StudyData", $O$2, "BAR", "", "Open", $O$4, -$A173, $O$6,$O$10,,$O$8,$O$12) -> 4305.75 | D173: =RTD("cqg.rtd",,"StudyData", $O$2, "BAR", "", "High", $O$4, -$A173, $O$6,$O$10,,$O$8,$O$12) -> 4323.75 | E173: =RTD("cqg.rtd",,"StudyData", $O$2, "BAR", "", "Low", $O$4, -$A173, $O$6,$O$10,,$O$8,$O$12) -> 4262.25 | F173: =RTD("cqg.rtd",,"StudyData", $O$2, "BAR", "", "Close", $O$4, -$A173, $O$6,$O$10,,$O$8,$O$12) -> 4277.5 | G173: =RTD("cqg.rtd",,"StudyData",$O$2, "ImpVol",, "MIVClose",$O$4,-A173,$O$6,$O$10,,$O$8,$O$12) -> 16.335
A174: 172 | B174: =RTD("cqg.rtd",,"StudyData", $O$2, "BAR", "", "Time", $O$4,-$A174,$O$6,$O$10, "","False","T") -> 2023-02-02 | C174: =RTD("cqg.rtd",,"StudyData", $O$2, "BAR", "", "Open", $O$4, -$A174, $O$6,$O$10,,$O$8,$O$12) -> 4275.25 | D174: =RTD("cqg.rtd",,"StudyData", $O$2, "BAR", "", "High", $O$4, -$A174, $O$6,$O$10,,$O$8,$O$12) -> 4338.25 | E174: =RTD("cqg.rtd",,"StudyData", $O$2, "BAR", "", "Low", $O$4, -$A174, $O$6,$O$10,,$O$8,$O$12) -> 4266.5 | F174: =RTD("cqg.rtd",,"StudyData", $O$2, "BAR", "", "Close", $O$4, -$A174, $O$6,$O$10,,$O$8,$O$12) -> 4321.25 | G174: =RTD("cqg.rtd",,"StudyData",$O$2, "ImpVol",, "MIVClose",$O$4,-A174,$O$6,$O$10,,$O$8,$O$12) -> 16.22
A175: 173 | B175: =RTD("cqg.rtd",,"StudyData", $O$2, "BAR", "", "Time", $O$4,-$A175,$O$6,$O$10, "","False","T") -> 2023-02-01 | C175: =RTD("cqg.rtd",,"StudyData", $O$2, "BAR", "", "Open", $O$4, -$A175, $O$6,$O$10,,$O$8,$O$12) -> 4215.5 | D175: =RTD("cqg.rtd",,"StudyData", $O$2, "BAR", "", "High", $O$4, -$A175, $O$6,$O$10,,$O$8,$O$12) -> 4293 | E175: =RTD("cqg.rtd",,"StudyData", $O$2, "BAR", "", "Low", $O$4, -$A175, $O$6,$O$10,,$O$8,$O$12) -> 4178.25 | F175: =RTD("cqg.rtd",,"StudyData", $O$2, "BAR", "", "Close", $O$4, -$A175, $O$6,$O$10,,$O$8,$O$12) -> 4262 | G175: =RTD("cqg.rtd",,"StudyData",$O$2, "ImpVol",, "MIVClose",$O$4,-A175,$O$6,$O$10,,$O$8,$O$12) -> 15.875
A176: 174 | B176: =RTD("cqg.rtd",,"StudyData", $O$2, "BAR", "", "Time", $O$4,-$A176,$O$6,$O$10, "","False","T") -> 2023-01-31 | C176: =RTD("cqg.rtd",,"StudyData", $O$2, "BAR", "", "Open", $O$4, -$A176, $O$6,$O$10,,$O$8,$O$12) -> 4169 | D176: =RTD("cqg.rtd",,"StudyData", $O$2, "BAR", "", "High", $O$4, -$A176, $O$6,$O$10,,$O$8,$O$12) -> 4221 | E176: =RTD("cqg.rtd",,"StudyData", $O$2, "BAR", "", "Low", $O$4, -$A176, $O$6,$O$10,,$O$8,$O$12) -> 4137.25 | F176: =RTD("cqg.rtd",,"StudyData", $O$2, "BAR", "", "Close", $O$4, -$A176, $O$6,$O$10,,$O$8,$O$12) -> 4219.75 | G176: =RTD("cqg.rtd",,"StudyData",$O$2, "ImpVol",, "MIVClose",$O$4,-A176,$O$6,$O$10,,$O$8,$O$12) -> 16.78
A177: 175 | B177: =RTD("cqg.rtd",,"StudyData", $O$2, "BAR", "", "Time", $O$4,-$A177,$O$6,$O$10, "","False","T") -> 2023-01-30 | C177: =RTD("cqg.rtd",,"StudyData", $O$2, "BAR", "", "Open", $O$4, -$A177, $O$6,$O$10,,$O$8,$O$12) -> 4206.75 | D177: =RTD("cqg.rtd",,"StudyData", $O$2, "BAR", "", "High", $O$4, -$A177, $O$6,$O$10,,$O$8,$O$12) -> 4215.75 | E177: =RTD("cqg.rtd",,"StudyData", $O$2, "BAR", "", "Low", $O$4, -$A177, $O$6,$O$10,,$O$8,$O$12) -> 4159.25 | F177: =RTD("cqg.rtd",,"StudyData", $O$2, "BAR", "", "Close", $O$4, -$A177, $O$6,$O$10,,$O$8,$O$12) -> 4162.25 | G177: =RTD("cqg.rtd",,"StudyData",$O$2, "ImpVol",, "MIVClose",$O$4,-A177,$O$6,$O$10,,$O$8,$O$12) -> 17.33
A178: 176 | B178: =RTD("cqg.rtd",,"StudyData", $O$2, "BAR", "", "Time", $O$4,-$A178,$O$6,$O$10, "","False","T") -> 2023-01-27 | C178: =RTD("cqg.rtd",,"StudyData", $O$2, "BAR", "", "Open", $O$4, -$A178, $O$6,$O$10,,$O$8,$O$12) -> 4194.75 | D178: =RTD("cqg.rtd",,"StudyData", $O$2, "BAR", "", "High", $O$4, -$A178, $O$6,$O$10,,$O$8,$O$12) -> 4239 | E178: =RTD("cqg.rtd",,"StudyData", $O$2, "BAR", "", "Low", $O$4, -$A178, $O$6,$O$10,,$O$8,$O$12) -> 4187 | F178: =RTD("cqg.rtd",,"StudyData", $O$2, "BAR", "", "Close", $O$4, -$A178, $O$6,$O$10,,$O$8,$O$12) -> 4214 | G178: =RTD("cqg.rtd",,"StudyData",$O$2, "ImpVol",, "MIVClose",$O$4,-A178,$O$6,$O$10,,$O$8,$O$12) -> 16.46
A179: 177 | B179: =RTD("cqg.rtd",,"StudyData", $O$2, "BAR", "", "Time", $O$4,-$A179,$O$6,$O$10, "","False","T") -> 2023-01-26 | C179: =RTD("cqg.rtd",,"StudyData", $O$2, "BAR", "", "Open", $O$4, -$A179, $O$6,$O$10,,$O$8,$O$12) -> 4160.75 | D179: =RTD("cqg.rtd",,"StudyData", $O$2, "BAR", "", "High", $O$4, -$A179, $O$6,$O$10,,$O$8,$O$12) -> 4206.75 | E179: =RTD("cqg.rtd",,"StudyData", $O$2, "BAR", "", "Low", $O$4, -$A179, $O$6,$O$10,,$O$8,$O$12) -> 4157 | F179: =RTD("cqg.rtd",,"StudyData", $O$2, "BAR", "", "Close", $O$4, -$A179, $O$6,$O$10,,$O$8,$O$12) -> 4205.25 | G179: =RTD("cqg.rtd",,"StudyData",$O$2, "ImpVol",, "MIVClose",$O$4,-A179,$O$6,$O$10,,$O$8,$O$12) -> 16.685
A180: 178 | B180: =RTD("cqg.rtd",,"StudyData", $O$2, "BAR", "", "Time", $O$4,-$A180,$O$6,$O$10, "","False","T") -> 2023-01-25 | C180: =RTD("cqg.rtd",,"StudyData", $O$2, "BAR", "", "Open", $O$4, -$A180, $O$6,$O$10,,$O$8,$O$12) -> 4168.75 | D180: =RTD("cqg.rtd",,"StudyData", $O$2, "BAR", "", "High", $O$4, -$A180, $O$6,$O$10,,$O$8,$O$12) -> 4170.25 | E180: =RTD("cqg.rtd",,"StudyData", $O$2, "BAR", "", "Low", $O$4, -$A180, $O$6,$O$10,,$O$8,$O$12) -> 4093 | F180: =RTD("cqg.rtd",,"StudyData", $O$2, "BAR", "", "Close", $O$4, -$A180, $O$6,$O$10,,$O$8,$O$12) -> 4161.75 | G180: =RTD("cqg.rtd",,"StudyData",$O$2, "ImpVol",, "MIVClose",$O$4,-A180,$O$6,$O$10,,$O$8,$O$12) -> 16.825
A181: 179 | B181: =RTD("cqg.rtd",,"StudyData", $O$2, "BAR", "", "Time", $O$4,-$A181,$O$6,$O$10, "","False","T") -> 2023-01-24 | C181: =RTD("cqg.rtd",,"StudyData", $O$2, "BAR", "", "Open", $O$4, -$A181, $O$6,$O$10,,$O$8,$O$12) -> 4166.25 | D181: =RTD("cqg.rtd",,"StudyData", $O$2, "BAR", "", "High", $O$4, -$A181, $O$6,$O$10,,$O$8,$O$12) -> 4177.25 | E181: =RTD("cqg.rtd",,"StudyData", $O$2, "BAR", "", "Low", $O$4, -$A181, $O$6,$O$10,,$O$8,$O$12) -> 4135 | F181: =RTD("cqg.rtd",,"StudyData", $O$2, "BAR", "", "Close", $O$4, -$A181, $O$6,$O$10,,$O$8,$O$12) -> 4162.5 | G181: =RTD("cqg.rtd",,"StudyData",$O$2, "ImpVol",, "MIVClose",$O$4,-A181,$O$6,$O$10,,$O$8,$O$12) -> 16.875
A182: 180 | B182: =RTD("cqg.rtd",,"StudyData", $O$2, "BAR", "", "Time", $O$4,-$A182,$O$6,$O$10, "","False","T") -> 2023-01-23 | C182: =RTD("cqg.rtd",,"StudyData", $O$2, "BAR", "", "Open", $O$4, -$A182, $O$6,$O$10,,$O$8,$O$12) -> 4116.75 | D182: =RTD("cqg.rtd",,"StudyData", $O$2, "BAR", "", "High", $O$4, -$A182, $O$6,$O$10,,$O$8,$O$12) -> 4186.5 | E182: =RTD("cqg.rtd",,"StudyData", $O$2, "BAR", "", "Low", $O$4, -$A182, $O$6,$O$10,,$O$8,$O$12) -> 4110 | F182: =RTD("cqg.rtd",,"StudyData", $O$2, "BAR", "", "Close", $O$4, -$A182, $O$6,$O$10,,$O$8,$O$12) -> 4166.25 | G182: =RTD("cqg.rtd",,"StudyData",$O$2, "ImpVol",, "MIVClose",$O$4,-A182,$O$6,$O$10,,$O$8,$O$12) -> 17.32
A183: 181 | B183: =RTD("cqg.rtd",,"StudyData", $O$2, "BAR", "", "Time", $O$4,-$A183,$O$6,$O$10, "","False","T") -> 2023-01-20 | C183: =RTD("cqg.rtd",,"StudyData", $O$2, "BAR", "", "Open", $O$4, -$A183, $O$6,$O$10,,$O$8,$O$12) -> 4054.75 | D183: =RTD("cqg.rtd",,"StudyData", $O$2, "BAR", "", "High", $O$4, -$A183, $O$6,$O$10,,$O$8,$O$12) -> 4120.25 | E183: =RTD("cqg.rtd",,"StudyData", $O$2, "BAR", "", "Low", $O$4, -$A183, $O$6,$O$10,,$O$8,$O$12) -> 4041.5 | F183: =RTD("cqg.rtd",,"StudyData", $O$2, "BAR", "", "Close", $O$4, -$A183, $O$6,$O$10,,$O$8,$O$12) -> 4118.25 | G183: =RTD("cqg.rtd",,"StudyData",$O$2, "ImpVol",, "MIVClose",$O$4,-A183,$O$6,$O$10,,$O$8,$O$12) -> 17.82
A184: 182 | B184: =RTD("cqg.rtd",,"StudyData", $O$2, "BAR", "", "Time", $O$4,-$A184,$O$6,$O$10, "","False","T") -> 2023-01-19 | C184: =RTD("cqg.rtd",,"StudyData", $O$2, "BAR", "", "Open", $O$4, -$A184, $O$6,$O$10,,$O$8,$O$12) -> 4075 | D184: =RTD("cqg.rtd",,"StudyData", $O$2, "BAR", "", "High", $O$4, -$A184, $O$6,$O$10,,$O$8,$O$12) -> 4078.5 | E184: =RTD("cqg.rtd",,"StudyData", $O$2, "BAR", "", "Low", $O$4, -$A184, $O$6,$O$10,,$O$8,$O$12) -> 4031.5 | F184: =RTD("cqg.rtd",,"StudyData", $O$2, "BAR", "", "Close", $O$4, -$A184, $O$6,$O$10,,$O$8,$O$12) -> 4045.25 | G184: =RTD("cqg.rtd",,"StudyData",$O$2, "ImpVol",, "MIVClose",$O$4,-A184,$O$6,$O$10,,$O$8,$O$12) -> 18.595
A185: 183 | B185: =RTD("cqg.rtd",,"StudyData", $O$2, "BAR", "", "Time", $O$4,-$A185,$O$6,$O$10, "","False","T") -> 2023-01-18 | C185: =RTD("cqg.rtd",,"StudyData", $O$2, "BAR", "", "Open", $O$4, -$A185, $O$6,$O$10,,$O$8,$O$12) -> 4138.25 | D185: =RTD("cqg.rtd",,"StudyData", $O$2, "BAR", "", "High", $O$4, -$A185, $O$6,$O$10,,$O$8,$O$12) -> 4163.25 | E185: =RTD("cqg.rtd",,"StudyData", $O$2, "BAR", "", "Low", $O$4, -$A185, $O$6,$O$10,,$O$8,$O$12) -> 4073.5 | F185: =RTD("cqg.rtd",,"StudyData", $O$2, "BAR", "", "Close", $O$4, -$A185, $O$6,$O$10,,$O$8,$O$12) -> 4075.5 | G185: =RTD("cqg.rtd",,"StudyData",$O$2, "ImpVol",, "MIVClose",$O$4,-A185,$O$6,$O$10,,$O$8,$O$12) -> 18.305
A186: 184 | B186: =RTD("cqg.rtd",,"StudyData", $O$2, "BAR", "", "Time", $O$4,-$A186,$O$6,$O$10, "","False","T") -> 2023-01-17 | C186: =RTD("cqg.rtd",,"StudyData", $O$2, "BAR", "", "Open", $O$4, -$A186, $O$6,$O$10,,$O$8,$O$12) -> 4149.75 | D186: =RTD("cqg.rtd",,"StudyData", $O$2, "BAR", "", "High", $O$4, -$A186, $O$6,$O$10,,$O$8,$O$12) -> 4165 | E186: =RTD("cqg.rtd",,"StudyData", $O$2, "BAR", "", "Low", $O$4, -$A186, $O$6,$O$10,,$O$8,$O$12) -> 4126.5 | F186: =RTD("cqg.rtd",,"StudyData", $O$2, "BAR", "", "Close", $O$4, -$A186, $O$6,$O$10,,$O$8,$O$12) -> 4139.25 | G186: =RTD("cqg.rtd",,"StudyData",$O$2, "ImpVol",, "MIVClose",$O$4,-A186,$O$6,$O$10,,$O$8,$O$12) -> 17.3
A187: 185 | B187: =RTD("cqg.rtd",,"StudyData", $O$2, "BAR", "", "Time", $O$4,-$A187,$O$6,$O$10, "","False","T") -> 2023-01-13 | C187: =RTD("cqg.rtd",,"StudyData", $O$2, "BAR", "", "Open", $O$4, -$A187, $O$6,$O$10,,$O$8,$O$12) -> 4132.75 | D187: =RTD("cqg.rtd",,"StudyData", $O$2, "BAR", "", "High", $O$4, -$A187, $O$6,$O$10,,$O$8,$O$12) -> 4154 | E187: =RTD("cqg.rtd",,"StudyData", $O$2, "BAR", "", "Low", $O$4, -$A187, $O$6,$O$10,,$O$8,$O$12) -> 4091.5 | F187: =RTD("cqg.rtd",,"StudyData", $O$2, "BAR", "", "Close", $O$4, -$A187, $O$6,$O$10,,$O$8,$O$12) -> 4148 | G187: =RTD("cqg.rtd",,"StudyData",$O$2, "ImpVol",, "MIVClose",$O$4,-A187,$O$6,$O$10,,$O$8,$O$12) -> 17.175
A188: 186 | B188: =RTD("cqg.rtd",,"StudyData", $O$2, "BAR", "", "Time", $O$4,-$A188,$O$6,$O$10, "","False","T") -> 2023-01-12 | C188: =RTD("cqg.rtd",,"StudyData", $O$2, "BAR", "", "Open", $O$4, -$A188, $O$6,$O$10,,$O$8,$O$12) -> 4121.5 | D188: =RTD("cqg.rtd",,"StudyData", $O$2, "BAR", "", "High", $O$4, -$A188, $O$6,$O$10,,$O$8,$O$12) -> 4151.25 | E188: =RTD("cqg.rtd",,"StudyData", $O$2, "BAR", "", "Low", $O$4, -$A188, $O$6,$O$10,,$O$8,$O$12) -> 4083.75 | F188: =RTD("cqg.rtd",,"StudyData", $O$2, "BAR", "", "Close", $O$4, -$A188, $O$6,$O$10,,$O$8,$O$12) -> 4133.25 | G188: =RTD("cqg.rtd",,"StudyData",$O$2, "ImpVol",, "MIVClose",$O$4,-A188,$O$6,$O$10,,$O$8,$O$12) -> 17.92
A189: 187 | B189: =RTD("cqg.rtd",,"StudyData", $O$2, "BAR", "", "Time", $O$4,-$A189,$O$6,$O$10, "","False","T") -> 2023-01-11 | C189: =RTD("cqg.rtd",,"StudyData", $O$2, "BAR", "", "Open", $O$4, -$A189, $O$6,$O$10,,$O$8,$O$12) -> 4070.75 | D189: =RTD("cqg.rtd",,"StudyData", $O$2, "BAR", "", "High", $O$4, -$A189, $O$6,$O$10,,$O$8,$O$12) -> 4122.25 | E189: =RTD("cqg.rtd",,"StudyData", $O$2, "BAR", "", "Low", $O$4, -$A189, $O$6,$O$10,,$O$8,$O$12) -> 4064.25 | F189: =RTD("cqg.rtd",,"StudyData", $O$2, "BAR", "", "Close", $O$4, -$A189, $O$6,$O$10,,$O$8,$O$12) -> 4119.75 | G189: =RTD("cqg.rtd",,"StudyData",$O$2, "ImpVol",, "MIVClose",$O$4,-A189,$O$6,$O$10,,$O$8,$O$12) -> 19.395
A190: 188 | B190: =RTD("cqg.rtd",,"StudyData", $O$2, "BAR", "", "Time", $O$4,-$A190,$O$6,$O$10, "","False","T") -> 2023-01-10 | C190: =RTD("cqg.rtd",,"StudyData", $O$2, "BAR", "", "Open", $O$4, -$A190, $O$6,$O$10,,$O$8,$O$12) -> 4044.25 | D190: =RTD("cqg.rtd",,"StudyData", $O$2, "BAR", "", "High", $O$4, -$A190, $O$6,$O$10,,$O$8,$O$12) -> 4073.5 | E190: =RTD("cqg.rtd",,"StudyData", $O$2, "BAR", "", "Low", $O$4, -$A190, $O$6,$O$10,,$O$8,$O$12) -> 4021.25 | F190: =RTD("cqg.rtd",,"StudyData", $O$2, "BAR", "", "Close", $O$4, -$A190, $O$6,$O$10,,$O$8,$O$12) -> 4070.5 | G190: =RTD("cqg.rtd",,"StudyData",$O$2, "ImpVol",, "MIVClose",$O$4,-A190,$O$6,$O$10,,$O$8,$O$12) -> 19.285
A191: 189 | B191: =RTD("cqg.rtd",,"StudyData", $O$2, "BAR", "", "Time", $O$4,-$A191,$O$6,$O$10, "","False","T") -> 2023-01-09 | C191: =RTD("cqg.rtd",,"StudyData", $O$2, "BAR", "", "Open", $O$4, -$A191, $O$6,$O$10,,$O$8,$O$12) -> 4048.25 | D191: =RTD("cqg.rtd",,"StudyData", $O$2, "BAR", "", "High", $O$4, -$A191, $O$6,$O$10,,$O$8,$O$12) -> 4103 | E191: =RTD("cqg.rtd",,"StudyData", $O$2, "BAR", "", "Low", $O$4, -$A191, $O$6,$O$10,,$O$8,$O$12) -> 4039.5 | F191: =RTD("cqg.rtd",,"StudyData", $O$2, "BAR", "", "Close", $O$4, -$A191, $O$6,$O$10,,$O$8,$O$12) -> 4043.5 | G191: =RTD("cqg.rtd",,"StudyData",$O$2, "ImpVol",, "MIVClose",$O$4,-A191,$O$6,$O$10,,$O$8,$O$12) -> 20.17
A192: 190 | B192: =RTD("cqg.rtd",,"StudyData", $O$2, "BAR", "", "Time", $O$4,-$A192,$O$6,$O$10, "","False","T") -> 2023-01-06 | C192: =RTD("cqg.rtd",,"StudyData", $O$2, "BAR", "", "Open", $O$4, -$A192, $O$6,$O$10,,$O$8,$O$12) -> 3962.75 | D192: =RTD("cqg.rtd",,"StudyData", $O$2, "BAR", "", "High", $O$4, -$A192, $O$6,$O$10,,$O$8,$O$12) -> 4058.5 | E192: =RTD("cqg.rtd",,"StudyData", $O$2, "BAR", "", "Low", $O$4, -$A192, $O$6,$O$10,,$O$8,$O$12) -> 3948.75 | F192: =RTD("cqg.rtd",,"StudyData", $O$2, "BAR", "", "Close", $O$4, -$A192, $O$6,$O$10,,$O$8,$O$12) -> 4045.25 | G192: =RTD("cqg.rtd",,"StudyData",$O$2, "ImpVol",, "MIVClose",$O$4,-A192,$O$6,$O$10,,$O$8,$O$12) -> 19.965
A193: 191 | B193: =RTD("cqg.rtd",,"StudyData", $O$2, "BAR", "", "Time", $O$4,-$A193,$O$6,$O$10, "","False","T") -> 2023-01-05 | C193: =RTD("cqg.rtd",,"StudyData", $O$2, "BAR", "", "Open", $O$4, -$A193, $O$6,$O$10,,$O$8,$O$12) -> 4000.75 | D193: =RTD("cqg.rtd",,"StudyData", $O$2, "BAR", "", "High", $O$4, -$A193, $O$6,$O$10,,$O$8,$O$12) -> 4015.25 | E193: =RTD("cqg.rtd",,"StudyData", $O$2, "BAR", "", "Low", $O$4, -$A193, $O$6,$O$10,,$O$8,$O$12) -> 3952.25 | F193: =RTD("cqg.rtd",,"StudyData", $O$2, "BAR", "", "Close", $O$4, -$A193, $O$6,$O$10,,$O$8,$O$12) -> 3958.75 | G193: =RTD("cqg.rtd",,"StudyData",$O$2, "ImpVol",, "MIVClose",$O$4,-A193,$O$6,$O$10,,$O$8,$O$12) -> 20.925
A194: 192 | B194: =RTD("cqg.rtd",,"StudyData", $O$2, "BAR", "", "Time", $O$4,-$A194,$O$6,$O$10, "","False","T") -> 2023-01-04 | C194: =RTD("cqg.rtd",,"StudyData", $O$2, "BAR", "", "Open", $O$4, -$A194, $O$6,$O$10,,$O$8,$O$12) -> 3972.5 | D194: =RTD("cqg.rtd",,"StudyData", $O$2, "BAR", "", "High", $O$4, -$A194, $O$6,$O$10,,$O$8,$O$12) -> 4026 | E194: =RTD("cqg.rtd",,"StudyData", $O$2, "BAR", "", "Low", $O$4, -$A194, $O$6,$O$10,,$O$8,$O$12) -> 3966.25 | F194: =RTD("cqg.rtd",,"StudyData", $O$2, "BAR", "", "Close", $O$4, -$A194, $O$6,$O$10,,$O$8,$O$12) -> 4004.25 | G194: =RTD("cqg.rtd",,"StudyData",$O$2, "ImpVol",, "MIVClose",$O$4,-A194,$O$6,$O$10,,$O$8,$O$12) -> 20.68
A195: 193 | B195: =RTD("cqg.rtd",,"StudyData", $O$2, "BAR", "", "Time", $O$4,-$A195,$O$6,$O$10, "","False","T") -> 2023-01-03 | C195: =RTD("cqg.rtd",,"StudyData", $O$2, "BAR", "", "Open", $O$4, -$A195, $O$6,$O$10,,$O$8,$O$12) -> 4024.75 | D195: =RTD("cqg.rtd",,"StudyData", $O$2, "BAR", "", "High", $O$4, -$A195, $O$6,$O$10,,$O$8,$O$12) -> 4036.5 | E195: =RTD("cqg.rtd",,"StudyData", $O$2, "BAR", "", "Low", $O$4, -$A195, $O$6,$O$10,,$O$8,$O$12) -> 3944.25 | F195: =RTD("cqg.rtd",,"StudyData", $O$2, "BAR", "", "Close", $O$4, -$A195, $O$6,$O$10,,$O$8,$O$12) -> 3975.75 | G195: =RTD("cqg.rtd",,"StudyData",$O$2, "ImpVol",, "MIVClose",$O$4,-A195,$O$6,$O$10,,$O$8,$O$12) -> 21.375
A196: =A195+1 -> 194 | B196: =RTD("cqg.rtd",,"StudyData", $O$2, "BAR", "", "Time", $O$4,-$A196,$O$6,$O$10, "","False","T") -> 2022-12-30 | C196: =RTD("cqg.rtd",,"StudyData", $O$2, "BAR", "", "Open", $O$4, -$A196, $O$6,$O$10,,$O$8,$O$12) -> 3999.5 | D196: =RTD("cqg.rtd",,"StudyData", $O$2, "BAR", "", "High", $O$4, -$A196, $O$6,$O$10,,$O$8,$O$12) -> 4000.75 | E196: =RTD("cqg.rtd",,"StudyData", $O$2, "BAR", "", "Low", $O$4, -$A196, $O$6,$O$10,,$O$8,$O$12) -> 3951.25 | F196: =RTD("cqg.rtd",,"StudyData", $O$2, "BAR", "", "Close", $O$4, -$A196, $O$6,$O$10,,$O$8,$O$12) -> 3990.75 | G196: =RTD("cqg.rtd",,"StudyData",$O$2, "ImpVol",, "MIVClose",$O$4,-A196,$O$6,$O$10,,$O$8,$O$12) -> 21.525
A197: 195 | B197: =RTD("cqg.rtd",,"StudyData", $O$2, "BAR", "", "Time", $O$4,-$A197,$O$6,$O$10, "","False","T") -> 2022-12-29 | C197: =RTD("cqg.rtd",,"StudyData", $O$2, "BAR", "", "Open", $O$4, -$A197, $O$6,$O$10,,$O$8,$O$12) -> 3940.75 | D197: =RTD("cqg.rtd",,"StudyData", $O$2, "BAR", "", "High", $O$4, -$A197, $O$6,$O$10,,$O$8,$O$12) -> 4012.5 | E197: =RTD("cqg.rtd",,"StudyData", $O$2, "BAR", "", "Low", $O$4, -$A197, $O$6,$O$10,,$O$8,$O$12) -> 3936 | F197: =RTD("cqg.rtd",,"StudyData", $O$2, "BAR", "", "Close", $O$4, -$A197, $O$6,$O$10,,$O$8,$O$12) -> 4001.5 | G197: =RTD("cqg.rtd",,"StudyData",$O$2, "ImpVol",, "MIVClose",$O$4,-A197,$O$6,$O$10,,$O$8,$O$12) -> 21.44
A198: 196 | B198: =RTD("cqg.rtd",,"StudyData", $O$2, "BAR", "", "Time", $O$4,-$A198,$O$6,$O$10, "","False","T") -> 2022-12-28 | C198: =RTD("cqg.rtd",,"StudyData", $O$2, "BAR", "", "Open", $O$4, -$A198, $O$6,$O$10,,$O$8,$O$12) -> 3987.75 | D198: =RTD("cqg.rtd",,"StudyData", $O$2, "BAR", "", "High", $O$4, -$A198, $O$6,$O$10,,$O$8,$O$12) -> 4004.75 | E198: =RTD("cqg.rtd",,"StudyData", $O$2, "BAR", "", "Low", $O$4, -$A198, $O$6,$O$10,,$O$8,$O$12) -> 3934.25 | F198: =RTD("cqg.rtd",,"StudyData", $O$2, "BAR", "", "Close", $O$4, -$A198, $O$6,$O$10,,$O$8,$O$12) -> 3937.25 | G198: =RTD("cqg.rtd",,"StudyData",$O$2, "ImpVol",, "MIVClose",$O$4,-A198,$O$6,$O$10,,$O$8,$O$12) -> 22.035
A199: 197 | B199: =RTD("cqg.rtd",,"StudyData", $O$2, "BAR", "", "Time", $O$4,-$A199,$O$6,$O$10, "","False","T") -> 2022-12-27 | C199: =RTD("cqg.rtd",,"StudyData", $O$2, "BAR", "", "Open", $O$4, -$A199, $O$6,$O$10,,$O$8,$O$12) -> 4007.75 | D199: =RTD("cqg.rtd",,"StudyData", $O$2, "BAR", "", "High", $O$4, -$A199, $O$6,$O$10,,$O$8,$O$12) -> 4030.25 | E199: =RTD("cqg.rtd",,"StudyData", $O$2, "BAR", "", "Low", $O$4, -$A199, $O$6,$O$10,,$O$8,$O$12) -> 3967 | F199: =RTD("cqg.rtd",,"StudyData", $O$2, "BAR", "", "Close", $O$4, -$A199, $O$6,$O$10,,$O$8,$O$12) -> 3984.75 | G199: =RTD("cqg.rtd",,"StudyData",$O$2, "ImpVol",, "MIVClose",$O$4,-A199,$O$6,$O$10,,$O$8,$O$12) -> 21.465
A200: 198 | B200: =RTD("cqg.rtd",,"StudyData", $O$2, "BAR", "", "Time", $O$4,-$A200,$O$6,$O$10, "","False","T") -> 2022-12-23 | C200: =RTD("cqg.rtd",,"StudyData", $O$2, "BAR", "", "Open", $O$4, -$A200, $O$6,$O$10,,$O$8,$O$12) -> 3979.75 | D200: =RTD("cqg.rtd",,"StudyData", $O$2, "BAR", "", "High", $O$4, -$A200, $O$6,$O$10,,$O$8,$O$12) -> 4002.25 | E200: =RTD("cqg.rtd",,"StudyData", $O$2, "BAR", "", "Low", $O$4, -$A200, $O$6,$O$10,,$O$8,$O$12) -> 3951 | F200: =RTD("cqg.rtd",,"StudyData", $O$2, "BAR", "", "Close", $O$4, -$A200, $O$6,$O$10,,$O$8,$O$12) -> 3999.5 | G200: =RTD("cqg.rtd",,"StudyData",$O$2, "ImpVol",, "MIVClose",$O$4,-A200,$O$6,$O$10,,$O$8,$O$12) -> 21.43
... 102 more rows

Sheet HVol
C1: Symbol | D1: Chart | E1: Sessions
C2: EP | D2: ADC | E2: PrimaryOnly
O3: Symbol | P3: Last | Q3: NC | R3: %NC | S3: Open | T3: High | U3: Low | V3: HVolClose
A4: =HVolData!M9 -> 4686.5 | O4: EP | P4: =RTD("cqg.rtd", ,"ContractData", O4, "LastTrade",, "T") -> 4351.75 | Q4: =RTD("cqg.rtd", ,"ContractData", O4, "NetLastTradeToday",, "T") -> 10.25 | R4: =RTD("cqg.rtd", ,"ContractData", O4, "PerCentNetLastTrade",, "T")/100 -> 0.002360935161 | S4: =RTD("cqg.rtd", ,"ContractData", O4, "Open",, "T") -> 4315 | T4: =RTD("cqg.rtd", ,"ContractData", O4, "High",, "T") -> 4352 | U4: =RTD("cqg.rtd", ,"ContractData", O4, "Low",, "T") -> 4299.5 | V4: =RTD("cqg.rtd",,"StudyData", $O4, "HVol", "InputChoice=Close,HvolType=Percent,Period=10", "HVOL","ADC") -> 13.39878302
A5: =HVolData!M10 -> 3661.25 | O5: ENQ | P5: =RTD("cqg.rtd", ,"ContractData", O5, "LastTrade",, "T") -> 15128.75 | Q5: =RTD("cqg.rtd", ,"ContractData", O5, "NetLastTradeToday",, "T") -> 16.5 | R5: =RTD("cqg.rtd", ,"ContractData", O5, "PerCentNetLastTrade",, "T")/100 -> 0.001091847538 | S5: =RTD("cqg.rtd", ,"ContractData", O5, "Open",, "T") -> 15040.25 | T5: =RTD("cqg.rtd", ,"ContractData", O5, "High",, "T") -> 15131.25 | U5: =RTD("cqg.rtd", ,"ContractData", O5, "Low",, "T") -> 14949.5 | V5: =RTD("cqg.rtd",,"StudyData", $O5, "HVol", "InputChoice=Close,HvolType=Percent,Period=10", "HVOL","ADC") -> 17.96689495
O6: YM | P6: =RTD("cqg.rtd", ,"ContractData", O6, "LastTrade",, "T") -> 33678 | Q6: =RTD("cqg.rtd", ,"ContractData", O6, "NetLastTradeToday",, "T") -> 78 | R6: =RTD("cqg.rtd", ,"ContractData", O6, "PerCentNetLastTrade",, "T")/100 -> 0.002321428571 | S6: =RTD("cqg.rtd", ,"ContractData", O6, "Open",, "T") -> 33477 | T6: =RTD("cqg.rtd", ,"ContractData", O6, "High",, "T") -> 33679 | U6: =RTD("cqg.rtd", ,"ContractData", O6, "Low",, "T") -> 33298 | V6: =RTD("cqg.rtd",,"StudyData", $O6, "HVol", "InputChoice=Close,HvolType=Percent,Period=10", "HVOL","ADC") -> 10.78514741
O7: GCE | P7: =RTD("cqg.rtd", ,"ContractData", O7, "LastTrade",, "T") -> 1866.3 | Q7: =RTD("cqg.rtd", ,"ContractData", O7, "NetLastTradeToday",, "T") -> 21.1 | R7: =RTD("cqg.rtd", ,"ContractData", O7, "PerCentNetLastTrade",, "T")/100 -> 0.01143507479 | S7: =RTD("cqg.rtd", ,"ContractData", O7, "Open",, "T") -> 1861 | T7: =RTD("cqg.rtd", ,"ContractData", O7, "High",, "T") -> 1869.5 | U7: =RTD("cqg.rtd", ,"ContractData", O7, "Low",, "T") -> 1857.5 | V7: =RTD("cqg.rtd",,"StudyData", $O7, "HVol", "InputChoice=Close,HvolType=Percent,Period=10", "HVOL","ADC") -> 12.54552867
O8: SIE | P8: =RTD("cqg.rtd", ,"ContractData", O8, "LastTrade",, "T") -> 21.955 | Q8: =RTD("cqg.rtd", ,"ContractData", O8, "NetLastTradeToday",, "T") -> 0.232 | R8: =RTD("cqg.rtd", ,"ContractData", O8, "PerCentNetLastTrade",, "T")/100 -> 0.0106799245 | S8: =RTD("cqg.rtd", ,"ContractData", O8, "Open",, "T") -> 21.94 | T8: =RTD("cqg.rtd", ,"ContractData", O8, "High",, "T") -> 22.18 | U8: =RTD("cqg.rtd", ,"ContractData", O8, "Low",, "T") -> 21.705 | V8: =RTD("cqg.rtd",,"StudyData", $O8, "HVol", "InputChoice=Close,HvolType=Percent,Period=10", "HVOL","ADC") -> 32.34064468
O9: CLE | P9: =RTD("cqg.rtd", ,"ContractData", O9, "LastTrade",, "T") -> 86.28 | Q9: =RTD("cqg.rtd", ,"ContractData", O9, "NetLastTradeToday",, "T") -> 3.49 | R9: =RTD("cqg.rtd", ,"ContractData", O9, "PerCentNetLastTrade",, "T")/100 -> 0.04215484962 | S9: =RTD("cqg.rtd", ,"ContractData", O9, "Open",, "T") -> 85.25 | T9: =RTD("cqg.rtd", ,"ContractData", O9, "High",, "T") -> 87.24 | U9: =RTD("cqg.rtd", ,"ContractData", O9, "Low",, "T") -> 84.67 | V9: =RTD("cqg.rtd",,"StudyData", $O9, "HVol", "InputChoice=Close,HvolType=Percent,Period=10", "HVOL","ADC") -> 46.48815362
O10: HOE | P10: =RTD("cqg.rtd", ,"ContractData", O10, "LastTrade",, "T") -> 2.96 | Q10: =RTD("cqg.rtd", ,"ContractData", O10, "NetLastTradeToday",, "T") -> 0.0592 | R10: =RTD("cqg.rtd", ,"ContractData", O10, "PerCentNetLastTrade",, "T")/100 -> 0.02040816327 | S10: =RTD("cqg.rtd", ,"ContractData", O10, "Open",, "T") -> 2.9498 | T10: =RTD("cqg.rtd", ,"ContractData", O10, "High",, "T") -> 3.0258 | U10: =RTD("cqg.rtd", ,"ContractData", O10, "Low",, "T") -> 2.9236 | V10: =RTD("cqg.rtd",,"StudyData", $O10, "HVol", "InputChoice=Close,HvolType=Percent,Period=10", "HVOL","ADC") -> 44.55544295
O11: RBE | P11: =RTD("cqg.rtd", ,"ContractData", O11, "LastTrade",, "T") -> 2.2334 | Q11: =RTD("cqg.rtd", ,"ContractData", O11, "NetLastTradeToday",, "T") -> 0.0412 | R11: =RTD("cqg.rtd", ,"ContractData", O11, "PerCentNetLastTrade",, "T")/100 -> 0.01879390567 | S11: =RTD("cqg.rtd", ,"ContractData", O11, "Open",, "T") -> 2.24 | T11: =RTD("cqg.rtd", ,"ContractData", O11, "High",, "T") -> 2.2788 | U11: =RTD("cqg.rtd", ,"ContractData", O11, "Low",, "T") -> 2.22 | V11: =RTD("cqg.rtd",,"StudyData", $O11, "HVol", "InputChoice=Close,HvolType=Percent,Period=10", "HVOL","ADC") -> 42.12676006
O12: ZSE | P12: =RTD("cqg.rtd", ,"ContractData", O12, "LastTrade",, "T") -> 1264.5 | Q12: =RTD("cqg.rtd", ,"ContractData", O12, "NetLastTradeToday",, "T") -> -1.5 | R12: =RTD("cqg.rtd", ,"ContractData", O12, "PerCentNetLastTrade",, "T")/100 -> -0.001184834123 | S12: =RTD("cqg.rtd", ,"ContractData", O12, "Open",, "T") -> 1267 | T12: =RTD("cqg.rtd", ,"ContractData", O12, "High",, "T") -> 1277.5 | U12: =RTD("cqg.rtd", ,"ContractData", O12, "Low",, "T") -> 1258.25 | V12: =RTD("cqg.rtd",,"StudyData", $O12, "HVol", "InputChoice=Close,HvolType=Percent,Period=10", "HVOL","ADC") -> 12.05030745
O13: ZCE | P13: =RTD("cqg.rtd", ,"ContractData", O13, "LastTrade",, "T") -> 490.5 | Q13: =RTD("cqg.rtd", ,"ContractData", O13, "NetLastTradeToday",, "T") -> -1.5 | R13: =RTD("cqg.rtd", ,"ContractData", O13, "PerCentNetLastTrade",, "T")/100 -> -0.003048780488 | S13: =RTD("cqg.rtd", ,"ContractData", O13, "Open",, "T") -> 492 | T13: =RTD("cqg.rtd", ,"ContractData", O13, "High",, "T") -> 497 | U13: =RTD("cqg.rtd", ,"ContractData", O13, "Low",, "T") -> 487.25 | V13: =RTD("cqg.rtd",,"StudyData", $O13, "HVol", "InputChoice=Close,HvolType=Percent,Period=10", "HVOL","ADC") -> 23.92218415
O14: ZWA | P14: =RTD("cqg.rtd", ,"ContractData", O14, "LastTrade",, "T") -> 574.25 | Q14: =RTD("cqg.rtd", ,"ContractData", O14, "NetLastTradeToday",, "T") -> 6 | R14: =RTD("cqg.rtd", ,"ContractData", O14, "PerCentNetLastTrade",, "T")/100 -> 0.01055873295 | S14: =RTD("cqg.rtd", ,"ContractData", O14, "Open",, "T") -> 573.25 | T14: =RTD("cqg.rtd", ,"ContractData", O14, "High",, "T") -> 581.5 | U14: =RTD("cqg.rtd", ,"ContractData", O14, "Low",, "T") -> 570 | V14: =RTD("cqg.rtd",,"StudyData", $O14, "HVol", "InputChoice=Close,HvolType=Percent,Period=10", "HVOL","ADC") -> 46.97156798
O20: Frequency Distribution Historical Volatility
A23: =HVolData!M1 -> 36 | O23: =HVolData!M12 -> 27
A24: =HVolData!M2 -> 6 | O24: =HVolData!M13 -> 0

Sheet HVolData
B1: DATE | C1: Open | D1: High | E1: Low | F1: Close | G1: HVol | K1: Max (Round up) | L1: =MAX(G2:G302) -> 35.68663765 | M1: =ROUNDUP(L1,0) -> 36 | O1: Symbol (use CAPS)
A2: 0 | B2: =RTD("cqg.rtd",,"StudyData", $O$2, "BAR", "", "Time", $O$4,-$A2,$O$6,$O$10, "","False","T") -> 2023-10-09 | C2: =RTD("cqg.rtd",,"StudyData", $O$2, "BAR", "", "Open", $O$4, -$A2, $O$6,$O$10,,$O$8,$O$12) -> 4315 | D2: =RTD("cqg.rtd",,"StudyData", $O$2, "BAR", "", "High", $O$4, -$A2, $O$6,$O$10,,$O$8,$O$12) -> 4352 | E2: =RTD("cqg.rtd",,"StudyData", $O$2, "BAR", "", "Low", $O$4, -$A2, $O$6,$O$10,,$O$8,$O$12) -> 4299.5 | F2: =RTD("cqg.rtd",,"StudyData", $O$2, "BAR", "", "Close", $O$4, -$A2, $O$6,$O$10,,$O$8,$O$12) -> 4351.75 | G2: =RTD("cqg.rtd",,"StudyData", $O$2, "HVol", "InputChoice=Close,HvolType=Percent,Period=10", "HVOL",$O$4,-A2,$O$6,$O$10,,$O$8,$O$12) -> 13.39878302 | H2: =FREQUENCY($G$2:$G$302,$I$2:$I$43) -> 1 | I2: =M1 -> 36 | J2: =IF(AND($G$2>I3,OR($G$2=I2,$G$2<I2)),H2,NA()) ->  | K2: Min (Round Dn) | L2: =MIN(G2:G302) -> 6.685607573 | M2: =ROUNDDOWN(L2,0) -> 6 | O2: =HVol!C2 -> EP
A3: =A2+1 -> 1 | B3: =RTD("cqg.rtd",,"StudyData", $O$2, "BAR", "", "Time", $O$4,-$A3,$O$6,$O$10, "","False","T") -> 2023-10-06 | C3: =RTD("cqg.rtd",,"StudyData", $O$2, "BAR", "", "Open", $O$4, -$A3, $O$6,$O$10,,$O$8,$O$12) -> 4287.5 | D3: =RTD("cqg.rtd",,"StudyData", $O$2, "BAR", "", "High", $O$4, -$A3, $O$6,$O$10,,$O$8,$O$12) -> 4358.5 | E3: =RTD("cqg.rtd",,"StudyData", $O$2, "BAR", "", "Low", $O$4, -$A3, $O$6,$O$10,,$O$8,$O$12) -> 4242.25 | F3: =RTD("cqg.rtd",,"StudyData", $O$2, "BAR", "", "Close", $O$4, -$A3, $O$6,$O$10,,$O$8,$O$12) -> 4341.5 | G3: =RTD("cqg.rtd",,"StudyData", $O$2, "HVol", "InputChoice=Close,HvolType=Percent,Period=10", "HVOL",$O$4,-A3,$O$6,$O$10,,$O$8,$O$12) -> 13.52981927 | H3: 0 | I3: =I2-$M$4 -> 35.25 | J3: =IF(AND($G$2>I4,OR($G$2=I3,$G$2<I3)),H3,NA()) ->  | L3: Difference | M3: =M1-M2 -> 30 | O3: Chart
A4: =A3+1 -> 2 | B4: =RTD("cqg.rtd",,"StudyData", $O$2, "BAR", "", "Time", $O$4,-$A4,$O$6,$O$10, "","False","T") -> 2023-10-05 | C4: =RTD("cqg.rtd",,"StudyData", $O$2, "BAR", "", "Open", $O$4, -$A4, $O$6,$O$10,,$O$8,$O$12) -> 4291.5 | D4: =RTD("cqg.rtd",,"StudyData", $O$2, "BAR", "", "High", $O$4, -$A4, $O$6,$O$10,,$O$8,$O$12) -> 4302 | E4: =RTD("cqg.rtd",,"StudyData", $O$2, "BAR", "", "Low", $O$4, -$A4, $O$6,$O$10,,$O$8,$O$12) -> 4258 | F4: =RTD("cqg.rtd",,"StudyData", $O$2, "BAR", "", "Close", $O$4, -$A4, $O$6,$O$10,,$O$8,$O$12) -> 4290.75 | G4: =RTD("cqg.rtd",,"StudyData", $O$2, "HVol", "InputChoice=Close,HvolType=Percent,Period=10", "HVOL",$O$4,-A4,$O$6,$O$10,,$O$8,$O$12) -> 11.70180667 | H4: 3 | I4: =I3-$M$4 -> 34.5 | L4: Diff/20 | M4: =ROUNDDOWN(M3/40,2) -> 0.75 | O4: =HVol!D2 -> ADC
A5: 3 | B5: =RTD("cqg.rtd",,"StudyData", $O$2, "BAR", "", "Time", $O$4,-$A5,$O$6,$O$10, "","False","T") -> 2023-10-04 | C5: =RTD("cqg.rtd",,"StudyData", $O$2, "BAR", "", "Open", $O$4, -$A5, $O$6,$O$10,,$O$8,$O$12) -> 4262.75 | D5: =RTD("cqg.rtd",,"StudyData", $O$2, "BAR", "", "High", $O$4, -$A5, $O$6,$O$10,,$O$8,$O$12) -> 4304 | E5: =RTD("cqg.rtd",,"StudyData", $O$2, "BAR", "", "Low", $O$4, -$A5, $O$6,$O$10,,$O$8,$O$12) -> 4235.5 | F5: =RTD("cqg.rtd",,"StudyData", $O$2, "BAR", "", "Close", $O$4, -$A5, $O$6,$O$10,,$O$8,$O$12) -> 4297.75 | G5: =RTD("cqg.rtd",,"StudyData", $O$2, "HVol", "InputChoice=Close,HvolType=Percent,Period=10", "HVOL",$O$4,-A5,$O$6,$O$10,,$O$8,$O$12) -> 13.89614678 | H5: 0 | I5: 33.75 | O5: Type All or PrimaryOnly
A6: 4 | B6: =RTD("cqg.rtd",,"StudyData", $O$2, "BAR", "", "Time", $O$4,-$A6,$O$6,$O$10, "","False","T") -> 2023-10-03 | C6: =RTD("cqg.rtd",,"StudyData", $O$2, "BAR", "", "Open", $O$4, -$A6, $O$6,$O$10,,$O$8,$O$12) -> 4326 | D6: =RTD("cqg.rtd",,"StudyData", $O$2, "BAR", "", "High", $O$4, -$A6, $O$6,$O$10,,$O$8,$O$12) -> 4335.75 | E6: =RTD("cqg.rtd",,"StudyData", $O$2, "BAR", "", "Low", $O$4, -$A6, $O$6,$O$10,,$O$8,$O$12) -> 4251.25 | F6: =RTD("cqg.rtd",,"StudyData", $O$2, "BAR", "", "Close", $O$4, -$A6, $O$6,$O$10,,$O$8,$O$12) -> 4264.75 | G6: =RTD("cqg.rtd",,"StudyData", $O$2, "HVol", "InputChoice=Close,HvolType=Percent,Period=10", "HVOL",$O$4,-A6,$O$6,$O$10,,$O$8,$O$12) -> 12.69543001 | H6: 0 | I6: 33 | L6: Median | M6: =MEDIAN(G2:G302) -> 15.09724611 | O6: =HVol!E2 -> PrimaryOnly
A7: 5 | B7: =RTD("cqg.rtd",,"StudyData", $O$2, "BAR", "", "Time", $O$4,-$A7,$O$6,$O$10, "","False","T") -> 2023-10-02 | C7: =RTD("cqg.rtd",,"StudyData", $O$2, "BAR", "", "Open", $O$4, -$A7, $O$6,$O$10,,$O$8,$O$12) -> 4349 | D7: =RTD("cqg.rtd",,"StudyData", $O$2, "BAR", "", "High", $O$4, -$A7, $O$6,$O$10,,$O$8,$O$12) -> 4355.5 | E7: =RTD("cqg.rtd",,"StudyData", $O$2, "BAR", "", "Low", $O$4, -$A7, $O$6,$O$10,,$O$8,$O$12) -> 4295.5 | F7: =RTD("cqg.rtd",,"StudyData", $O$2, "BAR", "", "Close", $O$4, -$A7, $O$6,$O$10,,$O$8,$O$12) -> 4324.25 | G7: =RTD("cqg.rtd",,"StudyData", $O$2, "HVol", "InputChoice=Close,HvolType=Percent,Period=10", "HVOL",$O$4,-A7,$O$6,$O$10,,$O$8,$O$12) -> 11.77640811 | H7: 0 | I7: 32.25 | L7: ="MIVClose = "&TEXT(G2,"#.000")&", Median = "&TEXT(M6,"#.000") -> MIVClose = 13.399, Median = 15.097 | O7: Continuation
A8: 6 | B8: =RTD("cqg.rtd",,"StudyData", $O$2, "BAR", "", "Time", $O$4,-$A8,$O$6,$O$10, "","False","T") -> 2023-09-29 | C8: =RTD("cqg.rtd",,"StudyData", $O$2, "BAR", "", "Open", $O$4, -$A8, $O$6,$O$10,,$O$8,$O$12) -> 4342 | D8: =RTD("cqg.rtd",,"StudyData", $O$2, "BAR", "", "High", $O$4, -$A8, $O$6,$O$10,,$O$8,$O$12) -> 4371.25 | E8: =RTD("cqg.rtd",,"StudyData", $O$2, "BAR", "", "Low", $O$4, -$A8, $O$6,$O$10,,$O$8,$O$12) -> 4311 | F8: =RTD("cqg.rtd",,"StudyData", $O$2, "BAR", "", "Close", $O$4, -$A8, $O$6,$O$10,,$O$8,$O$12) -> 4325.5 | G8: =RTD("cqg.rtd",,"StudyData", $O$2, "HVol", "InputChoice=Close,HvolType=Percent,Period=10", "HVOL",$O$4,-A8,$O$6,$O$10,,$O$8,$O$12) -> 11.88103596 | H8: 4 | I8: 31.5 | O8: TRUE
A9: 7 | B9: =RTD("cqg.rtd",,"StudyData", $O$2, "BAR", "", "Time", $O$4,-$A9,$O$6,$O$10, "","False","T") -> 2023-09-28 | C9: =RTD("cqg.rtd",,"StudyData", $O$2, "BAR", "", "Open", $O$4, -$A9, $O$6,$O$10,,$O$8,$O$12) -> 4323.25 | D9: =RTD("cqg.rtd",,"StudyData", $O$2, "BAR", "", "High", $O$4, -$A9, $O$6,$O$10,,$O$8,$O$12) -> 4355.75 | E9: =RTD("cqg.rtd",,"StudyData", $O$2, "BAR", "", "Low", $O$4, -$A9, $O$6,$O$10,,$O$8,$O$12) -> 4301 | F9: =RTD("cqg.rtd",,"StudyData", $O$2, "BAR", "", "Close", $O$4, -$A9, $O$6,$O$10,,$O$8,$O$12) -> 4337.5 | G9: =RTD("cqg.rtd",,"StudyData", $O$2, "HVol", "InputChoice=Close,HvolType=Percent,Period=10", "HVOL",$O$4,-A9,$O$6,$O$10,,$O$8,$O$12) -> 12.60539898 | H9: 3 | I9: 30.75 | L9: Bar Chart Max | M9: =MAX(D2:D302)+10*RTD("cqg.rtd", ,"ContractData",O2, "Ticksize",, "T") -> 4686.5 | O9: CustomSessionName eg 700to800
A10: 8 | B10: =RTD("cqg.rtd",,"StudyData", $O$2, "BAR", "", "Time", $O$4,-$A10,$O$6,$O$10, "","False","T") -> 2023-09-27 | C10: =RTD("cqg.rtd",,"StudyData", $O$2, "BAR", "", "Open", $O$4, -$A10, $O$6,$O$10,,$O$8,$O$12) -> 4320.25 | D10: =RTD("cqg.rtd",,"StudyData", $O$2, "BAR", "", "High", $O$4, -$A10, $O$6,$O$10,,$O$8,$O$12) -> 4336.5 | E10: =RTD("cqg.rtd",,"StudyData", $O$2, "BAR", "", "Low", $O$4, -$A10, $O$6,$O$10,,$O$8,$O$12) -> 4277 | F10: =RTD("cqg.rtd",,"StudyData", $O$2, "BAR", "", "Close", $O$4, -$A10, $O$6,$O$10,,$O$8,$O$12) -> 4313.5 | G10: =RTD("cqg.rtd",,"StudyData", $O$2, "HVol", "InputChoice=Close,HvolType=Percent,Period=10", "HVOL",$O$4,-A10,$O$6,$O$10,,$O$8,$O$12) -> 13.28938587 | H10: 4 | I10: 30 | L10: Bar Chart Min | M10: =MIN(E2:E302)-10*RTD("cqg.rtd", ,"ContractData",O2, "Ticksize",, "T") -> 3661.25
A11: 9 | B11: =RTD("cqg.rtd",,"StudyData", $O$2, "BAR", "", "Time", $O$4,-$A11,$O$6,$O$10, "","False","T") -> 2023-09-26 | C11: =RTD("cqg.rtd",,"StudyData", $O$2, "BAR", "", "Open", $O$4, -$A11, $O$6,$O$10,,$O$8,$O$12) -> 4382 | D11: =RTD("cqg.rtd",,"StudyData", $O$2, "BAR", "", "High", $O$4, -$A11, $O$6,$O$10,,$O$8,$O$12) -> 4382 | E11: =RTD("cqg.rtd",,"StudyData", $O$2, "BAR", "", "Low", $O$4, -$A11, $O$6,$O$10,,$O$8,$O$12) -> 4305.5 | F11: =RTD("cqg.rtd",,"StudyData", $O$2, "BAR", "", "Close", $O$4, -$A11, $O$6,$O$10,,$O$8,$O$12) -> 4314.75 | G11: =RTD("cqg.rtd",,"StudyData", $O$2, "HVol", "InputChoice=Close,HvolType=Percent,Period=10", "HVOL",$O$4,-A11,$O$6,$O$10,,$O$8,$O$12) -> 13.40116797 | H11: 1 | I11: 29.25 | O11: Decimal=T, Tick=D
A12: 10 | B12: =RTD("cqg.rtd",,"StudyData", $O$2, "BAR", "", "Time", $O$4,-$A12,$O$6,$O$10, "","False","T") -> 2023-09-25 | C12: =RTD("cqg.rtd",,"StudyData", $O$2, "BAR", "", "Open", $O$4, -$A12, $O$6,$O$10,,$O$8,$O$12) -> 4365 | D12: =RTD("cqg.rtd",,"StudyData", $O$2, "BAR", "", "High", $O$4, -$A12, $O$6,$O$10,,$O$8,$O$12) -> 4383.5 | E12: =RTD("cqg.rtd",,"StudyData", $O$2, "BAR", "", "Low", $O$4, -$A12, $O$6,$O$10,,$O$8,$O$12) -> 4338.25 | F12: =RTD("cqg.rtd",,"StudyData", $O$2, "BAR", "", "Close", $O$4, -$A12, $O$6,$O$10,,$O$8,$O$12) -> 4378.75 | G12: =RTD("cqg.rtd",,"StudyData", $O$2, "HVol", "InputChoice=Close,HvolType=Percent,Period=10", "HVOL",$O$4,-A12,$O$6,$O$10,,$O$8,$O$12) -> 12.2129986 | H12: 4 | I12: 28.5 | L12: Frequency Max | M12: =MAX(H2:H43)+2 -> 27 | O12: T
A13: 11 | B13: =RTD("cqg.rtd",,"StudyData", $O$2, "BAR", "", "Time", $O$4,-$A13,$O$6,$O$10, "","False","T") -> 2023-09-22 | C13: =RTD("cqg.rtd",,"StudyData", $O$2, "BAR", "", "Open", $O$4, -$A13, $O$6,$O$10,,$O$8,$O$12) -> 4370.25 | D13: =RTD("cqg.rtd",,"StudyData", $O$2, "BAR", "", "High", $O$4, -$A13, $O$6,$O$10,,$O$8,$O$12) -> 4399 | E13: =RTD("cqg.rtd",,"StudyData", $O$2, "BAR", "", "Low", $O$4, -$A13, $O$6,$O$10,,$O$8,$O$12) -> 4357.25 | F13: =RTD("cqg.rtd",,"StudyData", $O$2, "BAR", "", "Close", $O$4, -$A13, $O$6,$O$10,,$O$8,$O$12) -> 4361 | G13: =RTD("cqg.rtd",,"StudyData", $O$2, "HVol", "InputChoice=Close,HvolType=Percent,Period=10", "HVOL",$O$4,-A13,$O$6,$O$10,,$O$8,$O$12) -> 12.63584721 | H13: 8 | I13: 27.75 | L13: Frequency Min | M13: 0
A14: 12 | B14: =RTD("cqg.rtd",,"StudyData", $O$2, "BAR", "", "Time", $O$4,-$A14,$O$6,$O$10, "","False","T") -> 2023-09-21 | C14: =RTD("cqg.rtd",,"StudyData", $O$2, "BAR", "", "Open", $O$4, -$A14, $O$6,$O$10,,$O$8,$O$12) -> 4445 | D14: =RTD("cqg.rtd",,"StudyData", $O$2, "BAR", "", "High", $O$4, -$A14, $O$6,$O$10,,$O$8,$O$12) -> 4447 | E14: =RTD("cqg.rtd",,"StudyData", $O$2, "BAR", "", "Low", $O$4, -$A14, $O$6,$O$10,,$O$8,$O$12) -> 4366.5 | F14: =RTD("cqg.rtd",,"StudyData", $O$2, "BAR", "", "Close", $O$4, -$A14, $O$6,$O$10,,$O$8,$O$12) -> 4372 | G14: =RTD("cqg.rtd",,"StudyData", $O$2, "HVol", "InputChoice=Close,HvolType=Percent,Period=10", "HVOL",$O$4,-A14,$O$6,$O$10,,$O$8,$O$12) -> 12.84103605 | H14: 3 | I14: 27
A15: 13 | B15: =RTD("cqg.rtd",,"StudyData", $O$2, "BAR", "", "Time", $O$4,-$A15,$O$6,$O$10, "","False","T") -> 2023-09-20 | C15: =RTD("cqg.rtd",,"StudyData", $O$2, "BAR", "", "Open", $O$4, -$A15, $O$6,$O$10,,$O$8,$O$12) -> 4491.25 | D15: =RTD("cqg.rtd",,"StudyData", $O$2, "BAR", "", "High", $O$4, -$A15, $O$6,$O$10,,$O$8,$O$12) -> 4508 | E15: =RTD("cqg.rtd",,"StudyData", $O$2, "BAR", "", "Low", $O$4, -$A15, $O$6,$O$10,,$O$8,$O$12) -> 4443.25 | F15: =RTD("cqg.rtd",,"StudyData", $O$2, "BAR", "", "Close", $O$4, -$A15, $O$6,$O$10,,$O$8,$O$12) -> 4447 | G15: =RTD("cqg.rtd",,"StudyData", $O$2, "HVol", "InputChoice=Close,HvolType=Percent,Period=10", "HVOL",$O$4,-A15,$O$6,$O$10,,$O$8,$O$12) -> 10.31092634 | H15: 4 | I15: 26.25
A16: 14 | B16: =RTD("cqg.rtd",,"StudyData", $O$2, "BAR", "", "Time", $O$4,-$A16,$O$6,$O$10, "","False","T") -> 2023-09-19 | C16: =RTD("cqg.rtd",,"StudyData", $O$2, "BAR", "", "Open", $O$4, -$A16, $O$6,$O$10,,$O$8,$O$12) -> 4503.25 | D16: =RTD("cqg.rtd",,"StudyData", $O$2, "BAR", "", "High", $O$4, -$A16, $O$6,$O$10,,$O$8,$O$12) -> 4509.5 | E16: =RTD("cqg.rtd",,"StudyData", $O$2, "BAR", "", "Low", $O$4, -$A16, $O$6,$O$10,,$O$8,$O$12) -> 4462.25 | F16: =RTD("cqg.rtd",,"StudyData", $O$2, "BAR", "", "Close", $O$4, -$A16, $O$6,$O$10,,$O$8,$O$12) -> 4490 | G16: =RTD("cqg.rtd",,"StudyData", $O$2, "HVol", "InputChoice=Close,HvolType=Percent,Period=10", "HVOL",$O$4,-A16,$O$6,$O$10,,$O$8,$O$12) -> 9.798673577 | H16: 1 | I16: 25.5
A17: 15 | B17: =RTD("cqg.rtd",,"StudyData", $O$2, "BAR", "", "Time", $O$4,-$A17,$O$6,$O$10, "","False","T") -> 2023-09-18 | C17: =RTD("cqg.rtd",,"StudyData", $O$2, "BAR", "", "Open", $O$4, -$A17, $O$6,$O$10,,$O$8,$O$12) -> 4499.5 | D17: =RTD("cqg.rtd",,"StudyData", $O$2, "BAR", "", "High", $O$4, -$A17, $O$6,$O$10,,$O$8,$O$12) -> 4514.5 | E17: =RTD("cqg.rtd",,"StudyData", $O$2, "BAR", "", "Low", $O$4, -$A17, $O$6,$O$10,,$O$8,$O$12) -> 4487 | F17: =RTD("cqg.rtd",,"StudyData", $O$2, "BAR", "", "Close", $O$4, -$A17, $O$6,$O$10,,$O$8,$O$12) -> 4501.5 | G17: =RTD("cqg.rtd",,"StudyData", $O$2, "HVol", "InputChoice=Close,HvolType=Percent,Period=10", "HVOL",$O$4,-A17,$O$6,$O$10,,$O$8,$O$12) -> 9.885590455 | H17: 2 | I17: 24.75
A18: 16 | B18: =RTD("cqg.rtd",,"StudyData", $O$2, "BAR", "", "Time", $O$4,-$A18,$O$6,$O$10, "","False","T") -> 2023-09-15 | C18: =RTD("cqg.rtd",,"StudyData", $O$2, "BAR", "", "Open", $O$4, -$A18, $O$6,$O$10,,$O$8,$O$12) -> 4556.5 | D18: =RTD("cqg.rtd",,"StudyData", $O$2, "BAR", "", "High", $O$4, -$A18, $O$6,$O$10,,$O$8,$O$12) -> 4566 | E18: =RTD("cqg.rtd",,"StudyData", $O$2, "BAR", "", "Low", $O$4, -$A18, $O$6,$O$10,,$O$8,$O$12) -> 4494 | F18: =RTD("cqg.rtd",,"StudyData", $O$2, "BAR", "", "Close", $O$4, -$A18, $O$6,$O$10,,$O$8,$O$12) -> 4498 | G18: =RTD("cqg.rtd",,"StudyData", $O$2, "HVol", "InputChoice=Close,HvolType=Percent,Period=10", "HVOL",$O$4,-A18,$O$6,$O$10,,$O$8,$O$12) -> 9.915312298 | H18: 3 | I18: 24
A19: 17 | B19: =RTD("cqg.rtd",,"StudyData", $O$2, "BAR", "", "Time", $O$4,-$A19,$O$6,$O$10, "","False","T") -> 2023-09-14 | C19: =RTD("cqg.rtd",,"StudyData", $O$2, "BAR", "", "Open", $O$4, -$A19, $O$6,$O$10,,$O$8,$O$12) -> 4521.25 | D19: =RTD("cqg.rtd",,"StudyData", $O$2, "BAR", "", "High", $O$4, -$A19, $O$6,$O$10,,$O$8,$O$12) -> 4562 | E19: =RTD("cqg.rtd",,"StudyData", $O$2, "BAR", "", "Low", $O$4, -$A19, $O$6,$O$10,,$O$8,$O$12) -> 4519 | F19: =RTD("cqg.rtd",,"StudyData", $O$2, "BAR", "", "Close", $O$4, -$A19, $O$6,$O$10,,$O$8,$O$12) -> 4555 | G19: =RTD("cqg.rtd",,"StudyData", $O$2, "HVol", "InputChoice=Close,HvolType=Percent,Period=10", "HVOL",$O$4,-A19,$O$6,$O$10,,$O$8,$O$12) -> 7.828371193 | H19: 3 | I19: 23.25
A20: 18 | B20: =RTD("cqg.rtd",,"StudyData", $O$2, "BAR", "", "Time", $O$4,-$A20,$O$6,$O$10, "","False","T") -> 2023-09-13 | C20: =RTD("cqg.rtd",,"StudyData", $O$2, "BAR", "", "Open", $O$4, -$A20, $O$6,$O$10,,$O$8,$O$12) -> 4513 | D20: =RTD("cqg.rtd",,"StudyData", $O$2, "BAR", "", "High", $O$4, -$A20, $O$6,$O$10,,$O$8,$O$12) -> 4530.25 | E20: =RTD("cqg.rtd",,"StudyData", $O$2, "BAR", "", "Low", $O$4, -$A20, $O$6,$O$10,,$O$8,$O$12) -> 4495 | F20: =RTD("cqg.rtd",,"StudyData", $O$2, "BAR", "", "Close", $O$4, -$A20, $O$6,$O$10,,$O$8,$O$12) -> 4517.5 | G20: =RTD("cqg.rtd",,"StudyData", $O$2, "HVol", "InputChoice=Close,HvolType=Percent,Period=10", "HVOL",$O$4,-A20,$O$6,$O$10,,$O$8,$O$12) -> 6.685607573 | H20: 4 | I20: 22.5
A21: 19 | B21: =RTD("cqg.rtd",,"StudyData", $O$2, "BAR", "", "Time", $O$4,-$A21,$O$6,$O$10, "","False","T") -> 2023-09-12 | C21: =RTD("cqg.rtd",,"StudyData", $O$2, "BAR", "", "Open", $O$4, -$A21, $O$6,$O$10,,$O$8,$O$12) -> 4536.5 | D21: =RTD("cqg.rtd",,"StudyData", $O$2, "BAR", "", "High", $O$4, -$A21, $O$6,$O$10,,$O$8,$O$12) -> 4539 | E21: =RTD("cqg.rtd",,"StudyData", $O$2, "BAR", "", "Low", $O$4, -$A21, $O$6,$O$10,,$O$8,$O$12) -> 4507.25 | F21: =RTD("cqg.rtd",,"StudyData", $O$2, "BAR", "", "Close", $O$4, -$A21, $O$6,$O$10,,$O$8,$O$12) -> 4513.75 | G21: =RTD("cqg.rtd",,"StudyData", $O$2, "HVol", "InputChoice=Close,HvolType=Percent,Period=10", "HVOL",$O$4,-A21,$O$6,$O$10,,$O$8,$O$12) -> 10.15162629 | H21: 7 | I21: 21.75
A22: 20 | B22: =RTD("cqg.rtd",,"StudyData", $O$2, "BAR", "", "Time", $O$4,-$A22,$O$6,$O$10, "","False","T") -> 2023-09-11 | C22: =RTD("cqg.rtd",,"StudyData", $O$2, "BAR", "", "Open", $O$4, -$A22, $O$6,$O$10,,$O$8,$O$12) -> 4514 | D22: =RTD("cqg.rtd",,"StudyData", $O$2, "BAR", "", "High", $O$4, -$A22, $O$6,$O$10,,$O$8,$O$12) -> 4543.5 | E22: =RTD("cqg.rtd",,"StudyData", $O$2, "BAR", "", "Low", $O$4, -$A22, $O$6,$O$10,,$O$8,$O$12) -> 4508.75 | F22: =RTD("cqg.rtd",,"StudyData", $O$2, "BAR", "", "Close", $O$4, -$A22, $O$6,$O$10,,$O$8,$O$12) -> 4539.5 | G22: =RTD("cqg.rtd",,"StudyData", $O$2, "HVol", "InputChoice=Close,HvolType=Percent,Period=10", "HVOL",$O$4,-A22,$O$6,$O$10,,$O$8,$O$12) -> 9.885248443 | H22: 15 | I22: 21
A23: 21 | B23: =RTD("cqg.rtd",,"StudyData", $O$2, "BAR", "", "Time", $O$4,-$A23,$O$6,$O$10, "","False","T") -> 2023-09-08 | C23: =RTD("cqg.rtd",,"StudyData", $O$2, "BAR", "", "Open", $O$4, -$A23, $O$6,$O$10,,$O$8,$O$12) -> 4507.75 | D23: =RTD("cqg.rtd",,"StudyData", $O$2, "BAR", "", "High", $O$4, -$A23, $O$6,$O$10,,$O$8,$O$12) -> 4527 | E23: =RTD("cqg.rtd",,"StudyData", $O$2, "BAR", "", "Low", $O$4, -$A23, $O$6,$O$10,,$O$8,$O$12) -> 4492.5 | F23: =RTD("cqg.rtd",,"StudyData", $O$2, "BAR", "", "Close", $O$4, -$A23, $O$6,$O$10,,$O$8,$O$12) -> 4511.25 | G23: =RTD("cqg.rtd",,"StudyData", $O$2, "HVol", "InputChoice=Close,HvolType=Percent,Period=10", "HVOL",$O$4,-A23,$O$6,$O$10,,$O$8,$O$12) -> 9.899088301 | H23: 5 | I23: 20.25
A24: 22 | B24: =RTD("cqg.rtd",,"StudyData", $O$2, "BAR", "", "Time", $O$4,-$A24,$O$6,$O$10, "","False","T") -> 2023-09-07 | C24: =RTD("cqg.rtd",,"StudyData", $O$2, "BAR", "", "Open", $O$4, -$A24, $O$6,$O$10,,$O$8,$O$12) -> 4519 | D24: =RTD("cqg.rtd",,"StudyData", $O$2, "BAR", "", "High", $O$4, -$A24, $O$6,$O$10,,$O$8,$O$12) -> 4521.25 | E24: =RTD("cqg.rtd",,"StudyData", $O$2, "BAR", "", "Low", $O$4, -$A24, $O$6,$O$10,,$O$8,$O$12) -> 4483.75 | F24: =RTD("cqg.rtd",,"StudyData", $O$2, "BAR", "", "Close", $O$4, -$A24, $O$6,$O$10,,$O$8,$O$12) -> 4505.75 | G24: =RTD("cqg.rtd",,"StudyData", $O$2, "HVol", "InputChoice=Close,HvolType=Percent,Period=10", "HVOL",$O$4,-A24,$O$6,$O$10,,$O$8,$O$12) -> 12.51773187 | H24: 12 | I24: 19.5
A25: 23 | B25: =RTD("cqg.rtd",,"StudyData", $O$2, "BAR", "", "Time", $O$4,-$A25,$O$6,$O$10, "","False","T") -> 2023-09-06 | C25: =RTD("cqg.rtd",,"StudyData", $O$2, "BAR", "", "Open", $O$4, -$A25, $O$6,$O$10,,$O$8,$O$12) -> 4549.5 | D25: =RTD("cqg.rtd",,"StudyData", $O$2, "BAR", "", "High", $O$4, -$A25, $O$6,$O$10,,$O$8,$O$12) -> 4553.25 | E25: =RTD("cqg.rtd",,"StudyData", $O$2, "BAR", "", "Low", $O$4, -$A25, $O$6,$O$10,,$O$8,$O$12) -> 4496.5 | F25: =RTD("cqg.rtd",,"StudyData", $O$2, "BAR", "", "Close", $O$4, -$A25, $O$6,$O$10,,$O$8,$O$12) -> 4521 | G25: =RTD("cqg.rtd",,"StudyData", $O$2, "HVol", "InputChoice=Close,HvolType=Percent,Period=10", "HVOL",$O$4,-A25,$O$6,$O$10,,$O$8,$O$12) -> 13.34822591 | H25: 12 | I25: 18.75
A26: 24 | B26: =RTD("cqg.rtd",,"StudyData", $O$2, "BAR", "", "Time", $O$4,-$A26,$O$6,$O$10, "","False","T") -> 2023-09-05 | C26: =RTD("cqg.rtd",,"StudyData", $O$2, "BAR", "", "Open", $O$4, -$A26, $O$6,$O$10,,$O$8,$O$12) -> 4570.75 | D26: =RTD("cqg.rtd",,"StudyData", $O$2, "BAR", "", "High", $O$4, -$A26, $O$6,$O$10,,$O$8,$O$12) -> 4580.75 | E26: =RTD("cqg.rtd",,"StudyData", $O$2, "BAR", "", "Low", $O$4, -$A26, $O$6,$O$10,,$O$8,$O$12) -> 4548.75 | F26: =RTD("cqg.rtd",,"StudyData", $O$2, "BAR", "", "Close", $O$4, -$A26, $O$6,$O$10,,$O$8,$O$12) -> 4552 | G26: =RTD("cqg.rtd",,"StudyData", $O$2, "HVol", "InputChoice=Close,HvolType=Percent,Period=10", "HVOL",$O$4,-A26,$O$6,$O$10,,$O$8,$O$12) -> 12.79934638 | H26: 12 | I26: 18
A27: 25 | B27: =RTD("cqg.rtd",,"StudyData", $O$2, "BAR", "", "Time", $O$4,-$A27,$O$6,$O$10, "","False","T") -> 2023-09-01 | C27: =RTD("cqg.rtd",,"StudyData", $O$2, "BAR", "", "Open", $O$4, -$A27, $O$6,$O$10,,$O$8,$O$12) -> 4566.25 | D27: =RTD("cqg.rtd",,"StudyData", $O$2, "BAR", "", "High", $O$4, -$A27, $O$6,$O$10,,$O$8,$O$12) -> 4597.25 | E27: =RTD("cqg.rtd",,"StudyData", $O$2, "BAR", "", "Low", $O$4, -$A27, $O$6,$O$10,,$O$8,$O$12) -> 4556.75 | F27: =RTD("cqg.rtd",,"StudyData", $O$2, "BAR", "", "Close", $O$4, -$A27, $O$6,$O$10,,$O$8,$O$12) -> 4571 | G27: =RTD("cqg.rtd",,"StudyData", $O$2, "HVol", "InputChoice=Close,HvolType=Percent,Period=10", "HVOL",$O$4,-A27,$O$6,$O$10,,$O$8,$O$12) -> 12.4903612 | H27: 13 | I27: 17.25
A28: 26 | B28: =RTD("cqg.rtd",,"StudyData", $O$2, "BAR", "", "Time", $O$4,-$A28,$O$6,$O$10, "","False","T") -> 2023-08-31 | C28: =RTD("cqg.rtd",,"StudyData", $O$2, "BAR", "", "Open", $O$4, -$A28, $O$6,$O$10,,$O$8,$O$12) -> 4576.5 | D28: =RTD("cqg.rtd",,"StudyData", $O$2, "BAR", "", "High", $O$4, -$A28, $O$6,$O$10,,$O$8,$O$12) -> 4590.75 | E28: =RTD("cqg.rtd",,"StudyData", $O$2, "BAR", "", "Low", $O$4, -$A28, $O$6,$O$10,,$O$8,$O$12) -> 4562.25 | F28: =RTD("cqg.rtd",,"StudyData", $O$2, "BAR", "", "Close", $O$4, -$A28, $O$6,$O$10,,$O$8,$O$12) -> 4565.5 | G28: =RTD("cqg.rtd",,"StudyData", $O$2, "HVol", "InputChoice=Close,HvolType=Percent,Period=10", "HVOL",$O$4,-A28,$O$6,$O$10,,$O$8,$O$12) -> 12.58357174 | H28: 8 | I28: 16.5
A29: 27 | B29: =RTD("cqg.rtd",,"StudyData", $O$2, "BAR", "", "Time", $O$4,-$A29,$O$6,$O$10, "","False","T") -> 2023-08-30 | C29: =RTD("cqg.rtd",,"StudyData", $O$2, "BAR", "", "Open", $O$4, -$A29, $O$6,$O$10,,$O$8,$O$12) -> 4558.25 | D29: =RTD("cqg.rtd",,"StudyData", $O$2, "BAR", "", "High", $O$4, -$A29, $O$6,$O$10,,$O$8,$O$12) -> 4580.25 | E29: =RTD("cqg.rtd",,"StudyData", $O$2, "BAR", "", "Low", $O$4, -$A29, $O$6,$O$10,,$O$8,$O$12) -> 4545.75 | F29: =RTD("cqg.rtd",,"StudyData", $O$2, "BAR", "", "Close", $O$4, -$A29, $O$6,$O$10,,$O$8,$O$12) -> 4573.75 | G29: =RTD("cqg.rtd",,"StudyData", $O$2, "HVol", "InputChoice=Close,HvolType=Percent,Period=10", "HVOL",$O$4,-A29,$O$6,$O$10,,$O$8,$O$12) -> 13.56462977 | H29: 19 | I29: 15.75
A30: 28 | B30: =RTD("cqg.rtd",,"StudyData", $O$2, "BAR", "", "Time", $O$4,-$A30,$O$6,$O$10, "","False","T") -> 2023-08-29 | C30: =RTD("cqg.rtd",,"StudyData", $O$2, "BAR", "", "Open", $O$4, -$A30, $O$6,$O$10,,$O$8,$O$12) -> 4493.5 | D30: =RTD("cqg.rtd",,"StudyData", $O$2, "BAR", "", "High", $O$4, -$A30, $O$6,$O$10,,$O$8,$O$12) -> 4559 | E30: =RTD("cqg.rtd",,"StudyData", $O$2, "BAR", "", "Low", $O$4, -$A30, $O$6,$O$10,,$O$8,$O$12) -> 4483 | F30: =RTD("cqg.rtd",,"StudyData", $O$2, "BAR", "", "Close", $O$4, -$A30, $O$6,$O$10,,$O$8,$O$12) -> 4556.25 | G30: =RTD("cqg.rtd",,"StudyData", $O$2, "HVol", "InputChoice=Close,HvolType=Percent,Period=10", "HVOL",$O$4,-A30,$O$6,$O$10,,$O$8,$O$12) -> 14.38565639 | H30: 12 | I30: 15
A31: 29 | B31: =RTD("cqg.rtd",,"StudyData", $O$2, "BAR", "", "Time", $O$4,-$A31,$O$6,$O$10, "","False","T") -> 2023-08-28 | C31: =RTD("cqg.rtd",,"StudyData", $O$2, "BAR", "", "Open", $O$4, -$A31, $O$6,$O$10,,$O$8,$O$12) -> 4467.5 | D31: =RTD("cqg.rtd",,"StudyData", $O$2, "BAR", "", "High", $O$4, -$A31, $O$6,$O$10,,$O$8,$O$12) -> 4499 | E31: =RTD("cqg.rtd",,"StudyData", $O$2, "BAR", "", "Low", $O$4, -$A31, $O$6,$O$10,,$O$8,$O$12) -> 4464 | F31: =RTD("cqg.rtd",,"StudyData", $O$2, "BAR", "", "Close", $O$4, -$A31, $O$6,$O$10,,$O$8,$O$12) -> 4491.75 | G31: =RTD("cqg.rtd",,"StudyData", $O$2, "HVol", "InputChoice=Close,HvolType=Percent,Period=10", "HVOL",$O$4,-A31,$O$6,$O$10,,$O$8,$O$12) -> 13.58776539 | H31: 19 | I31: 14.25
A32: 30 | B32: =RTD("cqg.rtd",,"StudyData", $O$2, "BAR", "", "Time", $O$4,-$A32,$O$6,$O$10, "","False","T") -> 2023-08-25 | C32: =RTD("cqg.rtd",,"StudyData", $O$2, "BAR", "", "Open", $O$4, -$A32, $O$6,$O$10,,$O$8,$O$12) -> 4434 | D32: =RTD("cqg.rtd",,"StudyData", $O$2, "BAR", "", "High", $O$4, -$A32, $O$6,$O$10,,$O$8,$O$12) -> 4478.5 | E32: =RTD("cqg.rtd",,"StudyData", $O$2, "BAR", "", "Low", $O$4, -$A32, $O$6,$O$10,,$O$8,$O$12) -> 4414.75 | F32: =RTD("cqg.rtd",,"StudyData", $O$2, "BAR", "", "Close", $O$4, -$A32, $O$6,$O$10,,$O$8,$O$12) -> 4463.75 | G32: =RTD("cqg.rtd",,"StudyData", $O$2, "HVol", "InputChoice=Close,HvolType=Percent,Period=10", "HVOL",$O$4,-A32,$O$6,$O$10,,$O$8,$O$12) -> 13.4825521 | H32: 16 | I32: 13.5 | J32: 16
A33: 31 | B33: =RTD("cqg.rtd",,"StudyData", $O$2, "BAR", "", "Time", $O$4,-$A33,$O$6,$O$10, "","False","T") -> 2023-08-24 | C33: =RTD("cqg.rtd",,"StudyData", $O$2, "BAR", "", "Open", $O$4, -$A33, $O$6,$O$10,,$O$8,$O$12) -> 4520 | D33: =RTD("cqg.rtd",,"StudyData", $O$2, "BAR", "", "High", $O$4, -$A33, $O$6,$O$10,,$O$8,$O$12) -> 4535 | E33: =RTD("cqg.rtd",,"StudyData", $O$2, "BAR", "", "Low", $O$4, -$A33, $O$6,$O$10,,$O$8,$O$12) -> 4428 | F33: =RTD("cqg.rtd",,"StudyData", $O$2, "BAR", "", "Close", $O$4, -$A33, $O$6,$O$10,,$O$8,$O$12) -> 4435.5 | G33: =RTD("cqg.rtd",,"StudyData", $O$2, "HVol", "InputChoice=Close,HvolType=Percent,Period=10", "HVOL",$O$4,-A33,$O$6,$O$10,,$O$8,$O$12) -> 12.77890565 | H33: 15 | I33: 12.75
A34: 32 | B34: =RTD("cqg.rtd",,"StudyData", $O$2, "BAR", "", "Time", $O$4,-$A34,$O$6,$O$10, "","False","T") -> 2023-08-23 | C34: =RTD("cqg.rtd",,"StudyData", $O$2, "BAR", "", "Open", $O$4, -$A34, $O$6,$O$10,,$O$8,$O$12) -> 4449.5 | D34: =RTD("cqg.rtd",,"StudyData", $O$2, "BAR", "", "High", $O$4, -$A34, $O$6,$O$10,,$O$8,$O$12) -> 4525.75 | E34: =RTD("cqg.rtd",,"StudyData", $O$2, "BAR", "", "Low", $O$4, -$A34, $O$6,$O$10,,$O$8,$O$12) -> 4449 | F34: =RTD("cqg.rtd",,"StudyData", $O$2, "BAR", "", "Close", $O$4, -$A34, $O$6,$O$10,,$O$8,$O$12) -> 4496.5 | G34: =RTD("cqg.rtd",,"StudyData", $O$2, "HVol", "InputChoice=Close,HvolType=Percent,Period=10", "HVOL",$O$4,-A34,$O$6,$O$10,,$O$8,$O$12) -> 11.11698324 | H34: 9 | I34: 12
A35: 33 | B35: =RTD("cqg.rtd",,"StudyData", $O$2, "BAR", "", "Time", $O$4,-$A35,$O$6,$O$10, "","False","T") -> 2023-08-22 | C35: =RTD("cqg.rtd",,"StudyData", $O$2, "BAR", "", "Open", $O$4, -$A35, $O$6,$O$10,,$O$8,$O$12) -> 4459.75 | D35: =RTD("cqg.rtd",,"StudyData", $O$2, "BAR", "", "High", $O$4, -$A35, $O$6,$O$10,,$O$8,$O$12) -> 4489.5 | E35: =RTD("cqg.rtd",,"StudyData", $O$2, "BAR", "", "Low", $O$4, -$A35, $O$6,$O$10,,$O$8,$O$12) -> 4443.75 | F35: =RTD("cqg.rtd",,"StudyData", $O$2, "BAR", "", "Close", $O$4, -$A35, $O$6,$O$10,,$O$8,$O$12) -> 4448.75 | G35: =RTD("cqg.rtd",,"StudyData", $O$2, "HVol", "InputChoice=Close,HvolType=Percent,Period=10", "HVOL",$O$4,-A35,$O$6,$O$10,,$O$8,$O$12) -> 9.415485256 | H35: 17 | I35: 11.25
A36: 34 | B36: =RTD("cqg.rtd",,"StudyData", $O$2, "BAR", "", "Time", $O$4,-$A36,$O$6,$O$10, "","False","T") -> 2023-08-21 | C36: =RTD("cqg.rtd",,"StudyData", $O$2, "BAR", "", "Open", $O$4, -$A36, $O$6,$O$10,,$O$8,$O$12) -> 4432 | D36: =RTD("cqg.rtd",,"StudyData", $O$2, "BAR", "", "High", $O$4, -$A36, $O$6,$O$10,,$O$8,$O$12) -> 4470.5 | E36: =RTD("cqg.rtd",,"StudyData", $O$2, "BAR", "", "Low", $O$4, -$A36, $O$6,$O$10,,$O$8,$O$12) -> 4421.75 | F36: =RTD("cqg.rtd",,"StudyData", $O$2, "BAR", "", "Close", $O$4, -$A36, $O$6,$O$10,,$O$8,$O$12) -> 4462 | G36: =RTD("cqg.rtd",,"StudyData", $O$2, "HVol", "InputChoice=Close,HvolType=Percent,Period=10", "HVOL",$O$4,-A36,$O$6,$O$10,,$O$8,$O$12) -> 9.447856757 | H36: 25 | I36: 10.5
A37: 35 | B37: =RTD("cqg.rtd",,"StudyData", $O$2, "BAR", "", "Time", $O$4,-$A37,$O$6,$O$10, "","False","T") -> 2023-08-18 | C37: =RTD("cqg.rtd",,"StudyData", $O$2, "BAR", "", "Open", $O$4, -$A37, $O$6,$O$10,,$O$8,$O$12) -> 4428.75 | D37: =RTD("cqg.rtd",,"StudyData", $O$2, "BAR", "", "High", $O$4, -$A37, $O$6,$O$10,,$O$8,$O$12) -> 4445.5 | E37: =RTD("cqg.rtd",,"StudyData", $O$2, "BAR", "", "Low", $O$4, -$A37, $O$6,$O$10,,$O$8,$O$12) -> 4399.5 | F37: =RTD("cqg.rtd",,"StudyData", $O$2, "BAR", "", "Close", $O$4, -$A37, $O$6,$O$10,,$O$8,$O$12) -> 4432.25 | G37: =RTD("cqg.rtd",,"StudyData", $O$2, "HVol", "InputChoice=Close,HvolType=Percent,Period=10", "HVOL",$O$4,-A37,$O$6,$O$10,,$O$8,$O$12) -> 10.04762578 | H37: 12 | I37: 9.75
A38: 36 | B38: =RTD("cqg.rtd",,"StudyData", $O$2, "BAR", "", "Time", $O$4,-$A38,$O$6,$O$10, "","False","T") -> 2023-08-17 | C38: =RTD("cqg.rtd",,"StudyData", $O$2, "BAR", "", "Open", $O$4, -$A38, $O$6,$O$10,,$O$8,$O$12) -> 4470 | D38: =RTD("cqg.rtd",,"StudyData", $O$2, "BAR", "", "High", $O$4, -$A38, $O$6,$O$10,,$O$8,$O$12) -> 4486.25 | E38: =RTD("cqg.rtd",,"StudyData", $O$2, "BAR", "", "Low", $O$4, -$A38, $O$6,$O$10,,$O$8,$O$12) -> 4427.25 | F38: =RTD("cqg.rtd",,"StudyData", $O$2, "BAR", "", "Close", $O$4, -$A38, $O$6,$O$10,,$O$8,$O$12) -> 4434 | G38: =RTD("cqg.rtd",,"StudyData", $O$2, "HVol", "InputChoice=Close,HvolType=Percent,Period=10", "HVOL",$O$4,-A38,$O$6,$O$10,,$O$8,$O$12) -> 10.04888751 | H38: 9 | I38: 9
A39: 37 | B39: =RTD("cqg.rtd",,"StudyData", $O$2, "BAR", "", "Time", $O$4,-$A39,$O$6,$O$10, "","False","T") -> 2023-08-16 | C39: =RTD("cqg.rtd",,"StudyData", $O$2, "BAR", "", "Open", $O$4, -$A39, $O$6,$O$10,,$O$8,$O$12) -> 4502.75 | D39: =RTD("cqg.rtd",,"StudyData", $O$2, "BAR", "", "High", $O$4, -$A39, $O$6,$O$10,,$O$8,$O$12) -> 4516.75 | E39: =RTD("cqg.rtd",,"StudyData", $O$2, "BAR", "", "Low", $O$4, -$A39, $O$6,$O$10,,$O$8,$O$12) -> 4466.5 | F39: =RTD("cqg.rtd",,"StudyData", $O$2, "BAR", "", "Close", $O$4, -$A39, $O$6,$O$10,,$O$8,$O$12) -> 4469.5 | G39: =RTD("cqg.rtd",,"StudyData", $O$2, "HVol", "InputChoice=Close,HvolType=Percent,Period=10", "HVOL",$O$4,-A39,$O$6,$O$10,,$O$8,$O$12) -> 9.68092788 | H39: 10 | I39: 8.25
A40: 38 | B40: =RTD("cqg.rtd",,"StudyData", $O$2, "BAR", "", "Time", $O$4,-$A40,$O$6,$O$10, "","False","T") -> 2023-08-15 | C40: =RTD("cqg.rtd",,"StudyData", $O$2, "BAR", "", "Open", $O$4, -$A40, $O$6,$O$10,,$O$8,$O$12) -> 4555.25 | D40: =RTD("cqg.rtd",,"StudyData", $O$2, "BAR", "", "High", $O$4, -$A40, $O$6,$O$10,,$O$8,$O$12) -> 4567.25 | E40: =RTD("cqg.rtd",,"StudyData", $O$2, "BAR", "", "Low", $O$4, -$A40, $O$6,$O$10,,$O$8,$O$12) -> 4496.5 | F40: =RTD("cqg.rtd",,"StudyData", $O$2, "BAR", "", "Close", $O$4, -$A40, $O$6,$O$10,,$O$8,$O$12) -> 4503.5 | G40: =RTD("cqg.rtd",,"StudyData", $O$2, "HVol", "InputChoice=Close,HvolType=Percent,Period=10", "HVOL",$O$4,-A40,$O$6,$O$10,,$O$8,$O$12) -> 10.97965304 | H40: 5 | I40: 7.5
A41: 39 | B41: =RTD("cqg.rtd",,"StudyData", $O$2, "BAR", "", "Time", $O$4,-$A41,$O$6,$O$10, "","False","T") -> 2023-08-14 | C41: =RTD("cqg.rtd",,"StudyData", $O$2, "BAR", "", "Open", $O$4, -$A41, $O$6,$O$10,,$O$8,$O$12) -> 4534.5 | D41: =RTD("cqg.rtd",,"StudyData", $O$2, "BAR", "", "High", $O$4, -$A41, $O$6,$O$10,,$O$8,$O$12) -> 4557.25 | E41: =RTD("cqg.rtd",,"StudyData", $O$2, "BAR", "", "Low", $O$4, -$A41, $O$6,$O$10,,$O$8,$O$12) -> 4514.5 | F41: =RTD("cqg.rtd",,"StudyData", $O$2, "BAR", "", "Close", $O$4, -$A41, $O$6,$O$10,,$O$8,$O$12) -> 4555.5 | G41: =RTD("cqg.rtd",,"StudyData", $O$2, "HVol", "InputChoice=Close,HvolType=Percent,Period=10", "HVOL",$O$4,-A41,$O$6,$O$10,,$O$8,$O$12) -> 9.987790553 | H41: 1 | I41: 6.75
A42: 40 | B42: =RTD("cqg.rtd",,"StudyData", $O$2, "BAR", "", "Time", $O$4,-$A42,$O$6,$O$10, "","False","T") -> 2023-08-11 | C42: =RTD("cqg.rtd",,"StudyData", $O$2, "BAR", "", "Open", $O$4, -$A42, $O$6,$O$10,,$O$8,$O$12) -> 4537.25 | D42: =RTD("cqg.rtd",,"StudyData", $O$2, "BAR", "", "High", $O$4, -$A42, $O$6,$O$10,,$O$8,$O$12) -> 4545.75 | E42: =RTD("cqg.rtd",,"StudyData", $O$2, "BAR", "", "Low", $O$4, -$A42, $O$6,$O$10,,$O$8,$O$12) -> 4508.5 | F42: =RTD("cqg.rtd",,"StudyData", $O$2, "BAR", "", "Close", $O$4, -$A42, $O$6,$O$10,,$O$8,$O$12) -> 4530.25 | G42: =RTD("cqg.rtd",,"StudyData", $O$2, "HVol", "InputChoice=Close,HvolType=Percent,Period=10", "HVOL",$O$4,-A42,$O$6,$O$10,,$O$8,$O$12) -> 9.3025071 | H42: 0 | I42: 6
A43: 41 | B43: =RTD("cqg.rtd",,"StudyData", $O$2, "BAR", "", "Time", $O$4,-$A43,$O$6,$O$10, "","False","T") -> 2023-08-10 | C43: =RTD("cqg.rtd",,"StudyData", $O$2, "BAR", "", "Open", $O$4, -$A43, $O$6,$O$10,,$O$8,$O$12) -> 4542.75 | D43: =RTD("cqg.rtd",,"StudyData", $O$2, "BAR", "", "High", $O$4, -$A43, $O$6,$O$10,,$O$8,$O$12) -> 4594.25 | E43: =RTD("cqg.rtd",,"StudyData", $O$2, "BAR", "", "Low", $O$4, -$A43, $O$6,$O$10,,$O$8,$O$12) -> 4523 | F43: =RTD("cqg.rtd",,"StudyData", $O$2, "BAR", "", "Close", $O$4, -$A43, $O$6,$O$10,,$O$8,$O$12) -> 4535.25 | G43: =RTD("cqg.rtd",,"StudyData", $O$2, "HVol", "InputChoice=Close,HvolType=Percent,Period=10", "HVOL",$O$4,-A43,$O$6,$O$10,,$O$8,$O$12) -> 11.04829189 | H43: 0 | I43: 5.25
A44: 42 | B44: =RTD("cqg.rtd",,"StudyData", $O$2, "BAR", "", "Time", $O$4,-$A44,$O$6,$O$10, "","False","T") -> 2023-08-09 | C44: =RTD("cqg.rtd",,"StudyData", $O$2, "BAR", "", "Open", $O$4, -$A44, $O$6,$O$10,,$O$8,$O$12) -> 4566 | D44: =RTD("cqg.rtd",,"StudyData", $O$2, "BAR", "", "High", $O$4, -$A44, $O$6,$O$10,,$O$8,$O$12) -> 4585.75 | E44: =RTD("cqg.rtd",,"StudyData", $O$2, "BAR", "", "Low", $O$4, -$A44, $O$6,$O$10,,$O$8,$O$12) -> 4527.75 | F44: =RTD("cqg.rtd",,"StudyData", $O$2, "BAR", "", "Close", $O$4, -$A44, $O$6,$O$10,,$O$8,$O$12) -> 4535.25 | G44: =RTD("cqg.rtd",,"StudyData", $O$2, "HVol", "InputChoice=Close,HvolType=Percent,Period=10", "HVOL",$O$4,-A44,$O$6,$O$10,,$O$8,$O$12) -> 11.26609879
A45: 43 | B45: =RTD("cqg.rtd",,"StudyData", $O$2, "BAR", "", "Time", $O$4,-$A45,$O$6,$O$10, "","False","T") -> 2023-08-08 | C45: =RTD("cqg.rtd",,"StudyData", $O$2, "BAR", "", "Open", $O$4, -$A45, $O$6,$O$10,,$O$8,$O$12) -> 4589 | D45: =RTD("cqg.rtd",,"StudyData", $O$2, "BAR", "", "High", $O$4, -$A45, $O$6,$O$10,,$O$8,$O$12) -> 4590.5 | E45: =RTD("cqg.rtd",,"StudyData", $O$2, "BAR", "", "Low", $O$4, -$A45, $O$6,$O$10,,$O$8,$O$12) -> 4531.5 | F45: =RTD("cqg.rtd",,"StudyData", $O$2, "BAR", "", "Close", $O$4, -$A45, $O$6,$O$10,,$O$8,$O$12) -> 4568 | G45: =RTD("cqg.rtd",,"StudyData", $O$2, "HVol", "InputChoice=Close,HvolType=Percent,Period=10", "HVOL",$O$4,-A45,$O$6,$O$10,,$O$8,$O$12) -> 10.97626356
A46: 44 | B46: =RTD("cqg.rtd",,"StudyData", $O$2, "BAR", "", "Time", $O$4,-$A46,$O$6,$O$10, "","False","T") -> 2023-08-07 | C46: =RTD("cqg.rtd",,"StudyData", $O$2, "BAR", "", "Open", $O$4, -$A46, $O$6,$O$10,,$O$8,$O$12) -> 4550 | D46: =RTD("cqg.rtd",,"StudyData", $O$2, "BAR", "", "High", $O$4, -$A46, $O$6,$O$10,,$O$8,$O$12) -> 4591.25 | E46: =RTD("cqg.rtd",,"StudyData", $O$2, "BAR", "", "Low", $O$4, -$A46, $O$6,$O$10,,$O$8,$O$12) -> 4550 | F46: =RTD("cqg.rtd",,"StudyData", $O$2, "BAR", "", "Close", $O$4, -$A46, $O$6,$O$10,,$O$8,$O$12) -> 4587.25 | G46: =RTD("cqg.rtd",,"StudyData", $O$2, "HVol", "InputChoice=Close,HvolType=Percent,Period=10", "HVOL",$O$4,-A46,$O$6,$O$10,,$O$8,$O$12) -> 11.07446069
A47: 45 | B47: =RTD("cqg.rtd",,"StudyData", $O$2, "BAR", "", "Time", $O$4,-$A47,$O$6,$O$10, "","False","T") -> 2023-08-04 | C47: =RTD("cqg.rtd",,"StudyData", $O$2, "BAR", "", "Open", $O$4, -$A47, $O$6,$O$10,,$O$8,$O$12) -> 4573 | D47: =RTD("cqg.rtd",,"StudyData", $O$2, "BAR", "", "High", $O$4, -$A47, $O$6,$O$10,,$O$8,$O$12) -> 4610.25 | E47: =RTD("cqg.rtd",,"StudyData", $O$2, "BAR", "", "Low", $O$4, -$A47, $O$6,$O$10,,$O$8,$O$12) -> 4543.25 | F47: =RTD("cqg.rtd",,"StudyData", $O$2, "BAR", "", "Close", $O$4, -$A47, $O$6,$O$10,,$O$8,$O$12) -> 4547.5 | G47: =RTD("cqg.rtd",,"StudyData", $O$2, "HVol", "InputChoice=Close,HvolType=Percent,Period=10", "HVOL",$O$4,-A47,$O$6,$O$10,,$O$8,$O$12) -> 10.14290359
A48: 46 | B48: =RTD("cqg.rtd",,"StudyData", $O$2, "BAR", "", "Time", $O$4,-$A48,$O$6,$O$10, "","False","T") -> 2023-08-03 | C48: =RTD("cqg.rtd",,"StudyData", $O$2, "BAR", "", "Open", $O$4, -$A48, $O$6,$O$10,,$O$8,$O$12) -> 4583.75 | D48: =RTD("cqg.rtd",,"StudyData", $O$2, "BAR", "", "High", $O$4, -$A48, $O$6,$O$10,,$O$8,$O$12) -> 4597 | E48: =RTD("cqg.rtd",,"StudyData", $O$2, "BAR", "", "Low", $O$4, -$A48, $O$6,$O$10,,$O$8,$O$12) -> 4555.25 | F48: =RTD("cqg.rtd",,"StudyData", $O$2, "BAR", "", "Close", $O$4, -$A48, $O$6,$O$10,,$O$8,$O$12) -> 4571.25 | G48: =RTD("cqg.rtd",,"StudyData", $O$2, "HVol", "InputChoice=Close,HvolType=Percent,Period=10", "HVOL",$O$4,-A48,$O$6,$O$10,,$O$8,$O$12) -> 9.9349665
A49: 47 | B49: =RTD("cqg.rtd",,"StudyData", $O$2, "BAR", "", "Time", $O$4,-$A49,$O$6,$O$10, "","False","T") -> 2023-08-02 | C49: =RTD("cqg.rtd",,"StudyData", $O$2, "BAR", "", "Open", $O$4, -$A49, $O$6,$O$10,,$O$8,$O$12) -> 4629.5 | D49: =RTD("cqg.rtd",,"StudyData", $O$2, "BAR", "", "High", $O$4, -$A49, $O$6,$O$10,,$O$8,$O$12) -> 4643 | E49: =RTD("cqg.rtd",,"StudyData", $O$2, "BAR", "", "Low", $O$4, -$A49, $O$6,$O$10,,$O$8,$O$12) -> 4577.25 | F49: =RTD("cqg.rtd",,"StudyData", $O$2, "BAR", "", "Close", $O$4, -$A49, $O$6,$O$10,,$O$8,$O$12) -> 4586.75 | G49: =RTD("cqg.rtd",,"StudyData", $O$2, "HVol", "InputChoice=Close,HvolType=Percent,Period=10", "HVOL",$O$4,-A49,$O$6,$O$10,,$O$8,$O$12) -> 10.30592011
A50: 48 | B50: =RTD("cqg.rtd",,"StudyData", $O$2, "BAR", "", "Time", $O$4,-$A50,$O$6,$O$10, "","False","T") -> 2023-08-01 | C50: =RTD("cqg.rtd",,"StudyData", $O$2, "BAR", "", "Open", $O$4, -$A50, $O$6,$O$10,,$O$8,$O$12) -> 4667.25 | D50: =RTD("cqg.rtd",,"StudyData", $O$2, "BAR", "", "High", $O$4, -$A50, $O$6,$O$10,,$O$8,$O$12) -> 4671.25 | E50: =RTD("cqg.rtd",,"StudyData", $O$2, "BAR", "", "Low", $O$4, -$A50, $O$6,$O$10,,$O$8,$O$12) -> 4640.5 | F50: =RTD("cqg.rtd",,"StudyData", $O$2, "BAR", "", "Close", $O$4, -$A50, $O$6,$O$10,,$O$8,$O$12) -> 4650.75 | G50: =RTD("cqg.rtd",,"StudyData", $O$2, "HVol", "InputChoice=Close,HvolType=Percent,Period=10", "HVOL",$O$4,-A50,$O$6,$O$10,,$O$8,$O$12) -> 7.679331505
A51: 49 | B51: =RTD("cqg.rtd",,"StudyData", $O$2, "BAR", "", "Time", $O$4,-$A51,$O$6,$O$10, "","False","T") -> 2023-07-31 | C51: =RTD("cqg.rtd",,"StudyData", $O$2, "BAR", "", "Open", $O$4, -$A51, $O$6,$O$10,,$O$8,$O$12) -> 4658.25 | D51: =RTD("cqg.rtd",,"StudyData", $O$2, "BAR", "", "High", $O$4, -$A51, $O$6,$O$10,,$O$8,$O$12) -> 4668.75 | E51: =RTD("cqg.rtd",,"StudyData", $O$2, "BAR", "", "Low", $O$4, -$A51, $O$6,$O$10,,$O$8,$O$12) -> 4644.75 | F51: =RTD("cqg.rtd",,"StudyData", $O$2, "BAR", "", "Close", $O$4, -$A51, $O$6,$O$10,,$O$8,$O$12) -> 4664 | G51: =RTD("cqg.rtd",,"StudyData", $O$2, "HVol", "InputChoice=Close,HvolType=Percent,Period=10", "HVOL",$O$4,-A51,$O$6,$O$10,,$O$8,$O$12) -> 8.201629419
A52: 50 | B52: =RTD("cqg.rtd",,"StudyData", $O$2, "BAR", "", "Time", $O$4,-$A52,$O$6,$O$10, "","False","T") -> 2023-07-28 | C52: =RTD("cqg.rtd",,"StudyData", $O$2, "BAR", "", "Open", $O$4, -$A52, $O$6,$O$10,,$O$8,$O$12) -> 4615.5 | D52: =RTD("cqg.rtd",,"StudyData", $O$2, "BAR", "", "High", $O$4, -$A52, $O$6,$O$10,,$O$8,$O$12) -> 4666 | E52: =RTD("cqg.rtd",,"StudyData", $O$2, "BAR", "", "Low", $O$4, -$A52, $O$6,$O$10,,$O$8,$O$12) -> 4607.5 | F52: =RTD("cqg.rtd",,"StudyData", $O$2, "BAR", "", "Close", $O$4, -$A52, $O$6,$O$10,,$O$8,$O$12) -> 4656 | G52: =RTD("cqg.rtd",,"StudyData", $O$2, "HVol", "InputChoice=Close,HvolType=Percent,Period=10", "HVOL",$O$4,-A52,$O$6,$O$10,,$O$8,$O$12) -> 8.287986591
A53: 51 | B53: =RTD("cqg.rtd",,"StudyData", $O$2, "BAR", "", "Time", $O$4,-$A53,$O$6,$O$10, "","False","T") -> 2023-07-27 | C53: =RTD("cqg.rtd",,"StudyData", $O$2, "BAR", "", "Open", $O$4, -$A53, $O$6,$O$10,,$O$8,$O$12) -> 4644.25 | D53: =RTD("cqg.rtd",,"StudyData", $O$2, "BAR", "", "High", $O$4, -$A53, $O$6,$O$10,,$O$8,$O$12) -> 4684 | E53: =RTD("cqg.rtd",,"StudyData", $O$2, "BAR", "", "Low", $O$4, -$A53, $O$6,$O$10,,$O$8,$O$12) -> 4603.25 | F53: =RTD("cqg.rtd",,"StudyData", $O$2, "BAR", "", "Close", $O$4, -$A53, $O$6,$O$10,,$O$8,$O$12) -> 4613.75 | G53: =RTD("cqg.rtd",,"StudyData", $O$2, "HVol", "InputChoice=Close,HvolType=Percent,Period=10", "HVOL",$O$4,-A53,$O$6,$O$10,,$O$8,$O$12) -> 7.200747075
A54: 52 | B54: =RTD("cqg.rtd",,"StudyData", $O$2, "BAR", "", "Time", $O$4,-$A54,$O$6,$O$10, "","False","T") -> 2023-07-26 | C54: =RTD("cqg.rtd",,"StudyData", $O$2, "BAR", "", "Open", $O$4, -$A54, $O$6,$O$10,,$O$8,$O$12) -> 4654.25 | D54: =RTD("cqg.rtd",,"StudyData", $O$2, "BAR", "", "High", $O$4, -$A54, $O$6,$O$10,,$O$8,$O$12) -> 4660.25 | E54: =RTD("cqg.rtd",,"StudyData", $O$2, "BAR", "", "Low", $O$4, -$A54, $O$6,$O$10,,$O$8,$O$12) -> 4623.25 | F54: =RTD("cqg.rtd",,"StudyData", $O$2, "BAR", "", "Close", $O$4, -$A54, $O$6,$O$10,,$O$8,$O$12) -> 4644.75 | G54: =RTD("cqg.rtd",,"StudyData", $O$2, "HVol", "InputChoice=Close,HvolType=Percent,Period=10", "HVOL",$O$4,-A54,$O$6,$O$10,,$O$8,$O$12) -> 6.869258935
A55: 53 | B55: =RTD("cqg.rtd",,"StudyData", $O$2, "BAR", "", "Time", $O$4,-$A55,$O$6,$O$10, "","False","T") -> 2023-07-25 | C55: =RTD("cqg.rtd",,"StudyData", $O$2, "BAR", "", "Open", $O$4, -$A55, $O$6,$O$10,,$O$8,$O$12) -> 4634 | D55: =RTD("cqg.rtd",,"StudyData", $O$2, "BAR", "", "High", $O$4, -$A55, $O$6,$O$10,,$O$8,$O$12) -> 4658.25 | E55: =RTD("cqg.rtd",,"StudyData", $O$2, "BAR", "", "Low", $O$4, -$A55, $O$6,$O$10,,$O$8,$O$12) -> 4628.75 | F55: =RTD("cqg.rtd",,"StudyData", $O$2, "BAR", "", "Close", $O$4, -$A55, $O$6,$O$10,,$O$8,$O$12) -> 4645.5 | G55: =RTD("cqg.rtd",,"StudyData", $O$2, "HVol", "InputChoice=Close,HvolType=Percent,Period=10", "HVOL",$O$4,-A55,$O$6,$O$10,,$O$8,$O$12) -> 7.284082627
A56: 54 | B56: =RTD("cqg.rtd",,"StudyData", $O$2, "BAR", "", "Time", $O$4,-$A56,$O$6,$O$10, "","False","T") -> 2023-07-24 | C56: =RTD("cqg.rtd",,"StudyData", $O$2, "BAR", "", "Open", $O$4, -$A56, $O$6,$O$10,,$O$8,$O$12) -> 4613.75 | D56: =RTD("cqg.rtd",,"StudyData", $O$2, "BAR", "", "High", $O$4, -$A56, $O$6,$O$10,,$O$8,$O$12) -> 4642 | E56: =RTD("cqg.rtd",,"StudyData", $O$2, "BAR", "", "Low", $O$4, -$A56, $O$6,$O$10,,$O$8,$O$12) -> 4609.5 | F56: =RTD("cqg.rtd",,"StudyData", $O$2, "BAR", "", "Close", $O$4, -$A56, $O$6,$O$10,,$O$8,$O$12) -> 4633 | G56: =RTD("cqg.rtd",,"StudyData", $O$2, "HVol", "InputChoice=Close,HvolType=Percent,Period=10", "HVOL",$O$4,-A56,$O$6,$O$10,,$O$8,$O$12) -> 7.530962958
A57: 55 | B57: =RTD("cqg.rtd",,"StudyData", $O$2, "BAR", "", "Time", $O$4,-$A57,$O$6,$O$10, "","False","T") -> 2023-07-21 | C57: =RTD("cqg.rtd",,"StudyData", $O$2, "BAR", "", "Open", $O$4, -$A57, $O$6,$O$10,,$O$8,$O$12) -> 4615.75 | D57: =RTD("cqg.rtd",,"StudyData", $O$2, "BAR", "", "High", $O$4, -$A57, $O$6,$O$10,,$O$8,$O$12) -> 4639.5 | E57: =RTD("cqg.rtd",,"StudyData", $O$2, "BAR", "", "Low", $O$4, -$A57, $O$6,$O$10,,$O$8,$O$12) -> 4611.25 | F57: =RTD("cqg.rtd",,"StudyData", $O$2, "BAR", "", "Close", $O$4, -$A57, $O$6,$O$10,,$O$8,$O$12) -> 4614.25 | G57: =RTD("cqg.rtd",,"StudyData", $O$2, "HVol", "InputChoice=Close,HvolType=Percent,Period=10", "HVOL",$O$4,-A57,$O$6,$O$10,,$O$8,$O$12) -> 7.518028915
A58: 56 | B58: =RTD("cqg.rtd",,"StudyData", $O$2, "BAR", "", "Time", $O$4,-$A58,$O$6,$O$10, "","False","T") -> 2023-07-20 | C58: =RTD("cqg.rtd",,"StudyData", $O$2, "BAR", "", "Open", $O$4, -$A58, $O$6,$O$10,,$O$8,$O$12) -> 4642.75 | D58: =RTD("cqg.rtd",,"StudyData", $O$2, "BAR", "", "High", $O$4, -$A58, $O$6,$O$10,,$O$8,$O$12) -> 4643.75 | E58: =RTD("cqg.rtd",,"StudyData", $O$2, "BAR", "", "Low", $O$4, -$A58, $O$6,$O$10,,$O$8,$O$12) -> 4606.75 | F58: =RTD("cqg.rtd",,"StudyData", $O$2, "BAR", "", "Close", $O$4, -$A58, $O$6,$O$10,,$O$8,$O$12) -> 4615 | G58: =RTD("cqg.rtd",,"StudyData", $O$2, "HVol", "InputChoice=Close,HvolType=Percent,Period=10", "HVOL",$O$4,-A58,$O$6,$O$10,,$O$8,$O$12) -> 7.937736113
A59: 57 | B59: =RTD("cqg.rtd",,"StudyData", $O$2, "BAR", "", "Time", $O$4,-$A59,$O$6,$O$10, "","False","T") -> 2023-07-19 | C59: =RTD("cqg.rtd",,"StudyData", $O$2, "BAR", "", "Open", $O$4, -$A59, $O$6,$O$10,,$O$8,$O$12) -> 4632.25 | D59: =RTD("cqg.rtd",,"StudyData", $O$2, "BAR", "", "High", $O$4, -$A59, $O$6,$O$10,,$O$8,$O$12) -> 4658.75 | E59: =RTD("cqg.rtd",,"StudyData", $O$2, "BAR", "", "Low", $O$4, -$A59, $O$6,$O$10,,$O$8,$O$12) -> 4631.75 | F59: =RTD("cqg.rtd",,"StudyData", $O$2, "BAR", "", "Close", $O$4, -$A59, $O$6,$O$10,,$O$8,$O$12) -> 4646.5 | G59: =RTD("cqg.rtd",,"StudyData", $O$2, "HVol", "InputChoice=Close,HvolType=Percent,Period=10", "HVOL",$O$4,-A59,$O$6,$O$10,,$O$8,$O$12) -> 8.389103448
A60: 58 | B60: =RTD("cqg.rtd",,"StudyData", $O$2, "BAR", "", "Time", $O$4,-$A60,$O$6,$O$10, "","False","T") -> 2023-07-18 | C60: =RTD("cqg.rtd",,"StudyData", $O$2, "BAR", "", "Open", $O$4, -$A60, $O$6,$O$10,,$O$8,$O$12) -> 4599.75 | D60: =RTD("cqg.rtd",,"StudyData", $O$2, "BAR", "", "High", $O$4, -$A60, $O$6,$O$10,,$O$8,$O$12) -> 4644 | E60: =RTD("cqg.rtd",,"StudyData", $O$2, "BAR", "", "Low", $O$4, -$A60, $O$6,$O$10,,$O$8,$O$12) -> 4594.25 | F60: =RTD("cqg.rtd",,"StudyData", $O$2, "BAR", "", "Close", $O$4, -$A60, $O$6,$O$10,,$O$8,$O$12) -> 4637.25 | G60: =RTD("cqg.rtd",,"StudyData", $O$2, "HVol", "InputChoice=Close,HvolType=Percent,Period=10", "HVOL",$O$4,-A60,$O$6,$O$10,,$O$8,$O$12) -> 8.669676533
A61: 59 | B61: =RTD("cqg.rtd",,"StudyData", $O$2, "BAR", "", "Time", $O$4,-$A61,$O$6,$O$10, "","False","T") -> 2023-07-17 | C61: =RTD("cqg.rtd",,"StudyData", $O$2, "BAR", "", "Open", $O$4, -$A61, $O$6,$O$10,,$O$8,$O$12) -> 4585.5 | D61: =RTD("cqg.rtd",,"StudyData", $O$2, "BAR", "", "High", $O$4, -$A61, $O$6,$O$10,,$O$8,$O$12) -> 4615.25 | E61: =RTD("cqg.rtd",,"StudyData", $O$2, "BAR", "", "Low", $O$4, -$A61, $O$6,$O$10,,$O$8,$O$12) -> 4577.5 | F61: =RTD("cqg.rtd",,"StudyData", $O$2, "BAR", "", "Close", $O$4, -$A61, $O$6,$O$10,,$O$8,$O$12) -> 4603.25 | G61: =RTD("cqg.rtd",,"StudyData", $O$2, "HVol", "InputChoice=Close,HvolType=Percent,Period=10", "HVOL",$O$4,-A61,$O$6,$O$10,,$O$8,$O$12) -> 8.162494466
A62: 60 | B62: =RTD("cqg.rtd",,"StudyData", $O$2, "BAR", "", "Time", $O$4,-$A62,$O$6,$O$10, "","False","T") -> 2023-07-14 | C62: =RTD("cqg.rtd",,"StudyData", $O$2, "BAR", "", "Open", $O$4, -$A62, $O$6,$O$10,,$O$8,$O$12) -> 4589 | D62: =RTD("cqg.rtd",,"StudyData", $O$2, "BAR", "", "High", $O$4, -$A62, $O$6,$O$10,,$O$8,$O$12) -> 4610 | E62: =RTD("cqg.rtd",,"StudyData", $O$2, "BAR", "", "Low", $O$4, -$A62, $O$6,$O$10,,$O$8,$O$12) -> 4580.5 | F62: =RTD("cqg.rtd",,"StudyData", $O$2, "BAR", "", "Close", $O$4, -$A62, $O$6,$O$10,,$O$8,$O$12) -> 4586.25 | G62: =RTD("cqg.rtd",,"StudyData", $O$2, "HVol", "InputChoice=Close,HvolType=Percent,Period=10", "HVOL",$O$4,-A62,$O$6,$O$10,,$O$8,$O$12) -> 9.626237381
A63: 61 | B63: =RTD("cqg.rtd",,"StudyData", $O$2, "BAR", "", "Time", $O$4,-$A63,$O$6,$O$10, "","False","T") -> 2023-07-13 | C63: =RTD("cqg.rtd",,"StudyData", $O$2, "BAR", "", "Open", $O$4, -$A63, $O$6,$O$10,,$O$8,$O$12) -> 4560 | D63: =RTD("cqg.rtd",,"StudyData", $O$2, "BAR", "", "High", $O$4, -$A63, $O$6,$O$10,,$O$8,$O$12) -> 4601 | E63: =RTD("cqg.rtd",,"StudyData", $O$2, "BAR", "", "Low", $O$4, -$A63, $O$6,$O$10,,$O$8,$O$12) -> 4558.75 | F63: =RTD("cqg.rtd",,"StudyData", $O$2, "BAR", "", "Close", $O$4, -$A63, $O$6,$O$10,,$O$8,$O$12) -> 4593 | G63: =RTD("cqg.rtd",,"StudyData", $O$2, "HVol", "InputChoice=Close,HvolType=Percent,Period=10", "HVOL",$O$4,-A63,$O$6,$O$10,,$O$8,$O$12) -> 9.429331648
A64: 62 | B64: =RTD("cqg.rtd",,"StudyData", $O$2, "BAR", "", "Time", $O$4,-$A64,$O$6,$O$10, "","False","T") -> 2023-07-12 | C64: =RTD("cqg.rtd",,"StudyData", $O$2, "BAR", "", "Open", $O$4, -$A64, $O$6,$O$10,,$O$8,$O$12) -> 4520.5 | D64: =RTD("cqg.rtd",,"StudyData", $O$2, "BAR", "", "High", $O$4, -$A64, $O$6,$O$10,,$O$8,$O$12) -> 4573.25 | E64: =RTD("cqg.rtd",,"StudyData", $O$2, "BAR", "", "Low", $O$4, -$A64, $O$6,$O$10,,$O$8,$O$12) -> 4519.5 | F64: =RTD("cqg.rtd",,"StudyData", $O$2, "BAR", "", "Close", $O$4, -$A64, $O$6,$O$10,,$O$8,$O$12) -> 4557 | G64: =RTD("cqg.rtd",,"StudyData", $O$2, "HVol", "InputChoice=Close,HvolType=Percent,Period=10", "HVOL",$O$4,-A64,$O$6,$O$10,,$O$8,$O$12) -> 9.081321286
A65: 63 | B65: =RTD("cqg.rtd",,"StudyData", $O$2, "BAR", "", "Time", $O$4,-$A65,$O$6,$O$10, "","False","T") -> 2023-07-11 | C65: =RTD("cqg.rtd",,"StudyData", $O$2, "BAR", "", "Open", $O$4, -$A65, $O$6,$O$10,,$O$8,$O$12) -> 4495.25 | D65: =RTD("cqg.rtd",,"StudyData", $O$2, "BAR", "", "High", $O$4, -$A65, $O$6,$O$10,,$O$8,$O$12) -> 4528 | E65: =RTD("cqg.rtd",,"StudyData", $O$2, "BAR", "", "Low", $O$4, -$A65, $O$6,$O$10,,$O$8,$O$12) -> 4488.5 | F65: =RTD("cqg.rtd",,"StudyData", $O$2, "BAR", "", "Close", $O$4, -$A65, $O$6,$O$10,,$O$8,$O$12) -> 4523 | G65: =RTD("cqg.rtd",,"StudyData", $O$2, "HVol", "InputChoice=Close,HvolType=Percent,Period=10", "HVOL",$O$4,-A65,$O$6,$O$10,,$O$8,$O$12) -> 9.802170059
A66: 64 | B66: =RTD("cqg.rtd",,"StudyData", $O$2, "BAR", "", "Time", $O$4,-$A66,$O$6,$O$10, "","False","T") -> 2023-07-10 | C66: =RTD("cqg.rtd",,"StudyData", $O$2, "BAR", "", "Open", $O$4, -$A66, $O$6,$O$10,,$O$8,$O$12) -> 4487 | D66: =RTD("cqg.rtd",,"StudyData", $O$2, "BAR", "", "High", $O$4, -$A66, $O$6,$O$10,,$O$8,$O$12) -> 4497.75 | E66: =RTD("cqg.rtd",,"StudyData", $O$2, "BAR", "", "Low", $O$4, -$A66, $O$6,$O$10,,$O$8,$O$12) -> 4460.75 | F66: =RTD("cqg.rtd",,"StudyData", $O$2, "BAR", "", "Close", $O$4, -$A66, $O$6,$O$10,,$O$8,$O$12) -> 4493.75 | G66: =RTD("cqg.rtd",,"StudyData", $O$2, "HVol", "InputChoice=Close,HvolType=Percent,Period=10", "HVOL",$O$4,-A66,$O$6,$O$10,,$O$8,$O$12) -> 9.997973011
A67: 65 | B67: =RTD("cqg.rtd",,"StudyData", $O$2, "BAR", "", "Time", $O$4,-$A67,$O$6,$O$10, "","False","T") -> 2023-07-07 | C67: =RTD("cqg.rtd",,"StudyData", $O$2, "BAR", "", "Open", $O$4, -$A67, $O$6,$O$10,,$O$8,$O$12) -> 4490.75 | D67: =RTD("cqg.rtd",,"StudyData", $O$2, "BAR", "", "High", $O$4, -$A67, $O$6,$O$10,,$O$8,$O$12) -> 4525.5 | E67: =RTD("cqg.rtd",,"StudyData", $O$2, "BAR", "", "Low", $O$4, -$A67, $O$6,$O$10,,$O$8,$O$12) -> 4481 | F67: =RTD("cqg.rtd",,"StudyData", $O$2, "BAR", "", "Close", $O$4, -$A67, $O$6,$O$10,,$O$8,$O$12) -> 4483.5 | G67: =RTD("cqg.rtd",,"StudyData", $O$2, "HVol", "InputChoice=Close,HvolType=Percent,Period=10", "HVOL",$O$4,-A67,$O$6,$O$10,,$O$8,$O$12) -> 10.93058149
A68: =A67+1 -> 66 | B68: =RTD("cqg.rtd",,"StudyData", $O$2, "BAR", "", "Time", $O$4,-$A68,$O$6,$O$10, "","False","T") -> 2023-07-06 | C68: =RTD("cqg.rtd",,"StudyData", $O$2, "BAR", "", "Open", $O$4, -$A68, $O$6,$O$10,,$O$8,$O$12) -> 4531.25 | D68: =RTD("cqg.rtd",,"StudyData", $O$2, "BAR", "", "High", $O$4, -$A68, $O$6,$O$10,,$O$8,$O$12) -> 4533 | E68: =RTD("cqg.rtd",,"StudyData", $O$2, "BAR", "", "Low", $O$4, -$A68, $O$6,$O$10,,$O$8,$O$12) -> 4469 | F68: =RTD("cqg.rtd",,"StudyData", $O$2, "BAR", "", "Close", $O$4, -$A68, $O$6,$O$10,,$O$8,$O$12) -> 4496.5 | G68: =RTD("cqg.rtd",,"StudyData", $O$2, "HVol", "InputChoice=Close,HvolType=Percent,Period=10", "HVOL",$O$4,-A68,$O$6,$O$10,,$O$8,$O$12) -> 10.87155644
A69: 67 | B69: =RTD("cqg.rtd",,"StudyData", $O$2, "BAR", "", "Time", $O$4,-$A69,$O$6,$O$10, "","False","T") -> 2023-07-05 | C69: =RTD("cqg.rtd",,"StudyData", $O$2, "BAR", "", "Open", $O$4, -$A69, $O$6,$O$10,,$O$8,$O$12) -> 4541.5 | D69: =RTD("cqg.rtd",,"StudyData", $O$2, "BAR", "", "High", $O$4, -$A69, $O$6,$O$10,,$O$8,$O$12) -> 4543.25 | E69: =RTD("cqg.rtd",,"StudyData", $O$2, "BAR", "", "Low", $O$4, -$A69, $O$6,$O$10,,$O$8,$O$12) -> 4515.75 | F69: =RTD("cqg.rtd",,"StudyData", $O$2, "BAR", "", "Close", $O$4, -$A69, $O$6,$O$10,,$O$8,$O$12) -> 4533.25 | G69: =RTD("cqg.rtd",,"StudyData", $O$2, "HVol", "InputChoice=Close,HvolType=Percent,Period=10", "HVOL",$O$4,-A69,$O$6,$O$10,,$O$8,$O$12) -> 10.37268034
A70: 68 | B70: =RTD("cqg.rtd",,"StudyData", $O$2, "BAR", "", "Time", $O$4,-$A70,$O$6,$O$10, "","False","T") -> 2023-07-03 | C70: =RTD("cqg.rtd",,"StudyData", $O$2, "BAR", "", "Open", $O$4, -$A70, $O$6,$O$10,,$O$8,$O$12) -> 4535 | D70: =RTD("cqg.rtd",,"StudyData", $O$2, "BAR", "", "High", $O$4, -$A70, $O$6,$O$10,,$O$8,$O$12) -> 4543.5 | E70: =RTD("cqg.rtd",,"StudyData", $O$2, "BAR", "", "Low", $O$4, -$A70, $O$6,$O$10,,$O$8,$O$12) -> 4529 | F70: =RTD("cqg.rtd",,"StudyData", $O$2, "BAR", "", "Close", $O$4, -$A70, $O$6,$O$10,,$O$8,$O$12) -> 4541.75 | G70: =RTD("cqg.rtd",,"StudyData", $O$2, "HVol", "InputChoice=Close,HvolType=Percent,Period=10", "HVOL",$O$4,-A70,$O$6,$O$10,,$O$8,$O$12) -> 10.62330923
A71: 69 | B71: =RTD("cqg.rtd",,"StudyData", $O$2, "BAR", "", "Time", $O$4,-$A71,$O$6,$O$10, "","False","T") -> 2023-06-30 | C71: =RTD("cqg.rtd",,"StudyData", $O$2, "BAR", "", "Open", $O$4, -$A71, $O$6,$O$10,,$O$8,$O$12) -> 4484.75 | D71: =RTD("cqg.rtd",,"StudyData", $O$2, "BAR", "", "High", $O$4, -$A71, $O$6,$O$10,,$O$8,$O$12) -> 4547.5 | E71: =RTD("cqg.rtd",,"StudyData", $O$2, "BAR", "", "Low", $O$4, -$A71, $O$6,$O$10,,$O$8,$O$12) -> 4482.5 | F71: =RTD("cqg.rtd",,"StudyData", $O$2, "BAR", "", "Close", $O$4, -$A71, $O$6,$O$10,,$O$8,$O$12) -> 4537.75 | G71: =RTD("cqg.rtd",,"StudyData", $O$2, "HVol", "InputChoice=Close,HvolType=Percent,Period=10", "HVOL",$O$4,-A71,$O$6,$O$10,,$O$8,$O$12) -> 10.88467164
A72: 70 | B72: =RTD("cqg.rtd",,"StudyData", $O$2, "BAR", "", "Time", $O$4,-$A72,$O$6,$O$10, "","False","T") -> 2023-06-29 | C72: =RTD("cqg.rtd",,"StudyData", $O$2, "BAR", "", "Open", $O$4, -$A72, $O$6,$O$10,,$O$8,$O$12) -> 4473.25 | D72: =RTD("cqg.rtd",,"StudyData", $O$2, "BAR", "", "High", $O$4, -$A72, $O$6,$O$10,,$O$8,$O$12) -> 4487.5 | E72: =RTD("cqg.rtd",,"StudyData", $O$2, "BAR", "", "Low", $O$4, -$A72, $O$6,$O$10,,$O$8,$O$12) -> 4459.25 | F72: =RTD("cqg.rtd",,"StudyData", $O$2, "BAR", "", "Close", $O$4, -$A72, $O$6,$O$10,,$O$8,$O$12) -> 4485.25 | G72: =RTD("cqg.rtd",,"StudyData", $O$2, "HVol", "InputChoice=Close,HvolType=Percent,Period=10", "HVOL",$O$4,-A72,$O$6,$O$10,,$O$8,$O$12) -> 10.91393899
A73: 71 | B73: =RTD("cqg.rtd",,"StudyData", $O$2, "BAR", "", "Time", $O$4,-$A73,$O$6,$O$10, "","False","T") -> 2023-06-28 | C73: =RTD("cqg.rtd",,"StudyData", $O$2, "BAR", "", "Open", $O$4, -$A73, $O$6,$O$10,,$O$8,$O$12) -> 4463.5 | D73: =RTD("cqg.rtd",,"StudyData", $O$2, "BAR", "", "High", $O$4, -$A73, $O$6,$O$10,,$O$8,$O$12) -> 4479.75 | E73: =RTD("cqg.rtd",,"StudyData", $O$2, "BAR", "", "Low", $O$4, -$A73, $O$6,$O$10,,$O$8,$O$12) -> 4448.75 | F73: =RTD("cqg.rtd",,"StudyData", $O$2, "BAR", "", "Close", $O$4, -$A73, $O$6,$O$10,,$O$8,$O$12) -> 4467 | G73: =RTD("cqg.rtd",,"StudyData", $O$2, "HVol", "InputChoice=Close,HvolType=Percent,Period=10", "HVOL",$O$4,-A73,$O$6,$O$10,,$O$8,$O$12) -> 10.72268451
A74: 72 | B74: =RTD("cqg.rtd",,"StudyData", $O$2, "BAR", "", "Time", $O$4,-$A74,$O$6,$O$10, "","False","T") -> 2023-06-27 | C74: =RTD("cqg.rtd",,"StudyData", $O$2, "BAR", "", "Open", $O$4, -$A74, $O$6,$O$10,,$O$8,$O$12) -> 4425.25 | D74: =RTD("cqg.rtd",,"StudyData", $O$2, "BAR", "", "High", $O$4, -$A74, $O$6,$O$10,,$O$8,$O$12) -> 4474.25 | E74: =RTD("cqg.rtd",,"StudyData", $O$2, "BAR", "", "Low", $O$4, -$A74, $O$6,$O$10,,$O$8,$O$12) -> 4421 | F74: =RTD("cqg.rtd",,"StudyData", $O$2, "BAR", "", "Close", $O$4, -$A74, $O$6,$O$10,,$O$8,$O$12) -> 4468.25 | G74: =RTD("cqg.rtd",,"StudyData", $O$2, "HVol", "InputChoice=Close,HvolType=Percent,Period=10", "HVOL",$O$4,-A74,$O$6,$O$10,,$O$8,$O$12) -> 11.18949565
A75: 73 | B75: =RTD("cqg.rtd",,"StudyData", $O$2, "BAR", "", "Time", $O$4,-$A75,$O$6,$O$10, "","False","T") -> 2023-06-26 | C75: =RTD("cqg.rtd",,"StudyData", $O$2, "BAR", "", "Open", $O$4, -$A75, $O$6,$O$10,,$O$8,$O$12) -> 4439.5 | D75: =RTD("cqg.rtd",,"StudyData", $O$2, "BAR", "", "High", $O$4, -$A75, $O$6,$O$10,,$O$8,$O$12) -> 4452.5 | E75: =RTD("cqg.rtd",,"StudyData", $O$2, "BAR", "", "Low", $O$4, -$A75, $O$6,$O$10,,$O$8,$O$12) -> 4418 | F75: =RTD("cqg.rtd",,"StudyData", $O$2, "BAR", "", "Close", $O$4, -$A75, $O$6,$O$10,,$O$8,$O$12) -> 4419.75 | G75: =RTD("cqg.rtd",,"StudyData", $O$2, "HVol", "InputChoice=Close,HvolType=Percent,Period=10", "HVOL",$O$4,-A75,$O$6,$O$10,,$O$8,$O$12) -> 10.70386422
A76: 74 | B76: =RTD("cqg.rtd",,"StudyData", $O$2, "BAR", "", "Time", $O$4,-$A76,$O$6,$O$10, "","False","T") -> 2023-06-23 | C76: =RTD("cqg.rtd",,"StudyData", $O$2, "BAR", "", "Open", $O$4, -$A76, $O$6,$O$10,,$O$8,$O$12) -> 4475.25 | D76: =RTD("cqg.rtd",,"StudyData", $O$2, "BAR", "", "High", $O$4, -$A76, $O$6,$O$10,,$O$8,$O$12) -> 4475.75 | E76: =RTD("cqg.rtd",,"StudyData", $O$2, "BAR", "", "Low", $O$4, -$A76, $O$6,$O$10,,$O$8,$O$12) -> 4431 | F76: =RTD("cqg.rtd",,"StudyData", $O$2, "BAR", "", "Close", $O$4, -$A76, $O$6,$O$10,,$O$8,$O$12) -> 4438.5 | G76: =RTD("cqg.rtd",,"StudyData", $O$2, "HVol", "InputChoice=Close,HvolType=Percent,Period=10", "HVOL",$O$4,-A76,$O$6,$O$10,,$O$8,$O$12) -> 10.37830466
A77: 75 | B77: =RTD("cqg.rtd",,"StudyData", $O$2, "BAR", "", "Time", $O$4,-$A77,$O$6,$O$10, "","False","T") -> 2023-06-22 | C77: =RTD("cqg.rtd",,"StudyData", $O$2, "BAR", "", "Open", $O$4, -$A77, $O$6,$O$10,,$O$8,$O$12) -> 4459.5 | D77: =RTD("cqg.rtd",,"StudyData", $O$2, "BAR", "", "High", $O$4, -$A77, $O$6,$O$10,,$O$8,$O$12) -> 4476.5 | E77: =RTD("cqg.rtd",,"StudyData", $O$2, "BAR", "", "Low", $O$4, -$A77, $O$6,$O$10,,$O$8,$O$12) -> 4442.5 | F77: =RTD("cqg.rtd",,"StudyData", $O$2, "BAR", "", "Close", $O$4, -$A77, $O$6,$O$10,,$O$8,$O$12) -> 4473.25 | G77: =RTD("cqg.rtd",,"StudyData", $O$2, "HVol", "InputChoice=Close,HvolType=Percent,Period=10", "HVOL",$O$4,-A77,$O$6,$O$10,,$O$8,$O$12) -> 9.300398751
A78: 76 | B78: =RTD("cqg.rtd",,"StudyData", $O$2, "BAR", "", "Time", $O$4,-$A78,$O$6,$O$10, "","False","T") -> 2023-06-21 | C78: =RTD("cqg.rtd",,"StudyData", $O$2, "BAR", "", "Open", $O$4, -$A78, $O$6,$O$10,,$O$8,$O$12) -> 4479.75 | D78: =RTD("cqg.rtd",,"StudyData", $O$2, "BAR", "", "High", $O$4, -$A78, $O$6,$O$10,,$O$8,$O$12) -> 4488 | E78: =RTD("cqg.rtd",,"StudyData", $O$2, "BAR", "", "Low", $O$4, -$A78, $O$6,$O$10,,$O$8,$O$12) -> 4453 | F78: =RTD("cqg.rtd",,"StudyData", $O$2, "BAR", "", "Close", $O$4, -$A78, $O$6,$O$10,,$O$8,$O$12) -> 4458.75 | G78: =RTD("cqg.rtd",,"StudyData", $O$2, "HVol", "InputChoice=Close,HvolType=Percent,Period=10", "HVOL",$O$4,-A78,$O$6,$O$10,,$O$8,$O$12) -> 9.737731926
A79: 77 | B79: =RTD("cqg.rtd",,"StudyData", $O$2, "BAR", "", "Time", $O$4,-$A79,$O$6,$O$10, "","False","T") -> 2023-06-20 | C79: =RTD("cqg.rtd",,"StudyData", $O$2, "BAR", "", "Open", $O$4, -$A79, $O$6,$O$10,,$O$8,$O$12) -> 4507.5 | D79: =RTD("cqg.rtd",,"StudyData", $O$2, "BAR", "", "High", $O$4, -$A79, $O$6,$O$10,,$O$8,$O$12) -> 4511.5 | E79: =RTD("cqg.rtd",,"StudyData", $O$2, "BAR", "", "Low", $O$4, -$A79, $O$6,$O$10,,$O$8,$O$12) -> 4460 | F79: =RTD("cqg.rtd",,"StudyData", $O$2, "BAR", "", "Close", $O$4, -$A79, $O$6,$O$10,,$O$8,$O$12) -> 4484.25 | G79: =RTD("cqg.rtd",,"StudyData", $O$2, "HVol", "InputChoice=Close,HvolType=Percent,Period=10", "HVOL",$O$4,-A79,$O$6,$O$10,,$O$8,$O$12) -> 8.82830642
A80: 78 | B80: =RTD("cqg.rtd",,"StudyData", $O$2, "BAR", "", "Time", $O$4,-$A80,$O$6,$O$10, "","False","T") -> 2023-06-16 | C80: =RTD("cqg.rtd",,"StudyData", $O$2, "BAR", "", "Open", $O$4, -$A80, $O$6,$O$10,,$O$8,$O$12) -> 4518.5 | D80: =RTD("cqg.rtd",,"StudyData", $O$2, "BAR", "", "High", $O$4, -$A80, $O$6,$O$10,,$O$8,$O$12) -> 4543.25 | E80: =RTD("cqg.rtd",,"StudyData", $O$2, "BAR", "", "Low", $O$4, -$A80, $O$6,$O$10,,$O$8,$O$12) -> 4500.5 | F80: =RTD("cqg.rtd",,"StudyData", $O$2, "BAR", "", "Close", $O$4, -$A80, $O$6,$O$10,,$O$8,$O$12) -> 4503.25 | G80: =RTD("cqg.rtd",,"StudyData", $O$2, "HVol", "InputChoice=Close,HvolType=Percent,Period=10", "HVOL",$O$4,-A80,$O$6,$O$10,,$O$8,$O$12) -> 8.359339328
A81: 79 | B81: =RTD("cqg.rtd",,"StudyData", $O$2, "BAR", "", "Time", $O$4,-$A81,$O$6,$O$10, "","False","T") -> 2023-06-15 | C81: =RTD("cqg.rtd",,"StudyData", $O$2, "BAR", "", "Open", $O$4, -$A81, $O$6,$O$10,,$O$8,$O$12) -> 4472.25 | D81: =RTD("cqg.rtd",,"StudyData", $O$2, "BAR", "", "High", $O$4, -$A81, $O$6,$O$10,,$O$8,$O$12) -> 4535 | E81: =RTD("cqg.rtd",,"StudyData", $O$2, "BAR", "", "Low", $O$4, -$A81, $O$6,$O$10,,$O$8,$O$12) -> 4443.25 | F81: =RTD("cqg.rtd",,"StudyData", $O$2, "BAR", "", "Close", $O$4, -$A81, $O$6,$O$10,,$O$8,$O$12) -> 4520.75 | G81: =RTD("cqg.rtd",,"StudyData", $O$2, "HVol", "InputChoice=Close,HvolType=Percent,Period=10", "HVOL",$O$4,-A81,$O$6,$O$10,,$O$8,$O$12) -> 9.127418415
A82: 80 | B82: =RTD("cqg.rtd",,"StudyData", $O$2, "BAR", "", "Time", $O$4,-$A82,$O$6,$O$10, "","False","T") -> 2023-06-14 | C82: =RTD("cqg.rtd",,"StudyData", $O$2, "BAR", "", "Open", $O$4, -$A82, $O$6,$O$10,,$O$8,$O$12) -> 4466.75 | D82: =RTD("cqg.rtd",,"StudyData", $O$2, "BAR", "", "High", $O$4, -$A82, $O$6,$O$10,,$O$8,$O$12) -> 4489 | E82: =RTD("cqg.rtd",,"StudyData", $O$2, "BAR", "", "Low", $O$4, -$A82, $O$6,$O$10,,$O$8,$O$12) -> 4433 | F82: =RTD("cqg.rtd",,"StudyData", $O$2, "BAR", "", "Close", $O$4, -$A82, $O$6,$O$10,,$O$8,$O$12) -> 4468 | G82: =RTD("cqg.rtd",,"StudyData", $O$2, "HVol", "InputChoice=Close,HvolType=Percent,Period=10", "HVOL",$O$4,-A82,$O$6,$O$10,,$O$8,$O$12) -> 8.561777164
A83: 81 | B83: =RTD("cqg.rtd",,"StudyData", $O$2, "BAR", "", "Time", $O$4,-$A83,$O$6,$O$10, "","False","T") -> 2023-06-13 | C83: =RTD("cqg.rtd",,"StudyData", $O$2, "BAR", "", "Open", $O$4, -$A83, $O$6,$O$10,,$O$8,$O$12) -> 4439.25 | D83: =RTD("cqg.rtd",,"StudyData", $O$2, "BAR", "", "High", $O$4, -$A83, $O$6,$O$10,,$O$8,$O$12) -> 4472.75 | E83: =RTD("cqg.rtd",,"StudyData", $O$2, "BAR", "", "Low", $O$4, -$A83, $O$6,$O$10,,$O$8,$O$12) -> 4431.25 | F83: =RTD("cqg.rtd",,"StudyData", $O$2, "BAR", "", "Close", $O$4, -$A83, $O$6,$O$10,,$O$8,$O$12) -> 4466.25 | G83: =RTD("cqg.rtd",,"StudyData", $O$2, "HVol", "InputChoice=Close,HvolType=Percent,Period=10", "HVOL",$O$4,-A83,$O$6,$O$10,,$O$8,$O$12) -> 9.772011045
A84: 82 | B84: =RTD("cqg.rtd",,"StudyData", $O$2, "BAR", "", "Time", $O$4,-$A84,$O$6,$O$10, "","False","T") -> 2023-06-12 | C84: =RTD("cqg.rtd",,"StudyData", $O$2, "BAR", "", "Open", $O$4, -$A84, $O$6,$O$10,,$O$8,$O$12) -> 4399.25 | D84: =RTD("cqg.rtd",,"StudyData", $O$2, "BAR", "", "High", $O$4, -$A84, $O$6,$O$10,,$O$8,$O$12) -> 4440.75 | E84: =RTD("cqg.rtd",,"StudyData", $O$2, "BAR", "", "Low", $O$4, -$A84, $O$6,$O$10,,$O$8,$O$12) -> 4398.25 | F84: =RTD("cqg.rtd",,"StudyData", $O$2, "BAR", "", "Close", $O$4, -$A84, $O$6,$O$10,,$O$8,$O$12) -> 4437.5 | G84: =RTD("cqg.rtd",,"StudyData", $O$2, "HVol", "InputChoice=Close,HvolType=Percent,Period=10", "HVOL",$O$4,-A84,$O$6,$O$10,,$O$8,$O$12) -> 9.750115357
A85: 83 | B85: =RTD("cqg.rtd",,"StudyData", $O$2, "BAR", "", "Time", $O$4,-$A85,$O$6,$O$10, "","False","T") -> 2023-06-09 | C85: =RTD("cqg.rtd",,"StudyData", $O$2, "BAR", "", "Open", $O$4, -$A85, $O$6,$O$10,,$O$8,$O$12) -> 4391.25 | D85: =RTD("cqg.rtd",,"StudyData", $O$2, "BAR", "", "High", $O$4, -$A85, $O$6,$O$10,,$O$8,$O$12) -> 4419 | E85: =RTD("cqg.rtd",,"StudyData", $O$2, "BAR", "", "Low", $O$4, -$A85, $O$6,$O$10,,$O$8,$O$12) -> 4377.5 | F85: =RTD("cqg.rtd",,"StudyData", $O$2, "BAR", "", "Close", $O$4, -$A85, $O$6,$O$10,,$O$8,$O$12) -> 4398.25 | G85: =RTD("cqg.rtd",,"StudyData", $O$2, "HVol", "InputChoice=Close,HvolType=Percent,Period=10", "HVOL",$O$4,-A85,$O$6,$O$10,,$O$8,$O$12) -> 10.5074553
A86: 84 | B86: =RTD("cqg.rtd",,"StudyData", $O$2, "BAR", "", "Time", $O$4,-$A86,$O$6,$O$10, "","False","T") -> 2023-06-08 | C86: =RTD("cqg.rtd",,"StudyData", $O$2, "BAR", "", "Open", $O$4, -$A86, $O$6,$O$10,,$O$8,$O$12) -> 4366.75 | D86: =RTD("cqg.rtd",,"StudyData", $O$2, "BAR", "", "High", $O$4, -$A86, $O$6,$O$10,,$O$8,$O$12) -> 4396 | E86: =RTD("cqg.rtd",,"StudyData", $O$2, "BAR", "", "Low", $O$4, -$A86, $O$6,$O$10,,$O$8,$O$12) -> 4356.25 | F86: =RTD("cqg.rtd",,"StudyData", $O$2, "BAR", "", "Close", $O$4, -$A86, $O$6,$O$10,,$O$8,$O$12) -> 4391.75 | G86: =RTD("cqg.rtd",,"StudyData", $O$2, "HVol", "InputChoice=Close,HvolType=Percent,Period=10", "HVOL",$O$4,-A86,$O$6,$O$10,,$O$8,$O$12) -> 10.68443367
A87: 85 | B87: =RTD("cqg.rtd",,"StudyData", $O$2, "BAR", "", "Time", $O$4,-$A87,$O$6,$O$10, "","False","T") -> 2023-06-07 | C87: =RTD("cqg.rtd",,"StudyData", $O$2, "BAR", "", "Open", $O$4, -$A87, $O$6,$O$10,,$O$8,$O$12) -> 4385.75 | D87: =RTD("cqg.rtd",,"StudyData", $O$2, "BAR", "", "High", $O$4, -$A87, $O$6,$O$10,,$O$8,$O$12) -> 4398.25 | E87: =RTD("cqg.rtd",,"StudyData", $O$2, "BAR", "", "Low", $O$4, -$A87, $O$6,$O$10,,$O$8,$O$12) -> 4362.75 | F87: =RTD("cqg.rtd",,"StudyData", $O$2, "BAR", "", "Close", $O$4, -$A87, $O$6,$O$10,,$O$8,$O$12) -> 4367.75 | G87: =RTD("cqg.rtd",,"StudyData", $O$2, "HVol", "InputChoice=Close,HvolType=Percent,Period=10", "HVOL",$O$4,-A87,$O$6,$O$10,,$O$8,$O$12) -> 12.12239989
A88: 86 | B88: =RTD("cqg.rtd",,"StudyData", $O$2, "BAR", "", "Time", $O$4,-$A88,$O$6,$O$10, "","False","T") -> 2023-06-06 | C88: =RTD("cqg.rtd",,"StudyData", $O$2, "BAR", "", "Open", $O$4, -$A88, $O$6,$O$10,,$O$8,$O$12) -> 4373.25 | D88: =RTD("cqg.rtd",,"StudyData", $O$2, "BAR", "", "High", $O$4, -$A88, $O$6,$O$10,,$O$8,$O$12) -> 4388.25 | E88: =RTD("cqg.rtd",,"StudyData", $O$2, "BAR", "", "Low", $O$4, -$A88, $O$6,$O$10,,$O$8,$O$12) -> 4362 | F88: =RTD("cqg.rtd",,"StudyData", $O$2, "BAR", "", "Close", $O$4, -$A88, $O$6,$O$10,,$O$8,$O$12) -> 4383.25 | G88: =RTD("cqg.rtd",,"StudyData", $O$2, "HVol", "InputChoice=Close,HvolType=Percent,Period=10", "HVOL",$O$4,-A88,$O$6,$O$10,,$O$8,$O$12) -> 13.60376672
A89: 87 | B89: =RTD("cqg.rtd",,"StudyData", $O$2, "BAR", "", "Time", $O$4,-$A89,$O$6,$O$10, "","False","T") -> 2023-06-05 | C89: =RTD("cqg.rtd",,"StudyData", $O$2, "BAR", "", "Open", $O$4, -$A89, $O$6,$O$10,,$O$8,$O$12) -> 4381.5 | D89: =RTD("cqg.rtd",,"StudyData", $O$2, "BAR", "", "High", $O$4, -$A89, $O$6,$O$10,,$O$8,$O$12) -> 4399.25 | E89: =RTD("cqg.rtd",,"StudyData", $O$2, "BAR", "", "Low", $O$4, -$A89, $O$6,$O$10,,$O$8,$O$12) -> 4366.5 | F89: =RTD("cqg.rtd",,"StudyData", $O$2, "BAR", "", "Close", $O$4, -$A89, $O$6,$O$10,,$O$8,$O$12) -> 4374.5 | G89: =RTD("cqg.rtd",,"StudyData", $O$2, "HVol", "InputChoice=Close,HvolType=Percent,Period=10", "HVOL",$O$4,-A89,$O$6,$O$10,,$O$8,$O$12) -> 13.63787877
A90: 88 | B90: =RTD("cqg.rtd",,"StudyData", $O$2, "BAR", "", "Time", $O$4,-$A90,$O$6,$O$10, "","False","T") -> 2023-06-02 | C90: =RTD("cqg.rtd",,"StudyData", $O$2, "BAR", "", "Open", $O$4, -$A90, $O$6,$O$10,,$O$8,$O$12) -> 4325.25 | D90: =RTD("cqg.rtd",,"StudyData", $O$2, "BAR", "", "High", $O$4, -$A90, $O$6,$O$10,,$O$8,$O$12) -> 4391.25 | E90: =RTD("cqg.rtd",,"StudyData", $O$2, "BAR", "", "Low", $O$4, -$A90, $O$6,$O$10,,$O$8,$O$12) -> 4322.5 | F90: =RTD("cqg.rtd",,"StudyData", $O$2, "BAR", "", "Close", $O$4, -$A90, $O$6,$O$10,,$O$8,$O$12) -> 4381.5 | G90: =RTD("cqg.rtd",,"StudyData", $O$2, "HVol", "InputChoice=Close,HvolType=Percent,Period=10", "HVOL",$O$4,-A90,$O$6,$O$10,,$O$8,$O$12) -> 13.64390393
A91: 89 | B91: =RTD("cqg.rtd",,"StudyData", $O$2, "BAR", "", "Time", $O$4,-$A91,$O$6,$O$10, "","False","T") -> 2023-06-01 | C91: =RTD("cqg.rtd",,"StudyData", $O$2, "BAR", "", "Open", $O$4, -$A91, $O$6,$O$10,,$O$8,$O$12) -> 4282 | D91: =RTD("cqg.rtd",,"StudyData", $O$2, "BAR", "", "High", $O$4, -$A91, $O$6,$O$10,,$O$8,$O$12) -> 4333.25 | E91: =RTD("cqg.rtd",,"StudyData", $O$2, "BAR", "", "Low", $O$4, -$A91, $O$6,$O$10,,$O$8,$O$12) -> 4271.5 | F91: =RTD("cqg.rtd",,"StudyData", $O$2, "BAR", "", "Close", $O$4, -$A91, $O$6,$O$10,,$O$8,$O$12) -> 4321.5 | G91: =RTD("cqg.rtd",,"StudyData", $O$2, "HVol", "InputChoice=Close,HvolType=Percent,Period=10", "HVOL",$O$4,-A91,$O$6,$O$10,,$O$8,$O$12) -> 12.70722405
A92: 90 | B92: =RTD("cqg.rtd",,"StudyData", $O$2, "BAR", "", "Time", $O$4,-$A92,$O$6,$O$10, "","False","T") -> 2023-05-31 | C92: =RTD("cqg.rtd",,"StudyData", $O$2, "BAR", "", "Open", $O$4, -$A92, $O$6,$O$10,,$O$8,$O$12) -> 4306.5 | D92: =RTD("cqg.rtd",,"StudyData", $O$2, "BAR", "", "High", $O$4, -$A92, $O$6,$O$10,,$O$8,$O$12) -> 4311.25 | E92: =RTD("cqg.rtd",,"StudyData", $O$2, "BAR", "", "Low", $O$4, -$A92, $O$6,$O$10,,$O$8,$O$12) -> 4267.5 | F92: =RTD("cqg.rtd",,"StudyData", $O$2, "BAR", "", "Close", $O$4, -$A92, $O$6,$O$10,,$O$8,$O$12) -> 4284 | G92: =RTD("cqg.rtd",,"StudyData", $O$2, "HVol", "InputChoice=Close,HvolType=Percent,Period=10", "HVOL",$O$4,-A92,$O$6,$O$10,,$O$8,$O$12) -> 13.21648211
A93: 91 | B93: =RTD("cqg.rtd",,"StudyData", $O$2, "BAR", "", "Time", $O$4,-$A93,$O$6,$O$10, "","False","T") -> 2023-05-30 | C93: =RTD("cqg.rtd",,"StudyData", $O$2, "BAR", "", "Open", $O$4, -$A93, $O$6,$O$10,,$O$8,$O$12) -> 4333.25 | D93: =RTD("cqg.rtd",,"StudyData", $O$2, "BAR", "", "High", $O$4, -$A93, $O$6,$O$10,,$O$8,$O$12) -> 4336.75 | E93: =RTD("cqg.rtd",,"StudyData", $O$2, "BAR", "", "Low", $O$4, -$A93, $O$6,$O$10,,$O$8,$O$12) -> 4293.5 | F93: =RTD("cqg.rtd",,"StudyData", $O$2, "BAR", "", "Close", $O$4, -$A93, $O$6,$O$10,,$O$8,$O$12) -> 4308.5 | G93: =RTD("cqg.rtd",,"StudyData", $O$2, "HVol", "InputChoice=Close,HvolType=Percent,Period=10", "HVOL",$O$4,-A93,$O$6,$O$10,,$O$8,$O$12) -> 13.32422519
A94: 92 | B94: =RTD("cqg.rtd",,"StudyData", $O$2, "BAR", "", "Time", $O$4,-$A94,$O$6,$O$10, "","False","T") -> 2023-05-26 | C94: =RTD("cqg.rtd",,"StudyData", $O$2, "BAR", "", "Open", $O$4, -$A94, $O$6,$O$10,,$O$8,$O$12) -> 4250.5 | D94: =RTD("cqg.rtd",,"StudyData", $O$2, "BAR", "", "High", $O$4, -$A94, $O$6,$O$10,,$O$8,$O$12) -> 4314.75 | E94: =RTD("cqg.rtd",,"StudyData", $O$2, "BAR", "", "Low", $O$4, -$A94, $O$6,$O$10,,$O$8,$O$12) -> 4239.5 | F94: =RTD("cqg.rtd",,"StudyData", $O$2, "BAR", "", "Close", $O$4, -$A94, $O$6,$O$10,,$O$8,$O$12) -> 4306.75 | G94: =RTD("cqg.rtd",,"StudyData", $O$2, "HVol", "InputChoice=Close,HvolType=Percent,Period=10", "HVOL",$O$4,-A94,$O$6,$O$10,,$O$8,$O$12) -> 13.32151113
A95: 93 | B95: =RTD("cqg.rtd",,"StudyData", $O$2, "BAR", "", "Time", $O$4,-$A95,$O$6,$O$10, "","False","T") -> 2023-05-25 | C95: =RTD("cqg.rtd",,"StudyData", $O$2, "BAR", "", "Open", $O$4, -$A95, $O$6,$O$10,,$O$8,$O$12) -> 4250.5 | D95: =RTD("cqg.rtd",,"StudyData", $O$2, "BAR", "", "High", $O$4, -$A95, $O$6,$O$10,,$O$8,$O$12) -> 4269 | E95: =RTD("cqg.rtd",,"StudyData", $O$2, "BAR", "", "Low", $O$4, -$A95, $O$6,$O$10,,$O$8,$O$12) -> 4225 | F95: =RTD("cqg.rtd",,"StudyData", $O$2, "BAR", "", "Close", $O$4, -$A95, $O$6,$O$10,,$O$8,$O$12) -> 4253.25 | G95: =RTD("cqg.rtd",,"StudyData", $O$2, "HVol", "InputChoice=Close,HvolType=Percent,Period=10", "HVOL",$O$4,-A95,$O$6,$O$10,,$O$8,$O$12) -> 11.93880913
A96: 94 | B96: =RTD("cqg.rtd",,"StudyData", $O$2, "BAR", "", "Time", $O$4,-$A96,$O$6,$O$10, "","False","T") -> 2023-05-24 | C96: =RTD("cqg.rtd",,"StudyData", $O$2, "BAR", "", "Open", $O$4, -$A96, $O$6,$O$10,,$O$8,$O$12) -> 4251.5 | D96: =RTD("cqg.rtd",,"StudyData", $O$2, "BAR", "", "High", $O$4, -$A96, $O$6,$O$10,,$O$8,$O$12) -> 4259.75 | E96: =RTD("cqg.rtd",,"StudyData", $O$2, "BAR", "", "Low", $O$4, -$A96, $O$6,$O$10,,$O$8,$O$12) -> 4207.5 | F96: =RTD("cqg.rtd",,"StudyData", $O$2, "BAR", "", "Close", $O$4, -$A96, $O$6,$O$10,,$O$8,$O$12) -> 4219.5 | G96: =RTD("cqg.rtd",,"StudyData", $O$2, "HVol", "InputChoice=Close,HvolType=Percent,Period=10", "HVOL",$O$4,-A96,$O$6,$O$10,,$O$8,$O$12) -> 11.19333467
A97: 95 | B97: =RTD("cqg.rtd",,"StudyData", $O$2, "BAR", "", "Time", $O$4,-$A97,$O$6,$O$10, "","False","T") -> 2023-05-23 | C97: =RTD("cqg.rtd",,"StudyData", $O$2, "BAR", "", "Open", $O$4, -$A97, $O$6,$O$10,,$O$8,$O$12) -> 4301 | D97: =RTD("cqg.rtd",,"StudyData", $O$2, "BAR", "", "High", $O$4, -$A97, $O$6,$O$10,,$O$8,$O$12) -> 4316.25 | E97: =RTD("cqg.rtd",,"StudyData", $O$2, "BAR", "", "Low", $O$4, -$A97, $O$6,$O$10,,$O$8,$O$12) -> 4246.5 | F97: =RTD("cqg.rtd",,"StudyData", $O$2, "BAR", "", "Close", $O$4, -$A97, $O$6,$O$10,,$O$8,$O$12) -> 4252.25 | G97: =RTD("cqg.rtd",,"StudyData", $O$2, "HVol", "InputChoice=Close,HvolType=Percent,Period=10", "HVOL",$O$4,-A97,$O$6,$O$10,,$O$8,$O$12) -> 10.66803306
A98: 96 | B98: =RTD("cqg.rtd",,"StudyData", $O$2, "BAR", "", "Time", $O$4,-$A98,$O$6,$O$10, "","False","T") -> 2023-05-22 | C98: =RTD("cqg.rtd",,"StudyData", $O$2, "BAR", "", "Open", $O$4, -$A98, $O$6,$O$10,,$O$8,$O$12) -> 4282.5 | D98: =RTD("cqg.rtd",,"StudyData", $O$2, "BAR", "", "High", $O$4, -$A98, $O$6,$O$10,,$O$8,$O$12) -> 4315.25 | E98: =RTD("cqg.rtd",,"StudyData", $O$2, "BAR", "", "Low", $O$4, -$A98, $O$6,$O$10,,$O$8,$O$12) -> 4280 | F98: =RTD("cqg.rtd",,"StudyData", $O$2, "BAR", "", "Close", $O$4, -$A98, $O$6,$O$10,,$O$8,$O$12) -> 4298.5 | G98: =RTD("cqg.rtd",,"StudyData", $O$2, "HVol", "InputChoice=Close,HvolType=Percent,Period=10", "HVOL",$O$4,-A98,$O$6,$O$10,,$O$8,$O$12) -> 9.155173328
A99: 97 | B99: =RTD("cqg.rtd",,"StudyData", $O$2, "BAR", "", "Time", $O$4,-$A99,$O$6,$O$10, "","False","T") -> 2023-05-19 | C99: =RTD("cqg.rtd",,"StudyData", $O$2, "BAR", "", "Open", $O$4, -$A99, $O$6,$O$10,,$O$8,$O$12) -> 4309 | D99: =RTD("cqg.rtd",,"StudyData", $O$2, "BAR", "", "High", $O$4, -$A99, $O$6,$O$10,,$O$8,$O$12) -> 4320.75 | E99: =RTD("cqg.rtd",,"StudyData", $O$2, "BAR", "", "Low", $O$4, -$A99, $O$6,$O$10,,$O$8,$O$12) -> 4285 | F99: =RTD("cqg.rtd",,"StudyData", $O$2, "BAR", "", "Close", $O$4, -$A99, $O$6,$O$10,,$O$8,$O$12) -> 4298.25 | G99: =RTD("cqg.rtd",,"StudyData", $O$2, "HVol", "InputChoice=Close,HvolType=Percent,Period=10", "HVOL",$O$4,-A99,$O$6,$O$10,,$O$8,$O$12) -> 9.139990871
A100: 98 | B100: =RTD("cqg.rtd",,"StudyData", $O$2, "BAR", "", "Time", $O$4,-$A100,$O$6,$O$10, "","False","T") -> 2023-05-18 | C100: =RTD("cqg.rtd",,"StudyData", $O$2, "BAR", "", "Open", $O$4, -$A100, $O$6,$O$10,,$O$8,$O$12) -> 4264.75 | D100: =RTD("cqg.rtd",,"StudyData", $O$2, "BAR", "", "High", $O$4, -$A100, $O$6,$O$10,,$O$8,$O$12) -> 4309.25 | E100: =RTD("cqg.rtd",,"StudyData", $O$2, "BAR", "", "Low", $O$4, -$A100, $O$6,$O$10,,$O$8,$O$12) -> 4254.75 | F100: =RTD("cqg.rtd",,"StudyData", $O$2, "BAR", "", "Close", $O$4, -$A100, $O$6,$O$10,,$O$8,$O$12) -> 4305.5 | G100: =RTD("cqg.rtd",,"StudyData", $O$2, "HVol", "InputChoice=Close,HvolType=Percent,Period=10", "HVOL",$O$4,-A100,$O$6,$O$10,,$O$8,$O$12) -> 12.11581039
A101: 99 | B101: =RTD("cqg.rtd",,"StudyData", $O$2, "BAR", "", "Time", $O$4,-$A101,$O$6,$O$10, "","False","T") -> 2023-05-17 | C101: =RTD("cqg.rtd",,"StudyData", $O$2, "BAR", "", "Open", $O$4, -$A101, $O$6,$O$10,,$O$8,$O$12) -> 4219.5 | D101: =RTD("cqg.rtd",,"StudyData", $O$2, "BAR", "", "High", $O$4, -$A101, $O$6,$O$10,,$O$8,$O$12) -> 4272.5 | E101: =RTD("cqg.rtd",,"StudyData", $O$2, "BAR", "", "Low", $O$4, -$A101, $O$6,$O$10,,$O$8,$O$12) -> 4215.5 | F101: =RTD("cqg.rtd",,"StudyData", $O$2, "BAR", "", "Close", $O$4, -$A101, $O$6,$O$10,,$O$8,$O$12) -> 4265 | G101: =RTD("cqg.rtd",,"StudyData", $O$2, "HVol", "InputChoice=Close,HvolType=Percent,Period=10", "HVOL",$O$4,-A101,$O$6,$O$10,,$O$8,$O$12) -> 12.66085512
A102: 100 | B102: =RTD("cqg.rtd",,"StudyData", $O$2, "BAR", "", "Time", $O$4,-$A102,$O$6,$O$10, "","False","T") -> 2023-05-16 | C102: =RTD("cqg.rtd",,"StudyData", $O$2, "BAR", "", "Open", $O$4, -$A102, $O$6,$O$10,,$O$8,$O$12) -> 4241.75 | D102: =RTD("cqg.rtd",,"StudyData", $O$2, "BAR", "", "High", $O$4, -$A102, $O$6,$O$10,,$O$8,$O$12) -> 4245 | E102: =RTD("cqg.rtd",,"StudyData", $O$2, "BAR", "", "Low", $O$4, -$A102, $O$6,$O$10,,$O$8,$O$12) -> 4213.5 | F102: =RTD("cqg.rtd",,"StudyData", $O$2, "BAR", "", "Close", $O$4, -$A102, $O$6,$O$10,,$O$8,$O$12) -> 4216.5 | G102: =RTD("cqg.rtd",,"StudyData", $O$2, "HVol", "InputChoice=Close,HvolType=Percent,Period=10", "HVOL",$O$4,-A102,$O$6,$O$10,,$O$8,$O$12) -> 11.96576016
A103: 101 | B103: =RTD("cqg.rtd",,"StudyData", $O$2, "BAR", "", "Time", $O$4,-$A103,$O$6,$O$10, "","False","T") -> 2023-05-15 | C103: =RTD("cqg.rtd",,"StudyData", $O$2, "BAR", "", "Open", $O$4, -$A103, $O$6,$O$10,,$O$8,$O$12) -> 4225.75 | D103: =RTD("cqg.rtd",,"StudyData", $O$2, "BAR", "", "High", $O$4, -$A103, $O$6,$O$10,,$O$8,$O$12) -> 4249.75 | E103: =RTD("cqg.rtd",,"StudyData", $O$2, "BAR", "", "Low", $O$4, -$A103, $O$6,$O$10,,$O$8,$O$12) -> 4216.5 | F103: =RTD("cqg.rtd",,"StudyData", $O$2, "BAR", "", "Close", $O$4, -$A103, $O$6,$O$10,,$O$8,$O$12) -> 4243.5 | G103: =RTD("cqg.rtd",,"StudyData", $O$2, "HVol", "InputChoice=Close,HvolType=Percent,Period=10", "HVOL",$O$4,-A103,$O$6,$O$10,,$O$8,$O$12) -> 12.91465728
A104: 102 | B104: =RTD("cqg.rtd",,"StudyData", $O$2, "BAR", "", "Time", $O$4,-$A104,$O$6,$O$10, "","False","T") -> 2023-05-12 | C104: =RTD("cqg.rtd",,"StudyData", $O$2, "BAR", "", "Open", $O$4, -$A104, $O$6,$O$10,,$O$8,$O$12) -> 4238 | D104: =RTD("cqg.rtd",,"StudyData", $O$2, "BAR", "", "High", $O$4, -$A104, $O$6,$O$10,,$O$8,$O$12) -> 4258 | E104: =RTD("cqg.rtd",,"StudyData", $O$2, "BAR", "", "Low", $O$4, -$A104, $O$6,$O$10,,$O$8,$O$12) -> 4205.25 | F104: =RTD("cqg.rtd",,"StudyData", $O$2, "BAR", "", "Close", $O$4, -$A104, $O$6,$O$10,,$O$8,$O$12) -> 4231.5 | G104: =RTD("cqg.rtd",,"StudyData", $O$2, "HVol", "InputChoice=Close,HvolType=Percent,Period=10", "HVOL",$O$4,-A104,$O$6,$O$10,,$O$8,$O$12) -> 12.75814805
A105: 103 | B105: =RTD("cqg.rtd",,"StudyData", $O$2, "BAR", "", "Time", $O$4,-$A105,$O$6,$O$10, "","False","T") -> 2023-05-11 | C105: =RTD("cqg.rtd",,"StudyData", $O$2, "BAR", "", "Open", $O$4, -$A105, $O$6,$O$10,,$O$8,$O$12) -> 4246.25 | D105: =RTD("cqg.rtd",,"StudyData", $O$2, "BAR", "", "High", $O$4, -$A105, $O$6,$O$10,,$O$8,$O$12) -> 4262 | E105: =RTD("cqg.rtd",,"StudyData", $O$2, "BAR", "", "Low", $O$4, -$A105, $O$6,$O$10,,$O$8,$O$12) -> 4215 | F105: =RTD("cqg.rtd",,"StudyData", $O$2, "BAR", "", "Close", $O$4, -$A105, $O$6,$O$10,,$O$8,$O$12) -> 4237.25 | G105: =RTD("cqg.rtd",,"StudyData", $O$2, "HVol", "InputChoice=Close,HvolType=Percent,Period=10", "HVOL",$O$4,-A105,$O$6,$O$10,,$O$8,$O$12) -> 13.58141652
A106: 104 | B106: =RTD("cqg.rtd",,"StudyData", $O$2, "BAR", "", "Time", $O$4,-$A106,$O$6,$O$10, "","False","T") -> 2023-05-10 | C106: =RTD("cqg.rtd",,"StudyData", $O$2, "BAR", "", "Open", $O$4, -$A106, $O$6,$O$10,,$O$8,$O$12) -> 4226.5 | D106: =RTD("cqg.rtd",,"StudyData", $O$2, "BAR", "", "High", $O$4, -$A106, $O$6,$O$10,,$O$8,$O$12) -> 4266.75 | E106: =RTD("cqg.rtd",,"StudyData", $O$2, "BAR", "", "Low", $O$4, -$A106, $O$6,$O$10,,$O$8,$O$12) -> 4205.75 | F106: =RTD("cqg.rtd",,"StudyData", $O$2, "BAR", "", "Close", $O$4, -$A106, $O$6,$O$10,,$O$8,$O$12) -> 4245.5 | G106: =RTD("cqg.rtd",,"StudyData", $O$2, "HVol", "InputChoice=Close,HvolType=Percent,Period=10", "HVOL",$O$4,-A106,$O$6,$O$10,,$O$8,$O$12) -> 16.44799381
A107: 105 | B107: =RTD("cqg.rtd",,"StudyData", $O$2, "BAR", "", "Time", $O$4,-$A107,$O$6,$O$10, "","False","T") -> 2023-05-09 | C107: =RTD("cqg.rtd",,"StudyData", $O$2, "BAR", "", "Open", $O$4, -$A107, $O$6,$O$10,,$O$8,$O$12) -> 4244 | D107: =RTD("cqg.rtd",,"StudyData", $O$2, "BAR", "", "High", $O$4, -$A107, $O$6,$O$10,,$O$8,$O$12) -> 4246.5 | E107: =RTD("cqg.rtd",,"StudyData", $O$2, "BAR", "", "Low", $O$4, -$A107, $O$6,$O$10,,$O$8,$O$12) -> 4224.5 | F107: =RTD("cqg.rtd",,"StudyData", $O$2, "BAR", "", "Close", $O$4, -$A107, $O$6,$O$10,,$O$8,$O$12) -> 4227.5 | G107: =RTD("cqg.rtd",,"StudyData", $O$2, "HVol", "InputChoice=Close,HvolType=Percent,Period=10", "HVOL",$O$4,-A107,$O$6,$O$10,,$O$8,$O$12) -> 16.64052042
A108: 106 | B108: =RTD("cqg.rtd",,"StudyData", $O$2, "BAR", "", "Time", $O$4,-$A108,$O$6,$O$10, "","False","T") -> 2023-05-08 | C108: =RTD("cqg.rtd",,"StudyData", $O$2, "BAR", "", "Open", $O$4, -$A108, $O$6,$O$10,,$O$8,$O$12) -> 4244.5 | D108: =RTD("cqg.rtd",,"StudyData", $O$2, "BAR", "", "High", $O$4, -$A108, $O$6,$O$10,,$O$8,$O$12) -> 4254.5 | E108: =RTD("cqg.rtd",,"StudyData", $O$2, "BAR", "", "Low", $O$4, -$A108, $O$6,$O$10,,$O$8,$O$12) -> 4231 | F108: =RTD("cqg.rtd",,"StudyData", $O$2, "BAR", "", "Close", $O$4, -$A108, $O$6,$O$10,,$O$8,$O$12) -> 4246.25 | G108: =RTD("cqg.rtd",,"StudyData", $O$2, "HVol", "InputChoice=Close,HvolType=Percent,Period=10", "HVOL",$O$4,-A108,$O$6,$O$10,,$O$8,$O$12) -> 18.48646747
A109: 107 | B109: =RTD("cqg.rtd",,"StudyData", $O$2, "BAR", "", "Time", $O$4,-$A109,$O$6,$O$10, "","False","T") -> 2023-05-05 | C109: =RTD("cqg.rtd",,"StudyData", $O$2, "BAR", "", "Open", $O$4, -$A109, $O$6,$O$10,,$O$8,$O$12) -> 4170.75 | D109: =RTD("cqg.rtd",,"StudyData", $O$2, "BAR", "", "High", $O$4, -$A109, $O$6,$O$10,,$O$8,$O$12) -> 4256.75 | E109: =RTD("cqg.rtd",,"StudyData", $O$2, "BAR", "", "Low", $O$4, -$A109, $O$6,$O$10,,$O$8,$O$12) -> 4170.25 | F109: =RTD("cqg.rtd",,"StudyData", $O$2, "BAR", "", "Close", $O$4, -$A109, $O$6,$O$10,,$O$8,$O$12) -> 4243.75 | G109: =RTD("cqg.rtd",,"StudyData", $O$2, "HVol", "InputChoice=Close,HvolType=Percent,Period=10", "HVOL",$O$4,-A109,$O$6,$O$10,,$O$8,$O$12) -> 18.48708772
A110: 108 | B110: =RTD("cqg.rtd",,"StudyData", $O$2, "BAR", "", "Time", $O$4,-$A110,$O$6,$O$10, "","False","T") -> 2023-05-04 | C110: =RTD("cqg.rtd",,"StudyData", $O$2, "BAR", "", "Open", $O$4, -$A110, $O$6,$O$10,,$O$8,$O$12) -> 4180.5 | D110: =RTD("cqg.rtd",,"StudyData", $O$2, "BAR", "", "High", $O$4, -$A110, $O$6,$O$10,,$O$8,$O$12) -> 4211.5 | E110: =RTD("cqg.rtd",,"StudyData", $O$2, "BAR", "", "Low", $O$4, -$A110, $O$6,$O$10,,$O$8,$O$12) -> 4155.75 | F110: =RTD("cqg.rtd",,"StudyData", $O$2, "BAR", "", "Close", $O$4, -$A110, $O$6,$O$10,,$O$8,$O$12) -> 4169.25 | G110: =RTD("cqg.rtd",,"StudyData", $O$2, "HVol", "InputChoice=Close,HvolType=Percent,Period=10", "HVOL",$O$4,-A110,$O$6,$O$10,,$O$8,$O$12) -> 15.63948389
A111: 109 | B111: =RTD("cqg.rtd",,"StudyData", $O$2, "BAR", "", "Time", $O$4,-$A111,$O$6,$O$10, "","False","T") -> 2023-05-03 | C111: =RTD("cqg.rtd",,"StudyData", $O$2, "BAR", "", "Open", $O$4, -$A111, $O$6,$O$10,,$O$8,$O$12) -> 4226.75 | D111: =RTD("cqg.rtd",,"StudyData", $O$2, "BAR", "", "High", $O$4, -$A111, $O$6,$O$10,,$O$8,$O$12) -> 4260.5 | E111: =RTD("cqg.rtd",,"StudyData", $O$2, "BAR", "", "Low", $O$4, -$A111, $O$6,$O$10,,$O$8,$O$12) -> 4188.5 | F111: =RTD("cqg.rtd",,"StudyData", $O$2, "BAR", "", "Close", $O$4, -$A111, $O$6,$O$10,,$O$8,$O$12) -> 4201 | G111: =RTD("cqg.rtd",,"StudyData", $O$2, "HVol", "InputChoice=Close,HvolType=Percent,Period=10", "HVOL",$O$4,-A111,$O$6,$O$10,,$O$8,$O$12) -> 15.50516352
A112: 110 | B112: =RTD("cqg.rtd",,"StudyData", $O$2, "BAR", "", "Time", $O$4,-$A112,$O$6,$O$10, "","False","T") -> 2023-05-02 | C112: =RTD("cqg.rtd",,"StudyData", $O$2, "BAR", "", "Open", $O$4, -$A112, $O$6,$O$10,,$O$8,$O$12) -> 4273 | D112: =RTD("cqg.rtd",,"StudyData", $O$2, "BAR", "", "High", $O$4, -$A112, $O$6,$O$10,,$O$8,$O$12) -> 4285 | E112: =RTD("cqg.rtd",,"StudyData", $O$2, "BAR", "", "Low", $O$4, -$A112, $O$6,$O$10,,$O$8,$O$12) -> 4199 | F112: =RTD("cqg.rtd",,"StudyData", $O$2, "BAR", "", "Close", $O$4, -$A112, $O$6,$O$10,,$O$8,$O$12) -> 4230.25 | G112: =RTD("cqg.rtd",,"StudyData", $O$2, "HVol", "InputChoice=Close,HvolType=Percent,Period=10", "HVOL",$O$4,-A112,$O$6,$O$10,,$O$8,$O$12) -> 15.22877914
A113: 111 | B113: =RTD("cqg.rtd",,"StudyData", $O$2, "BAR", "", "Time", $O$4,-$A113,$O$6,$O$10, "","False","T") -> 2023-05-01 | C113: =RTD("cqg.rtd",,"StudyData", $O$2, "BAR", "", "Open", $O$4, -$A113, $O$6,$O$10,,$O$8,$O$12) -> 4283.5 | D113: =RTD("cqg.rtd",,"StudyData", $O$2, "BAR", "", "High", $O$4, -$A113, $O$6,$O$10,,$O$8,$O$12) -> 4299.75 | E113: =RTD("cqg.rtd",,"StudyData", $O$2, "BAR", "", "Low", $O$4, -$A113, $O$6,$O$10,,$O$8,$O$12) -> 4272 | F113: =RTD("cqg.rtd",,"StudyData", $O$2, "BAR", "", "Close", $O$4, -$A113, $O$6,$O$10,,$O$8,$O$12) -> 4279.25 | G113: =RTD("cqg.rtd",,"StudyData", $O$2, "HVol", "InputChoice=Close,HvolType=Percent,Period=10", "HVOL",$O$4,-A113,$O$6,$O$10,,$O$8,$O$12) -> 14.07579155
A114: 112 | B114: =RTD("cqg.rtd",,"StudyData", $O$2, "BAR", "", "Time", $O$4,-$A114,$O$6,$O$10, "","False","T") -> 2023-04-28 | C114: =RTD("cqg.rtd",,"StudyData", $O$2, "BAR", "", "Open", $O$4, -$A114, $O$6,$O$10,,$O$8,$O$12) -> 4244.5 | D114: =RTD("cqg.rtd",,"StudyData", $O$2, "BAR", "", "High", $O$4, -$A114, $O$6,$O$10,,$O$8,$O$12) -> 4287.25 | E114: =RTD("cqg.rtd",,"StudyData", $O$2, "BAR", "", "Low", $O$4, -$A114, $O$6,$O$10,,$O$8,$O$12) -> 4225 | F114: =RTD("cqg.rtd",,"StudyData", $O$2, "BAR", "", "Close", $O$4, -$A114, $O$6,$O$10,,$O$8,$O$12) -> 4282 | G114: =RTD("cqg.rtd",,"StudyData", $O$2, "HVol", "InputChoice=Close,HvolType=Percent,Period=10", "HVOL",$O$4,-A114,$O$6,$O$10,,$O$8,$O$12) -> 14.13218632
A115: 113 | B115: =RTD("cqg.rtd",,"StudyData", $O$2, "BAR", "", "Time", $O$4,-$A115,$O$6,$O$10, "","False","T") -> 2023-04-27 | C115: =RTD("cqg.rtd",,"StudyData", $O$2, "BAR", "", "Open", $O$4, -$A115, $O$6,$O$10,,$O$8,$O$12) -> 4179 | D115: =RTD("cqg.rtd",,"StudyData", $O$2, "BAR", "", "High", $O$4, -$A115, $O$6,$O$10,,$O$8,$O$12) -> 4260 | E115: =RTD("cqg.rtd",,"StudyData", $O$2, "BAR", "", "Low", $O$4, -$A115, $O$6,$O$10,,$O$8,$O$12) -> 4174.25 | F115: =RTD("cqg.rtd",,"StudyData", $O$2, "BAR", "", "Close", $O$4, -$A115, $O$6,$O$10,,$O$8,$O$12) -> 4247.25 | G115: =RTD("cqg.rtd",,"StudyData", $O$2, "HVol", "InputChoice=Close,HvolType=Percent,Period=10", "HVOL",$O$4,-A115,$O$6,$O$10,,$O$8,$O$12) -> 13.52547366
A116: 114 | B116: =RTD("cqg.rtd",,"StudyData", $O$2, "BAR", "", "Time", $O$4,-$A116,$O$6,$O$10, "","False","T") -> 2023-04-26 | C116: =RTD("cqg.rtd",,"StudyData", $O$2, "BAR", "", "Open", $O$4, -$A116, $O$6,$O$10,,$O$8,$O$12) -> 4203.75 | D116: =RTD("cqg.rtd",,"StudyData", $O$2, "BAR", "", "High", $O$4, -$A116, $O$6,$O$10,,$O$8,$O$12) -> 4209.75 | E116: =RTD("cqg.rtd",,"StudyData", $O$2, "BAR", "", "Low", $O$4, -$A116, $O$6,$O$10,,$O$8,$O$12) -> 4162.25 | F116: =RTD("cqg.rtd",,"StudyData", $O$2, "BAR", "", "Close", $O$4, -$A116, $O$6,$O$10,,$O$8,$O$12) -> 4169.5 | G116: =RTD("cqg.rtd",,"StudyData", $O$2, "HVol", "InputChoice=Close,HvolType=Percent,Period=10", "HVOL",$O$4,-A116,$O$6,$O$10,,$O$8,$O$12) -> 11.36918104
A117: 115 | B117: =RTD("cqg.rtd",,"StudyData", $O$2, "BAR", "", "Time", $O$4,-$A117,$O$6,$O$10, "","False","T") -> 2023-04-25 | C117: =RTD("cqg.rtd",,"StudyData", $O$2, "BAR", "", "Open", $O$4, -$A117, $O$6,$O$10,,$O$8,$O$12) -> 4250.75 | D117: =RTD("cqg.rtd",,"StudyData", $O$2, "BAR", "", "High", $O$4, -$A117, $O$6,$O$10,,$O$8,$O$12) -> 4252 | E117: =RTD("cqg.rtd",,"StudyData", $O$2, "BAR", "", "Low", $O$4, -$A117, $O$6,$O$10,,$O$8,$O$12) -> 4185 | F117: =RTD("cqg.rtd",,"StudyData", $O$2, "BAR", "", "Close", $O$4, -$A117, $O$6,$O$10,,$O$8,$O$12) -> 4186.75 | G117: =RTD("cqg.rtd",,"StudyData", $O$2, "HVol", "InputChoice=Close,HvolType=Percent,Period=10", "HVOL",$O$4,-A117,$O$6,$O$10,,$O$8,$O$12) -> 11.37047727
A118: 116 | B118: =RTD("cqg.rtd",,"StudyData", $O$2, "BAR", "", "Time", $O$4,-$A118,$O$6,$O$10, "","False","T") -> 2023-04-24 | C118: =RTD("cqg.rtd",,"StudyData", $O$2, "BAR", "", "Open", $O$4, -$A118, $O$6,$O$10,,$O$8,$O$12) -> 4243.5 | D118: =RTD("cqg.rtd",,"StudyData", $O$2, "BAR", "", "High", $O$4, -$A118, $O$6,$O$10,,$O$8,$O$12) -> 4257.75 | E118: =RTD("cqg.rtd",,"StudyData", $O$2, "BAR", "", "Low", $O$4, -$A118, $O$6,$O$10,,$O$8,$O$12) -> 4227 | F118: =RTD("cqg.rtd",,"StudyData", $O$2, "BAR", "", "Close", $O$4, -$A118, $O$6,$O$10,,$O$8,$O$12) -> 4253 | G118: =RTD("cqg.rtd",,"StudyData", $O$2, "HVol", "InputChoice=Close,HvolType=Percent,Period=10", "HVOL",$O$4,-A118,$O$6,$O$10,,$O$8,$O$12) -> 7.988419475
A119: 117 | B119: =RTD("cqg.rtd",,"StudyData", $O$2, "BAR", "", "Time", $O$4,-$A119,$O$6,$O$10, "","False","T") -> 2023-04-21 | C119: =RTD("cqg.rtd",,"StudyData", $O$2, "BAR", "", "Open", $O$4, -$A119, $O$6,$O$10,,$O$8,$O$12) -> 4247.25 | D119: =RTD("cqg.rtd",,"StudyData", $O$2, "BAR", "", "High", $O$4, -$A119, $O$6,$O$10,,$O$8,$O$12) -> 4254.5 | E119: =RTD("cqg.rtd",,"StudyData", $O$2, "BAR", "", "Low", $O$4, -$A119, $O$6,$O$10,,$O$8,$O$12) -> 4228.75 | F119: =RTD("cqg.rtd",,"StudyData", $O$2, "BAR", "", "Close", $O$4, -$A119, $O$6,$O$10,,$O$8,$O$12) -> 4250.25 | G119: =RTD("cqg.rtd",,"StudyData", $O$2, "HVol", "InputChoice=Close,HvolType=Percent,Period=10", "HVOL",$O$4,-A119,$O$6,$O$10,,$O$8,$O$12) -> 7.99152173
A120: 118 | B120: =RTD("cqg.rtd",,"StudyData", $O$2, "BAR", "", "Time", $O$4,-$A120,$O$6,$O$10, "","False","T") -> 2023-04-20 | C120: =RTD("cqg.rtd",,"StudyData", $O$2, "BAR", "", "Open", $O$4, -$A120, $O$6,$O$10,,$O$8,$O$12) -> 4265.75 | D120: =RTD("cqg.rtd",,"StudyData", $O$2, "BAR", "", "High", $O$4, -$A120, $O$6,$O$10,,$O$8,$O$12) -> 4267 | E120: =RTD("cqg.rtd",,"StudyData", $O$2, "BAR", "", "Low", $O$4, -$A120, $O$6,$O$10,,$O$8,$O$12) -> 4230.5 | F120: =RTD("cqg.rtd",,"StudyData", $O$2, "BAR", "", "Close", $O$4, -$A120, $O$6,$O$10,,$O$8,$O$12) -> 4246 | G120: =RTD("cqg.rtd",,"StudyData", $O$2, "HVol", "InputChoice=Close,HvolType=Percent,Period=10", "HVOL",$O$4,-A120,$O$6,$O$10,,$O$8,$O$12) -> 7.993091251
A121: 119 | B121: =RTD("cqg.rtd",,"StudyData", $O$2, "BAR", "", "Time", $O$4,-$A121,$O$6,$O$10, "","False","T") -> 2023-04-19 | C121: =RTD("cqg.rtd",,"StudyData", $O$2, "BAR", "", "Open", $O$4, -$A121, $O$6,$O$10,,$O$8,$O$12) -> 4269.5 | D121: =RTD("cqg.rtd",,"StudyData", $O$2, "BAR", "", "High", $O$4, -$A121, $O$6,$O$10,,$O$8,$O$12) -> 4281 | E121: =RTD("cqg.rtd",,"StudyData", $O$2, "BAR", "", "Low", $O$4, -$A121, $O$6,$O$10,,$O$8,$O$12) -> 4244 | F121: =RTD("cqg.rtd",,"StudyData", $O$2, "BAR", "", "Close", $O$4, -$A121, $O$6,$O$10,,$O$8,$O$12) -> 4272 | G121: =RTD("cqg.rtd",,"StudyData", $O$2, "HVol", "InputChoice=Close,HvolType=Percent,Period=10", "HVOL",$O$4,-A121,$O$6,$O$10,,$O$8,$O$12) -> 7.198245983
A122: 120 | B122: =RTD("cqg.rtd",,"StudyData", $O$2, "BAR", "", "Time", $O$4,-$A122,$O$6,$O$10, "","False","T") -> 2023-04-18 | C122: =RTD("cqg.rtd",,"StudyData", $O$2, "BAR", "", "Open", $O$4, -$A122, $O$6,$O$10,,$O$8,$O$12) -> 4270.5 | D122: =RTD("cqg.rtd",,"StudyData", $O$2, "BAR", "", "High", $O$4, -$A122, $O$6,$O$10,,$O$8,$O$12) -> 4291.75 | E122: =RTD("cqg.rtd",,"StudyData", $O$2, "BAR", "", "Low", $O$4, -$A122, $O$6,$O$10,,$O$8,$O$12) -> 4258 | F122: =RTD("cqg.rtd",,"StudyData", $O$2, "BAR", "", "Close", $O$4, -$A122, $O$6,$O$10,,$O$8,$O$12) -> 4273.5 | G122: =RTD("cqg.rtd",,"StudyData", $O$2, "HVol", "InputChoice=Close,HvolType=Percent,Period=10", "HVOL",$O$4,-A122,$O$6,$O$10,,$O$8,$O$12) -> 7.465394991
A123: 121 | B123: =RTD("cqg.rtd",,"StudyData", $O$2, "BAR", "", "Time", $O$4,-$A123,$O$6,$O$10, "","False","T") -> 2023-04-17 | C123: =RTD("cqg.rtd",,"StudyData", $O$2, "BAR", "", "Open", $O$4, -$A123, $O$6,$O$10,,$O$8,$O$12) -> 4267.75 | D123: =RTD("cqg.rtd",,"StudyData", $O$2, "BAR", "", "High", $O$4, -$A123, $O$6,$O$10,,$O$8,$O$12) -> 4274 | E123: =RTD("cqg.rtd",,"StudyData", $O$2, "BAR", "", "Low", $O$4, -$A123, $O$6,$O$10,,$O$8,$O$12) -> 4241.5 | F123: =RTD("cqg.rtd",,"StudyData", $O$2, "BAR", "", "Close", $O$4, -$A123, $O$6,$O$10,,$O$8,$O$12) -> 4270.25 | G123: =RTD("cqg.rtd",,"StudyData", $O$2, "HVol", "InputChoice=Close,HvolType=Percent,Period=10", "HVOL",$O$4,-A123,$O$6,$O$10,,$O$8,$O$12) -> 8.260243754
A124: 122 | B124: =RTD("cqg.rtd",,"StudyData", $O$2, "BAR", "", "Time", $O$4,-$A124,$O$6,$O$10, "","False","T") -> 2023-04-14 | C124: =RTD("cqg.rtd",,"StudyData", $O$2, "BAR", "", "Open", $O$4, -$A124, $O$6,$O$10,,$O$8,$O$12) -> 4262.25 | D124: =RTD("cqg.rtd",,"StudyData", $O$2, "BAR", "", "High", $O$4, -$A124, $O$6,$O$10,,$O$8,$O$12) -> 4282.5 | E124: =RTD("cqg.rtd",,"StudyData", $O$2, "BAR", "", "Low", $O$4, -$A124, $O$6,$O$10,,$O$8,$O$12) -> 4231.5 | F124: =RTD("cqg.rtd",,"StudyData", $O$2, "BAR", "", "Close", $O$4, -$A124, $O$6,$O$10,,$O$8,$O$12) -> 4257.25 | G124: =RTD("cqg.rtd",,"StudyData", $O$2, "HVol", "InputChoice=Close,HvolType=Percent,Period=10", "HVOL",$O$4,-A124,$O$6,$O$10,,$O$8,$O$12) -> 8.32918442
A125: 123 | B125: =RTD("cqg.rtd",,"StudyData", $O$2, "BAR", "", "Time", $O$4,-$A125,$O$6,$O$10, "","False","T") -> 2023-04-13 | C125: =RTD("cqg.rtd",,"StudyData", $O$2, "BAR", "", "Open", $O$4, -$A125, $O$6,$O$10,,$O$8,$O$12) -> 4211 | D125: =RTD("cqg.rtd",,"StudyData", $O$2, "BAR", "", "High", $O$4, -$A125, $O$6,$O$10,,$O$8,$O$12) -> 4270.5 | E125: =RTD("cqg.rtd",,"StudyData", $O$2, "BAR", "", "Low", $O$4, -$A125, $O$6,$O$10,,$O$8,$O$12) -> 4203.75 | F125: =RTD("cqg.rtd",,"StudyData", $O$2, "BAR", "", "Close", $O$4, -$A125, $O$6,$O$10,,$O$8,$O$12) -> 4266.25 | G125: =RTD("cqg.rtd",,"StudyData", $O$2, "HVol", "InputChoice=Close,HvolType=Percent,Period=10", "HVOL",$O$4,-A125,$O$6,$O$10,,$O$8,$O$12) -> 10.42700838
A126: 124 | B126: =RTD("cqg.rtd",,"StudyData", $O$2, "BAR", "", "Time", $O$4,-$A126,$O$6,$O$10, "","False","T") -> 2023-04-12 | C126: =RTD("cqg.rtd",,"StudyData", $O$2, "BAR", "", "Open", $O$4, -$A126, $O$6,$O$10,,$O$8,$O$12) -> 4231 | D126: =RTD("cqg.rtd",,"StudyData", $O$2, "BAR", "", "High", $O$4, -$A126, $O$6,$O$10,,$O$8,$O$12) -> 4271.25 | E126: =RTD("cqg.rtd",,"StudyData", $O$2, "BAR", "", "Low", $O$4, -$A126, $O$6,$O$10,,$O$8,$O$12) -> 4207 | F126: =RTD("cqg.rtd",,"StudyData", $O$2, "BAR", "", "Close", $O$4, -$A126, $O$6,$O$10,,$O$8,$O$12) -> 4212.5 | G126: =RTD("cqg.rtd",,"StudyData", $O$2, "HVol", "InputChoice=Close,HvolType=Percent,Period=10", "HVOL",$O$4,-A126,$O$6,$O$10,,$O$8,$O$12) -> 8.900241706
A127: 125 | B127: =RTD("cqg.rtd",,"StudyData", $O$2, "BAR", "", "Time", $O$4,-$A127,$O$6,$O$10, "","False","T") -> 2023-04-11 | C127: =RTD("cqg.rtd",,"StudyData", $O$2, "BAR", "", "Open", $O$4, -$A127, $O$6,$O$10,,$O$8,$O$12) -> 4232 | D127: =RTD("cqg.rtd",,"StudyData", $O$2, "BAR", "", "High", $O$4, -$A127, $O$6,$O$10,,$O$8,$O$12) -> 4245.25 | E127: =RTD("cqg.rtd",,"StudyData", $O$2, "BAR", "", "Low", $O$4, -$A127, $O$6,$O$10,,$O$8,$O$12) -> 4222.25 | F127: =RTD("cqg.rtd",,"StudyData", $O$2, "BAR", "", "Close", $O$4, -$A127, $O$6,$O$10,,$O$8,$O$12) -> 4230 | G127: =RTD("cqg.rtd",,"StudyData", $O$2, "HVol", "InputChoice=Close,HvolType=Percent,Period=10", "HVOL",$O$4,-A127,$O$6,$O$10,,$O$8,$O$12) -> 10.14344102
A128: 126 | B128: =RTD("cqg.rtd",,"StudyData", $O$2, "BAR", "", "Time", $O$4,-$A128,$O$6,$O$10, "","False","T") -> 2023-04-10 | C128: =RTD("cqg.rtd",,"StudyData", $O$2, "BAR", "", "Open", $O$4, -$A128, $O$6,$O$10,,$O$8,$O$12) -> 4232.5 | D128: =RTD("cqg.rtd",,"StudyData", $O$2, "BAR", "", "High", $O$4, -$A128, $O$6,$O$10,,$O$8,$O$12) -> 4236.5 | E128: =RTD("cqg.rtd",,"StudyData", $O$2, "BAR", "", "Low", $O$4, -$A128, $O$6,$O$10,,$O$8,$O$12) -> 4192.25 | F128: =RTD("cqg.rtd",,"StudyData", $O$2, "BAR", "", "Close", $O$4, -$A128, $O$6,$O$10,,$O$8,$O$12) -> 4229.75 | G128: =RTD("cqg.rtd",,"StudyData", $O$2, "HVol", "InputChoice=Close,HvolType=Percent,Period=10", "HVOL",$O$4,-A128,$O$6,$O$10,,$O$8,$O$12) -> 10.29697345
A129: 127 | B129: =RTD("cqg.rtd",,"StudyData", $O$2, "BAR", "", "Time", $O$4,-$A129,$O$6,$O$10, "","False","T") -> 2023-04-07 | C129: =RTD("cqg.rtd",,"StudyData", $O$2, "BAR", "", "Open", $O$4, -$A129, $O$6,$O$10,,$O$8,$O$12) -> 4222.5 | D129: =RTD("cqg.rtd",,"StudyData", $O$2, "BAR", "", "High", $O$4, -$A129, $O$6,$O$10,,$O$8,$O$12) -> 4240.25 | E129: =RTD("cqg.rtd",,"StudyData", $O$2, "BAR", "", "Low", $O$4, -$A129, $O$6,$O$10,,$O$8,$O$12) -> 4214.5 | F129: =RTD("cqg.rtd",,"StudyData", $O$2, "BAR", "", "Close", $O$4, -$A129, $O$6,$O$10,,$O$8,$O$12) -> 4225.5 | G129: =RTD("cqg.rtd",,"StudyData", $O$2, "HVol", "InputChoice=Close,HvolType=Percent,Period=10", "HVOL",$O$4,-A129,$O$6,$O$10,,$O$8,$O$12) -> 10.2732891
A130: 128 | B130: =RTD("cqg.rtd",,"StudyData", $O$2, "BAR", "", "Time", $O$4,-$A130,$O$6,$O$10, "","False","T") -> 2023-04-06 | C130: =RTD("cqg.rtd",,"StudyData", $O$2, "BAR", "", "Open", $O$4, -$A130, $O$6,$O$10,,$O$8,$O$12) -> 4207.25 | D130: =RTD("cqg.rtd",,"StudyData", $O$2, "BAR", "", "High", $O$4, -$A130, $O$6,$O$10,,$O$8,$O$12) -> 4228.75 | E130: =RTD("cqg.rtd",,"StudyData", $O$2, "BAR", "", "Low", $O$4, -$A130, $O$6,$O$10,,$O$8,$O$12) -> 4190 | F130: =RTD("cqg.rtd",,"StudyData", $O$2, "BAR", "", "Close", $O$4, -$A130, $O$6,$O$10,,$O$8,$O$12) -> 4225.5 | G130: =RTD("cqg.rtd",,"StudyData", $O$2, "HVol", "InputChoice=Close,HvolType=Percent,Period=10", "HVOL",$O$4,-A130,$O$6,$O$10,,$O$8,$O$12) -> 10.18063995
A131: 129 | B131: =RTD("cqg.rtd",,"StudyData", $O$2, "BAR", "", "Time", $O$4,-$A131,$O$6,$O$10, "","False","T") -> 2023-04-05 | C131: =RTD("cqg.rtd",,"StudyData", $O$2, "BAR", "", "Open", $O$4, -$A131, $O$6,$O$10,,$O$8,$O$12) -> 4227.5 | D131: =RTD("cqg.rtd",,"StudyData", $O$2, "BAR", "", "High", $O$4, -$A131, $O$6,$O$10,,$O$8,$O$12) -> 4229 | E131: =RTD("cqg.rtd",,"StudyData", $O$2, "BAR", "", "Low", $O$4, -$A131, $O$6,$O$10,,$O$8,$O$12) -> 4192.5 | F131: =RTD("cqg.rtd",,"StudyData", $O$2, "BAR", "", "Close", $O$4, -$A131, $O$6,$O$10,,$O$8,$O$12) -> 4210.75 | G131: =RTD("cqg.rtd",,"StudyData", $O$2, "HVol", "InputChoice=Close,HvolType=Percent,Period=10", "HVOL",$O$4,-A131,$O$6,$O$10,,$O$8,$O$12) -> 10.22490809
A132: =A131+1 -> 130 | B132: =RTD("cqg.rtd",,"StudyData", $O$2, "BAR", "", "Time", $O$4,-$A132,$O$6,$O$10, "","False","T") -> 2023-04-04 | C132: =RTD("cqg.rtd",,"StudyData", $O$2, "BAR", "", "Open", $O$4, -$A132, $O$6,$O$10,,$O$8,$O$12) -> 4246 | D132: =RTD("cqg.rtd",,"StudyData", $O$2, "BAR", "", "High", $O$4, -$A132, $O$6,$O$10,,$O$8,$O$12) -> 4265.25 | E132: =RTD("cqg.rtd",,"StudyData", $O$2, "BAR", "", "Low", $O$4, -$A132, $O$6,$O$10,,$O$8,$O$12) -> 4208.75 | F132: =RTD("cqg.rtd",,"StudyData", $O$2, "BAR", "", "Close", $O$4, -$A132, $O$6,$O$10,,$O$8,$O$12) -> 4222.5 | G132: =RTD("cqg.rtd",,"StudyData", $O$2, "HVol", "InputChoice=Close,HvolType=Percent,Period=10", "HVOL",$O$4,-A132,$O$6,$O$10,,$O$8,$O$12) -> 13.88844234
A133: 131 | B133: =RTD("cqg.rtd",,"StudyData", $O$2, "BAR", "", "Time", $O$4,-$A133,$O$6,$O$10, "","False","T") -> 2023-04-03 | C133: =RTD("cqg.rtd",,"StudyData", $O$2, "BAR", "", "Open", $O$4, -$A133, $O$6,$O$10,,$O$8,$O$12) -> 4220.5 | D133: =RTD("cqg.rtd",,"StudyData", $O$2, "BAR", "", "High", $O$4, -$A133, $O$6,$O$10,,$O$8,$O$12) -> 4251.25 | E133: =RTD("cqg.rtd",,"StudyData", $O$2, "BAR", "", "Low", $O$4, -$A133, $O$6,$O$10,,$O$8,$O$12) -> 4216.25 | F133: =RTD("cqg.rtd",,"StudyData", $O$2, "BAR", "", "Close", $O$4, -$A133, $O$6,$O$10,,$O$8,$O$12) -> 4247.25 | G133: =RTD("cqg.rtd",,"StudyData", $O$2, "HVol", "InputChoice=Close,HvolType=Percent,Period=10", "HVOL",$O$4,-A133,$O$6,$O$10,,$O$8,$O$12) -> 14.01830434
A134: 132 | B134: =RTD("cqg.rtd",,"StudyData", $O$2, "BAR", "", "Time", $O$4,-$A134,$O$6,$O$10, "","False","T") -> 2023-03-31 | C134: =RTD("cqg.rtd",,"StudyData", $O$2, "BAR", "", "Open", $O$4, -$A134, $O$6,$O$10,,$O$8,$O$12) -> 4174.5 | D134: =RTD("cqg.rtd",,"StudyData", $O$2, "BAR", "", "High", $O$4, -$A134, $O$6,$O$10,,$O$8,$O$12) -> 4236 | E134: =RTD("cqg.rtd",,"StudyData", $O$2, "BAR", "", "Low", $O$4, -$A134, $O$6,$O$10,,$O$8,$O$12) -> 4171.5 | F134: =RTD("cqg.rtd",,"StudyData", $O$2, "BAR", "", "Close", $O$4, -$A134, $O$6,$O$10,,$O$8,$O$12) -> 4231.25 | G134: =RTD("cqg.rtd",,"StudyData", $O$2, "HVol", "InputChoice=Close,HvolType=Percent,Period=10", "HVOL",$O$4,-A134,$O$6,$O$10,,$O$8,$O$12) -> 14.21428529
A135: 133 | B135: =RTD("cqg.rtd",,"StudyData", $O$2, "BAR", "", "Time", $O$4,-$A135,$O$6,$O$10, "","False","T") -> 2023-03-30 | C135: =RTD("cqg.rtd",,"StudyData", $O$2, "BAR", "", "Open", $O$4, -$A135, $O$6,$O$10,,$O$8,$O$12) -> 4151.5 | D135: =RTD("cqg.rtd",,"StudyData", $O$2, "BAR", "", "High", $O$4, -$A135, $O$6,$O$10,,$O$8,$O$12) -> 4181.25 | E135: =RTD("cqg.rtd",,"StudyData", $O$2, "BAR", "", "Low", $O$4, -$A135, $O$6,$O$10,,$O$8,$O$12) -> 4146 | F135: =RTD("cqg.rtd",,"StudyData", $O$2, "BAR", "", "Close", $O$4, -$A135, $O$6,$O$10,,$O$8,$O$12) -> 4173.5 | G135: =RTD("cqg.rtd",,"StudyData", $O$2, "HVol", "InputChoice=Close,HvolType=Percent,Period=10", "HVOL",$O$4,-A135,$O$6,$O$10,,$O$8,$O$12) -> 15.30572809
A136: 134 | B136: =RTD("cqg.rtd",,"StudyData", $O$2, "BAR", "", "Time", $O$4,-$A136,$O$6,$O$10, "","False","T") -> 2023-03-29 | C136: =RTD("cqg.rtd",,"StudyData", $O$2, "BAR", "", "Open", $O$4, -$A136, $O$6,$O$10,,$O$8,$O$12) -> 4100 | D136: =RTD("cqg.rtd",,"StudyData", $O$2, "BAR", "", "High", $O$4, -$A136, $O$6,$O$10,,$O$8,$O$12) -> 4154.75 | E136: =RTD("cqg.rtd",,"StudyData", $O$2, "BAR", "", "Low", $O$4, -$A136, $O$6,$O$10,,$O$8,$O$12) -> 4099.5 | F136: =RTD("cqg.rtd",,"StudyData", $O$2, "BAR", "", "Close", $O$4, -$A136, $O$6,$O$10,,$O$8,$O$12) -> 4151 | G136: =RTD("cqg.rtd",,"StudyData", $O$2, "HVol", "InputChoice=Close,HvolType=Percent,Period=10", "HVOL",$O$4,-A136,$O$6,$O$10,,$O$8,$O$12) -> 17.06830982
A137: 135 | B137: =RTD("cqg.rtd",,"StudyData", $O$2, "BAR", "", "Time", $O$4,-$A137,$O$6,$O$10, "","False","T") -> 2023-03-28 | C137: =RTD("cqg.rtd",,"StudyData", $O$2, "BAR", "", "Open", $O$4, -$A137, $O$6,$O$10,,$O$8,$O$12) -> 4107 | D137: =RTD("cqg.rtd",,"StudyData", $O$2, "BAR", "", "High", $O$4, -$A137, $O$6,$O$10,,$O$8,$O$12) -> 4117.25 | E137: =RTD("cqg.rtd",,"StudyData", $O$2, "BAR", "", "Low", $O$4, -$A137, $O$6,$O$10,,$O$8,$O$12) -> 4074.25 | F137: =RTD("cqg.rtd",,"StudyData", $O$2, "BAR", "", "Close", $O$4, -$A137, $O$6,$O$10,,$O$8,$O$12) -> 4095 | G137: =RTD("cqg.rtd",,"StudyData", $O$2, "HVol", "InputChoice=Close,HvolType=Percent,Period=10", "HVOL",$O$4,-A137,$O$6,$O$10,,$O$8,$O$12) -> 16.73587074
A138: 136 | B138: =RTD("cqg.rtd",,"StudyData", $O$2, "BAR", "", "Time", $O$4,-$A138,$O$6,$O$10, "","False","T") -> 2023-03-27 | C138: =RTD("cqg.rtd",,"StudyData", $O$2, "BAR", "", "Open", $O$4, -$A138, $O$6,$O$10,,$O$8,$O$12) -> 4101.5 | D138: =RTD("cqg.rtd",,"StudyData", $O$2, "BAR", "", "High", $O$4, -$A138, $O$6,$O$10,,$O$8,$O$12) -> 4127.75 | E138: =RTD("cqg.rtd",,"StudyData", $O$2, "BAR", "", "Low", $O$4, -$A138, $O$6,$O$10,,$O$8,$O$12) -> 4091 | F138: =RTD("cqg.rtd",,"StudyData", $O$2, "BAR", "", "Close", $O$4, -$A138, $O$6,$O$10,,$O$8,$O$12) -> 4100.75 | G138: =RTD("cqg.rtd",,"StudyData", $O$2, "HVol", "InputChoice=Close,HvolType=Percent,Period=10", "HVOL",$O$4,-A138,$O$6,$O$10,,$O$8,$O$12) -> 18.27090432
A139: 137 | B139: =RTD("cqg.rtd",,"StudyData", $O$2, "BAR", "", "Time", $O$4,-$A139,$O$6,$O$10, "","False","T") -> 2023-03-24 | C139: =RTD("cqg.rtd",,"StudyData", $O$2, "BAR", "", "Open", $O$4, -$A139, $O$6,$O$10,,$O$8,$O$12) -> 4082.25 | D139: =RTD("cqg.rtd",,"StudyData", $O$2, "BAR", "", "High", $O$4, -$A139, $O$6,$O$10,,$O$8,$O$12) -> 4104.25 | E139: =RTD("cqg.rtd",,"StudyData", $O$2, "BAR", "", "Low", $O$4, -$A139, $O$6,$O$10,,$O$8,$O$12) -> 4030.5 | F139: =RTD("cqg.rtd",,"StudyData", $O$2, "BAR", "", "Close", $O$4, -$A139, $O$6,$O$10,,$O$8,$O$12) -> 4094.75 | G139: =RTD("cqg.rtd",,"StudyData", $O$2, "HVol", "InputChoice=Close,HvolType=Percent,Period=10", "HVOL",$O$4,-A139,$O$6,$O$10,,$O$8,$O$12) -> 18.44674782
A140: 138 | B140: =RTD("cqg.rtd",,"StudyData", $O$2, "BAR", "", "Time", $O$4,-$A140,$O$6,$O$10, "","False","T") -> 2023-03-23 | C140: =RTD("cqg.rtd",,"StudyData", $O$2, "BAR", "", "Open", $O$4, -$A140, $O$6,$O$10,,$O$8,$O$12) -> 4066.25 | D140: =RTD("cqg.rtd",,"StudyData", $O$2, "BAR", "", "High", $O$4, -$A140, $O$6,$O$10,,$O$8,$O$12) -> 4133 | E140: =RTD("cqg.rtd",,"StudyData", $O$2, "BAR", "", "Low", $O$4, -$A140, $O$6,$O$10,,$O$8,$O$12) -> 4042 | F140: =RTD("cqg.rtd",,"StudyData", $O$2, "BAR", "", "Close", $O$4, -$A140, $O$6,$O$10,,$O$8,$O$12) -> 4071.5 | G140: =RTD("cqg.rtd",,"StudyData", $O$2, "HVol", "InputChoice=Close,HvolType=Percent,Period=10", "HVOL",$O$4,-A140,$O$6,$O$10,,$O$8,$O$12) -> 20.19603804
A141: 139 | B141: =RTD("cqg.rtd",,"StudyData", $O$2, "BAR", "", "Time", $O$4,-$A141,$O$6,$O$10, "","False","T") -> 2023-03-22 | C141: =RTD("cqg.rtd",,"StudyData", $O$2, "BAR", "", "Open", $O$4, -$A141, $O$6,$O$10,,$O$8,$O$12) -> 4132.25 | D141: =RTD("cqg.rtd",,"StudyData", $O$2, "BAR", "", "High", $O$4, -$A141, $O$6,$O$10,,$O$8,$O$12) -> 4167.25 | E141: =RTD("cqg.rtd",,"StudyData", $O$2, "BAR", "", "Low", $O$4, -$A141, $O$6,$O$10,,$O$8,$O$12) -> 4059.75 | F141: =RTD("cqg.rtd",,"StudyData", $O$2, "BAR", "", "Close", $O$4, -$A141, $O$6,$O$10,,$O$8,$O$12) -> 4064 | G141: =RTD("cqg.rtd",,"StudyData", $O$2, "HVol", "InputChoice=Close,HvolType=Percent,Period=10", "HVOL",$O$4,-A141,$O$6,$O$10,,$O$8,$O$12) -> 22.2352739
A142: 140 | B142: =RTD("cqg.rtd",,"StudyData", $O$2, "BAR", "", "Time", $O$4,-$A142,$O$6,$O$10, "","False","T") -> 2023-03-21 | C142: =RTD("cqg.rtd",,"StudyData", $O$2, "BAR", "", "Open", $O$4, -$A142, $O$6,$O$10,,$O$8,$O$12) -> 4080 | D142: =RTD("cqg.rtd",,"StudyData", $O$2, "BAR", "", "High", $O$4, -$A142, $O$6,$O$10,,$O$8,$O$12) -> 4136.75 | E142: =RTD("cqg.rtd",,"StudyData", $O$2, "BAR", "", "Low", $O$4, -$A142, $O$6,$O$10,,$O$8,$O$12) -> 4075.25 | F142: =RTD("cqg.rtd",,"StudyData", $O$2, "BAR", "", "Close", $O$4, -$A142, $O$6,$O$10,,$O$8,$O$12) -> 4129.25 | G142: =RTD("cqg.rtd",,"StudyData", $O$2, "HVol", "InputChoice=Close,HvolType=Percent,Period=10", "HVOL",$O$4,-A142,$O$6,$O$10,,$O$8,$O$12) -> 20.75136962
A143: 141 | B143: =RTD("cqg.rtd",,"StudyData", $O$2, "BAR", "", "Time", $O$4,-$A143,$O$6,$O$10, "","False","T") -> 2023-03-20 | C143: =RTD("cqg.rtd",,"StudyData", $O$2, "BAR", "", "Open", $O$4, -$A143, $O$6,$O$10,,$O$8,$O$12) -> 4057.25 | D143: =RTD("cqg.rtd",,"StudyData", $O$2, "BAR", "", "High", $O$4, -$A143, $O$6,$O$10,,$O$8,$O$12) -> 4083 | E143: =RTD("cqg.rtd",,"StudyData", $O$2, "BAR", "", "Low", $O$4, -$A143, $O$6,$O$10,,$O$8,$O$12) -> 3990.75 | F143: =RTD("cqg.rtd",,"StudyData", $O$2, "BAR", "", "Close", $O$4, -$A143, $O$6,$O$10,,$O$8,$O$12) -> 4076.5 | G143: =RTD("cqg.rtd",,"StudyData", $O$2, "HVol", "InputChoice=Close,HvolType=Percent,Period=10", "HVOL",$O$4,-A143,$O$6,$O$10,,$O$8,$O$12) -> 20.73215538
A144: 142 | B144: =RTD("cqg.rtd",,"StudyData", $O$2, "BAR", "", "Time", $O$4,-$A144,$O$6,$O$10, "","False","T") -> 2023-03-17 | C144: =RTD("cqg.rtd",,"StudyData", $O$2, "BAR", "", "Open", $O$4, -$A144, $O$6,$O$10,,$O$8,$O$12) -> 4088.5 | D144: =RTD("cqg.rtd",,"StudyData", $O$2, "BAR", "", "High", $O$4, -$A144, $O$6,$O$10,,$O$8,$O$12) -> 4102.75 | E144: =RTD("cqg.rtd",,"StudyData", $O$2, "BAR", "", "Low", $O$4, -$A144, $O$6,$O$10,,$O$8,$O$12) -> 4026 | F144: =RTD("cqg.rtd",,"StudyData", $O$2, "BAR", "", "Close", $O$4, -$A144, $O$6,$O$10,,$O$8,$O$12) -> 4040.5 | G144: =RTD("cqg.rtd",,"StudyData", $O$2, "HVol", "InputChoice=Close,HvolType=Percent,Period=10", "HVOL",$O$4,-A144,$O$6,$O$10,,$O$8,$O$12) -> 19.86525967
A145: 143 | B145: =RTD("cqg.rtd",,"StudyData", $O$2, "BAR", "", "Time", $O$4,-$A145,$O$6,$O$10, "","False","T") -> 2023-03-16 | C145: =RTD("cqg.rtd",,"StudyData", $O$2, "BAR", "", "Open", $O$4, -$A145, $O$6,$O$10,,$O$8,$O$12) -> 4018.25 | D145: =RTD("cqg.rtd",,"StudyData", $O$2, "BAR", "", "High", $O$4, -$A145, $O$6,$O$10,,$O$8,$O$12) -> 4093.5 | E145: =RTD("cqg.rtd",,"StudyData", $O$2, "BAR", "", "Low", $O$4, -$A145, $O$6,$O$10,,$O$8,$O$12) -> 3988.5 | F145: =RTD("cqg.rtd",,"StudyData", $O$2, "BAR", "", "Close", $O$4, -$A145, $O$6,$O$10,,$O$8,$O$12) -> 4088 | G145: =RTD("cqg.rtd",,"StudyData", $O$2, "HVol", "InputChoice=Close,HvolType=Percent,Period=10", "HVOL",$O$4,-A145,$O$6,$O$10,,$O$8,$O$12) -> 21.35231011
A146: 144 | B146: =RTD("cqg.rtd",,"StudyData", $O$2, "BAR", "", "Time", $O$4,-$A146,$O$6,$O$10, "","False","T") -> 2023-03-15 | C146: =RTD("cqg.rtd",,"StudyData", $O$2, "BAR", "", "Open", $O$4, -$A146, $O$6,$O$10,,$O$8,$O$12) -> 4047.25 | D146: =RTD("cqg.rtd",,"StudyData", $O$2, "BAR", "", "High", $O$4, -$A146, $O$6,$O$10,,$O$8,$O$12) -> 4057.5 | E146: =RTD("cqg.rtd",,"StudyData", $O$2, "BAR", "", "Low", $O$4, -$A146, $O$6,$O$10,,$O$8,$O$12) -> 3958.5 | F146: =RTD("cqg.rtd",,"StudyData", $O$2, "BAR", "", "Close", $O$4, -$A146, $O$6,$O$10,,$O$8,$O$12) -> 4018.5 | G146: =RTD("cqg.rtd",,"StudyData", $O$2, "HVol", "InputChoice=Close,HvolType=Percent,Period=10", "HVOL",$O$4,-A146,$O$6,$O$10,,$O$8,$O$12) -> 19.49007888
A147: 145 | B147: =RTD("cqg.rtd",,"StudyData", $O$2, "BAR", "", "Time", $O$4,-$A147,$O$6,$O$10, "","False","T") -> 2023-03-14 | C147: =RTD("cqg.rtd",,"StudyData", $O$2, "BAR", "", "Open", $O$4, -$A147, $O$6,$O$10,,$O$8,$O$12) -> 3990.75 | D147: =RTD("cqg.rtd",,"StudyData", $O$2, "BAR", "", "High", $O$4, -$A147, $O$6,$O$10,,$O$8,$O$12) -> 4066 | E147: =RTD("cqg.rtd",,"StudyData", $O$2, "BAR", "", "Low", $O$4, -$A147, $O$6,$O$10,,$O$8,$O$12) -> 3978.5 | F147: =RTD("cqg.rtd",,"StudyData", $O$2, "BAR", "", "Close", $O$4, -$A147, $O$6,$O$10,,$O$8,$O$12) -> 4047.75 | G147: =RTD("cqg.rtd",,"StudyData", $O$2, "HVol", "InputChoice=Close,HvolType=Percent,Period=10", "HVOL",$O$4,-A147,$O$6,$O$10,,$O$8,$O$12) -> 19.32441544
A148: 146 | B148: =RTD("cqg.rtd",,"StudyData", $O$2, "BAR", "", "Time", $O$4,-$A148,$O$6,$O$10, "","False","T") -> 2023-03-13 | C148: =RTD("cqg.rtd",,"StudyData", $O$2, "BAR", "", "Open", $O$4, -$A148, $O$6,$O$10,,$O$8,$O$12) -> 4014 | D148: =RTD("cqg.rtd",,"StudyData", $O$2, "BAR", "", "High", $O$4, -$A148, $O$6,$O$10,,$O$8,$O$12) -> 4065 | E148: =RTD("cqg.rtd",,"StudyData", $O$2, "BAR", "", "Low", $O$4, -$A148, $O$6,$O$10,,$O$8,$O$12) -> 3932.75 | F148: =RTD("cqg.rtd",,"StudyData", $O$2, "BAR", "", "Close", $O$4, -$A148, $O$6,$O$10,,$O$8,$O$12) -> 3982.25 | G148: =RTD("cqg.rtd",,"StudyData", $O$2, "HVol", "InputChoice=Close,HvolType=Percent,Period=10", "HVOL",$O$4,-A148,$O$6,$O$10,,$O$8,$O$12) -> 16.60631658
A149: 147 | B149: =RTD("cqg.rtd",,"StudyData", $O$2, "BAR", "", "Time", $O$4,-$A149,$O$6,$O$10, "","False","T") -> 2023-03-10 | C149: =RTD("cqg.rtd",,"StudyData", $O$2, "BAR", "", "Open", $O$4, -$A149, $O$6,$O$10,,$O$8,$O$12) -> 4048.5 | D149: =RTD("cqg.rtd",,"StudyData", $O$2, "BAR", "", "High", $O$4, -$A149, $O$6,$O$10,,$O$8,$O$12) -> 4071.75 | E149: =RTD("cqg.rtd",,"StudyData", $O$2, "BAR", "", "Low", $O$4, -$A149, $O$6,$O$10,,$O$8,$O$12) -> 3974.5 | F149: =RTD("cqg.rtd",,"StudyData", $O$2, "BAR", "", "Close", $O$4, -$A149, $O$6,$O$10,,$O$8,$O$12) -> 3991 | G149: =RTD("cqg.rtd",,"StudyData", $O$2, "HVol", "InputChoice=Close,HvolType=Percent,Period=10", "HVOL",$O$4,-A149,$O$6,$O$10,,$O$8,$O$12) -> 16.90048059
A150: 148 | B150: =RTD("cqg.rtd",,"StudyData", $O$2, "BAR", "", "Time", $O$4,-$A150,$O$6,$O$10, "","False","T") -> 2023-03-09 | C150: =RTD("cqg.rtd",,"StudyData", $O$2, "BAR", "", "Open", $O$4, -$A150, $O$6,$O$10,,$O$8,$O$12) -> 4126.75 | D150: =RTD("cqg.rtd",,"StudyData", $O$2, "BAR", "", "High", $O$4, -$A150, $O$6,$O$10,,$O$8,$O$12) -> 4149.5 | E150: =RTD("cqg.rtd",,"StudyData", $O$2, "BAR", "", "Low", $O$4, -$A150, $O$6,$O$10,,$O$8,$O$12) -> 4039.25 | F150: =RTD("cqg.rtd",,"StudyData", $O$2, "BAR", "", "Close", $O$4, -$A150, $O$6,$O$10,,$O$8,$O$12) -> 4049.75 | G150: =RTD("cqg.rtd",,"StudyData", $O$2, "HVol", "InputChoice=Close,HvolType=Percent,Period=10", "HVOL",$O$4,-A150,$O$6,$O$10,,$O$8,$O$12) -> 16.21463886
A151: 149 | B151: =RTD("cqg.rtd",,"StudyData", $O$2, "BAR", "", "Time", $O$4,-$A151,$O$6,$O$10, "","False","T") -> 2023-03-08 | C151: =RTD("cqg.rtd",,"StudyData", $O$2, "BAR", "", "Open", $O$4, -$A151, $O$6,$O$10,,$O$8,$O$12) -> 4119.75 | D151: =RTD("cqg.rtd",,"StudyData", $O$2, "BAR", "", "High", $O$4, -$A151, $O$6,$O$10,,$O$8,$O$12) -> 4133 | E151: =RTD("cqg.rtd",,"StudyData", $O$2, "BAR", "", "Low", $O$4, -$A151, $O$6,$O$10,,$O$8,$O$12) -> 4101.25 | F151: =RTD("cqg.rtd",,"StudyData", $O$2, "BAR", "", "Close", $O$4, -$A151, $O$6,$O$10,,$O$8,$O$12) -> 4124.75 | G151: =RTD("cqg.rtd",,"StudyData", $O$2, "HVol", "InputChoice=Close,HvolType=Percent,Period=10", "HVOL",$O$4,-A151,$O$6,$O$10,,$O$8,$O$12) -> 13.88803011
A152: 150 | B152: =RTD("cqg.rtd",,"StudyData", $O$2, "BAR", "", "Time", $O$4,-$A152,$O$6,$O$10, "","False","T") -> 2023-03-07 | C152: =RTD("cqg.rtd",,"StudyData", $O$2, "BAR", "", "Open", $O$4, -$A152, $O$6,$O$10,,$O$8,$O$12) -> 4183.5 | D152: =RTD("cqg.rtd",,"StudyData", $O$2, "BAR", "", "High", $O$4, -$A152, $O$6,$O$10,,$O$8,$O$12) -> 4194.25 | E152: =RTD("cqg.rtd",,"StudyData", $O$2, "BAR", "", "Low", $O$4, -$A152, $O$6,$O$10,,$O$8,$O$12) -> 4112.25 | F152: =RTD("cqg.rtd",,"StudyData", $O$2, "BAR", "", "Close", $O$4, -$A152, $O$6,$O$10,,$O$8,$O$12) -> 4119.5 | G152: =RTD("cqg.rtd",,"StudyData", $O$2, "HVol", "InputChoice=Close,HvolType=Percent,Period=10", "HVOL",$O$4,-A152,$O$6,$O$10,,$O$8,$O$12) -> 13.88636504
A153: 151 | B153: =RTD("cqg.rtd",,"StudyData", $O$2, "BAR", "", "Time", $O$4,-$A153,$O$6,$O$10, "","False","T") -> 2023-03-06 | C153: =RTD("cqg.rtd",,"StudyData", $O$2, "BAR", "", "Open", $O$4, -$A153, $O$6,$O$10,,$O$8,$O$12) -> 4179 | D153: =RTD("cqg.rtd",,"StudyData", $O$2, "BAR", "", "High", $O$4, -$A153, $O$6,$O$10,,$O$8,$O$12) -> 4212.25 | E153: =RTD("cqg.rtd",,"StudyData", $O$2, "BAR", "", "Low", $O$4, -$A153, $O$6,$O$10,,$O$8,$O$12) -> 4171.5 | F153: =RTD("cqg.rtd",,"StudyData", $O$2, "BAR", "", "Close", $O$4, -$A153, $O$6,$O$10,,$O$8,$O$12) -> 4182.25 | G153: =RTD("cqg.rtd",,"StudyData", $O$2, "HVol", "InputChoice=Close,HvolType=Percent,Period=10", "HVOL",$O$4,-A153,$O$6,$O$10,,$O$8,$O$12) -> 15.27370821
A154: 152 | B154: =RTD("cqg.rtd",,"StudyData", $O$2, "BAR", "", "Time", $O$4,-$A154,$O$6,$O$10, "","False","T") -> 2023-03-03 | C154: =RTD("cqg.rtd",,"StudyData", $O$2, "BAR", "", "Open", $O$4, -$A154, $O$6,$O$10,,$O$8,$O$12) -> 4112.75 | D154: =RTD("cqg.rtd",,"StudyData", $O$2, "BAR", "", "High", $O$4, -$A154, $O$6,$O$10,,$O$8,$O$12) -> 4182.75 | E154: =RTD("cqg.rtd",,"StudyData", $O$2, "BAR", "", "Low", $O$4, -$A154, $O$6,$O$10,,$O$8,$O$12) -> 4103.75 | F154: =RTD("cqg.rtd",,"StudyData", $O$2, "BAR", "", "Close", $O$4, -$A154, $O$6,$O$10,,$O$8,$O$12) -> 4179.5 | G154: =RTD("cqg.rtd",,"StudyData", $O$2, "HVol", "InputChoice=Close,HvolType=Percent,Period=10", "HVOL",$O$4,-A154,$O$6,$O$10,,$O$8,$O$12) -> 15.28343481
A155: 153 | B155: =RTD("cqg.rtd",,"StudyData", $O$2, "BAR", "", "Time", $O$4,-$A155,$O$6,$O$10, "","False","T") -> 2023-03-02 | C155: =RTD("cqg.rtd",,"StudyData", $O$2, "BAR", "", "Open", $O$4, -$A155, $O$6,$O$10,,$O$8,$O$12) -> 4089.5 | D155: =RTD("cqg.rtd",,"StudyData", $O$2, "BAR", "", "High", $O$4, -$A155, $O$6,$O$10,,$O$8,$O$12) -> 4125 | E155: =RTD("cqg.rtd",,"StudyData", $O$2, "BAR", "", "Low", $O$4, -$A155, $O$6,$O$10,,$O$8,$O$12) -> 4054.75 | F155: =RTD("cqg.rtd",,"StudyData", $O$2, "BAR", "", "Close", $O$4, -$A155, $O$6,$O$10,,$O$8,$O$12) -> 4114.5 | G155: =RTD("cqg.rtd",,"StudyData", $O$2, "HVol", "InputChoice=Close,HvolType=Percent,Period=10", "HVOL",$O$4,-A155,$O$6,$O$10,,$O$8,$O$12) -> 13.15801542
A156: 154 | B156: =RTD("cqg.rtd",,"StudyData", $O$2, "BAR", "", "Time", $O$4,-$A156,$O$6,$O$10, "","False","T") -> 2023-03-01 | C156: =RTD("cqg.rtd",,"StudyData", $O$2, "BAR", "", "Open", $O$4, -$A156, $O$6,$O$10,,$O$8,$O$12) -> 4098.25 | D156: =RTD("cqg.rtd",,"StudyData", $O$2, "BAR", "", "High", $O$4, -$A156, $O$6,$O$10,,$O$8,$O$12) -> 4120.75 | E156: =RTD("cqg.rtd",,"StudyData", $O$2, "BAR", "", "Low", $O$4, -$A156, $O$6,$O$10,,$O$8,$O$12) -> 4072.75 | F156: =RTD("cqg.rtd",,"StudyData", $O$2, "BAR", "", "Close", $O$4, -$A156, $O$6,$O$10,,$O$8,$O$12) -> 4086.25 | G156: =RTD("cqg.rtd",,"StudyData", $O$2, "HVol", "InputChoice=Close,HvolType=Percent,Period=10", "HVOL",$O$4,-A156,$O$6,$O$10,,$O$8,$O$12) -> 12.36789235
A157: 155 | B157: =RTD("cqg.rtd",,"StudyData", $O$2, "BAR", "", "Time", $O$4,-$A157,$O$6,$O$10, "","False","T") -> 2023-02-28 | C157: =RTD("cqg.rtd",,"StudyData", $O$2, "BAR", "", "Open", $O$4, -$A157, $O$6,$O$10,,$O$8,$O$12) -> 4121.25 | D157: =RTD("cqg.rtd",,"StudyData", $O$2, "BAR", "", "High", $O$4, -$A157, $O$6,$O$10,,$O$8,$O$12) -> 4133.5 | E157: =RTD("cqg.rtd",,"StudyData", $O$2, "BAR", "", "Low", $O$4, -$A157, $O$6,$O$10,,$O$8,$O$12) -> 4094.75 | F157: =RTD("cqg.rtd",,"StudyData", $O$2, "BAR", "", "Close", $O$4, -$A157, $O$6,$O$10,,$O$8,$O$12) -> 4105.25 | G157: =RTD("cqg.rtd",,"StudyData", $O$2, "HVol", "InputChoice=Close,HvolType=Percent,Period=10", "HVOL",$O$4,-A157,$O$6,$O$10,,$O$8,$O$12) -> 12.53298607
A158: 156 | B158: =RTD("cqg.rtd",,"StudyData", $O$2, "BAR", "", "Time", $O$4,-$A158,$O$6,$O$10, "","False","T") -> 2023-02-27 | C158: =RTD("cqg.rtd",,"StudyData", $O$2, "BAR", "", "Open", $O$4, -$A158, $O$6,$O$10,,$O$8,$O$12) -> 4106.25 | D158: =RTD("cqg.rtd",,"StudyData", $O$2, "BAR", "", "High", $O$4, -$A158, $O$6,$O$10,,$O$8,$O$12) -> 4154.5 | E158: =RTD("cqg.rtd",,"StudyData", $O$2, "BAR", "", "Low", $O$4, -$A158, $O$6,$O$10,,$O$8,$O$12) -> 4102.75 | F158: =RTD("cqg.rtd",,"StudyData", $O$2, "BAR", "", "Close", $O$4, -$A158, $O$6,$O$10,,$O$8,$O$12) -> 4117.75 | G158: =RTD("cqg.rtd",,"StudyData", $O$2, "HVol", "InputChoice=Close,HvolType=Percent,Period=10", "HVOL",$O$4,-A158,$O$6,$O$10,,$O$8,$O$12) -> 14.69997102
A159: 157 | B159: =RTD("cqg.rtd",,"StudyData", $O$2, "BAR", "", "Time", $O$4,-$A159,$O$6,$O$10, "","False","T") -> 2023-02-24 | C159: =RTD("cqg.rtd",,"StudyData", $O$2, "BAR", "", "Open", $O$4, -$A159, $O$6,$O$10,,$O$8,$O$12) -> 4145 | D159: =RTD("cqg.rtd",,"StudyData", $O$2, "BAR", "", "High", $O$4, -$A159, $O$6,$O$10,,$O$8,$O$12) -> 4153 | E159: =RTD("cqg.rtd",,"StudyData", $O$2, "BAR", "", "Low", $O$4, -$A159, $O$6,$O$10,,$O$8,$O$12) -> 4077.25 | F159: =RTD("cqg.rtd",,"StudyData", $O$2, "BAR", "", "Close", $O$4, -$A159, $O$6,$O$10,,$O$8,$O$12) -> 4105.5 | G159: =RTD("cqg.rtd",,"StudyData", $O$2, "HVol", "InputChoice=Close,HvolType=Percent,Period=10", "HVOL",$O$4,-A159,$O$6,$O$10,,$O$8,$O$12) -> 14.59407134
A160: 158 | B160: =RTD("cqg.rtd",,"StudyData", $O$2, "BAR", "", "Time", $O$4,-$A160,$O$6,$O$10, "","False","T") -> 2023-02-23 | C160: =RTD("cqg.rtd",,"StudyData", $O$2, "BAR", "", "Open", $O$4, -$A160, $O$6,$O$10,,$O$8,$O$12) -> 4139.75 | D160: =RTD("cqg.rtd",,"StudyData", $O$2, "BAR", "", "High", $O$4, -$A160, $O$6,$O$10,,$O$8,$O$12) -> 4164 | E160: =RTD("cqg.rtd",,"StudyData", $O$2, "BAR", "", "Low", $O$4, -$A160, $O$6,$O$10,,$O$8,$O$12) -> 4104 | F160: =RTD("cqg.rtd",,"StudyData", $O$2, "BAR", "", "Close", $O$4, -$A160, $O$6,$O$10,,$O$8,$O$12) -> 4148.5 | G160: =RTD("cqg.rtd",,"StudyData", $O$2, "HVol", "InputChoice=Close,HvolType=Percent,Period=10", "HVOL",$O$4,-A160,$O$6,$O$10,,$O$8,$O$12) -> 14.42271634
A161: 159 | B161: =RTD("cqg.rtd",,"StudyData", $O$2, "BAR", "", "Time", $O$4,-$A161,$O$6,$O$10, "","False","T") -> 2023-02-22 | C161: =RTD("cqg.rtd",,"StudyData", $O$2, "BAR", "", "Open", $O$4, -$A161, $O$6,$O$10,,$O$8,$O$12) -> 4137.25 | D161: =RTD("cqg.rtd",,"StudyData", $O$2, "BAR", "", "High", $O$4, -$A161, $O$6,$O$10,,$O$8,$O$12) -> 4154.75 | E161: =RTD("cqg.rtd",,"StudyData", $O$2, "BAR", "", "Low", $O$4, -$A161, $O$6,$O$10,,$O$8,$O$12) -> 4113.5 | F161: =RTD("cqg.rtd",,"StudyData", $O$2, "BAR", "", "Close", $O$4, -$A161, $O$6,$O$10,,$O$8,$O$12) -> 4128.75 | G161: =RTD("cqg.rtd",,"StudyData", $O$2, "HVol", "InputChoice=Close,HvolType=Percent,Period=10", "HVOL",$O$4,-A161,$O$6,$O$10,,$O$8,$O$12) -> 14.26919064
A162: 160 | B162: =RTD("cqg.rtd",,"StudyData", $O$2, "BAR", "", "Time", $O$4,-$A162,$O$6,$O$10, "","False","T") -> 2023-02-21 | C162: =RTD("cqg.rtd",,"StudyData", $O$2, "BAR", "", "Open", $O$4, -$A162, $O$6,$O$10,,$O$8,$O$12) -> 4212.75 | D162: =RTD("cqg.rtd",,"StudyData", $O$2, "BAR", "", "High", $O$4, -$A162, $O$6,$O$10,,$O$8,$O$12) -> 4219 | E162: =RTD("cqg.rtd",,"StudyData", $O$2, "BAR", "", "Low", $O$4, -$A162, $O$6,$O$10,,$O$8,$O$12) -> 4131.75 | F162: =RTD("cqg.rtd",,"StudyData", $O$2, "BAR", "", "Close", $O$4, -$A162, $O$6,$O$10,,$O$8,$O$12) -> 4135.5 | G162: =RTD("cqg.rtd",,"StudyData", $O$2, "HVol", "InputChoice=Close,HvolType=Percent,Period=10", "HVOL",$O$4,-A162,$O$6,$O$10,,$O$8,$O$12) -> 16.47627952
A163: 161 | B163: =RTD("cqg.rtd",,"StudyData", $O$2, "BAR", "", "Time", $O$4,-$A163,$O$6,$O$10, "","False","T") -> 2023-02-17 | C163: =RTD("cqg.rtd",,"StudyData", $O$2, "BAR", "", "Open", $O$4, -$A163, $O$6,$O$10,,$O$8,$O$12) -> 4225.25 | D163: =RTD("cqg.rtd",,"StudyData", $O$2, "BAR", "", "High", $O$4, -$A163, $O$6,$O$10,,$O$8,$O$12) -> 4225.75 | E163: =RTD("cqg.rtd",,"StudyData", $O$2, "BAR", "", "Low", $O$4, -$A163, $O$6,$O$10,,$O$8,$O$12) -> 4185.5 | F163: =RTD("cqg.rtd",,"StudyData", $O$2, "BAR", "", "Close", $O$4, -$A163, $O$6,$O$10,,$O$8,$O$12) -> 4217.25 | G163: =RTD("cqg.rtd",,"StudyData", $O$2, "HVol", "InputChoice=Close,HvolType=Percent,Period=10", "HVOL",$O$4,-A163,$O$6,$O$10,,$O$8,$O$12) -> 13.84846008
A164: 162 | B164: =RTD("cqg.rtd",,"StudyData", $O$2, "BAR", "", "Time", $O$4,-$A164,$O$6,$O$10, "","False","T") -> 2023-02-16 | C164: =RTD("cqg.rtd",,"StudyData", $O$2, "BAR", "", "Open", $O$4, -$A164, $O$6,$O$10,,$O$8,$O$12) -> 4288.75 | D164: =RTD("cqg.rtd",,"StudyData", $O$2, "BAR", "", "High", $O$4, -$A164, $O$6,$O$10,,$O$8,$O$12) -> 4298.25 | E164: =RTD("cqg.rtd",,"StudyData", $O$2, "BAR", "", "Low", $O$4, -$A164, $O$6,$O$10,,$O$8,$O$12) -> 4224.75 | F164: =RTD("cqg.rtd",,"StudyData", $O$2, "BAR", "", "Close", $O$4, -$A164, $O$6,$O$10,,$O$8,$O$12) -> 4229.5 | G164: =RTD("cqg.rtd",,"StudyData", $O$2, "HVol", "InputChoice=Close,HvolType=Percent,Period=10", "HVOL",$O$4,-A164,$O$6,$O$10,,$O$8,$O$12) -> 14.52301144
A165: 163 | B165: =RTD("cqg.rtd",,"StudyData", $O$2, "BAR", "", "Time", $O$4,-$A165,$O$6,$O$10, "","False","T") -> 2023-02-15 | C165: =RTD("cqg.rtd",,"StudyData", $O$2, "BAR", "", "Open", $O$4, -$A165, $O$6,$O$10,,$O$8,$O$12) -> 4271 | D165: =RTD("cqg.rtd",,"StudyData", $O$2, "BAR", "", "High", $O$4, -$A165, $O$6,$O$10,,$O$8,$O$12) -> 4291.5 | E165: =RTD("cqg.rtd",,"StudyData", $O$2, "BAR", "", "Low", $O$4, -$A165, $O$6,$O$10,,$O$8,$O$12) -> 4242.75 | F165: =RTD("cqg.rtd",,"StudyData", $O$2, "BAR", "", "Close", $O$4, -$A165, $O$6,$O$10,,$O$8,$O$12) -> 4288 | G165: =RTD("cqg.rtd",,"StudyData", $O$2, "HVol", "InputChoice=Close,HvolType=Percent,Period=10", "HVOL",$O$4,-A165,$O$6,$O$10,,$O$8,$O$12) -> 14.96831603
A166: 164 | B166: =RTD("cqg.rtd",,"StudyData", $O$2, "BAR", "", "Time", $O$4,-$A166,$O$6,$O$10, "","False","T") -> 2023-02-14 | C166: =RTD("cqg.rtd",,"StudyData", $O$2, "BAR", "", "Open", $O$4, -$A166, $O$6,$O$10,,$O$8,$O$12) -> 4279.5 | D166: =RTD("cqg.rtd",,"StudyData", $O$2, "BAR", "", "High", $O$4, -$A166, $O$6,$O$10,,$O$8,$O$12) -> 4316.25 | E166: =RTD("cqg.rtd",,"StudyData", $O$2, "BAR", "", "Low", $O$4, -$A166, $O$6,$O$10,,$O$8,$O$12) -> 4233.5 | F166: =RTD("cqg.rtd",,"StudyData", $O$2, "BAR", "", "Close", $O$4, -$A166, $O$6,$O$10,,$O$8,$O$12) -> 4275.25 | G166: =RTD("cqg.rtd",,"StudyData", $O$2, "HVol", "InputChoice=Close,HvolType=Percent,Period=10", "HVOL",$O$4,-A166,$O$6,$O$10,,$O$8,$O$12) -> 15.66909895
A167: 165 | B167: =RTD("cqg.rtd",,"StudyData", $O$2, "BAR", "", "Time", $O$4,-$A167,$O$6,$O$10, "","False","T") -> 2023-02-13 | C167: =RTD("cqg.rtd",,"StudyData", $O$2, "BAR", "", "Open", $O$4, -$A167, $O$6,$O$10,,$O$8,$O$12) -> 4234.75 | D167: =RTD("cqg.rtd",,"StudyData", $O$2, "BAR", "", "High", $O$4, -$A167, $O$6,$O$10,,$O$8,$O$12) -> 4280.5 | E167: =RTD("cqg.rtd",,"StudyData", $O$2, "BAR", "", "Low", $O$4, -$A167, $O$6,$O$10,,$O$8,$O$12) -> 4208.5 | F167: =RTD("cqg.rtd",,"StudyData", $O$2, "BAR", "", "Close", $O$4, -$A167, $O$6,$O$10,,$O$8,$O$12) -> 4277 | G167: =RTD("cqg.rtd",,"StudyData", $O$2, "HVol", "InputChoice=Close,HvolType=Percent,Period=10", "HVOL",$O$4,-A167,$O$6,$O$10,,$O$8,$O$12) -> 16.79838281
A168: 166 | B168: =RTD("cqg.rtd",,"StudyData", $O$2, "BAR", "", "Time", $O$4,-$A168,$O$6,$O$10, "","False","T") -> 2023-02-10 | C168: =RTD("cqg.rtd",,"StudyData", $O$2, "BAR", "", "Open", $O$4, -$A168, $O$6,$O$10,,$O$8,$O$12) -> 4227.75 | D168: =RTD("cqg.rtd",,"StudyData", $O$2, "BAR", "", "High", $O$4, -$A168, $O$6,$O$10,,$O$8,$O$12) -> 4234 | E168: =RTD("cqg.rtd",,"StudyData", $O$2, "BAR", "", "Low", $O$4, -$A168, $O$6,$O$10,,$O$8,$O$12) -> 4190.5 | F168: =RTD("cqg.rtd",,"StudyData", $O$2, "BAR", "", "Close", $O$4, -$A168, $O$6,$O$10,,$O$8,$O$12) -> 4229.5 | G168: =RTD("cqg.rtd",,"StudyData", $O$2, "HVol", "InputChoice=Close,HvolType=Percent,Period=10", "HVOL",$O$4,-A168,$O$6,$O$10,,$O$8,$O$12) -> 17.60457302
A169: 167 | B169: =RTD("cqg.rtd",,"StudyData", $O$2, "BAR", "", "Time", $O$4,-$A169,$O$6,$O$10, "","False","T") -> 2023-02-09 | C169: =RTD("cqg.rtd",,"StudyData", $O$2, "BAR", "", "Open", $O$4, -$A169, $O$6,$O$10,,$O$8,$O$12) -> 4262 | D169: =RTD("cqg.rtd",,"StudyData", $O$2, "BAR", "", "High", $O$4, -$A169, $O$6,$O$10,,$O$8,$O$12) -> 4300 | E169: =RTD("cqg.rtd",,"StudyData", $O$2, "BAR", "", "Low", $O$4, -$A169, $O$6,$O$10,,$O$8,$O$12) -> 4208 | F169: =RTD("cqg.rtd",,"StudyData", $O$2, "BAR", "", "Close", $O$4, -$A169, $O$6,$O$10,,$O$8,$O$12) -> 4221.5 | G169: =RTD("cqg.rtd",,"StudyData", $O$2, "HVol", "InputChoice=Close,HvolType=Percent,Period=10", "HVOL",$O$4,-A169,$O$6,$O$10,,$O$8,$O$12) -> 17.60913008
A170: 168 | B170: =RTD("cqg.rtd",,"StudyData", $O$2, "BAR", "", "Time", $O$4,-$A170,$O$6,$O$10, "","False","T") -> 2023-02-08 | C170: =RTD("cqg.rtd",,"StudyData", $O$2, "BAR", "", "Open", $O$4, -$A170, $O$6,$O$10,,$O$8,$O$12) -> 4297 | D170: =RTD("cqg.rtd",,"StudyData", $O$2, "BAR", "", "High", $O$4, -$A170, $O$6,$O$10,,$O$8,$O$12) -> 4309 | E170: =RTD("cqg.rtd",,"StudyData", $O$2, "BAR", "", "Low", $O$4, -$A170, $O$6,$O$10,,$O$8,$O$12) -> 4251 | F170: =RTD("cqg.rtd",,"StudyData", $O$2, "BAR", "", "Close", $O$4, -$A170, $O$6,$O$10,,$O$8,$O$12) -> 4260.25 | G170: =RTD("cqg.rtd",,"StudyData", $O$2, "HVol", "InputChoice=Close,HvolType=Percent,Period=10", "HVOL",$O$4,-A170,$O$6,$O$10,,$O$8,$O$12) -> 17.37926293
A171: 169 | B171: =RTD("cqg.rtd",,"StudyData", $O$2, "BAR", "", "Time", $O$4,-$A171,$O$6,$O$10, "","False","T") -> 2023-02-07 | C171: =RTD("cqg.rtd",,"StudyData", $O$2, "BAR", "", "Open", $O$4, -$A171, $O$6,$O$10,,$O$8,$O$12) -> 4253.25 | D171: =RTD("cqg.rtd",,"StudyData", $O$2, "BAR", "", "High", $O$4, -$A171, $O$6,$O$10,,$O$8,$O$12) -> 4318 | E171: =RTD("cqg.rtd",,"StudyData", $O$2, "BAR", "", "Low", $O$4, -$A171, $O$6,$O$10,,$O$8,$O$12) -> 4228 | F171: =RTD("cqg.rtd",,"StudyData", $O$2, "BAR", "", "Close", $O$4, -$A171, $O$6,$O$10,,$O$8,$O$12) -> 4305.5 | G171: =RTD("cqg.rtd",,"StudyData", $O$2, "HVol", "InputChoice=Close,HvolType=Percent,Period=10", "HVOL",$O$4,-A171,$O$6,$O$10,,$O$8,$O$12) -> 15.95775816
A172: 170 | B172: =RTD("cqg.rtd",,"StudyData", $O$2, "BAR", "", "Time", $O$4,-$A172,$O$6,$O$10, "","False","T") -> 2023-02-06 | C172: =RTD("cqg.rtd",,"StudyData", $O$2, "BAR", "", "Open", $O$4, -$A172, $O$6,$O$10,,$O$8,$O$12) -> 4264 | D172: =RTD("cqg.rtd",,"StudyData", $O$2, "BAR", "", "High", $O$4, -$A172, $O$6,$O$10,,$O$8,$O$12) -> 4272.75 | E172: =RTD("cqg.rtd",,"StudyData", $O$2, "BAR", "", "Low", $O$4, -$A172, $O$6,$O$10,,$O$8,$O$12) -> 4233.75 | F172: =RTD("cqg.rtd",,"StudyData", $O$2, "BAR", "", "Close", $O$4, -$A172, $O$6,$O$10,,$O$8,$O$12) -> 4253.25 | G172: =RTD("cqg.rtd",,"StudyData", $O$2, "HVol", "InputChoice=Close,HvolType=Percent,Period=10", "HVOL",$O$4,-A172,$O$6,$O$10,,$O$8,$O$12) -> 15.27234351
A173: 171 | B173: =RTD("cqg.rtd",,"StudyData", $O$2, "BAR", "", "Time", $O$4,-$A173,$O$6,$O$10, "","False","T") -> 2023-02-03 | C173: =RTD("cqg.rtd",,"StudyData", $O$2, "BAR", "", "Open", $O$4, -$A173, $O$6,$O$10,,$O$8,$O$12) -> 4305.75 | D173: =RTD("cqg.rtd",,"StudyData", $O$2, "BAR", "", "High", $O$4, -$A173, $O$6,$O$10,,$O$8,$O$12) -> 4323.75 | E173: =RTD("cqg.rtd",,"StudyData", $O$2, "BAR", "", "Low", $O$4, -$A173, $O$6,$O$10,,$O$8,$O$12) -> 4262.25 | F173: =RTD("cqg.rtd",,"StudyData", $O$2, "BAR", "", "Close", $O$4, -$A173, $O$6,$O$10,,$O$8,$O$12) -> 4277.5 | G173: =RTD("cqg.rtd",,"StudyData", $O$2, "HVol", "InputChoice=Close,HvolType=Percent,Period=10", "HVOL",$O$4,-A173,$O$6,$O$10,,$O$8,$O$12) -> 15.27742027
A174: 172 | B174: =RTD("cqg.rtd",,"StudyData", $O$2, "BAR", "", "Time", $O$4,-$A174,$O$6,$O$10, "","False","T") -> 2023-02-02 | C174: =RTD("cqg.rtd",,"StudyData", $O$2, "BAR", "", "Open", $O$4, -$A174, $O$6,$O$10,,$O$8,$O$12) -> 4275.25 | D174: =RTD("cqg.rtd",,"StudyData", $O$2, "BAR", "", "High", $O$4, -$A174, $O$6,$O$10,,$O$8,$O$12) -> 4338.25 | E174: =RTD("cqg.rtd",,"StudyData", $O$2, "BAR", "", "Low", $O$4, -$A174, $O$6,$O$10,,$O$8,$O$12) -> 4266.5 | F174: =RTD("cqg.rtd",,"StudyData", $O$2, "BAR", "", "Close", $O$4, -$A174, $O$6,$O$10,,$O$8,$O$12) -> 4321.25 | G174: =RTD("cqg.rtd",,"StudyData", $O$2, "HVol", "InputChoice=Close,HvolType=Percent,Period=10", "HVOL",$O$4,-A174,$O$6,$O$10,,$O$8,$O$12) -> 14.60120016
A175: 173 | B175: =RTD("cqg.rtd",,"StudyData", $O$2, "BAR", "", "Time", $O$4,-$A175,$O$6,$O$10, "","False","T") -> 2023-02-01 | C175: =RTD("cqg.rtd",,"StudyData", $O$2, "BAR", "", "Open", $O$4, -$A175, $O$6,$O$10,,$O$8,$O$12) -> 4215.5 | D175: =RTD("cqg.rtd",,"StudyData", $O$2, "BAR", "", "High", $O$4, -$A175, $O$6,$O$10,,$O$8,$O$12) -> 4293 | E175: =RTD("cqg.rtd",,"StudyData", $O$2, "BAR", "", "Low", $O$4, -$A175, $O$6,$O$10,,$O$8,$O$12) -> 4178.25 | F175: =RTD("cqg.rtd",,"StudyData", $O$2, "BAR", "", "Close", $O$4, -$A175, $O$6,$O$10,,$O$8,$O$12) -> 4262 | G175: =RTD("cqg.rtd",,"StudyData", $O$2, "HVol", "InputChoice=Close,HvolType=Percent,Period=10", "HVOL",$O$4,-A175,$O$6,$O$10,,$O$8,$O$12) -> 15.52694047
A176: 174 | B176: =RTD("cqg.rtd",,"StudyData", $O$2, "BAR", "", "Time", $O$4,-$A176,$O$6,$O$10, "","False","T") -> 2023-01-31 | C176: =RTD("cqg.rtd",,"StudyData", $O$2, "BAR", "", "Open", $O$4, -$A176, $O$6,$O$10,,$O$8,$O$12) -> 4169 | D176: =RTD("cqg.rtd",,"StudyData", $O$2, "BAR", "", "High", $O$4, -$A176, $O$6,$O$10,,$O$8,$O$12) -> 4221 | E176: =RTD("cqg.rtd",,"StudyData", $O$2, "BAR", "", "Low", $O$4, -$A176, $O$6,$O$10,,$O$8,$O$12) -> 4137.25 | F176: =RTD("cqg.rtd",,"StudyData", $O$2, "BAR", "", "Close", $O$4, -$A176, $O$6,$O$10,,$O$8,$O$12) -> 4219.75 | G176: =RTD("cqg.rtd",,"StudyData", $O$2, "HVol", "InputChoice=Close,HvolType=Percent,Period=10", "HVOL",$O$4,-A176,$O$6,$O$10,,$O$8,$O$12) -> 18.03094492
A177: 175 | B177: =RTD("cqg.rtd",,"StudyData", $O$2, "BAR", "", "Time", $O$4,-$A177,$O$6,$O$10, "","False","T") -> 2023-01-30 | C177: =RTD("cqg.rtd",,"StudyData", $O$2, "BAR", "", "Open", $O$4, -$A177, $O$6,$O$10,,$O$8,$O$12) -> 4206.75 | D177: =RTD("cqg.rtd",,"StudyData", $O$2, "BAR", "", "High", $O$4, -$A177, $O$6,$O$10,,$O$8,$O$12) -> 4215.75 | E177: =RTD("cqg.rtd",,"StudyData", $O$2, "BAR", "", "Low", $O$4, -$A177, $O$6,$O$10,,$O$8,$O$12) -> 4159.25 | F177: =RTD("cqg.rtd",,"StudyData", $O$2, "BAR", "", "Close", $O$4, -$A177, $O$6,$O$10,,$O$8,$O$12) -> 4162.25 | G177: =RTD("cqg.rtd",,"StudyData", $O$2, "HVol", "InputChoice=Close,HvolType=Percent,Period=10", "HVOL",$O$4,-A177,$O$6,$O$10,,$O$8,$O$12) -> 16.84839636
A178: 176 | B178: =RTD("cqg.rtd",,"StudyData", $O$2, "BAR", "", "Time", $O$4,-$A178,$O$6,$O$10, "","False","T") -> 2023-01-27 | C178: =RTD("cqg.rtd",,"StudyData", $O$2, "BAR", "", "Open", $O$4, -$A178, $O$6,$O$10,,$O$8,$O$12) -> 4194.75 | D178: =RTD("cqg.rtd",,"StudyData", $O$2, "BAR", "", "High", $O$4, -$A178, $O$6,$O$10,,$O$8,$O$12) -> 4239 | E178: =RTD("cqg.rtd",,"StudyData", $O$2, "BAR", "", "Low", $O$4, -$A178, $O$6,$O$10,,$O$8,$O$12) -> 4187 | F178: =RTD("cqg.rtd",,"StudyData", $O$2, "BAR", "", "Close", $O$4, -$A178, $O$6,$O$10,,$O$8,$O$12) -> 4214 | G178: =RTD("cqg.rtd",,"StudyData", $O$2, "HVol", "InputChoice=Close,HvolType=Percent,Period=10", "HVOL",$O$4,-A178,$O$6,$O$10,,$O$8,$O$12) -> 15.33189457
A179: 177 | B179: =RTD("cqg.rtd",,"StudyData", $O$2, "BAR", "", "Time", $O$4,-$A179,$O$6,$O$10, "","False","T") -> 2023-01-26 | C179: =RTD("cqg.rtd",,"StudyData", $O$2, "BAR", "", "Open", $O$4, -$A179, $O$6,$O$10,,$O$8,$O$12) -> 4160.75 | D179: =RTD("cqg.rtd",,"StudyData", $O$2, "BAR", "", "High", $O$4, -$A179, $O$6,$O$10,,$O$8,$O$12) -> 4206.75 | E179: =RTD("cqg.rtd",,"StudyData", $O$2, "BAR", "", "Low", $O$4, -$A179, $O$6,$O$10,,$O$8,$O$12) -> 4157 | F179: =RTD("cqg.rtd",,"StudyData", $O$2, "BAR", "", "Close", $O$4, -$A179, $O$6,$O$10,,$O$8,$O$12) -> 4205.25 | G179: =RTD("cqg.rtd",,"StudyData", $O$2, "HVol", "InputChoice=Close,HvolType=Percent,Period=10", "HVOL",$O$4,-A179,$O$6,$O$10,,$O$8,$O$12) -> 15.34575939
A180: 178 | B180: =RTD("cqg.rtd",,"StudyData", $O$2, "BAR", "", "Time", $O$4,-$A180,$O$6,$O$10, "","False","T") -> 2023-01-25 | C180: =RTD("cqg.rtd",,"StudyData", $O$2, "BAR", "", "Open", $O$4, -$A180, $O$6,$O$10,,$O$8,$O$12) -> 4168.75 | D180: =RTD("cqg.rtd",,"StudyData", $O$2, "BAR", "", "High", $O$4, -$A180, $O$6,$O$10,,$O$8,$O$12) -> 4170.25 | E180: =RTD("cqg.rtd",,"StudyData", $O$2, "BAR", "", "Low", $O$4, -$A180, $O$6,$O$10,,$O$8,$O$12) -> 4093 | F180: =RTD("cqg.rtd",,"StudyData", $O$2, "BAR", "", "Close", $O$4, -$A180, $O$6,$O$10,,$O$8,$O$12) -> 4161.75 | G180: =RTD("cqg.rtd",,"StudyData", $O$2, "HVol", "InputChoice=Close,HvolType=Percent,Period=10", "HVOL",$O$4,-A180,$O$6,$O$10,,$O$8,$O$12) -> 15.6145357
A181: 179 | B181: =RTD("cqg.rtd",,"StudyData", $O$2, "BAR", "", "Time", $O$4,-$A181,$O$6,$O$10, "","False","T") -> 2023-01-24 | C181: =RTD("cqg.rtd",,"StudyData", $O$2, "BAR", "", "Open", $O$4, -$A181, $O$6,$O$10,,$O$8,$O$12) -> 4166.25 | D181: =RTD("cqg.rtd",,"StudyData", $O$2, "BAR", "", "High", $O$4, -$A181, $O$6,$O$10,,$O$8,$O$12) -> 4177.25 | E181: =RTD("cqg.rtd",,"StudyData", $O$2, "BAR", "", "Low", $O$4, -$A181, $O$6,$O$10,,$O$8,$O$12) -> 4135 | F181: =RTD("cqg.rtd",,"StudyData", $O$2, "BAR", "", "Close", $O$4, -$A181, $O$6,$O$10,,$O$8,$O$12) -> 4162.5 | G181: =RTD("cqg.rtd",,"StudyData", $O$2, "HVol", "InputChoice=Close,HvolType=Percent,Period=10", "HVOL",$O$4,-A181,$O$6,$O$10,,$O$8,$O$12) -> 15.69271666
A182: 180 | B182: =RTD("cqg.rtd",,"StudyData", $O$2, "BAR", "", "Time", $O$4,-$A182,$O$6,$O$10, "","False","T") -> 2023-01-23 | C182: =RTD("cqg.rtd",,"StudyData", $O$2, "BAR", "", "Open", $O$4, -$A182, $O$6,$O$10,,$O$8,$O$12) -> 4116.75 | D182: =RTD("cqg.rtd",,"StudyData", $O$2, "BAR", "", "High", $O$4, -$A182, $O$6,$O$10,,$O$8,$O$12) -> 4186.5 | E182: =RTD("cqg.rtd",,"StudyData", $O$2, "BAR", "", "Low", $O$4, -$A182, $O$6,$O$10,,$O$8,$O$12) -> 4110 | F182: =RTD("cqg.rtd",,"StudyData", $O$2, "BAR", "", "Close", $O$4, -$A182, $O$6,$O$10,,$O$8,$O$12) -> 4166.25 | G182: =RTD("cqg.rtd",,"StudyData", $O$2, "HVol", "InputChoice=Close,HvolType=Percent,Period=10", "HVOL",$O$4,-A182,$O$6,$O$10,,$O$8,$O$12) -> 15.66257729
A183: 181 | B183: =RTD("cqg.rtd",,"StudyData", $O$2, "BAR", "", "Time", $O$4,-$A183,$O$6,$O$10, "","False","T") -> 2023-01-20 | C183: =RTD("cqg.rtd",,"StudyData", $O$2, "BAR", "", "Open", $O$4, -$A183, $O$6,$O$10,,$O$8,$O$12) -> 4054.75 | D183: =RTD("cqg.rtd",,"StudyData", $O$2, "BAR", "", "High", $O$4, -$A183, $O$6,$O$10,,$O$8,$O$12) -> 4120.25 | E183: =RTD("cqg.rtd",,"StudyData", $O$2, "BAR", "", "Low", $O$4, -$A183, $O$6,$O$10,,$O$8,$O$12) -> 4041.5 | F183: =RTD("cqg.rtd",,"StudyData", $O$2, "BAR", "", "Close", $O$4, -$A183, $O$6,$O$10,,$O$8,$O$12) -> 4118.25 | G183: =RTD("cqg.rtd",,"StudyData", $O$2, "HVol", "InputChoice=Close,HvolType=Percent,Period=10", "HVOL",$O$4,-A183,$O$6,$O$10,,$O$8,$O$12) -> 17.89824614
A184: 182 | B184: =RTD("cqg.rtd",,"StudyData", $O$2, "BAR", "", "Time", $O$4,-$A184,$O$6,$O$10, "","False","T") -> 2023-01-19 | C184: =RTD("cqg.rtd",,"StudyData", $O$2, "BAR", "", "Open", $O$4, -$A184, $O$6,$O$10,,$O$8,$O$12) -> 4075 | D184: =RTD("cqg.rtd",,"StudyData", $O$2, "BAR", "", "High", $O$4, -$A184, $O$6,$O$10,,$O$8,$O$12) -> 4078.5 | E184: =RTD("cqg.rtd",,"StudyData", $O$2, "BAR", "", "Low", $O$4, -$A184, $O$6,$O$10,,$O$8,$O$12) -> 4031.5 | F184: =RTD("cqg.rtd",,"StudyData", $O$2, "BAR", "", "Close", $O$4, -$A184, $O$6,$O$10,,$O$8,$O$12) -> 4045.25 | G184: =RTD("cqg.rtd",,"StudyData", $O$2, "HVol", "InputChoice=Close,HvolType=Percent,Period=10", "HVOL",$O$4,-A184,$O$6,$O$10,,$O$8,$O$12) -> 17.53086939
A185: 183 | B185: =RTD("cqg.rtd",,"StudyData", $O$2, "BAR", "", "Time", $O$4,-$A185,$O$6,$O$10, "","False","T") -> 2023-01-18 | C185: =RTD("cqg.rtd",,"StudyData", $O$2, "BAR", "", "Open", $O$4, -$A185, $O$6,$O$10,,$O$8,$O$12) -> 4138.25 | D185: =RTD("cqg.rtd",,"StudyData", $O$2, "BAR", "", "High", $O$4, -$A185, $O$6,$O$10,,$O$8,$O$12) -> 4163.25 | E185: =RTD("cqg.rtd",,"StudyData", $O$2, "BAR", "", "Low", $O$4, -$A185, $O$6,$O$10,,$O$8,$O$12) -> 4073.5 | F185: =RTD("cqg.rtd",,"StudyData", $O$2, "BAR", "", "Close", $O$4, -$A185, $O$6,$O$10,,$O$8,$O$12) -> 4075.5 | G185: =RTD("cqg.rtd",,"StudyData", $O$2, "HVol", "InputChoice=Close,HvolType=Percent,Period=10", "HVOL",$O$4,-A185,$O$6,$O$10,,$O$8,$O$12) -> 17.07862752
A186: 184 | B186: =RTD("cqg.rtd",,"StudyData", $O$2, "BAR", "", "Time", $O$4,-$A186,$O$6,$O$10, "","False","T") -> 2023-01-17 | C186: =RTD("cqg.rtd",,"StudyData", $O$2, "BAR", "", "Open", $O$4, -$A186, $O$6,$O$10,,$O$8,$O$12) -> 4149.75 | D186: =RTD("cqg.rtd",,"StudyData", $O$2, "BAR", "", "High", $O$4, -$A186, $O$6,$O$10,,$O$8,$O$12) -> 4165 | E186: =RTD("cqg.rtd",,"StudyData", $O$2, "BAR", "", "Low", $O$4, -$A186, $O$6,$O$10,,$O$8,$O$12) -> 4126.5 | F186: =RTD("cqg.rtd",,"StudyData", $O$2, "BAR", "", "Close", $O$4, -$A186, $O$6,$O$10,,$O$8,$O$12) -> 4139.25 | G186: =RTD("cqg.rtd",,"StudyData", $O$2, "HVol", "InputChoice=Close,HvolType=Percent,Period=10", "HVOL",$O$4,-A186,$O$6,$O$10,,$O$8,$O$12) -> 14.47627551
A187: 185 | B187: =RTD("cqg.rtd",,"StudyData", $O$2, "BAR", "", "Time", $O$4,-$A187,$O$6,$O$10, "","False","T") -> 2023-01-13 | C187: =RTD("cqg.rtd",,"StudyData", $O$2, "BAR", "", "Open", $O$4, -$A187, $O$6,$O$10,,$O$8,$O$12) -> 4132.75 | D187: =RTD("cqg.rtd",,"StudyData", $O$2, "BAR", "", "High", $O$4, -$A187, $O$6,$O$10,,$O$8,$O$12) -> 4154 | E187: =RTD("cqg.rtd",,"StudyData", $O$2, "BAR", "", "Low", $O$4, -$A187, $O$6,$O$10,,$O$8,$O$12) -> 4091.5 | F187: =RTD("cqg.rtd",,"StudyData", $O$2, "BAR", "", "Close", $O$4, -$A187, $O$6,$O$10,,$O$8,$O$12) -> 4148 | G187: =RTD("cqg.rtd",,"StudyData", $O$2, "HVol", "InputChoice=Close,HvolType=Percent,Period=10", "HVOL",$O$4,-A187,$O$6,$O$10,,$O$8,$O$12) -> 14.54329592
A188: 186 | B188: =RTD("cqg.rtd",,"StudyData", $O$2, "BAR", "", "Time", $O$4,-$A188,$O$6,$O$10, "","False","T") -> 2023-01-12 | C188: =RTD("cqg.rtd",,"StudyData", $O$2, "BAR", "", "Open", $O$4, -$A188, $O$6,$O$10,,$O$8,$O$12) -> 4121.5 | D188: =RTD("cqg.rtd",,"StudyData", $O$2, "BAR", "", "High", $O$4, -$A188, $O$6,$O$10,,$O$8,$O$12) -> 4151.25 | E188: =RTD("cqg.rtd",,"StudyData", $O$2, "BAR", "", "Low", $O$4, -$A188, $O$6,$O$10,,$O$8,$O$12) -> 4083.75 | F188: =RTD("cqg.rtd",,"StudyData", $O$2, "BAR", "", "Close", $O$4, -$A188, $O$6,$O$10,,$O$8,$O$12) -> 4133.25 | G188: =RTD("cqg.rtd",,"StudyData", $O$2, "HVol", "InputChoice=Close,HvolType=Percent,Period=10", "HVOL",$O$4,-A188,$O$6,$O$10,,$O$8,$O$12) -> 15.86321313
A189: 187 | B189: =RTD("cqg.rtd",,"StudyData", $O$2, "BAR", "", "Time", $O$4,-$A189,$O$6,$O$10, "","False","T") -> 2023-01-11 | C189: =RTD("cqg.rtd",,"StudyData", $O$2, "BAR", "", "Open", $O$4, -$A189, $O$6,$O$10,,$O$8,$O$12) -> 4070.75 | D189: =RTD("cqg.rtd",,"StudyData", $O$2, "BAR", "", "High", $O$4, -$A189, $O$6,$O$10,,$O$8,$O$12) -> 4122.25 | E189: =RTD("cqg.rtd",,"StudyData", $O$2, "BAR", "", "Low", $O$4, -$A189, $O$6,$O$10,,$O$8,$O$12) -> 4064.25 | F189: =RTD("cqg.rtd",,"StudyData", $O$2, "BAR", "", "Close", $O$4, -$A189, $O$6,$O$10,,$O$8,$O$12) -> 4119.75 | G189: =RTD("cqg.rtd",,"StudyData", $O$2, "HVol", "InputChoice=Close,HvolType=Percent,Period=10", "HVOL",$O$4,-A189,$O$6,$O$10,,$O$8,$O$12) -> 17.97809452
A190: 188 | B190: =RTD("cqg.rtd",,"StudyData", $O$2, "BAR", "", "Time", $O$4,-$A190,$O$6,$O$10, "","False","T") -> 2023-01-10 | C190: =RTD("cqg.rtd",,"StudyData", $O$2, "BAR", "", "Open", $O$4, -$A190, $O$6,$O$10,,$O$8,$O$12) -> 4044.25 | D190: =RTD("cqg.rtd",,"StudyData", $O$2, "BAR", "", "High", $O$4, -$A190, $O$6,$O$10,,$O$8,$O$12) -> 4073.5 | E190: =RTD("cqg.rtd",,"StudyData", $O$2, "BAR", "", "Low", $O$4, -$A190, $O$6,$O$10,,$O$8,$O$12) -> 4021.25 | F190: =RTD("cqg.rtd",,"StudyData", $O$2, "BAR", "", "Close", $O$4, -$A190, $O$6,$O$10,,$O$8,$O$12) -> 4070.5 | G190: =RTD("cqg.rtd",,"StudyData", $O$2, "HVol", "InputChoice=Close,HvolType=Percent,Period=10", "HVOL",$O$4,-A190,$O$6,$O$10,,$O$8,$O$12) -> 17.58354843
A191: 189 | B191: =RTD("cqg.rtd",,"StudyData", $O$2, "BAR", "", "Time", $O$4,-$A191,$O$6,$O$10, "","False","T") -> 2023-01-09 | C191: =RTD("cqg.rtd",,"StudyData", $O$2, "BAR", "", "Open", $O$4, -$A191, $O$6,$O$10,,$O$8,$O$12) -> 4048.25 | D191: =RTD("cqg.rtd",,"StudyData", $O$2, "BAR", "", "High", $O$4, -$A191, $O$6,$O$10,,$O$8,$O$12) -> 4103 | E191: =RTD("cqg.rtd",,"StudyData", $O$2, "BAR", "", "Low", $O$4, -$A191, $O$6,$O$10,,$O$8,$O$12) -> 4039.5 | F191: =RTD("cqg.rtd",,"StudyData", $O$2, "BAR", "", "Close", $O$4, -$A191, $O$6,$O$10,,$O$8,$O$12) -> 4043.5 | G191: =RTD("cqg.rtd",,"StudyData", $O$2, "HVol", "InputChoice=Close,HvolType=Percent,Period=10", "HVOL",$O$4,-A191,$O$6,$O$10,,$O$8,$O$12) -> 17.48266941
A192: 190 | B192: =RTD("cqg.rtd",,"StudyData", $O$2, "BAR", "", "Time", $O$4,-$A192,$O$6,$O$10, "","False","T") -> 2023-01-06 | C192: =RTD("cqg.rtd",,"StudyData", $O$2, "BAR", "", "Open", $O$4, -$A192, $O$6,$O$10,,$O$8,$O$12) -> 3962.75 | D192: =RTD("cqg.rtd",,"StudyData", $O$2, "BAR", "", "High", $O$4, -$A192, $O$6,$O$10,,$O$8,$O$12) -> 4058.5 | E192: =RTD("cqg.rtd",,"StudyData", $O$2, "BAR", "", "Low", $O$4, -$A192, $O$6,$O$10,,$O$8,$O$12) -> 3948.75 | F192: =RTD("cqg.rtd",,"StudyData", $O$2, "BAR", "", "Close", $O$4, -$A192, $O$6,$O$10,,$O$8,$O$12) -> 4045.25 | G192: =RTD("cqg.rtd",,"StudyData", $O$2, "HVol", "InputChoice=Close,HvolType=Percent,Period=10", "HVOL",$O$4,-A192,$O$6,$O$10,,$O$8,$O$12) -> 19.16954319
A193: 191 | B193: =RTD("cqg.rtd",,"StudyData", $O$2, "BAR", "", "Time", $O$4,-$A193,$O$6,$O$10, "","False","T") -> 2023-01-05 | C193: =RTD("cqg.rtd",,"StudyData", $O$2, "BAR", "", "Open", $O$4, -$A193, $O$6,$O$10,,$O$8,$O$12) -> 4000.75 | D193: =RTD("cqg.rtd",,"StudyData", $O$2, "BAR", "", "High", $O$4, -$A193, $O$6,$O$10,,$O$8,$O$12) -> 4015.25 | E193: =RTD("cqg.rtd",,"StudyData", $O$2, "BAR", "", "Low", $O$4, -$A193, $O$6,$O$10,,$O$8,$O$12) -> 3952.25 | F193: =RTD("cqg.rtd",,"StudyData", $O$2, "BAR", "", "Close", $O$4, -$A193, $O$6,$O$10,,$O$8,$O$12) -> 3958.75 | G193: =RTD("cqg.rtd",,"StudyData", $O$2, "HVol", "InputChoice=Close,HvolType=Percent,Period=10", "HVOL",$O$4,-A193,$O$6,$O$10,,$O$8,$O$12) -> 17.04515618
A194: 192 | B194: =RTD("cqg.rtd",,"StudyData", $O$2, "BAR", "", "Time", $O$4,-$A194,$O$6,$O$10, "","False","T") -> 2023-01-04 | C194: =RTD("cqg.rtd",,"StudyData", $O$2, "BAR", "", "Open", $O$4, -$A194, $O$6,$O$10,,$O$8,$O$12) -> 3972.5 | D194: =RTD("cqg.rtd",,"StudyData", $O$2, "BAR", "", "High", $O$4, -$A194, $O$6,$O$10,,$O$8,$O$12) -> 4026 | E194: =RTD("cqg.rtd",,"StudyData", $O$2, "BAR", "", "Low", $O$4, -$A194, $O$6,$O$10,,$O$8,$O$12) -> 3966.25 | F194: =RTD("cqg.rtd",,"StudyData", $O$2, "BAR", "", "Close", $O$4, -$A194, $O$6,$O$10,,$O$8,$O$12) -> 4004.25 | G194: =RTD("cqg.rtd",,"StudyData", $O$2, "HVol", "InputChoice=Close,HvolType=Percent,Period=10", "HVOL",$O$4,-A194,$O$6,$O$10,,$O$8,$O$12) -> 15.93243711
A195: 193 | B195: =RTD("cqg.rtd",,"StudyData", $O$2, "BAR", "", "Time", $O$4,-$A195,$O$6,$O$10, "","False","T") -> 2023-01-03 | C195: =RTD("cqg.rtd",,"StudyData", $O$2, "BAR", "", "Open", $O$4, -$A195, $O$6,$O$10,,$O$8,$O$12) -> 4024.75 | D195: =RTD("cqg.rtd",,"StudyData", $O$2, "BAR", "", "High", $O$4, -$A195, $O$6,$O$10,,$O$8,$O$12) -> 4036.5 | E195: =RTD("cqg.rtd",,"StudyData", $O$2, "BAR", "", "Low", $O$4, -$A195, $O$6,$O$10,,$O$8,$O$12) -> 3944.25 | F195: =RTD("cqg.rtd",,"StudyData", $O$2, "BAR", "", "Close", $O$4, -$A195, $O$6,$O$10,,$O$8,$O$12) -> 3975.75 | G195: =RTD("cqg.rtd",,"StudyData", $O$2, "HVol", "InputChoice=Close,HvolType=Percent,Period=10", "HVOL",$O$4,-A195,$O$6,$O$10,,$O$8,$O$12) -> 16.09151225
A196: =A195+1 -> 194 | B196: =RTD("cqg.rtd",,"StudyData", $O$2, "BAR", "", "Time", $O$4,-$A196,$O$6,$O$10, "","False","T") -> 2022-12-30 | C196: =RTD("cqg.rtd",,"StudyData", $O$2, "BAR", "", "Open", $O$4, -$A196, $O$6,$O$10,,$O$8,$O$12) -> 3999.5 | D196: =RTD("cqg.rtd",,"StudyData", $O$2, "BAR", "", "High", $O$4, -$A196, $O$6,$O$10,,$O$8,$O$12) -> 4000.75 | E196: =RTD("cqg.rtd",,"StudyData", $O$2, "BAR", "", "Low", $O$4, -$A196, $O$6,$O$10,,$O$8,$O$12) -> 3951.25 | F196: =RTD("cqg.rtd",,"StudyData", $O$2, "BAR", "", "Close", $O$4, -$A196, $O$6,$O$10,,$O$8,$O$12) -> 3990.75 | G196: =RTD("cqg.rtd",,"StudyData", $O$2, "HVol", "InputChoice=Close,HvolType=Percent,Period=10", "HVOL",$O$4,-A196,$O$6,$O$10,,$O$8,$O$12) -> 16.9982531
A197: 195 | B197: =RTD("cqg.rtd",,"StudyData", $O$2, "BAR", "", "Time", $O$4,-$A197,$O$6,$O$10, "","False","T") -> 2022-12-29 | C197: =RTD("cqg.rtd",,"StudyData", $O$2, "BAR", "", "Open", $O$4, -$A197, $O$6,$O$10,,$O$8,$O$12) -> 3940.75 | D197: =RTD("cqg.rtd",,"StudyData", $O$2, "BAR", "", "High", $O$4, -$A197, $O$6,$O$10,,$O$8,$O$12) -> 4012.5 | E197: =RTD("cqg.rtd",,"StudyData", $O$2, "BAR", "", "Low", $O$4, -$A197, $O$6,$O$10,,$O$8,$O$12) -> 3936 | F197: =RTD("cqg.rtd",,"StudyData", $O$2, "BAR", "", "Close", $O$4, -$A197, $O$6,$O$10,,$O$8,$O$12) -> 4001.5 | G197: =RTD("cqg.rtd",,"StudyData", $O$2, "HVol", "InputChoice=Close,HvolType=Percent,Period=10", "HVOL",$O$4,-A197,$O$6,$O$10,,$O$8,$O$12) -> 20.62816902
A198: 196 | B198: =RTD("cqg.rtd",,"StudyData", $O$2, "BAR", "", "Time", $O$4,-$A198,$O$6,$O$10, "","False","T") -> 2022-12-28 | C198: =RTD("cqg.rtd",,"StudyData", $O$2, "BAR", "", "Open", $O$4, -$A198, $O$6,$O$10,,$O$8,$O$12) -> 3987.75 | D198: =RTD("cqg.rtd",,"StudyData", $O$2, "BAR", "", "High", $O$4, -$A198, $O$6,$O$10,,$O$8,$O$12) -> 4004.75 | E198: =RTD("cqg.rtd",,"StudyData", $O$2, "BAR", "", "Low", $O$4, -$A198, $O$6,$O$10,,$O$8,$O$12) -> 3934.25 | F198: =RTD("cqg.rtd",,"StudyData", $O$2, "BAR", "", "Close", $O$4, -$A198, $O$6,$O$10,,$O$8,$O$12) -> 3937.25 | G198: =RTD("cqg.rtd",,"StudyData", $O$2, "HVol", "InputChoice=Close,HvolType=Percent,Period=10", "HVOL",$O$4,-A198,$O$6,$O$10,,$O$8,$O$12) -> 17.33363455
A199: 197 | B199: =RTD("cqg.rtd",,"StudyData", $O$2, "BAR", "", "Time", $O$4,-$A199,$O$6,$O$10, "","False","T") -> 2022-12-27 | C199: =RTD("cqg.rtd",,"StudyData", $O$2, "BAR", "", "Open", $O$4, -$A199, $O$6,$O$10,,$O$8,$O$12) -> 4007.75 | D199: =RTD("cqg.rtd",,"StudyData", $O$2, "BAR", "", "High", $O$4, -$A199, $O$6,$O$10,,$O$8,$O$12) -> 4030.25 | E199: =RTD("cqg.rtd",,"StudyData", $O$2, "BAR", "", "Low", $O$4, -$A199, $O$6,$O$10,,$O$8,$O$12) -> 3967 | F199: =RTD("cqg.rtd",,"StudyData", $O$2, "BAR", "", "Close", $O$4, -$A199, $O$6,$O$10,,$O$8,$O$12) -> 3984.75 | G199: =RTD("cqg.rtd",,"StudyData", $O$2, "HVol", "InputChoice=Close,HvolType=Percent,Period=10", "HVOL",$O$4,-A199,$O$6,$O$10,,$O$8,$O$12) -> 18.16001597
A200: 198 | B200: =RTD("cqg.rtd",,"StudyData", $O$2, "BAR", "", "Time", $O$4,-$A200,$O$6,$O$10, "","False","T") -> 2022-12-23 | C200: =RTD("cqg.rtd",,"StudyData", $O$2, "BAR", "", "Open", $O$4, -$A200, $O$6,$O$10,,$O$8,$O$12) -> 3979.75 | D200: =RTD("cqg.rtd",,"StudyData", $O$2, "BAR", "", "High", $O$4, -$A200, $O$6,$O$10,,$O$8,$O$12) -> 4002.25 | E200: =RTD("cqg.rtd",,"StudyData", $O$2, "BAR", "", "Low", $O$4, -$A200, $O$6,$O$10,,$O$8,$O$12) -> 3951 | F200: =RTD("cqg.rtd",,"StudyData", $O$2, "BAR", "", "Close", $O$4, -$A200, $O$6,$O$10,,$O$8,$O$12) -> 3999.5 | G200: =RTD("cqg.rtd",,"StudyData", $O$2, "HVol", "InputChoice=Close,HvolType=Percent,Period=10", "HVOL",$O$4,-A200,$O$6,$O$10,,$O$8,$O$12) -> 20.26748952
... 102 more rows
